Workbook

Sheet Intro

Sheet Cover Sheet
B3: Company Name | C3: NGET | D3: choose from drop down
B4: Model Name | C4: ET2 RRP Development Model | D4: SPT
B5: Version | C5: 1 | D5: SHET
B6: Submitted on | C6: 2022-07-31
B7: Price basis | C7: 2018/19
B9: Test: | C9: ='Checks Sheet'!$C$49 -> All checks passing

Sheet Contents Sheet
B2: Sheet Name | C2: Sheet Link
B4: Model Checks and look up tables
B5: Asset Possibilities | C5: ='Asset Possibilitites'!A1 -> Asset Possibilities
B6: Look Up tables | C6: ='Look Up Tables'!A1 -> Look Up Tables
B7: Checks Sheet | C7: ='Checks Sheet'!A1 -> Checks Sheet
B8: Universal Data | C8: ='Universal Data'!A2 -> Universal Data
B10: Company Input sheets
B11: Project_Meta_Data | C11: =Project_Meta_Data!B1 -> Project Meta Data
B12: Scheme_Meta_Data | C12: =Scheme_Meta_Data!B1 -> Scheme Meta Data
B13: Scheme_Volume_Mock_Up | C13: =Scheme_Volume_Mock_Up!B1 -> Scheme Volumes
B14: Scheme_Cost_Mock_Up | C14: =Scheme_Cost_Mock_Up!B1 -> Scheme Costs
B15: Scheme_NonAssetCost_Mock_Up | C15: =Scheme_NonAssetCost_Mock_Up!$B$1 -> Scheme Non Asset Cost
B16: Scheme_Output_Mock_Up | C16: =Scheme_Output_Mock_Up!B1 -> Scheme Outputs
B17: Other_T2_Capital_Cost_From_T1 | C17: ='Other_T2_Capital_Cost_From_T1 '!$B$1 -> Other_T2_Capital_Cost_From_T1
B19: Company Allowance Input sheets
B20: Scheme_Meta_Data_Allowances | C20: =Scheme_Meta_Data_Allowances!$B$1 -> Scheme Meta Data Baseline
B21: Scheme_Volume_Mock_Up_Allowance | C21: =Scheme_Volume_Mock_Up_Allowance!$B$1 -> Scheme Volumes Baseline
B22: Scheme_Cost_Mock_Up_Allowances | C22: =Scheme_Cost_Mock_Up_Allowances!$B$1 -> Scheme Costs Baseline
B23: Scheme_NonAssetCost_Mock_Up_All | C23: =Scheme_NonAssetCost_Mock_Up_All!$B$1 -> Scheme Non Asset Cost Allowances
B24: Scheme_Output_Mock_Up_Allowance | C24: =Scheme_Output_Mock_Up_Allowance!$B$1 -> Scheme Outputs
B25: Allowances input | C25: ='Allowances input'!$A$2 -> Allowances input
B27: Cost & Volume calculation tables
B28: Scheme_Cost_Calc | C28: =Scheme_Cost_Calc!B1 -> Scheme Costs
B29: Scheme_Volume_Calc | C29: =Scheme_Volume_Calc!B1 -> Scheme Volumes
B30: Summary_Costs | C30: Summary_Volume!A1
B31: Summary_Volume | C31: Summary_Cost
B32: PCD | C32: =PCD!$C$1 -> PCD
B34: Cost Graphs
B35: Costs stacked | C35: Costs Stacked
B36: Top X | C36: ='Top X '!$A$1 -> Asset heading
B37: Costs, Actual & Baseline | C37: ='Costs, Actual Allowances'!$A$1 -> Costs, Actual & Baseline
B38: RIIO costs | C38: ='RIIO costs '!$A$1 -> RIIO costs
B40: Volume Graphs
B41: Volumes stacked | C41: Volumes Stacked
B42: Top X Vol | C42: Top X by volume
B43: Vol Act & Baseline | C43: ='Vol Act & Baseline'!$A$1 -> Vol Act & Baseline
B44: RIIO volumes | C44: ='RIIO volumes'!$A$1 -> RIIO volumes
B46: Totex
B47: A1.1_Totex_AP | C47: ='A1.1_Totex_AP'!$A$2 -> A1.1_Totex_AP
B49: Cost matrix
B50: A2.1_Cost_matrix_2022 | C50: ='A2.1_Cost_Matrix_2022'!$A$2 -> A2.1_Cost_Matrix_2022
B51: A2.1_Cost_matrix_2023 | C51: ='A2.1_Cost_Matrix_2023'!$A$2 -> A2.1_Cost_Matrix_2023
B52: A2.1_Cost_matrix_2024 | C52: ='A2.1_Cost_Matrix_2024'!$A$2 -> A2.1_Cost_Matrix_2024
B53: A2.1_Cost_matrix_2025 | C53: ='A2.1_Cost_Matrix_2025'!$A$2 -> A2.1_Cost_Matrix_2025
B54: A2.1_Cost_matrix_2026 | C54: ='A2.1_Cost_Matrix_2026'!$A$2 -> A2.1_Cost_Matrix_2026
B55: A2.1_Cost_matrix_2027 | C55: ='A2.1_Cost_Matrix_2027'!$A$2 -> A2.1_Cost_Matrix_2027
B56: A2.1_Cost_matrix_2028 | C56: ='A2.1_Cost_Matrix_2028'!$A$2 -> A2.1_Cost_Matrix_2028
B57: A2.1_Cost_matrix_2029 | C57: ='A2.1_Cost_Matrix_2029'!$A$2 -> A2.1_Cost_Matrix_2029
B58: A2.1_Cost_matrix_2030 | C58: ='A2.1_Cost_Matrix_2030'!$A$2 -> A2.1_Cost_Matrix_2030
B59: A2.1_Cost_matrix_2031 | C59: ='A2.1_Cost_Matrix_2031'!$A$2 -> A2.1_Cost_Matrix_2031
B60: A2.1_Cost_matrix_2032 | C60: ='A2.1_Cost_Matrix_2032'!$A$2 -> A2.1_Cost_Matrix_2032
B61: Asset Movements
B62: A7_Asset_Movements_2022 | C62: =A7_Asset_Movements_2022!$A$2 -> A7_Asset_Movements_2022
... 73 more rows

Sheet User Guide
B2: USER GUIDE
C4: Introduction
C5: This model is designed to capture cost and volume information for RIIO-ET2.
C7: Information is input on the dark green sheets, to the right of the "Company inputs>>>" sheet.
C9: The model captures information on projects, and on schemes.
C11: This user guide walks you through inputting the required data by moving from left to right in the model. It is not necessary to do this - data can be input in other orders - but it may be simplest.
C13: In general, type data in yellow cells, and select from dropdown lists in green cells. The key is shown below.
C15: Key
C16: Select from dropdown | D16: Free Entry | E16: Auto Populated | F16: Check Cell | G16: Lookup Data
C18: Steps to populate the model
C19: 1. Go to the "Project_Meta_Data" sheet. Enter the name of each project in column L, and then the start and end dates in M & N. Select the stage (e.g. "not started") from the dropdown in column O.
C21: 2. Go to the "Scheme_Meta_Data" sheet. There is one row per scheme. Relate each scheme to a project by selecting from the dropdown in column B, then select the appropriate categories in columns C, D and E
C23: 3. Enter the scheme name in column L and then the start and end dates in columns M and N.
C25: 4. Go to the "Scheme_Volume_Mock_Up" sheet. Select the name of a scheme from the dropdown in A, then select a description of the associated asset in columns B to J.
C27: 5. Enter the actual volume in column L. You can also enter delivery year and forecast & actual energisation years to the right
C29: 6. Go to the "Scheme_Cost_Mock_Up" sheet. Columns A to J will be populated based on the inputs provided in the "Scheme_Volume_Mock_Up" sheet as a volumetric entry shoiuld have a corresponding cost entry
C31: 7. Enter the cost in column M. This is a total cost. Cost per year goes in columns P to Z.
C33: 8. Go to the "Scheme_NonAssetCost_Mock_Up" sheet. Enter the Scheme in column A from the drop down. In column B select if for this scheme there should be capital contributions applicable or if there is any Non Asset Cost Type which should be added to the scheme costs. Columns C & D are automatically populated and you will need to enter the capital contributions as a negative number on an annual basis in columns M to Z. Simialrly enter the Non Asset Cost Type inputs as a positive number in columns M to Z
C35: 9. Go to the "Scheme_Outputs_Mock_Up" sheet. Choose the scheme reference in column A, the type in columns B to D, and then the outputs by year can be input in columns J onwards.
C37: 10. The steps above can be repeated for the "Scheme_Meta_Data_Allowances", "Scheme_Volume_Mock_Up_Allowance", "Scheme_NonAssetCost_Mock_Up_All", "Scheme_Cost_Mock_Up_Allowances" and "Scheme_Output_Mock_Up_Allowance"
C39: 11. The "Other_T2_Capital_Cost_From_T1 " allows you to enter Capital costs from T1 projects that are incurred in T2. Use the drop down inputs in columns A to D then enter the annual costs in columns M to Z. These costs flow through to the Cost matrix sheet.
C41: 12. The "Allowances input" sheet is largely free entry. Using one row per allowance per year, enter the name of the allowance, the mechanism category (from the drop down list) and then the amount of the allowance in the appropriate input cell in the column. Only type in the yellow cells, as the green cells are calculated totals. These allowances then flow through to the outputs on the "A8.Allowances…" sheets. Note that for baseline inputs certain columns are not required to be input here on the basis that these inputs will flow from the Allowances_Memo sheets in the model. A comment and formatting has been applied to this sheet to show this.
C43: 13. Once you have entered in all the inputs go to the "Controls" tab and click the "Update Calculations" button. This will automatically populate the "Scheme_Cost_Calc" and "Scheme_Volume_Calc" sheet into a long list of all the actuals and allowance cost and volumne inputs respectively. You can filter these lists based on the drop down in row 6.
C45: 14. The "PCD" sheet shows the PCD key information for up to 50 projects. In each project section you select the applicable project in the frop down list. Then the model will auto populate the rest of the information which includes the schemes included in the project, license term & boundary for each scheme. It then reports the capex and output delivery for the project by year for the actuals and allowances as well as a delta
C47: 15. After the red output sheets, there are cost matrix tables (replicating the form and summary of data used in the BPDT submissions).
C49: 16. You can sense check the inputs to the "Cost Matrix" tables using "A1.1_Totex_AP" and "A2.1_Cost_Matrix_All" which provide summary totals.
C52: Sense checking the inputs
C53: There is a "Checks sheet" in the model. This covers issues such as scheme and project references matching, as well as that the total costs/ volumes input match the totals on key output sheets.
C55: The model also produces several outputs which can be used to check the model. These can be mainly found on the red coloured sheets.
C56: Drop downs at the top of each sheet allow you to see results for only part of the data

Sheet Data Flow
A1: =RIGHT(CELL("filename", $A$1), LEN(CELL("filename", $A$1)) - SEARCH("]", CELL("filename", $A$1))) -> Data Flow
A3: MODEL FLOW DIAGRAM
F5: Scheme Inputs to Graph Outputs | Q5: Scheme Inputs to Cost Matrix to Totex | AB5: Allowance Inputs to Allowance to Totex
F8: INPUTS | H8: CALCULATIONS | J8: GRAPHS | Q8: SCHEME INPUTS | S8: CALCULATIONS / Other Inputs required | U8: Cost Matrix | X8: Totex | AB8: ALLOWANCE INPUTS | AD8: CALCULATIONS / Other Inputs required | AF8: Allowances Per Year | AI8: Allowances Totex
F11: Scheme Output Inputs | H11: Scheme Cost Calcs | J11: Costs Stacked | Q11: Scheme Output Inputs | U11: A2.1_Cost_Matrix_2022 | X11: A1.1_Totex_AP | AB11: Scheme_Volume_Mock_Up_Allowance | AD11: Scheme Cost Calcs | AF11: A8_Allowances_2022 | AI11: A8_Allowances_Cost_Matrix_all
F13: Project Meta Data | H13: Scheme Volume Calcs | J13: Top X Costs | Q13: Project Meta Data | S13: Scheme Cost Calcs | U13: A2.1_Cost_Matrix_2023 | AB13: Scheme_Cost_Mock_Up_Allowances | AF13: A8_Allowances_2023 | AI13: A8_Allowances_Totex_AP
F15: Scheme Meta Data | J15: Costs, Actual & Baseline | Q15: Scheme Meta Data | U15: A2.1_Cost_Matrix_2024 | AB15: Scheme_Meta_Data_Allowances | AF15: A8_Allowances_2024
F17: Scheme Volume Inputs | J17: RIIO costs | Q17: Scheme Cost Inputs | U17: A2.1_Cost_Matrix_2025 | AB17: Allowances input | AF17: A8_Allowances_2025
F19: Scheme Cost Inputs | J19: Volumes Stacked | Q19: Other_T2_Capital_Cost_From_T1 | U19: A2.1_Cost_Matrix_2026 | AB19: Scheme Non Asset Cost Allowance Inputs | AF19: A8_Allowances_2026
F21: Scheme_Volume_Mock_Up_Allowance | J21: Top X Volumes | Q21: Scheme Non Asset Cost Inputs | U21: A2.1_Cost_Matrix_2027 | AF21: A8_Allowances_2027
F23: Scheme_Cost_Mock_Up_Allowances | J23: Volumes, Actual & Baseline | S23: D4.3a_Non_Op_Capex | U23: A2.1_Cost_Matrix_2028 | AF23: A8_Allowances_2028
F25: Scheme_Meta_Data_Allowances | J25: RIIO Volumes | S25: C2.20_Faults | U25: A2.1_Cost_Matrix_2029 | AF25: A8_Allowances_2029
F27: Allowances input | S27: C2.21_Inspections | U27: A2.1_Cost_Matrix_2030 | AF27: A8_Allowances_2030
S29: C2.22_Repairs_&_Maint | U29: A2.1_Cost_Matrix_2031 | AF29: A8_Allowances_2031
S31: C2.23_Veg_Mgt
S33: C2.24_Legal_&_Safety
S35: C2.25_Op_Prot_Meas_&_IT_Capex
S37: C2.26_Visual_Amenity
S39: D4.5_CAI
S41: D4.6_BS
S43: D4.4a_Physical_Security_Capex
S45: D4.4b_Physical_Security_Opex
S47: D4.8a_TO_Cyber_Security_OT
S49: D4.8b_TO_Cyber_Security_IT
S51: A6.02_Innovation
S53: D4.7_Op_Training_(CAI)
S55: A3.14_Pass_Through

Sheet Change Log
B3: Date | C3: Change
B6: 2021-11-09 | C6: Charts on red sheets can now be shown ,or filtered, by project as well as by scheme
B7: 2021-11-09 | C7: Removed all external links (including in named ranges)
B8: 2021-10-28 | C8: Removed Spares, Black start and Losses from Scheme sub category inputs and these sheets are now input instead of auto populated
B9: 2021-10-28 | C9: Removed IT & Visual amenity from the Scheme category options
B10: 2021-10-28 | C10: Added 280 more projects to the Opex escalating support calculations
B11: 2021-10-28 | C11: Updates following NGET comments on the model
B12: 2021-10-28 | C12: Physical security opex & capex sheets updated
B13: 2021-10-28 | C13: Added in the CV_Interface, WW calcs, ET Reopener_log (non-opex esc), ET Reopener_log (Opex esc), ET lookup tab & CVP Template sheets
B14: 2021-10-28 | C14: Updated the asset possibility sheets
B15: 2021-10-28 | C15: Added in additional non asset cost type and linked through to the cost matrix and allowances sheets
B16: 2021-10-20 | C16: Updated the A8_Allowances tabs such that the baseline memo sheets link in to this
B17: 2021-10-15 | C17: Modified the formula used in the 'Active' field in Scheme_Cost_Calcs to differentiate between Actual and Allowances (resolving #N/A error)
B18: 2021-10-14 | C18: Manually-triggered VBA used to collate data into Scheme_Cost_Calcs, Scheme_Volume_Calcs and PCD tabs instead of formulas
B19: 2021-10-14 | C19: Converted the subtotal formulas (row 4) from array references to table references within 'Scheme_Volume_Calc'
B20: 2021-10-14 | C20: Converted the subtotal formulas (row 4) from array references to table references within 'Scheme_Cost_Calc'
B21: 2021-10-08 | C21: Assigned 10,000 rows for both Actuals and Allowances for Scheme_Volume_Calcs (reduced Actuals by 100 rows)
B22: 2021-10-08 | C22: Assigned 10,000 rows for both Actuals and Allowances for Scheme_Cost_Calcs (reduced Actuals by 1 row)
B23: 2021-10-04 | C23: Added Intertrip as an asset category
B24: 2021-10-04 | C24: Added PCD sheet
B25: 2021-09-21 | C25: Added in TPD & TPG sheets
B26: 2021-09-21 | C26: Added in Baseline allowance memo sheets
B27: 2021-09-21 | C27: Minor adjustments following NGET's comments
B28: 2021-09-21 | C28: Added in a boundary line input for the Output input sheets
B29: 2021-09-21 | C29: Added in the Scheme Non Asset Cost input which links through to the Capex profile sheets - Same for allowances
B30: 2021-09-21 | C30: Amended the Scheme Cost columns A to J to be linked to the Volume cost inputs - Same for allowances
B31: 2021-09-09 | C31: Added "Other_T2_Capital_Cost_From_T1 " cost input which means companies can input T1 costs which flow through to the cost matrix sheet
B32: 2021-09-09 | C32: Amended "QoCS" tab
B33: 2021-09-09 | C33: Updated Asset possibility lists & linked through to the statements
B34: 2021-09-09 | C34: Changed Baseline to Allowances and added more input sheets for this. The inputs now feed through to the allowance matrix sheets
B35: 2021-08-18 | C35: Added Revenue workbook sheets in
B36: 2021-07-25 | C36: Corrected dummy data on scheme cost mockup to deal with NARM change in lookup table
B37: 2021-07-25 | C37: Added allowances input sheet, and new "A8" Allowance reporting sheets. Deleted previous allowances mockup input sheet. Check sum added
B38: 2021-07-25 | C38: Added tables showing number of company classifications assigned to each Ofgem asset heading and category. Includes checksums
B39: 2021-07-23 | C39: Updated the Civils asset possibilities and C2.24 to reflect the latest civil asset possibility options
B40: 2021-07-23 | C40: Deleted sheet 6.02 and replaced with the NIA, SIF, CNIA & NIC sheets
B41: 2021-07-23 | C41: Added in Visual_Amenity NTMP worksheet
B42: 2021-07-23 | C42: Updated C2.26 C2.26_Visual_Amenity EPI_VIMRE worksheet
B43: 2021-07-20 | C43: Added QoCS sheet
B44: 2021-07-20 | C44: Added ENS sheet
B45: 2021-07-20 | C45: Updated IIG incentive sheet
B46: 2021-07-19 | C46: Added checksums for inputs/ calcs
B47: 2021-07-19 | C47: Added summary sheets at load/ non-load level
B48: 2021-07-19 | C48: Removed meaningless "total" figures on volume input sheets (L14)
B49: 2021-07-05 | C49: Add new draft innovation tabs
B50: 2021-07-05 | C50: Added IT & telecoms memo tables to D4.5 and D4.6
B51: 2021-07-05 | C51: Added cost matrix summary sheet
B52: 2021-07-05 | C52: Added drop down for project stage gates (list of stages TBC)
B53: 2021-07-05 | C53: Added draft allowances sheet for discussion
B54: 2021-07-05 | C54: Added single scheme calc sheet
B55: 2021-11-01 | C55: Scheme Volume, column F: "Look up" tab (column H) references changed to "kV
B56: 2021-11-01 | C56: Scheme Output, column C "Mechanism": "Look up" tab (column S) include the option "other" in the drop down menu list.
B57: 2021-11-01 | C57: Scheme Output, column E "Boundary" additional column to be inserted to enable the companies to capture the potential scenario that a project can deliver an uplift in capacity on more than one boundary and there are two boundary/MW Outputs relevant for the project. Change reflected in "PCD" worksheet.
B58: 2021-11-01 | C58: Scheme Output, column J "Units": "Look up" tab (column AB) includes the option "LR£" in the drop down menu list.
B59: 2021-11-01 | C59: D4.11 Asset identification: Column N auto-populated from the information provided in the Scheme Meta Data worksheet.
B60: 2021-11-01 | C60: C2.20 Faults: metrics & links updated
B61: 2021-11-01 | C61: C2.21 Inspections: metrics & links updated
B62: 2021-11-01 | C62: C2.22 Repairs and Maintenance: metrics & links updated
B63: 2021-11-01 | C63: C2.22 Repairs and Maintenance: new row "HVDC - Other" Column E metric "Each".
B64: 2021-11-01 | C64: C2.23 Vegetation Management: Cells D27 to 34 change to "route km".
B65: 2021-11-01 | C65: E1.6 system characteristics: Change to T2 profile years in cells E83:I83 and E82
B66: 2021-11-01 | C66: Look up/ E1.13 WW Calcs: boundaries updated
B67: 2021-11-01 | C67: A2.1 Cost matrix (2022): In A2.1_Cost_Matrix_2022 "columns I-L & P, row 32" the formula fixed to correctly refer to "Non-Load Related" within the formula.
B68: 2021-11-01 | C68: A2.1 cost matrix all: Formula error fixed in A2.1 Cost_Matrix_all cells R11 to R20. Linked to each Cost Matrix tab by year and fixed to cell $R$32.
B69: 2021-11-01 | C69: A8 allowances: Formula error fixed in A8_Allowances_Cost_Matrix_all cells R11 to R20. The formula has just been dragged down from R11 but should be linked to each Allowance Matrix tab by year and fixed to cell $R$27.
B70: 2021-11-01 | C70: A2.1 cost matrix each year: Formula error fixed in A2.1 Cost Matrix 2022 through to 2031 for uncertain costs which is not pulling through from that tab. The formula in cell P14 and P32 should updated.
B71: 2021-11-01 | C71: A2.1 cost matrix each year: Formula error fixed in A2.1 Cost Matrix 2022 through to 2031 for Innovation which is not pulling through the correct cell. The formula in cell AI14 changed in the 2022 tab to column V from AF and then again in 2023, 2024 etc
B72: 2021-11-01 | C72: CV_interface_sheet: renamed NARM interface
B73: 2021-11-01 | C73: A8 allowances sheets: rename “Excluded Services” to “Directly Remunerated Services”. The same change also applies to column AB title in the “Allowance Input” worksheet.
B74: 2021-11-01 | C74: C2.17: name change, metrics & links updated
B75: 2021-11-01 | C75: C2.18: name change, metrics & links updated
B76: 2021-11-01 | C76: C2.19: name change, metrics & links updated
B77: 2021-11-01 | C77: D4.3a: name change, metrics & links updated
B78: 2021-11-01 | C78: D4.5: name change, metrics & links updated
B79: 2021-11-01 | C79: D4.6: name change, metrics & links updated
B80: 2021-11-01 | C80: VBA log: added
B81: 2021-11-01 | C81: Allowances: cell X20 changed to include Innovation as an " Other costs within Price Control" category. Summation formula in column AE changed.
B82: 2021-11-01 | C82: Allowances Input: update to "grey out" data entry provided through the "scheme meta" worksheets and the "non-scheme" entry in the Baseline Allowance Memo tables.
B83: 2021-11-12 | C83: New version of E1.2 sheet
B84: 2021-11-12 | C84: Update Asset possibilities with new list 15/11
B85: 2021-11-12 | C85: C2.20 sheets asset list update
B86: 2021-11-12 | C86: C.21 sheets asset list update
B87: 2021-11-12 | C87: C2.22 sheets asset list update
B88: 2021-11-12 | C88: Removed "ongoing efficiency adjustment" row from A8 sheets
B89: 2021-11-17 | C89: Removed dummy data from template.

Sheet VBA Log
B2: VBA | C2: Action | D2: Worksheet | E2: Address | F2: New_Value | G2: Success | H2: Error | I2: Error_Str | J2: Run

Sheet Controls
B2: Control | C2: Description
C4: Collates relevant inputs into 'Scheme_Cost_Calcs' and 'Scheme_Volume_Calcs'

Sheet Asset Possibilitites
A1: Asset Possibilities
A2: Sheet Description:
A3: Columns B to F shows the possible options that the companies are allowed to input and if they input a set of inputs which do not match one of these options then an error check will appear
I5: Combines all the possible options and is used in a check to make sure the companies provide correct inputs | N5: Used in calculations in the model to create the list in the Look up tables | O5: Used in calculations in the model to create the list in the Look up tables | P5: Used in calculations in the model to create the list in the Look up tables | Q5: Used in calculations in the model to create the list in the Look up tables | R5: Used in calculations in the model to create the list in the Look up tables
N7: New input
A8: Assets | B8: Asset Heading | C8: Asset Category | D8: Asset Sub-Category Primary | E8: Voltage | F8: Units | I8: Descriptor | N8: Asset Heading | O8: Asset Category | P8: Asset Sub-Category Primary | Q8: Voltage | R8: Units
A9: 1 | B9: Assets | C9: Circuit Breaker | D9: 6.6/11kV CB (GM) Primary | E9: HV | F9: Each | I9: =B9&C9&D9&E9&F9 -> AssetsCircuit Breaker6.6/11kV CB (GM) PrimaryHVEach | N9: 1 | O9: 1 | P9: 1 | Q9: 1 | R9: 1
A10: =A9+1 -> 2 | B10: Assets | C10: Circuit Breaker | D10: 6.6/11kV Switch | E10: HV | F10: Each | I10: AssetsCircuit Breaker6.6/11kV SwitchHVEach | N10: =IF( AND(ISERROR(MATCH(B10,B$9:B9,0)), NOT(ISBLANK(B10))), MAX(N$9:N9) + 1, 0) -> 0 | O10: =IF( AND(ISERROR(MATCH(C10,C$9:C9,0)), NOT(ISBLANK(C10))), MAX(O$9:O9) + 1, 0) -> 0 | P10: =IF( AND(ISERROR(MATCH(D10,D$9:D9,0)), NOT(ISBLANK(D10))), MAX(P$9:P9) + 1, 0) -> 2 | Q10: =IF( AND(ISERROR(MATCH(E10,E$9:E9,0)), NOT(ISBLANK(E10))), MAX(Q$9:Q9) + 1, 0) -> 0 | R10: =IF( AND(ISERROR(MATCH(F10,F$9:F9,0)), NOT(ISBLANK(F10))), MAX(R$9:R9) + 1, 0) -> 0
A11: =A10+1 -> 3 | B11: Assets | C11: Circuit Breaker | D11: Switch (GM) | E11: <=33kV | F11: Each | I11: AssetsCircuit BreakerSwitch (GM)<=33kVEach | N11: =IF( AND(ISERROR(MATCH(B11,B$9:B10,0)), NOT(ISBLANK(B11))), MAX(N$9:N10) + 1, 0) -> 0 | O11: =IF( AND(ISERROR(MATCH(C11,C$9:C10,0)), NOT(ISBLANK(C11))), MAX(O$9:O10) + 1, 0) -> 0 | P11: =IF( AND(ISERROR(MATCH(D11,D$9:D10,0)), NOT(ISBLANK(D11))), MAX(P$9:P10) + 1, 0) -> 3 | Q11: =IF( AND(ISERROR(MATCH(E11,E$9:E10,0)), NOT(ISBLANK(E11))), MAX(Q$9:Q10) + 1, 0) -> 2 | R11: =IF( AND(ISERROR(MATCH(F11,F$9:F10,0)), NOT(ISBLANK(F11))), MAX(R$9:R10) + 1, 0) -> 0
A12: 4 | B12: Assets | C12: Circuit Breaker | D12: Switchgear - Other | E12: <=33kV | F12: Each | I12: AssetsCircuit BreakerSwitchgear - Other<=33kVEach | N12: =IF( AND(ISERROR(MATCH(B12,B$9:B11,0)), NOT(ISBLANK(B12))), MAX(N$9:N11) + 1, 0) -> 0 | O12: =IF( AND(ISERROR(MATCH(C12,C$9:C11,0)), NOT(ISBLANK(C12))), MAX(O$9:O11) + 1, 0) -> 0 | P12: =IF( AND(ISERROR(MATCH(D12,D$9:D11,0)), NOT(ISBLANK(D12))), MAX(P$9:P11) + 1, 0) -> 4 | Q12: =IF( AND(ISERROR(MATCH(E12,E$9:E11,0)), NOT(ISBLANK(E12))), MAX(Q$9:Q11) + 1, 0) -> 0 | R12: =IF( AND(ISERROR(MATCH(F12,F$9:F11,0)), NOT(ISBLANK(F12))), MAX(R$9:R11) + 1, 0) -> 0
A13: 5 | B13: Assets | C13: Circuit Breaker | D13: CB (Air Insulated Busbars) | E13: <=33kV | F13: Each | I13: AssetsCircuit BreakerCB (Air Insulated Busbars) <=33kVEach | N13: =IF( AND(ISERROR(MATCH(B13,B$9:B12,0)), NOT(ISBLANK(B13))), MAX(N$9:N12) + 1, 0) -> 0 | O13: =IF( AND(ISERROR(MATCH(C13,C$9:C12,0)), NOT(ISBLANK(C13))), MAX(O$9:O12) + 1, 0) -> 0 | P13: =IF( AND(ISERROR(MATCH(D13,D$9:D12,0)), NOT(ISBLANK(D13))), MAX(P$9:P12) + 1, 0) -> 5 | Q13: =IF( AND(ISERROR(MATCH(E13,E$9:E12,0)), NOT(ISBLANK(E13))), MAX(Q$9:Q12) + 1, 0) -> 0 | R13: =IF( AND(ISERROR(MATCH(F13,F$9:F12,0)), NOT(ISBLANK(F13))), MAX(R$9:R12) + 1, 0) -> 0
A14: 6 | B14: Assets | C14: Circuit Breaker | D14: CB (Gas Insulated Busbar) (OD) | E14: <=33kV | F14: Each | I14: AssetsCircuit BreakerCB (Gas Insulated Busbar) (OD)<=33kVEach | N14: =IF( AND(ISERROR(MATCH(B14,B$9:B13,0)), NOT(ISBLANK(B14))), MAX(N$9:N13) + 1, 0) -> 0 | O14: =IF( AND(ISERROR(MATCH(C14,C$9:C13,0)), NOT(ISBLANK(C14))), MAX(O$9:O13) + 1, 0) -> 0 | P14: =IF( AND(ISERROR(MATCH(D14,D$9:D13,0)), NOT(ISBLANK(D14))), MAX(P$9:P13) + 1, 0) -> 6 | Q14: =IF( AND(ISERROR(MATCH(E14,E$9:E13,0)), NOT(ISBLANK(E14))), MAX(Q$9:Q13) + 1, 0) -> 0 | R14: =IF( AND(ISERROR(MATCH(F14,F$9:F13,0)), NOT(ISBLANK(F14))), MAX(R$9:R13) + 1, 0) -> 0
A15: 7 | B15: Assets | C15: Circuit Breaker | D15: CB (Gas Insulated Busbar) (ID) | E15: <=33kV | F15: Each | I15: AssetsCircuit BreakerCB (Gas Insulated Busbar) (ID)<=33kVEach | N15: =IF( AND(ISERROR(MATCH(B15,B$9:B14,0)), NOT(ISBLANK(B15))), MAX(N$9:N14) + 1, 0) -> 0 | O15: =IF( AND(ISERROR(MATCH(C15,C$9:C14,0)), NOT(ISBLANK(C15))), MAX(O$9:O14) + 1, 0) -> 0 | P15: =IF( AND(ISERROR(MATCH(D15,D$9:D14,0)), NOT(ISBLANK(D15))), MAX(P$9:P14) + 1, 0) -> 7 | Q15: =IF( AND(ISERROR(MATCH(E15,E$9:E14,0)), NOT(ISBLANK(E15))), MAX(Q$9:Q14) + 1, 0) -> 0 | R15: =IF( AND(ISERROR(MATCH(F15,F$9:F14,0)), NOT(ISBLANK(F15))), MAX(R$9:R14) + 1, 0) -> 0
A16: 8 | B16: Assets | C16: Circuit Breaker | D16: CB (Air Insulated Busbars) | E16: 132kV | F16: Each | I16: AssetsCircuit BreakerCB (Air Insulated Busbars) 132kVEach | N16: =IF( AND(ISERROR(MATCH(B16,B$9:B15,0)), NOT(ISBLANK(B16))), MAX(N$9:N15) + 1, 0) -> 0 | O16: =IF( AND(ISERROR(MATCH(C16,C$9:C15,0)), NOT(ISBLANK(C16))), MAX(O$9:O15) + 1, 0) -> 0 | P16: =IF( AND(ISERROR(MATCH(D16,D$9:D15,0)), NOT(ISBLANK(D16))), MAX(P$9:P15) + 1, 0) -> 0 | Q16: =IF( AND(ISERROR(MATCH(E16,E$9:E15,0)), NOT(ISBLANK(E16))), MAX(Q$9:Q15) + 1, 0) -> 3 | R16: =IF( AND(ISERROR(MATCH(F16,F$9:F15,0)), NOT(ISBLANK(F16))), MAX(R$9:R15) + 1, 0) -> 0
A17: 9 | B17: Assets | C17: Circuit Breaker | D17: CB (Gas Insulated Busbar) (OD) | E17: 132kV | F17: Each | I17: AssetsCircuit BreakerCB (Gas Insulated Busbar) (OD)132kVEach | N17: =IF( AND(ISERROR(MATCH(B17,B$9:B16,0)), NOT(ISBLANK(B17))), MAX(N$9:N16) + 1, 0) -> 0 | O17: =IF( AND(ISERROR(MATCH(C17,C$9:C16,0)), NOT(ISBLANK(C17))), MAX(O$9:O16) + 1, 0) -> 0 | P17: =IF( AND(ISERROR(MATCH(D17,D$9:D16,0)), NOT(ISBLANK(D17))), MAX(P$9:P16) + 1, 0) -> 0 | Q17: =IF( AND(ISERROR(MATCH(E17,E$9:E16,0)), NOT(ISBLANK(E17))), MAX(Q$9:Q16) + 1, 0) -> 0 | R17: =IF( AND(ISERROR(MATCH(F17,F$9:F16,0)), NOT(ISBLANK(F17))), MAX(R$9:R16) + 1, 0) -> 0
A18: 10 | B18: Assets | C18: Circuit Breaker | D18: CB (Gas Insulated Busbar) (ID) | E18: 132kV | F18: Each | I18: AssetsCircuit BreakerCB (Gas Insulated Busbar) (ID)132kVEach | N18: =IF( AND(ISERROR(MATCH(B18,B$9:B17,0)), NOT(ISBLANK(B18))), MAX(N$9:N17) + 1, 0) -> 0 | O18: =IF( AND(ISERROR(MATCH(C18,C$9:C17,0)), NOT(ISBLANK(C18))), MAX(O$9:O17) + 1, 0) -> 0 | P18: =IF( AND(ISERROR(MATCH(D18,D$9:D17,0)), NOT(ISBLANK(D18))), MAX(P$9:P17) + 1, 0) -> 0 | Q18: =IF( AND(ISERROR(MATCH(E18,E$9:E17,0)), NOT(ISBLANK(E18))), MAX(Q$9:Q17) + 1, 0) -> 0 | R18: =IF( AND(ISERROR(MATCH(F18,F$9:F17,0)), NOT(ISBLANK(F18))), MAX(R$9:R17) + 1, 0) -> 0
A19: 11 | B19: Assets | C19: Circuit Breaker | D19: CB (Air Insulated Busbar) | E19: 275kV | F19: Each | I19: AssetsCircuit BreakerCB (Air Insulated Busbar)275kVEach | N19: =IF( AND(ISERROR(MATCH(B19,B$9:B18,0)), NOT(ISBLANK(B19))), MAX(N$9:N18) + 1, 0) -> 0 | O19: =IF( AND(ISERROR(MATCH(C19,C$9:C18,0)), NOT(ISBLANK(C19))), MAX(O$9:O18) + 1, 0) -> 0 | P19: =IF( AND(ISERROR(MATCH(D19,D$9:D18,0)), NOT(ISBLANK(D19))), MAX(P$9:P18) + 1, 0) -> 8 | Q19: =IF( AND(ISERROR(MATCH(E19,E$9:E18,0)), NOT(ISBLANK(E19))), MAX(Q$9:Q18) + 1, 0) -> 4 | R19: =IF( AND(ISERROR(MATCH(F19,F$9:F18,0)), NOT(ISBLANK(F19))), MAX(R$9:R18) + 1, 0) -> 0
A20: 12 | B20: Assets | C20: Circuit Breaker | D20: CB (Gas Insulated Busbar) (OD) | E20: 275kV | F20: Each | I20: AssetsCircuit BreakerCB (Gas Insulated Busbar) (OD)275kVEach | N20: =IF( AND(ISERROR(MATCH(B20,B$9:B19,0)), NOT(ISBLANK(B20))), MAX(N$9:N19) + 1, 0) -> 0 | O20: =IF( AND(ISERROR(MATCH(C20,C$9:C19,0)), NOT(ISBLANK(C20))), MAX(O$9:O19) + 1, 0) -> 0 | P20: =IF( AND(ISERROR(MATCH(D20,D$9:D19,0)), NOT(ISBLANK(D20))), MAX(P$9:P19) + 1, 0) -> 0 | Q20: =IF( AND(ISERROR(MATCH(E20,E$9:E19,0)), NOT(ISBLANK(E20))), MAX(Q$9:Q19) + 1, 0) -> 0 | R20: =IF( AND(ISERROR(MATCH(F20,F$9:F19,0)), NOT(ISBLANK(F20))), MAX(R$9:R19) + 1, 0) -> 0
A21: 13 | B21: Assets | C21: Circuit Breaker | D21: CB (Gas Insulated Busbar) (ID) | E21: 275kV | F21: Each | I21: AssetsCircuit BreakerCB (Gas Insulated Busbar) (ID)275kVEach | N21: =IF( AND(ISERROR(MATCH(B21,B$9:B20,0)), NOT(ISBLANK(B21))), MAX(N$9:N20) + 1, 0) -> 0 | O21: =IF( AND(ISERROR(MATCH(C21,C$9:C20,0)), NOT(ISBLANK(C21))), MAX(O$9:O20) + 1, 0) -> 0 | P21: =IF( AND(ISERROR(MATCH(D21,D$9:D20,0)), NOT(ISBLANK(D21))), MAX(P$9:P20) + 1, 0) -> 0 | Q21: =IF( AND(ISERROR(MATCH(E21,E$9:E20,0)), NOT(ISBLANK(E21))), MAX(Q$9:Q20) + 1, 0) -> 0 | R21: =IF( AND(ISERROR(MATCH(F21,F$9:F20,0)), NOT(ISBLANK(F21))), MAX(R$9:R20) + 1, 0) -> 0
A22: 14 | B22: Assets | C22: Circuit Breaker | D22: CB (Air Insulated Busbar) | E22: 400kV | F22: Each | I22: =B22&C22&D22&E22&F22 -> AssetsCircuit BreakerCB (Air Insulated Busbar) 400kVEach | N22: =IF( AND(ISERROR(MATCH(B22,B$9:B21,0)), NOT(ISBLANK(B22))), MAX(N$9:N21) + 1, 0) -> 0 | O22: =IF( AND(ISERROR(MATCH(C22,C$9:C21,0)), NOT(ISBLANK(C22))), MAX(O$9:O21) + 1, 0) -> 0 | P22: =IF( AND(ISERROR(MATCH(D22,D$9:D21,0)), NOT(ISBLANK(D22))), MAX(P$9:P21) + 1, 0) -> 9 | Q22: =IF( AND(ISERROR(MATCH(E22,E$9:E21,0)), NOT(ISBLANK(E22))), MAX(Q$9:Q21) + 1, 0) -> 5 | R22: =IF( AND(ISERROR(MATCH(F22,F$9:F21,0)), NOT(ISBLANK(F22))), MAX(R$9:R21) + 1, 0) -> 0
A23: 15 | B23: Assets | C23: Circuit Breaker | D23: CB (Gas Insulated Busbar) (OD) | E23: 400kV | F23: Each | I23: AssetsCircuit BreakerCB (Gas Insulated Busbar) (OD)400kVEach | N23: =IF( AND(ISERROR(MATCH(B23,B$9:B22,0)), NOT(ISBLANK(B23))), MAX(N$9:N22) + 1, 0) -> 0 | O23: =IF( AND(ISERROR(MATCH(C23,C$9:C22,0)), NOT(ISBLANK(C23))), MAX(O$9:O22) + 1, 0) -> 0 | P23: =IF( AND(ISERROR(MATCH(D23,D$9:D22,0)), NOT(ISBLANK(D23))), MAX(P$9:P22) + 1, 0) -> 0 | Q23: =IF( AND(ISERROR(MATCH(E23,E$9:E22,0)), NOT(ISBLANK(E23))), MAX(Q$9:Q22) + 1, 0) -> 0 | R23: =IF( AND(ISERROR(MATCH(F23,F$9:F22,0)), NOT(ISBLANK(F23))), MAX(R$9:R22) + 1, 0) -> 0
A24: 16 | B24: Assets | C24: Circuit Breaker | D24: CB (Gas Insulated Busbar) (ID) | E24: 400kV | F24: Each | I24: AssetsCircuit BreakerCB (Gas Insulated Busbar) (ID)400kVEach | N24: =IF( AND(ISERROR(MATCH(B24,B$9:B23,0)), NOT(ISBLANK(B24))), MAX(N$9:N23) + 1, 0) -> 0 | O24: =IF( AND(ISERROR(MATCH(C24,C$9:C23,0)), NOT(ISBLANK(C24))), MAX(O$9:O23) + 1, 0) -> 0 | P24: =IF( AND(ISERROR(MATCH(D24,D$9:D23,0)), NOT(ISBLANK(D24))), MAX(P$9:P23) + 1, 0) -> 0 | Q24: =IF( AND(ISERROR(MATCH(E24,E$9:E23,0)), NOT(ISBLANK(E24))), MAX(Q$9:Q23) + 1, 0) -> 0 | R24: =IF( AND(ISERROR(MATCH(F24,F$9:F23,0)), NOT(ISBLANK(F24))), MAX(R$9:R23) + 1, 0) -> 0
A25: 17 | B25: Assets | C25: Overhead Line Fittings | D25: Fittings | E25: <=33kV | F25: Each | I25: AssetsOverhead Line FittingsFittings<=33kVEach | N25: =IF( AND(ISERROR(MATCH(B25,B$9:B24,0)), NOT(ISBLANK(B25))), MAX(N$9:N24) + 1, 0) -> 0 | O25: =IF( AND(ISERROR(MATCH(C25,C$9:C24,0)), NOT(ISBLANK(C25))), MAX(O$9:O24) + 1, 0) -> 2 | P25: =IF( AND(ISERROR(MATCH(D25,D$9:D24,0)), NOT(ISBLANK(D25))), MAX(P$9:P24) + 1, 0) -> 10 | Q25: =IF( AND(ISERROR(MATCH(E25,E$9:E24,0)), NOT(ISBLANK(E25))), MAX(Q$9:Q24) + 1, 0) -> 0 | R25: =IF( AND(ISERROR(MATCH(F25,F$9:F24,0)), NOT(ISBLANK(F25))), MAX(R$9:R24) + 1, 0) -> 0
A26: 18 | B26: Assets | C26: Overhead Line Fittings | D26: Fittings | E26: 132kV | F26: Each | I26: AssetsOverhead Line FittingsFittings132kVEach | N26: =IF( AND(ISERROR(MATCH(B26,B$9:B25,0)), NOT(ISBLANK(B26))), MAX(N$9:N25) + 1, 0) -> 0 | O26: =IF( AND(ISERROR(MATCH(C26,C$9:C25,0)), NOT(ISBLANK(C26))), MAX(O$9:O25) + 1, 0) -> 0 | P26: =IF( AND(ISERROR(MATCH(D26,D$9:D25,0)), NOT(ISBLANK(D26))), MAX(P$9:P25) + 1, 0) -> 0 | Q26: =IF( AND(ISERROR(MATCH(E26,E$9:E25,0)), NOT(ISBLANK(E26))), MAX(Q$9:Q25) + 1, 0) -> 0 | R26: =IF( AND(ISERROR(MATCH(F26,F$9:F25,0)), NOT(ISBLANK(F26))), MAX(R$9:R25) + 1, 0) -> 0
A27: 19 | B27: Assets | C27: Overhead Line Fittings | D27: Fittings | E27: 275kV | F27: Each | I27: AssetsOverhead Line FittingsFittings275kVEach | N27: =IF( AND(ISERROR(MATCH(B27,B$9:B26,0)), NOT(ISBLANK(B27))), MAX(N$9:N26) + 1, 0) -> 0 | O27: =IF( AND(ISERROR(MATCH(C27,C$9:C26,0)), NOT(ISBLANK(C27))), MAX(O$9:O26) + 1, 0) -> 0 | P27: =IF( AND(ISERROR(MATCH(D27,D$9:D26,0)), NOT(ISBLANK(D27))), MAX(P$9:P26) + 1, 0) -> 0 | Q27: =IF( AND(ISERROR(MATCH(E27,E$9:E26,0)), NOT(ISBLANK(E27))), MAX(Q$9:Q26) + 1, 0) -> 0 | R27: =IF( AND(ISERROR(MATCH(F27,F$9:F26,0)), NOT(ISBLANK(F27))), MAX(R$9:R26) + 1, 0) -> 0
A28: 20 | B28: Assets | C28: Overhead Line Fittings | D28: Fittings | E28: 400kV | F28: Each | I28: AssetsOverhead Line FittingsFittings400kVEach | N28: =IF( AND(ISERROR(MATCH(B28,B$9:B27,0)), NOT(ISBLANK(B28))), MAX(N$9:N27) + 1, 0) -> 0 | O28: =IF( AND(ISERROR(MATCH(C28,C$9:C27,0)), NOT(ISBLANK(C28))), MAX(O$9:O27) + 1, 0) -> 0 | P28: =IF( AND(ISERROR(MATCH(D28,D$9:D27,0)), NOT(ISBLANK(D28))), MAX(P$9:P27) + 1, 0) -> 0 | Q28: =IF( AND(ISERROR(MATCH(E28,E$9:E27,0)), NOT(ISBLANK(E28))), MAX(Q$9:Q27) + 1, 0) -> 0 | R28: =IF( AND(ISERROR(MATCH(F28,F$9:F27,0)), NOT(ISBLANK(F28))), MAX(R$9:R27) + 1, 0) -> 0
A29: 21 | B29: Assets | C29: Overhead Pole Line | D29: OHL (Pole Line) Conductor | E29: <=33kV | F29: km | I29: AssetsOverhead Pole LineOHL (Pole Line) Conductor<=33kVkm | N29: =IF( AND(ISERROR(MATCH(B29,B$9:B28,0)), NOT(ISBLANK(B29))), MAX(N$9:N28) + 1, 0) -> 0 | O29: =IF( AND(ISERROR(MATCH(C29,C$9:C28,0)), NOT(ISBLANK(C29))), MAX(O$9:O28) + 1, 0) -> 3 | P29: =IF( AND(ISERROR(MATCH(D29,D$9:D28,0)), NOT(ISBLANK(D29))), MAX(P$9:P28) + 1, 0) -> 11 | Q29: =IF( AND(ISERROR(MATCH(E29,E$9:E28,0)), NOT(ISBLANK(E29))), MAX(Q$9:Q28) + 1, 0) -> 0 | R29: =IF( AND(ISERROR(MATCH(F29,F$9:F28,0)), NOT(ISBLANK(F29))), MAX(R$9:R28) + 1, 0) -> 2
A30: 22 | B30: Assets | C30: Overhead Pole Line | D30: OHL (Pole Line) Conductor | E30: 132kV | F30: km | I30: AssetsOverhead Pole LineOHL (Pole Line) Conductor132kVkm | N30: =IF( AND(ISERROR(MATCH(B30,B$9:B29,0)), NOT(ISBLANK(B30))), MAX(N$9:N29) + 1, 0) -> 0 | O30: =IF( AND(ISERROR(MATCH(C30,C$9:C29,0)), NOT(ISBLANK(C30))), MAX(O$9:O29) + 1, 0) -> 0 | P30: =IF( AND(ISERROR(MATCH(D30,D$9:D29,0)), NOT(ISBLANK(D30))), MAX(P$9:P29) + 1, 0) -> 0 | Q30: =IF( AND(ISERROR(MATCH(E30,E$9:E29,0)), NOT(ISBLANK(E30))), MAX(Q$9:Q29) + 1, 0) -> 0 | R30: =IF( AND(ISERROR(MATCH(F30,F$9:F29,0)), NOT(ISBLANK(F30))), MAX(R$9:R29) + 1, 0) -> 0
A31: 23 | B31: Assets | C31: Overhead Pole Line | D31: OHL (Pole Line) Conductor | E31: 275kV | F31: km | I31: AssetsOverhead Pole LineOHL (Pole Line) Conductor275kVkm | N31: =IF( AND(ISERROR(MATCH(B31,B$9:B30,0)), NOT(ISBLANK(B31))), MAX(N$9:N30) + 1, 0) -> 0 | O31: =IF( AND(ISERROR(MATCH(C31,C$9:C30,0)), NOT(ISBLANK(C31))), MAX(O$9:O30) + 1, 0) -> 0 | P31: =IF( AND(ISERROR(MATCH(D31,D$9:D30,0)), NOT(ISBLANK(D31))), MAX(P$9:P30) + 1, 0) -> 0 | Q31: =IF( AND(ISERROR(MATCH(E31,E$9:E30,0)), NOT(ISBLANK(E31))), MAX(Q$9:Q30) + 1, 0) -> 0 | R31: =IF( AND(ISERROR(MATCH(F31,F$9:F30,0)), NOT(ISBLANK(F31))), MAX(R$9:R30) + 1, 0) -> 0
A32: 24 | B32: Assets | C32: Overhead Pole Line | D32: OHL (Pole Line) Conductor | E32: 400kV | F32: km | I32: AssetsOverhead Pole LineOHL (Pole Line) Conductor400kVkm | N32: =IF( AND(ISERROR(MATCH(B32,B$9:B31,0)), NOT(ISBLANK(B32))), MAX(N$9:N31) + 1, 0) -> 0 | O32: =IF( AND(ISERROR(MATCH(C32,C$9:C31,0)), NOT(ISBLANK(C32))), MAX(O$9:O31) + 1, 0) -> 0 | P32: =IF( AND(ISERROR(MATCH(D32,D$9:D31,0)), NOT(ISBLANK(D32))), MAX(P$9:P31) + 1, 0) -> 0 | Q32: =IF( AND(ISERROR(MATCH(E32,E$9:E31,0)), NOT(ISBLANK(E32))), MAX(Q$9:Q31) + 1, 0) -> 0 | R32: =IF( AND(ISERROR(MATCH(F32,F$9:F31,0)), NOT(ISBLANK(F32))), MAX(R$9:R31) + 1, 0) -> 0
A33: 25 | B33: Assets | C33: Overhead Tower Line | D33: 132kV OHL (Tower Line) Conductor | E33: Rating <300MVA | F33: Km | I33: AssetsOverhead Tower Line132kV OHL (Tower Line) Conductor Rating <300MVA Km | N33: =IF( AND(ISERROR(MATCH(B33,B$9:B32,0)), NOT(ISBLANK(B33))), MAX(N$9:N32) + 1, 0) -> 0 | O33: =IF( AND(ISERROR(MATCH(C33,C$9:C32,0)), NOT(ISBLANK(C33))), MAX(O$9:O32) + 1, 0) -> 4 | P33: =IF( AND(ISERROR(MATCH(D33,D$9:D32,0)), NOT(ISBLANK(D33))), MAX(P$9:P32) + 1, 0) -> 12 | Q33: =IF( AND(ISERROR(MATCH(E33,E$9:E32,0)), NOT(ISBLANK(E33))), MAX(Q$9:Q32) + 1, 0) -> 6 | R33: =IF( AND(ISERROR(MATCH(F33,F$9:F32,0)), NOT(ISBLANK(F33))), MAX(R$9:R32) + 1, 0) -> 0
A34: 26 | B34: Assets | C34: Overhead Tower Line | D34: 132kV OHL (Tower Line) Conductor | E34: Rating >300MVA & <=400MVA | F34: Km | I34: AssetsOverhead Tower Line132kV OHL (Tower Line) Conductor Rating >300MVA & <=400MVA Km | N34: =IF( AND(ISERROR(MATCH(B34,B$9:B33,0)), NOT(ISBLANK(B34))), MAX(N$9:N33) + 1, 0) -> 0 | O34: =IF( AND(ISERROR(MATCH(C34,C$9:C33,0)), NOT(ISBLANK(C34))), MAX(O$9:O33) + 1, 0) -> 0 | P34: =IF( AND(ISERROR(MATCH(D34,D$9:D33,0)), NOT(ISBLANK(D34))), MAX(P$9:P33) + 1, 0) -> 0 | Q34: =IF( AND(ISERROR(MATCH(E34,E$9:E33,0)), NOT(ISBLANK(E34))), MAX(Q$9:Q33) + 1, 0) -> 7 | R34: =IF( AND(ISERROR(MATCH(F34,F$9:F33,0)), NOT(ISBLANK(F34))), MAX(R$9:R33) + 1, 0) -> 0
A35: 27 | B35: Assets | C35: Overhead Tower Line | D35: 132kV OHL (Tower Line) Conductor | E35: Rating >400MVA | F35: Km | I35: =B35&C35&D35&E35&F35 -> AssetsOverhead Tower Line132kV OHL (Tower Line) Conductor Rating >400MVA Km | N35: =IF( AND(ISERROR(MATCH(B35,B$9:B34,0)), NOT(ISBLANK(B35))), MAX(N$9:N34) + 1, 0) -> 0 | O35: =IF( AND(ISERROR(MATCH(C35,C$9:C34,0)), NOT(ISBLANK(C35))), MAX(O$9:O34) + 1, 0) -> 0 | P35: =IF( AND(ISERROR(MATCH(D35,D$9:D34,0)), NOT(ISBLANK(D35))), MAX(P$9:P34) + 1, 0) -> 13 | Q35: =IF( AND(ISERROR(MATCH(E35,E$9:E34,0)), NOT(ISBLANK(E35))), MAX(Q$9:Q34) + 1, 0) -> 8 | R35: =IF( AND(ISERROR(MATCH(F35,F$9:F34,0)), NOT(ISBLANK(F35))), MAX(R$9:R34) + 1, 0) -> 0
A36: 28 | B36: Assets | C36: Overhead Tower Line | D36: 275kV OHL (Tower Line) Conductor | E36: Rating <=1400MVA | F36: Km | I36: AssetsOverhead Tower Line275kV OHL (Tower Line) Conductor Rating <=1400MVAKm | N36: =IF( AND(ISERROR(MATCH(B36,B$9:B35,0)), NOT(ISBLANK(B36))), MAX(N$9:N35) + 1, 0) -> 0 | O36: =IF( AND(ISERROR(MATCH(C36,C$9:C35,0)), NOT(ISBLANK(C36))), MAX(O$9:O35) + 1, 0) -> 0 | P36: =IF( AND(ISERROR(MATCH(D36,D$9:D35,0)), NOT(ISBLANK(D36))), MAX(P$9:P35) + 1, 0) -> 14 | Q36: =IF( AND(ISERROR(MATCH(E36,E$9:E35,0)), NOT(ISBLANK(E36))), MAX(Q$9:Q35) + 1, 0) -> 9 | R36: =IF( AND(ISERROR(MATCH(F36,F$9:F35,0)), NOT(ISBLANK(F36))), MAX(R$9:R35) + 1, 0) -> 0
A37: 29 | B37: Assets | C37: Overhead Tower Line | D37: 275kV OHL (Tower Line) Conductor | E37: Rating >1400MVA | F37: Km | I37: AssetsOverhead Tower Line275kV OHL (Tower Line) Conductor Rating >1400MVAKm | N37: =IF( AND(ISERROR(MATCH(B37,B$9:B36,0)), NOT(ISBLANK(B37))), MAX(N$9:N36) + 1, 0) -> 0 | O37: =IF( AND(ISERROR(MATCH(C37,C$9:C36,0)), NOT(ISBLANK(C37))), MAX(O$9:O36) + 1, 0) -> 0 | P37: =IF( AND(ISERROR(MATCH(D37,D$9:D36,0)), NOT(ISBLANK(D37))), MAX(P$9:P36) + 1, 0) -> 15 | Q37: =IF( AND(ISERROR(MATCH(E37,E$9:E36,0)), NOT(ISBLANK(E37))), MAX(Q$9:Q36) + 1, 0) -> 10 | R37: =IF( AND(ISERROR(MATCH(F37,F$9:F36,0)), NOT(ISBLANK(F37))), MAX(R$9:R36) + 1, 0) -> 0
A38: 30 | B38: Assets | C38: Overhead Tower Line | D38: 400kV OHL (Tower Line) Conductor | E38: Rating <=2550MVA | F38: Km | I38: AssetsOverhead Tower Line400kV OHL (Tower Line) Conductor Rating <=2550MVAKm | N38: =IF( AND(ISERROR(MATCH(B38,B$9:B37,0)), NOT(ISBLANK(B38))), MAX(N$9:N37) + 1, 0) -> 0 | O38: =IF( AND(ISERROR(MATCH(C38,C$9:C37,0)), NOT(ISBLANK(C38))), MAX(O$9:O37) + 1, 0) -> 0 | P38: =IF( AND(ISERROR(MATCH(D38,D$9:D37,0)), NOT(ISBLANK(D38))), MAX(P$9:P37) + 1, 0) -> 16 | Q38: =IF( AND(ISERROR(MATCH(E38,E$9:E37,0)), NOT(ISBLANK(E38))), MAX(Q$9:Q37) + 1, 0) -> 11 | R38: =IF( AND(ISERROR(MATCH(F38,F$9:F37,0)), NOT(ISBLANK(F38))), MAX(R$9:R37) + 1, 0) -> 0
A39: 31 | B39: Assets | C39: Overhead Tower Line | D39: 400kV OHL (Tower Line) Conductor | E39: Rating >2550MVA | F39: Km | I39: AssetsOverhead Tower Line 400kV OHL (Tower Line) Conductor Rating >2550MVAKm | N39: =IF( AND(ISERROR(MATCH(B39,B$9:B38,0)), NOT(ISBLANK(B39))), MAX(N$9:N38) + 1, 0) -> 0 | O39: =IF( AND(ISERROR(MATCH(C39,C$9:C38,0)), NOT(ISBLANK(C39))), MAX(O$9:O38) + 1, 0) -> 5 | P39: =IF( AND(ISERROR(MATCH(D39,D$9:D38,0)), NOT(ISBLANK(D39))), MAX(P$9:P38) + 1, 0) -> 17 | Q39: =IF( AND(ISERROR(MATCH(E39,E$9:E38,0)), NOT(ISBLANK(E39))), MAX(Q$9:Q38) + 1, 0) -> 12 | R39: =IF( AND(ISERROR(MATCH(F39,F$9:F38,0)), NOT(ISBLANK(F39))), MAX(R$9:R38) + 1, 0) -> 0
A40: 32 | B40: Assets | C40: Overhead Tower Line | D40: OHL (Tower Line) HTLS Conductor | E40: 132kV | F40: Km | I40: AssetsOverhead Tower Line OHL (Tower Line) HTLS Conductor132kVKm | N40: =IF( AND(ISERROR(MATCH(B40,B$9:B39,0)), NOT(ISBLANK(B40))), MAX(N$9:N39) + 1, 0) -> 0 | O40: =IF( AND(ISERROR(MATCH(C40,C$9:C39,0)), NOT(ISBLANK(C40))), MAX(O$9:O39) + 1, 0) -> 0 | P40: =IF( AND(ISERROR(MATCH(D40,D$9:D39,0)), NOT(ISBLANK(D40))), MAX(P$9:P39) + 1, 0) -> 18 | Q40: =IF( AND(ISERROR(MATCH(E40,E$9:E39,0)), NOT(ISBLANK(E40))), MAX(Q$9:Q39) + 1, 0) -> 0 | R40: =IF( AND(ISERROR(MATCH(F40,F$9:F39,0)), NOT(ISBLANK(F40))), MAX(R$9:R39) + 1, 0) -> 0
A41: 33 | B41: Assets | C41: Overhead Tower Line | D41: OHL (Tower Line) HTLS Conductor | E41: 275kV | F41: Km | I41: AssetsOverhead Tower Line OHL (Tower Line) HTLS Conductor275kVKm | N41: =IF( AND(ISERROR(MATCH(B41,B$9:B40,0)), NOT(ISBLANK(B41))), MAX(N$9:N40) + 1, 0) -> 0 | O41: =IF( AND(ISERROR(MATCH(C41,C$9:C40,0)), NOT(ISBLANK(C41))), MAX(O$9:O40) + 1, 0) -> 0 | P41: =IF( AND(ISERROR(MATCH(D41,D$9:D40,0)), NOT(ISBLANK(D41))), MAX(P$9:P40) + 1, 0) -> 0 | Q41: =IF( AND(ISERROR(MATCH(E41,E$9:E40,0)), NOT(ISBLANK(E41))), MAX(Q$9:Q40) + 1, 0) -> 0 | R41: =IF( AND(ISERROR(MATCH(F41,F$9:F40,0)), NOT(ISBLANK(F41))), MAX(R$9:R40) + 1, 0) -> 0
A42: 34 | B42: Assets | C42: Overhead Tower Line | D42: OHL (Tower Line) HTLS Conductor | E42: 400kV | F42: Km | I42: AssetsOverhead Tower Line OHL (Tower Line) HTLS Conductor400kVKm | N42: =IF( AND(ISERROR(MATCH(B42,B$9:B41,0)), NOT(ISBLANK(B42))), MAX(N$9:N41) + 1, 0) -> 0 | O42: =IF( AND(ISERROR(MATCH(C42,C$9:C41,0)), NOT(ISBLANK(C42))), MAX(O$9:O41) + 1, 0) -> 0 | P42: =IF( AND(ISERROR(MATCH(D42,D$9:D41,0)), NOT(ISBLANK(D42))), MAX(P$9:P41) + 1, 0) -> 0 | Q42: =IF( AND(ISERROR(MATCH(E42,E$9:E41,0)), NOT(ISBLANK(E42))), MAX(Q$9:Q41) + 1, 0) -> 0 | R42: =IF( AND(ISERROR(MATCH(F42,F$9:F41,0)), NOT(ISBLANK(F42))), MAX(R$9:R41) + 1, 0) -> 0
A43: 35 | B43: Assets | C43: Earth Wire | D43: OHL (Tower Line) Earth Wire | E43: <=33kV | F43: km | I43: AssetsEarth WireOHL (Tower Line) Earth Wire<=33kVkm | N43: =IF( AND(ISERROR(MATCH(B43,B$9:B42,0)), NOT(ISBLANK(B43))), MAX(N$9:N42) + 1, 0) -> 0 | O43: =IF( AND(ISERROR(MATCH(C43,C$9:C42,0)), NOT(ISBLANK(C43))), MAX(O$9:O42) + 1, 0) -> 6 | P43: =IF( AND(ISERROR(MATCH(D43,D$9:D42,0)), NOT(ISBLANK(D43))), MAX(P$9:P42) + 1, 0) -> 19 | Q43: =IF( AND(ISERROR(MATCH(E43,E$9:E42,0)), NOT(ISBLANK(E43))), MAX(Q$9:Q42) + 1, 0) -> 0 | R43: =IF( AND(ISERROR(MATCH(F43,F$9:F42,0)), NOT(ISBLANK(F43))), MAX(R$9:R42) + 1, 0) -> 0
A44: 36 | B44: Assets | C44: Earth Wire | D44: OHL (Tower Line) Earth Wire | E44: 132kV | F44: km | I44: AssetsEarth WireOHL (Tower Line) Earth Wire132kVkm | N44: =IF( AND(ISERROR(MATCH(B44,B$9:B43,0)), NOT(ISBLANK(B44))), MAX(N$9:N43) + 1, 0) -> 0 | O44: =IF( AND(ISERROR(MATCH(C44,C$9:C43,0)), NOT(ISBLANK(C44))), MAX(O$9:O43) + 1, 0) -> 0 | P44: =IF( AND(ISERROR(MATCH(D44,D$9:D43,0)), NOT(ISBLANK(D44))), MAX(P$9:P43) + 1, 0) -> 0 | Q44: =IF( AND(ISERROR(MATCH(E44,E$9:E43,0)), NOT(ISBLANK(E44))), MAX(Q$9:Q43) + 1, 0) -> 0 | R44: =IF( AND(ISERROR(MATCH(F44,F$9:F43,0)), NOT(ISBLANK(F44))), MAX(R$9:R43) + 1, 0) -> 0
A45: 37 | B45: Assets | C45: Earth Wire | D45: OHL (Tower Line) Earth Wire | E45: 275kV | F45: km | I45: AssetsEarth WireOHL (Tower Line) Earth Wire275kVkm | N45: =IF( AND(ISERROR(MATCH(B45,B$9:B44,0)), NOT(ISBLANK(B45))), MAX(N$9:N44) + 1, 0) -> 0 | O45: =IF( AND(ISERROR(MATCH(C45,C$9:C44,0)), NOT(ISBLANK(C45))), MAX(O$9:O44) + 1, 0) -> 0 | P45: =IF( AND(ISERROR(MATCH(D45,D$9:D44,0)), NOT(ISBLANK(D45))), MAX(P$9:P44) + 1, 0) -> 0 | Q45: =IF( AND(ISERROR(MATCH(E45,E$9:E44,0)), NOT(ISBLANK(E45))), MAX(Q$9:Q44) + 1, 0) -> 0 | R45: =IF( AND(ISERROR(MATCH(F45,F$9:F44,0)), NOT(ISBLANK(F45))), MAX(R$9:R44) + 1, 0) -> 0
A46: 38 | B46: Assets | C46: Earth Wire | D46: OHL (Tower Line) Earth Wire | E46: 400kV | F46: km | I46: AssetsEarth WireOHL (Tower Line) Earth Wire400kVkm | N46: =IF( AND(ISERROR(MATCH(B46,B$9:B45,0)), NOT(ISBLANK(B46))), MAX(N$9:N45) + 1, 0) -> 0 | O46: =IF( AND(ISERROR(MATCH(C46,C$9:C45,0)), NOT(ISBLANK(C46))), MAX(O$9:O45) + 1, 0) -> 0 | P46: =IF( AND(ISERROR(MATCH(D46,D$9:D45,0)), NOT(ISBLANK(D46))), MAX(P$9:P45) + 1, 0) -> 0 | Q46: =IF( AND(ISERROR(MATCH(E46,E$9:E45,0)), NOT(ISBLANK(E46))), MAX(Q$9:Q45) + 1, 0) -> 0 | R46: =IF( AND(ISERROR(MATCH(F46,F$9:F45,0)), NOT(ISBLANK(F46))), MAX(R$9:R45) + 1, 0) -> 0
A47: 39 | B47: Assets | C47: Earth Wire Fittings | D47: Earth Wire Fittings | E47: <=33kV | F47: Per Set | I47: AssetsEarth Wire FittingsEarth Wire Fittings<=33kVPer Set | N47: =IF( AND(ISERROR(MATCH(B47,B$9:B46,0)), NOT(ISBLANK(B47))), MAX(N$9:N46) + 1, 0) -> 0 | O47: =IF( AND(ISERROR(MATCH(C47,C$9:C46,0)), NOT(ISBLANK(C47))), MAX(O$9:O46) + 1, 0) -> 7 | P47: =IF( AND(ISERROR(MATCH(D47,D$9:D46,0)), NOT(ISBLANK(D47))), MAX(P$9:P46) + 1, 0) -> 20 | Q47: =IF( AND(ISERROR(MATCH(E47,E$9:E46,0)), NOT(ISBLANK(E47))), MAX(Q$9:Q46) + 1, 0) -> 0 | R47: =IF( AND(ISERROR(MATCH(F47,F$9:F46,0)), NOT(ISBLANK(F47))), MAX(R$9:R46) + 1, 0) -> 3
A48: 40 | B48: Assets | C48: Earth Wire Fittings | D48: Earth Wire Fittings | E48: 132kV | F48: Per Set | I48: AssetsEarth Wire FittingsEarth Wire Fittings132kVPer Set | N48: =IF( AND(ISERROR(MATCH(B48,B$9:B47,0)), NOT(ISBLANK(B48))), MAX(N$9:N47) + 1, 0) -> 0 | O48: =IF( AND(ISERROR(MATCH(C48,C$9:C47,0)), NOT(ISBLANK(C48))), MAX(O$9:O47) + 1, 0) -> 0 | P48: =IF( AND(ISERROR(MATCH(D48,D$9:D47,0)), NOT(ISBLANK(D48))), MAX(P$9:P47) + 1, 0) -> 0 | Q48: =IF( AND(ISERROR(MATCH(E48,E$9:E47,0)), NOT(ISBLANK(E48))), MAX(Q$9:Q47) + 1, 0) -> 0 | R48: =IF( AND(ISERROR(MATCH(F48,F$9:F47,0)), NOT(ISBLANK(F48))), MAX(R$9:R47) + 1, 0) -> 0
A49: 41 | B49: Assets | C49: Earth Wire Fittings | D49: Earth Wire Fittings | E49: 275kV | F49: Per Set | I49: AssetsEarth Wire FittingsEarth Wire Fittings275kVPer Set | N49: =IF( AND(ISERROR(MATCH(B49,B$9:B48,0)), NOT(ISBLANK(B49))), MAX(N$9:N48) + 1, 0) -> 0 | O49: =IF( AND(ISERROR(MATCH(C49,C$9:C48,0)), NOT(ISBLANK(C49))), MAX(O$9:O48) + 1, 0) -> 0 | P49: =IF( AND(ISERROR(MATCH(D49,D$9:D48,0)), NOT(ISBLANK(D49))), MAX(P$9:P48) + 1, 0) -> 0 | Q49: =IF( AND(ISERROR(MATCH(E49,E$9:E48,0)), NOT(ISBLANK(E49))), MAX(Q$9:Q48) + 1, 0) -> 0 | R49: =IF( AND(ISERROR(MATCH(F49,F$9:F48,0)), NOT(ISBLANK(F49))), MAX(R$9:R48) + 1, 0) -> 0
A50: 42 | B50: Assets | C50: Earth Wire Fittings | D50: Earth Wire Fittings | E50: 400kV | F50: Per Set | I50: AssetsEarth Wire FittingsEarth Wire Fittings400kVPer Set | N50: =IF( AND(ISERROR(MATCH(B50,B$9:B49,0)), NOT(ISBLANK(B50))), MAX(N$9:N49) + 1, 0) -> 0 | O50: =IF( AND(ISERROR(MATCH(C50,C$9:C49,0)), NOT(ISBLANK(C50))), MAX(O$9:O49) + 1, 0) -> 0 | P50: =IF( AND(ISERROR(MATCH(D50,D$9:D49,0)), NOT(ISBLANK(D50))), MAX(P$9:P49) + 1, 0) -> 0 | Q50: =IF( AND(ISERROR(MATCH(E50,E$9:E49,0)), NOT(ISBLANK(E50))), MAX(Q$9:Q49) + 1, 0) -> 0 | R50: =IF( AND(ISERROR(MATCH(F50,F$9:F49,0)), NOT(ISBLANK(F50))), MAX(R$9:R49) + 1, 0) -> 0
A51: 43 | B51: Assets | C51: Overhead Pole Line | D51: Pole | E51: <=33kV | F51: Each | I51: =B51&C51&D51&E51&F51 -> AssetsOverhead Pole LinePole<=33kVEach | N51: =IF( AND(ISERROR(MATCH(B51,B$9:B50,0)), NOT(ISBLANK(B51))), MAX(N$9:N50) + 1, 0) -> 0 | O51: =IF( AND(ISERROR(MATCH(C51,C$9:C50,0)), NOT(ISBLANK(C51))), MAX(O$9:O50) + 1, 0) -> 0 | P51: =IF( AND(ISERROR(MATCH(D51,D$9:D50,0)), NOT(ISBLANK(D51))), MAX(P$9:P50) + 1, 0) -> 21 | Q51: =IF( AND(ISERROR(MATCH(E51,E$9:E50,0)), NOT(ISBLANK(E51))), MAX(Q$9:Q50) + 1, 0) -> 0 | R51: =IF( AND(ISERROR(MATCH(F51,F$9:F50,0)), NOT(ISBLANK(F51))), MAX(R$9:R50) + 1, 0) -> 0
A52: 44 | B52: Assets | C52: Overhead Pole Line | D52: Pole | E52: 132kV | F52: Each | I52: =B52&C52&D52&E52&F52 -> AssetsOverhead Pole LinePole132kVEach | N52: =IF( AND(ISERROR(MATCH(B52,B$9:B51,0)), NOT(ISBLANK(B52))), MAX(N$9:N51) + 1, 0) -> 0 | O52: =IF( AND(ISERROR(MATCH(C52,C$9:C51,0)), NOT(ISBLANK(C52))), MAX(O$9:O51) + 1, 0) -> 0 | P52: =IF( AND(ISERROR(MATCH(D52,D$9:D51,0)), NOT(ISBLANK(D52))), MAX(P$9:P51) + 1, 0) -> 0 | Q52: =IF( AND(ISERROR(MATCH(E52,E$9:E51,0)), NOT(ISBLANK(E52))), MAX(Q$9:Q51) + 1, 0) -> 0 | R52: =IF( AND(ISERROR(MATCH(F52,F$9:F51,0)), NOT(ISBLANK(F52))), MAX(R$9:R51) + 1, 0) -> 0
A53: 45 | B53: Assets | C53: Overhead Pole Line | D53: Pole | E53: 275kV | F53: Each | I53: =B53&C53&D53&E53&F53 -> AssetsOverhead Pole LinePole275kVEach | N53: =IF( AND(ISERROR(MATCH(B53,B$9:B52,0)), NOT(ISBLANK(B53))), MAX(N$9:N52) + 1, 0) -> 0 | O53: =IF( AND(ISERROR(MATCH(C53,C$9:C52,0)), NOT(ISBLANK(C53))), MAX(O$9:O52) + 1, 0) -> 0 | P53: =IF( AND(ISERROR(MATCH(D53,D$9:D52,0)), NOT(ISBLANK(D53))), MAX(P$9:P52) + 1, 0) -> 0 | Q53: =IF( AND(ISERROR(MATCH(E53,E$9:E52,0)), NOT(ISBLANK(E53))), MAX(Q$9:Q52) + 1, 0) -> 0 | R53: =IF( AND(ISERROR(MATCH(F53,F$9:F52,0)), NOT(ISBLANK(F53))), MAX(R$9:R52) + 1, 0) -> 0
A54: 46 | B54: Assets | C54: Overhead Pole Line | D54: Pole | E54: 400kV | F54: Each | I54: =B54&C54&D54&E54&F54 -> AssetsOverhead Pole LinePole400kVEach | N54: =IF( AND(ISERROR(MATCH(B54,B$9:B53,0)), NOT(ISBLANK(B54))), MAX(N$9:N53) + 1, 0) -> 0 | O54: =IF( AND(ISERROR(MATCH(C54,C$9:C53,0)), NOT(ISBLANK(C54))), MAX(O$9:O53) + 1, 0) -> 0 | P54: =IF( AND(ISERROR(MATCH(D54,D$9:D53,0)), NOT(ISBLANK(D54))), MAX(P$9:P53) + 1, 0) -> 0 | Q54: =IF( AND(ISERROR(MATCH(E54,E$9:E53,0)), NOT(ISBLANK(E54))), MAX(Q$9:Q53) + 1, 0) -> 0 | R54: =IF( AND(ISERROR(MATCH(F54,F$9:F53,0)), NOT(ISBLANK(F54))), MAX(R$9:R53) + 1, 0) -> 0
A55: 47 | B55: Assets | C55: Cable | D55: AC submarine cable | E55: 132kV | F55: km | I55: =B55&C55&D55&E55&F55 -> AssetsCableAC submarine cable132kVkm | N55: =IF( AND(ISERROR(MATCH(B55,B$9:B54,0)), NOT(ISBLANK(B55))), MAX(N$9:N54) + 1, 0) -> 0 | O55: =IF( AND(ISERROR(MATCH(C55,C$9:C54,0)), NOT(ISBLANK(C55))), MAX(O$9:O54) + 1, 0) -> 8 | P55: =IF( AND(ISERROR(MATCH(D55,D$9:D54,0)), NOT(ISBLANK(D55))), MAX(P$9:P54) + 1, 0) -> 22 | Q55: =IF( AND(ISERROR(MATCH(E55,E$9:E54,0)), NOT(ISBLANK(E55))), MAX(Q$9:Q54) + 1, 0) -> 0 | R55: =IF( AND(ISERROR(MATCH(F55,F$9:F54,0)), NOT(ISBLANK(F55))), MAX(R$9:R54) + 1, 0) -> 0
A56: 48 | B56: Assets | C56: Cable | D56: AC submarine cable | E56: 275kV | F56: km | I56: =B56&C56&D56&E56&F56 -> AssetsCableAC submarine cable275kVkm | N56: =IF( AND(ISERROR(MATCH(B56,B$9:B55,0)), NOT(ISBLANK(B56))), MAX(N$9:N55) + 1, 0) -> 0 | O56: =IF( AND(ISERROR(MATCH(C56,C$9:C55,0)), NOT(ISBLANK(C56))), MAX(O$9:O55) + 1, 0) -> 0 | P56: =IF( AND(ISERROR(MATCH(D56,D$9:D55,0)), NOT(ISBLANK(D56))), MAX(P$9:P55) + 1, 0) -> 0 | Q56: =IF( AND(ISERROR(MATCH(E56,E$9:E55,0)), NOT(ISBLANK(E56))), MAX(Q$9:Q55) + 1, 0) -> 0 | R56: =IF( AND(ISERROR(MATCH(F56,F$9:F55,0)), NOT(ISBLANK(F56))), MAX(R$9:R55) + 1, 0) -> 0
A57: 49 | B57: Assets | C57: Cable | D57: AC submarine cable | E57: 400kV | F57: km | I57: AssetsCableAC submarine cable400kVkm | N57: =IF( AND(ISERROR(MATCH(B57,B$9:B56,0)), NOT(ISBLANK(B57))), MAX(N$9:N56) + 1, 0) -> 0 | O57: =IF( AND(ISERROR(MATCH(C57,C$9:C56,0)), NOT(ISBLANK(C57))), MAX(O$9:O56) + 1, 0) -> 0 | P57: =IF( AND(ISERROR(MATCH(D57,D$9:D56,0)), NOT(ISBLANK(D57))), MAX(P$9:P56) + 1, 0) -> 0 | Q57: =IF( AND(ISERROR(MATCH(E57,E$9:E56,0)), NOT(ISBLANK(E57))), MAX(Q$9:Q56) + 1, 0) -> 0 | R57: =IF( AND(ISERROR(MATCH(F57,F$9:F56,0)), NOT(ISBLANK(F57))), MAX(R$9:R56) + 1, 0) -> 0
A58: 50 | B58: Assets | C58: Other switchgear | D58: Disconnector (AIB) | E58: <=33kV | F58: Each | I58: AssetsOther switchgearDisconnector (AIB) <=33kVEach | N58: =IF( AND(ISERROR(MATCH(B58,B$9:B57,0)), NOT(ISBLANK(B58))), MAX(N$9:N57) + 1, 0) -> 0 | O58: =IF( AND(ISERROR(MATCH(C58,C$9:C57,0)), NOT(ISBLANK(C58))), MAX(O$9:O57) + 1, 0) -> 9 | P58: =IF( AND(ISERROR(MATCH(D58,D$9:D57,0)), NOT(ISBLANK(D58))), MAX(P$9:P57) + 1, 0) -> 23 | Q58: =IF( AND(ISERROR(MATCH(E58,E$9:E57,0)), NOT(ISBLANK(E58))), MAX(Q$9:Q57) + 1, 0) -> 0 | R58: =IF( AND(ISERROR(MATCH(F58,F$9:F57,0)), NOT(ISBLANK(F58))), MAX(R$9:R57) + 1, 0) -> 0
A59: 51 | B59: Assets | C59: Other switchgear | D59: Disconnector (AIB) | E59: 132kV | F59: Each | I59: AssetsOther switchgearDisconnector (AIB) 132kVEach | N59: =IF( AND(ISERROR(MATCH(B59,B$9:B58,0)), NOT(ISBLANK(B59))), MAX(N$9:N58) + 1, 0) -> 0 | O59: =IF( AND(ISERROR(MATCH(C59,C$9:C58,0)), NOT(ISBLANK(C59))), MAX(O$9:O58) + 1, 0) -> 0 | P59: =IF( AND(ISERROR(MATCH(D59,D$9:D58,0)), NOT(ISBLANK(D59))), MAX(P$9:P58) + 1, 0) -> 0 | Q59: =IF( AND(ISERROR(MATCH(E59,E$9:E58,0)), NOT(ISBLANK(E59))), MAX(Q$9:Q58) + 1, 0) -> 0 | R59: =IF( AND(ISERROR(MATCH(F59,F$9:F58,0)), NOT(ISBLANK(F59))), MAX(R$9:R58) + 1, 0) -> 0
A60: 52 | B60: Assets | C60: Other switchgear | D60: Disconnector (AIB) | E60: 275kV | F60: Each | I60: AssetsOther switchgearDisconnector (AIB) 275kVEach | N60: =IF( AND(ISERROR(MATCH(B60,B$9:B59,0)), NOT(ISBLANK(B60))), MAX(N$9:N59) + 1, 0) -> 0 | O60: =IF( AND(ISERROR(MATCH(C60,C$9:C59,0)), NOT(ISBLANK(C60))), MAX(O$9:O59) + 1, 0) -> 0 | P60: =IF( AND(ISERROR(MATCH(D60,D$9:D59,0)), NOT(ISBLANK(D60))), MAX(P$9:P59) + 1, 0) -> 0 | Q60: =IF( AND(ISERROR(MATCH(E60,E$9:E59,0)), NOT(ISBLANK(E60))), MAX(Q$9:Q59) + 1, 0) -> 0 | R60: =IF( AND(ISERROR(MATCH(F60,F$9:F59,0)), NOT(ISBLANK(F60))), MAX(R$9:R59) + 1, 0) -> 0
A61: 53 | B61: Assets | C61: Other switchgear | D61: Disconnector (AIB) | E61: 400kV | F61: Each | I61: AssetsOther switchgearDisconnector (AIB) 400kVEach | N61: =IF( AND(ISERROR(MATCH(B61,B$9:B60,0)), NOT(ISBLANK(B61))), MAX(N$9:N60) + 1, 0) -> 0 | O61: =IF( AND(ISERROR(MATCH(C61,C$9:C60,0)), NOT(ISBLANK(C61))), MAX(O$9:O60) + 1, 0) -> 0 | P61: =IF( AND(ISERROR(MATCH(D61,D$9:D60,0)), NOT(ISBLANK(D61))), MAX(P$9:P60) + 1, 0) -> 0 | Q61: =IF( AND(ISERROR(MATCH(E61,E$9:E60,0)), NOT(ISBLANK(E61))), MAX(Q$9:Q60) + 1, 0) -> 0 | R61: =IF( AND(ISERROR(MATCH(F61,F$9:F60,0)), NOT(ISBLANK(F61))), MAX(R$9:R60) + 1, 0) -> 0
A62: 54 | B62: Assets | C62: Other switchgear | D62: Earth Switch (AIB) | E62: <=33kV | F62: Each | I62: AssetsOther switchgearEarth Switch (AIB) <=33kVEach | N62: =IF( AND(ISERROR(MATCH(B62,B$9:B61,0)), NOT(ISBLANK(B62))), MAX(N$9:N61) + 1, 0) -> 0 | O62: =IF( AND(ISERROR(MATCH(C62,C$9:C61,0)), NOT(ISBLANK(C62))), MAX(O$9:O61) + 1, 0) -> 0 | P62: =IF( AND(ISERROR(MATCH(D62,D$9:D61,0)), NOT(ISBLANK(D62))), MAX(P$9:P61) + 1, 0) -> 24 | Q62: =IF( AND(ISERROR(MATCH(E62,E$9:E61,0)), NOT(ISBLANK(E62))), MAX(Q$9:Q61) + 1, 0) -> 0 | R62: =IF( AND(ISERROR(MATCH(F62,F$9:F61,0)), NOT(ISBLANK(F62))), MAX(R$9:R61) + 1, 0) -> 0
... 59 more rows

Sheet Look Up Tables
A1: Look Up Tables
A2: Sheet Description:
A3: Lists the possible inputs for each section of the company input sheets which will then go into the drop down selection for various inputs. A description is given above each row for more detail as well as some questions relating to them
A6: Lists all the possible company scheme numbers. | B6: Lists all the possible project references. | E6: Lists the possible options based on the asset possibilities sheet | F6: Lists the possible options based on the asset possibilities sheet | G6: Lists the possible options based on the asset possibilities sheet | H6: Lists the possible options based on the asset possibilities sheet | I6: Lists the possible options based on the asset possibilities sheet | L6: Lists the possible options for the category. | AC6: Lists the possible project stages
A9: Company Inputs required | E9: Asset Possibility Look ups | L9: General Look Ups | M9: General Look Ups
A10: Scheme Reference | B10: Project Reference | E10: Asset Heading | F10: Asset Category | G10: Asset Sub-Category Primary | H10: Voltage | I10: Units | L10: Scheme Category | M10: Scheme Sub Category | N10: Mechanism Category | O10: Asset Sub Category (Secondary) | P10: Intervention | Q10: Volume Measure | R10: Mechanism Type | S10: Mechanism | T10: License Term | U10: Geographical | V10: Consents & Planning | W10: Ground condition | X10: Environmental Mitigation | Y10: Proximity to existing electricla infrastructure | Z10: Non Asset Cost Type | AA10: Boundary Name | AB10: Volume | AC10: Project Stage
A11: e.g. NGT2000 | B11: e.g. Project 1 | D11: 1 | E11: =IF( $D11 > MAX( 'Asset Possibilitites'!N$9:N$449), 0, INDEX('Asset Possibilitites'!B$9:B$449,MATCH($D11,'Asset Possibilitites'!N$9:N$449,0))) -> Assets | F11: =IF( $D11 > MAX( 'Asset Possibilitites'!O$9:O$449), 0, INDEX('Asset Possibilitites'!C$9:C$449,MATCH($D11,'Asset Possibilitites'!O$9:O$449,0))) -> Circuit Breaker | G11: =IF( $D11 > MAX( 'Asset Possibilitites'!P$9:P$449), 0, INDEX('Asset Possibilitites'!D$9:D$449,MATCH($D11,'Asset Possibilitites'!P$9:P$449,0))) -> 6.6/11kV CB (GM) Primary | H11: =IF( $D11 > MAX( 'Asset Possibilitites'!Q$9:Q$449), 0, INDEX('Asset Possibilitites'!E$9:E$449,MATCH($D11,'Asset Possibilitites'!Q$9:Q$449,0))) -> HV | I11: =IF( $D11 > MAX( 'Asset Possibilitites'!R$9:R$449), 0, INDEX('Asset Possibilitites'!F$9:F$449,MATCH($D11,'Asset Possibilitites'!R$9:R$449,0))) -> Each | L11: Load Related | M11: Local Enabling (Entry) | N11: Baseline | O11: Asset associated | P11: Replacement | Q11: Addition | R11: PCD | S11: Generation Connection | T11: PREDRSt | U11: London | V11: Environmental surveys | W11: Peak | X11: Flora | Y11: Under 1km | Z11: Customer Contributions (baseline) | AA11: B2 | AB11: MW | AC11: Not started
A12: Spare | D12: =D11 + 1 -> 2 | E12: =IF( $D12 > MAX( 'Asset Possibilitites'!N$9:N$449), 0, INDEX('Asset Possibilitites'!B$9:B$449,MATCH($D12,'Asset Possibilitites'!N$9:N$449,0))) -> Assets | F12: =IF( $D12 > MAX( 'Asset Possibilitites'!O$9:O$449), 0, INDEX('Asset Possibilitites'!C$9:C$449,MATCH($D12,'Asset Possibilitites'!O$9:O$449,0))) -> Overhead Line Fittings | G12: =IF( $D12 > MAX( 'Asset Possibilitites'!P$9:P$449), 0, INDEX('Asset Possibilitites'!D$9:D$449,MATCH($D12,'Asset Possibilitites'!P$9:P$449,0))) -> 6.6/11kV Switch | H12: =IF( $D12 > MAX( 'Asset Possibilitites'!Q$9:Q$449), 0, INDEX('Asset Possibilitites'!E$9:E$449,MATCH($D12,'Asset Possibilitites'!Q$9:Q$449,0))) -> <=33kV | I12: =IF( $D12 > MAX( 'Asset Possibilitites'!R$9:R$449), 0, INDEX('Asset Possibilitites'!F$9:F$449,MATCH($D12,'Asset Possibilitites'!R$9:R$449,0))) -> km | L12: Non Load Related | M12: Local Enabling (Exit) | N12: Uncertainty Mechanism | O12: Security - Perimeter Fence (km) | P12: Refurb Major | Q12: Disposal | R12: Volume Driver - Fixed Component | S12: Demand Connection | T12: InTD1,1 | U12: Rural | V12: Route assessments | W12: Rock | X12: Fauna | Y12: 1km to 3km | Z12: Customer Contributions (other) | AA12: B4 | AB12: MVA | AC12: In Progress
A13: Spare | D13: =D12 + 1 -> 3 | E13: =IF( $D13 > MAX( 'Asset Possibilitites'!N$9:N$449), 0, INDEX('Asset Possibilitites'!B$9:B$449,MATCH($D13,'Asset Possibilitites'!N$9:N$449,0))) -> Volume Driver | F13: =IF( $D13 > MAX( 'Asset Possibilitites'!O$9:O$449), 0, INDEX('Asset Possibilitites'!C$9:C$449,MATCH($D13,'Asset Possibilitites'!O$9:O$449,0))) -> Overhead Pole Line | G13: =IF( $D13 > MAX( 'Asset Possibilitites'!P$9:P$449), 0, INDEX('Asset Possibilitites'!D$9:D$449,MATCH($D13,'Asset Possibilitites'!P$9:P$449,0))) -> Switch (GM) | H13: =IF( $D13 > MAX( 'Asset Possibilitites'!Q$9:Q$449), 0, INDEX('Asset Possibilitites'!E$9:E$449,MATCH($D13,'Asset Possibilitites'!Q$9:Q$449,0))) -> 132kV | I13: =IF( $D13 > MAX( 'Asset Possibilitites'!R$9:R$449), 0, INDEX('Asset Possibilitites'!F$9:F$449,MATCH($D13,'Asset Possibilitites'!R$9:R$449,0))) -> Per Set | M13: Wider Works | N13: Re-opener | O13: Security - Electric Fence (km) | P13: Refurb Minor | Q13: Refurb Volumes | R13: Volume Driver - Asset Mulitplier | S13: NARM | T13: InTD1,2 | U13: Urban | V13: Consents & Planning | W13: High Water table | X13: Contamination | Y13: Over 3km | Z13: One-off contribution | AA13: B6 | AB13: MVAR | AC13: Completed
A14: Spare | D14: 4 | E14: =IF( $D14 > MAX( 'Asset Possibilitites'!N$9:N$449), 0, INDEX('Asset Possibilitites'!B$9:B$449,MATCH($D14,'Asset Possibilitites'!N$9:N$449,0))) -> Substation auxiliary systems | F14: =IF( $D14 > MAX( 'Asset Possibilitites'!O$9:O$449), 0, INDEX('Asset Possibilitites'!C$9:C$449,MATCH($D14,'Asset Possibilitites'!O$9:O$449,0))) -> Overhead Tower Line | G14: =IF( $D14 > MAX( 'Asset Possibilitites'!P$9:P$449), 0, INDEX('Asset Possibilitites'!D$9:D$449,MATCH($D14,'Asset Possibilitites'!P$9:P$449,0))) -> Switchgear - Other | H14: =IF( $D14 > MAX( 'Asset Possibilitites'!Q$9:Q$449), 0, INDEX('Asset Possibilitites'!E$9:E$449,MATCH($D14,'Asset Possibilitites'!Q$9:Q$449,0))) -> 275kV | I14: =IF( $D14 > MAX( 'Asset Possibilitites'!R$9:R$449), 0, INDEX('Asset Possibilitites'!F$9:F$449,MATCH($D14,'Asset Possibilitites'!R$9:R$449,0))) -> per site | M14: LRE - sole-use Local Enabling (Exit - Sole Use) | N14: Other | O14: Security - Gates (#) | P14: Maintenance | Q14: Maintenance Volumes | R14: Reopener | S14: OHL PCD | T14: InTD1,3 | U14: In-situ | X14: Wildlife | Z14: Non Asset Cost Type | AA14: B6E | AB14: Each | AC14: Closed
A15: Spare | D15: 5 | E15: =IF( $D15 > MAX( 'Asset Possibilitites'!N$9:N$449), 0, INDEX('Asset Possibilitites'!B$9:B$449,MATCH($D15,'Asset Possibilitites'!N$9:N$449,0))) -> Protection | F15: =IF( $D15 > MAX( 'Asset Possibilitites'!O$9:O$449), 0, INDEX('Asset Possibilitites'!C$9:C$449,MATCH($D15,'Asset Possibilitites'!O$9:O$449,0))) -> Overhead Tower Line | G15: =IF( $D15 > MAX( 'Asset Possibilitites'!P$9:P$449), 0, INDEX('Asset Possibilitites'!D$9:D$449,MATCH($D15,'Asset Possibilitites'!P$9:P$449,0))) -> CB (Air Insulated Busbars) | H15: =IF( $D15 > MAX( 'Asset Possibilitites'!Q$9:Q$449), 0, INDEX('Asset Possibilitites'!E$9:E$449,MATCH($D15,'Asset Possibilitites'!Q$9:Q$449,0))) -> 400kV | I15: =IF( $D15 > MAX( 'Asset Possibilitites'!R$9:R$449), 0, INDEX('Asset Possibilitites'!F$9:F$449,MATCH($D15,'Asset Possibilitites'!R$9:R$449,0))) -> per m2 | M15: LRE - sole-use Local Enabling (Entry - Sole Use) | O15: Security - Building Hardening (#) | P15: Addition | Q15: Sites Resolved | R15: NARM | S15: Wider Works Volume Driver | T15: InTD2,1 | U15: Offline | AA15: B6F | AB15: km
A16: Spare | D16: 6 | E16: =IF( $D16 > MAX( 'Asset Possibilitites'!N$9:N$449), 0, INDEX('Asset Possibilitites'!B$9:B$449,MATCH($D16,'Asset Possibilitites'!N$9:N$449,0))) -> Civils | F16: =IF( $D16 > MAX( 'Asset Possibilitites'!O$9:O$449), 0, INDEX('Asset Possibilitites'!C$9:C$449,MATCH($D16,'Asset Possibilitites'!O$9:O$449,0))) -> Earth Wire | G16: =IF( $D16 > MAX( 'Asset Possibilitites'!P$9:P$449), 0, INDEX('Asset Possibilitites'!D$9:D$449,MATCH($D16,'Asset Possibilitites'!P$9:P$449,0))) -> CB (Gas Insulated Busbar) (OD) | H16: =IF( $D16 > MAX( 'Asset Possibilitites'!Q$9:Q$449), 0, INDEX('Asset Possibilitites'!E$9:E$449,MATCH($D16,'Asset Possibilitites'!Q$9:Q$449,0))) -> Rating <300MVA | I16: =IF( $D16 > MAX( 'Asset Possibilitites'!R$9:R$449), 0, INDEX('Asset Possibilitites'!F$9:F$449,MATCH($D16,'Asset Possibilitites'!R$9:R$449,0))) -> per m2 | M16: TSS Infrastructure | O16: Security - Building alarms (#) | P16: Disposal | R16: Non variant | S16: Other | T16: InTD2,2 | AA16: B6I | AB16: LR£
A17: Spare | D17: 7 | E17: =IF( $D17 > MAX( 'Asset Possibilitites'!N$9:N$449), 0, INDEX('Asset Possibilitites'!B$9:B$449,MATCH($D17,'Asset Possibilitites'!N$9:N$449,0))) -> Preconstruction | F17: =IF( $D17 > MAX( 'Asset Possibilitites'!O$9:O$449), 0, INDEX('Asset Possibilitites'!C$9:C$449,MATCH($D17,'Asset Possibilitites'!O$9:O$449,0))) -> Earth Wire Fittings | G17: =IF( $D17 > MAX( 'Asset Possibilitites'!P$9:P$449), 0, INDEX('Asset Possibilitites'!D$9:D$449,MATCH($D17,'Asset Possibilitites'!P$9:P$449,0))) -> CB (Gas Insulated Busbar) (ID) | H17: =IF( $D17 > MAX( 'Asset Possibilitites'!Q$9:Q$449), 0, INDEX('Asset Possibilitites'!E$9:E$449,MATCH($D17,'Asset Possibilitites'!Q$9:Q$449,0))) -> Rating >300MVA & <=400MVA | I17: =IF( $D17 > MAX( 'Asset Possibilitites'!R$9:R$449), 0, INDEX('Asset Possibilitites'!F$9:F$449,MATCH($D17,'Asset Possibilitites'!R$9:R$449,0))) -> per m3 / m2 | M17: Replacement | O17: Security - Site Cameras (#) | P17: New Build | T17: InTD2,3 | AA17: B6SPT | AB17: Other
A18: Spare | D18: 8 | E18: =IF( $D18 > MAX( 'Asset Possibilitites'!N$9:N$449), 0, INDEX('Asset Possibilitites'!B$9:B$449,MATCH($D18,'Asset Possibilitites'!N$9:N$449,0))) -> 0 | F18: =IF( $D18 > MAX( 'Asset Possibilitites'!O$9:O$449), 0, INDEX('Asset Possibilitites'!C$9:C$449,MATCH($D18,'Asset Possibilitites'!O$9:O$449,0))) -> Cable | G18: =IF( $D18 > MAX( 'Asset Possibilitites'!P$9:P$449), 0, INDEX('Asset Possibilitites'!D$9:D$449,MATCH($D18,'Asset Possibilitites'!P$9:P$449,0))) -> CB (Air Insulated Busbar) | H18: =IF( $D18 > MAX( 'Asset Possibilitites'!Q$9:Q$449), 0, INDEX('Asset Possibilitites'!E$9:E$449,MATCH($D18,'Asset Possibilitites'!Q$9:Q$449,0))) -> Rating >400MVA | I18: =IF( $D18 > MAX( 'Asset Possibilitites'!R$9:R$449), 0, INDEX('Asset Possibilitites'!F$9:F$449,MATCH($D18,'Asset Possibilitites'!R$9:R$449,0))) -> km | M18: Refurb_Major | O18: Security - Site Lighting (#) | T18: InTD3,1 | AA18: B7
A19: Spare | D19: 9 | E19: =IF( $D19 > MAX( 'Asset Possibilitites'!N$9:N$449), 0, INDEX('Asset Possibilitites'!B$9:B$449,MATCH($D19,'Asset Possibilitites'!N$9:N$449,0))) -> 0 | F19: =IF( $D19 > MAX( 'Asset Possibilitites'!O$9:O$449), 0, INDEX('Asset Possibilitites'!C$9:C$449,MATCH($D19,'Asset Possibilitites'!O$9:O$449,0))) -> Other switchgear | G19: =IF( $D19 > MAX( 'Asset Possibilitites'!P$9:P$449), 0, INDEX('Asset Possibilitites'!D$9:D$449,MATCH($D19,'Asset Possibilitites'!P$9:P$449,0))) -> CB (Air Insulated Busbar) | H19: =IF( $D19 > MAX( 'Asset Possibilitites'!Q$9:Q$449), 0, INDEX('Asset Possibilitites'!E$9:E$449,MATCH($D19,'Asset Possibilitites'!Q$9:Q$449,0))) -> Rating <=1400MVA | I19: =IF( $D19 > MAX( 'Asset Possibilitites'!R$9:R$449), 0, INDEX('Asset Possibilitites'!F$9:F$449,MATCH($D19,'Asset Possibilitites'!R$9:R$449,0))) -> Each | M19: Refurb_Minor | O19: Security - CNI sites (#) | T19: InTD3,2 | AA19: B7a
A20: Spare | D20: 10 | E20: =IF( $D20 > MAX( 'Asset Possibilitites'!N$9:N$449), 0, INDEX('Asset Possibilitites'!B$9:B$449,MATCH($D20,'Asset Possibilitites'!N$9:N$449,0))) -> 0 | F20: =IF( $D20 > MAX( 'Asset Possibilitites'!O$9:O$449), 0, INDEX('Asset Possibilitites'!C$9:C$449,MATCH($D20,'Asset Possibilitites'!O$9:O$449,0))) -> Wound plant | G20: =IF( $D20 > MAX( 'Asset Possibilitites'!P$9:P$449), 0, INDEX('Asset Possibilitites'!D$9:D$449,MATCH($D20,'Asset Possibilitites'!P$9:P$449,0))) -> Fittings | H20: =IF( $D20 > MAX( 'Asset Possibilitites'!Q$9:Q$449), 0, INDEX('Asset Possibilitites'!E$9:E$449,MATCH($D20,'Asset Possibilitites'!Q$9:Q$449,0))) -> Rating >1400MVA | I20: =IF( $D20 > MAX( 'Asset Possibilitites'!R$9:R$449), 0, INDEX('Asset Possibilitites'!F$9:F$449,MATCH($D20,'Asset Possibilitites'!R$9:R$449,0))) -> Per Installation | M20: Decommissioning | O20: Buildings - Roofs (#) | T20: InTD3,3 | AA20: B7aEF
A21: Spare | D21: 11 | E21: =IF( $D21 > MAX( 'Asset Possibilitites'!N$9:N$449), 0, INDEX('Asset Possibilitites'!B$9:B$449,MATCH($D21,'Asset Possibilitites'!N$9:N$449,0))) -> 0 | F21: =IF( $D21 > MAX( 'Asset Possibilitites'!O$9:O$449), 0, INDEX('Asset Possibilitites'!C$9:C$449,MATCH($D21,'Asset Possibilitites'!O$9:O$449,0))) -> FACTS | G21: =IF( $D21 > MAX( 'Asset Possibilitites'!P$9:P$449), 0, INDEX('Asset Possibilitites'!D$9:D$449,MATCH($D21,'Asset Possibilitites'!P$9:P$449,0))) -> OHL (Pole Line) Conductor | H21: =IF( $D21 > MAX( 'Asset Possibilitites'!Q$9:Q$449), 0, INDEX('Asset Possibilitites'!E$9:E$449,MATCH($D21,'Asset Possibilitites'!Q$9:Q$449,0))) -> Rating <=2550MVA | I21: =IF( $D21 > MAX( 'Asset Possibilitites'!R$9:R$449), 0, INDEX('Asset Possibilitites'!F$9:F$449,MATCH($D21,'Asset Possibilitites'!R$9:R$449,0))) -> 0 | M21: Uncertain Costs | O21: Buildings - Doors & Windows (#) | T21: InTD4,1 | AA21: B7aI
A22: Spare | D22: 12 | E22: =IF( $D22 > MAX( 'Asset Possibilitites'!N$9:N$449), 0, INDEX('Asset Possibilitites'!B$9:B$449,MATCH($D22,'Asset Possibilitites'!N$9:N$449,0))) -> 0 | F22: =IF( $D22 > MAX( 'Asset Possibilitites'!O$9:O$449), 0, INDEX('Asset Possibilitites'!C$9:C$449,MATCH($D22,'Asset Possibilitites'!O$9:O$449,0))) -> Instrument Transformers | G22: =IF( $D22 > MAX( 'Asset Possibilitites'!P$9:P$449), 0, INDEX('Asset Possibilitites'!D$9:D$449,MATCH($D22,'Asset Possibilitites'!P$9:P$449,0))) -> 132kV OHL (Tower Line) Conductor | H22: =IF( $D22 > MAX( 'Asset Possibilitites'!Q$9:Q$449), 0, INDEX('Asset Possibilitites'!E$9:E$449,MATCH($D22,'Asset Possibilitites'!Q$9:Q$449,0))) -> Rating >2550MVA | I22: =IF( $D22 > MAX( 'Asset Possibilitites'!R$9:R$449), 0, INDEX('Asset Possibilitites'!F$9:F$449,MATCH($D22,'Asset Possibilitites'!R$9:R$449,0))) -> 0 | O22: Buildings - Structural refurbishment (#) | T22: InTD4,2 | AA22: B7aRev
A23: Spare | D23: 13 | E23: =IF( $D23 > MAX( 'Asset Possibilitites'!N$9:N$449), 0, INDEX('Asset Possibilitites'!B$9:B$449,MATCH($D23,'Asset Possibilitites'!N$9:N$449,0))) -> 0 | F23: =IF( $D23 > MAX( 'Asset Possibilitites'!O$9:O$449), 0, INDEX('Asset Possibilitites'!C$9:C$449,MATCH($D23,'Asset Possibilitites'!O$9:O$449,0))) -> Batteries | G23: =IF( $D23 > MAX( 'Asset Possibilitites'!P$9:P$449), 0, INDEX('Asset Possibilitites'!D$9:D$449,MATCH($D23,'Asset Possibilitites'!P$9:P$449,0))) -> 132kV OHL (Tower Line) Conductor | H23: =IF( $D23 > MAX( 'Asset Possibilitites'!Q$9:Q$449), 0, INDEX('Asset Possibilitites'!E$9:E$449,MATCH($D23,'Asset Possibilitites'!Q$9:Q$449,0))) -> 132kV<=90MVA | I23: =IF( $D23 > MAX( 'Asset Possibilitites'!R$9:R$449), 0, INDEX('Asset Possibilitites'!F$9:F$449,MATCH($D23,'Asset Possibilitites'!R$9:R$449,0))) -> 0 | O23: Buildings - Foundation refurbishment (#) | T23: InTD4,3 | AA23: B8
A24: Spare | D24: 14 | E24: =IF( $D24 > MAX( 'Asset Possibilitites'!N$9:N$449), 0, INDEX('Asset Possibilitites'!B$9:B$449,MATCH($D24,'Asset Possibilitites'!N$9:N$449,0))) -> 0 | F24: =IF( $D24 > MAX( 'Asset Possibilitites'!O$9:O$449), 0, INDEX('Asset Possibilitites'!C$9:C$449,MATCH($D24,'Asset Possibilitites'!O$9:O$449,0))) -> HVDC | G24: =IF( $D24 > MAX( 'Asset Possibilitites'!P$9:P$449), 0, INDEX('Asset Possibilitites'!D$9:D$449,MATCH($D24,'Asset Possibilitites'!P$9:P$449,0))) -> 275kV OHL (Tower Line) Conductor | H24: =IF( $D24 > MAX( 'Asset Possibilitites'!Q$9:Q$449), 0, INDEX('Asset Possibilitites'!E$9:E$449,MATCH($D24,'Asset Possibilitites'!Q$9:Q$449,0))) -> 132kV>90MVA | I24: =IF( $D24 > MAX( 'Asset Possibilitites'!R$9:R$449), 0, INDEX('Asset Possibilitites'!F$9:F$449,MATCH($D24,'Asset Possibilitites'!R$9:R$449,0))) -> 0 | O24: Buildings - Interior refurbishment (#) | T24: InTt - AH | AA24: B9
A25: Spare | D25: 15 | E25: =IF( $D25 > MAX( 'Asset Possibilitites'!N$9:N$449), 0, INDEX('Asset Possibilitites'!B$9:B$449,MATCH($D25,'Asset Possibilitites'!N$9:N$449,0))) -> 0 | F25: =IF( $D25 > MAX( 'Asset Possibilitites'!O$9:O$449), 0, INDEX('Asset Possibilitites'!C$9:C$449,MATCH($D25,'Asset Possibilitites'!O$9:O$449,0))) -> LVAC | G25: =IF( $D25 > MAX( 'Asset Possibilitites'!P$9:P$449), 0, INDEX('Asset Possibilitites'!D$9:D$449,MATCH($D25,'Asset Possibilitites'!P$9:P$449,0))) -> 275kV OHL (Tower Line) Conductor | H25: =IF( $D25 > MAX( 'Asset Possibilitites'!Q$9:Q$449), 0, INDEX('Asset Possibilitites'!E$9:E$449,MATCH($D25,'Asset Possibilitites'!Q$9:Q$449,0))) -> 275kV<240MVA | I25: =IF( $D25 > MAX( 'Asset Possibilitites'!R$9:R$449), 0, INDEX('Asset Possibilitites'!F$9:F$449,MATCH($D25,'Asset Possibilitites'!R$9:R$449,0))) -> 0 | O25: Buildings - Heating/Lighting/Power (#) | T25: BAD1 | AA25: B10
A26: Spare | D26: 16 | E26: =IF( $D26 > MAX( 'Asset Possibilitites'!N$9:N$449), 0, INDEX('Asset Possibilitites'!B$9:B$449,MATCH($D26,'Asset Possibilitites'!N$9:N$449,0))) -> 0 | F26: =IF( $D26 > MAX( 'Asset Possibilitites'!O$9:O$449), 0, INDEX('Asset Possibilitites'!C$9:C$449,MATCH($D26,'Asset Possibilitites'!O$9:O$449,0))) -> Protection & Control | G26: =IF( $D26 > MAX( 'Asset Possibilitites'!P$9:P$449), 0, INDEX('Asset Possibilitites'!D$9:D$449,MATCH($D26,'Asset Possibilitites'!P$9:P$449,0))) -> 400kV OHL (Tower Line) Conductor | H26: =IF( $D26 > MAX( 'Asset Possibilitites'!Q$9:Q$449), 0, INDEX('Asset Possibilitites'!E$9:E$449,MATCH($D26,'Asset Possibilitites'!Q$9:Q$449,0))) -> 275kV>=240MVA | I26: =IF( $D26 > MAX( 'Asset Possibilitites'!R$9:R$449), 0, INDEX('Asset Possibilitites'!F$9:F$449,MATCH($D26,'Asset Possibilitites'!R$9:R$449,0))) -> 0 | O26: Drainage (km) | T26: BAD2 | AA26: B11
A27: Spare | D27: 17 | E27: =IF( $D27 > MAX( 'Asset Possibilitites'!N$9:N$449), 0, INDEX('Asset Possibilitites'!B$9:B$449,MATCH($D27,'Asset Possibilitites'!N$9:N$449,0))) -> 0 | F27: =IF( $D27 > MAX( 'Asset Possibilitites'!O$9:O$449), 0, INDEX('Asset Possibilitites'!C$9:C$449,MATCH($D27,'Asset Possibilitites'!O$9:O$449,0))) -> Non asset | G27: =IF( $D27 > MAX( 'Asset Possibilitites'!P$9:P$449), 0, INDEX('Asset Possibilitites'!D$9:D$449,MATCH($D27,'Asset Possibilitites'!P$9:P$449,0))) -> 400kV OHL (Tower Line) Conductor | H27: =IF( $D27 > MAX( 'Asset Possibilitites'!Q$9:Q$449), 0, INDEX('Asset Possibilitites'!E$9:E$449,MATCH($D27,'Asset Possibilitites'!Q$9:Q$449,0))) -> 400kV<500MVA | I27: =IF( $D27 > MAX( 'Asset Possibilitites'!R$9:R$449), 0, INDEX('Asset Possibilitites'!F$9:F$449,MATCH($D27,'Asset Possibilitites'!R$9:R$449,0))) -> 0 | O27: Temporary works - storage (#) | T27: BAD3 | AA27: B12
A28: Spare | D28: 18 | E28: =IF( $D28 > MAX( 'Asset Possibilitites'!N$9:N$449), 0, INDEX('Asset Possibilitites'!B$9:B$449,MATCH($D28,'Asset Possibilitites'!N$9:N$449,0))) -> 0 | F28: =IF( $D28 > MAX( 'Asset Possibilitites'!O$9:O$449), 0, INDEX('Asset Possibilitites'!C$9:C$449,MATCH($D28,'Asset Possibilitites'!O$9:O$449,0))) -> Temporary works | G28: =IF( $D28 > MAX( 'Asset Possibilitites'!P$9:P$449), 0, INDEX('Asset Possibilitites'!D$9:D$449,MATCH($D28,'Asset Possibilitites'!P$9:P$449,0))) -> OHL (Tower Line) HTLS Conductor | H28: =IF( $D28 > MAX( 'Asset Possibilitites'!Q$9:Q$449), 0, INDEX('Asset Possibilitites'!E$9:E$449,MATCH($D28,'Asset Possibilitites'!Q$9:Q$449,0))) -> 400kV>=500MVA | I28: =IF( $D28 > MAX( 'Asset Possibilitites'!R$9:R$449), 0, INDEX('Asset Possibilitites'!F$9:F$449,MATCH($D28,'Asset Possibilitites'!R$9:R$449,0))) -> 0 | O28: Temporary works - welfare / catering (#) | T28: BAD4 | AA28: B12a
A29: Spare | D29: 19 | E29: =IF( $D29 > MAX( 'Asset Possibilitites'!N$9:N$449), 0, INDEX('Asset Possibilitites'!B$9:B$449,MATCH($D29,'Asset Possibilitites'!N$9:N$449,0))) -> 0 | F29: =IF( $D29 > MAX( 'Asset Possibilitites'!O$9:O$449), 0, INDEX('Asset Possibilitites'!C$9:C$449,MATCH($D29,'Asset Possibilitites'!O$9:O$449,0))) -> Site Access (permanent) | G29: =IF( $D29 > MAX( 'Asset Possibilitites'!P$9:P$449), 0, INDEX('Asset Possibilitites'!D$9:D$449,MATCH($D29,'Asset Possibilitites'!P$9:P$449,0))) -> OHL (Tower Line) Earth Wire | H29: =IF( $D29 > MAX( 'Asset Possibilitites'!Q$9:Q$449), 0, INDEX('Asset Possibilitites'!E$9:E$449,MATCH($D29,'Asset Possibilitites'!Q$9:Q$449,0))) -> <60MVAr | I29: =IF( $D29 > MAX( 'Asset Possibilitites'!R$9:R$449), 0, INDEX('Asset Possibilitites'!F$9:F$449,MATCH($D29,'Asset Possibilitites'!R$9:R$449,0))) -> 0 | O29: Temporary works - accommodation (#) | T29: BAD5 | AA29: B13
A30: Spare | D30: 20 | E30: =IF( $D30 > MAX( 'Asset Possibilitites'!N$9:N$449), 0, INDEX('Asset Possibilitites'!B$9:B$449,MATCH($D30,'Asset Possibilitites'!N$9:N$449,0))) -> 0 | F30: =IF( $D30 > MAX( 'Asset Possibilitites'!O$9:O$449), 0, INDEX('Asset Possibilitites'!C$9:C$449,MATCH($D30,'Asset Possibilitites'!O$9:O$449,0))) -> Route Access (permanent) | G30: =IF( $D30 > MAX( 'Asset Possibilitites'!P$9:P$449), 0, INDEX('Asset Possibilitites'!D$9:D$449,MATCH($D30,'Asset Possibilitites'!P$9:P$449,0))) -> Earth Wire Fittings | H30: =IF( $D30 > MAX( 'Asset Possibilitites'!Q$9:Q$449), 0, INDEX('Asset Possibilitites'!E$9:E$449,MATCH($D30,'Asset Possibilitites'!Q$9:Q$449,0))) -> >60MVAr | I30: =IF( $D30 > MAX( 'Asset Possibilitites'!R$9:R$449), 0, INDEX('Asset Possibilitites'!F$9:F$449,MATCH($D30,'Asset Possibilitites'!R$9:R$449,0))) -> 0 | O30: Temporary works - heating/lighting/power (#) | T30: BAD6 | AA30: B14
A31: Spare | D31: 21 | E31: =IF( $D31 > MAX( 'Asset Possibilitites'!N$9:N$449), 0, INDEX('Asset Possibilitites'!B$9:B$449,MATCH($D31,'Asset Possibilitites'!N$9:N$449,0))) -> 0 | F31: =IF( $D31 > MAX( 'Asset Possibilitites'!O$9:O$449), 0, INDEX('Asset Possibilitites'!C$9:C$449,MATCH($D31,'Asset Possibilitites'!O$9:O$449,0))) -> Substation platform | G31: =IF( $D31 > MAX( 'Asset Possibilitites'!P$9:P$449), 0, INDEX('Asset Possibilitites'!D$9:D$449,MATCH($D31,'Asset Possibilitites'!P$9:P$449,0))) -> Pole | H31: =IF( $D31 > MAX( 'Asset Possibilitites'!Q$9:Q$449), 0, INDEX('Asset Possibilitites'!E$9:E$449,MATCH($D31,'Asset Possibilitites'!Q$9:Q$449,0))) -> 11kV | I31: =IF( $D31 > MAX( 'Asset Possibilitites'!R$9:R$449), 0, INDEX('Asset Possibilitites'!F$9:F$449,MATCH($D31,'Asset Possibilitites'!R$9:R$449,0))) -> 0 | O31: Site Access - tracks/roads (km) | T31: PCD1 | AA31: B14e
A32: Spare | D32: 22 | E32: =IF( $D32 > MAX( 'Asset Possibilitites'!N$9:N$449), 0, INDEX('Asset Possibilitites'!B$9:B$449,MATCH($D32,'Asset Possibilitites'!N$9:N$449,0))) -> 0 | F32: =IF( $D32 > MAX( 'Asset Possibilitites'!O$9:O$449), 0, INDEX('Asset Possibilitites'!C$9:C$449,MATCH($D32,'Asset Possibilitites'!O$9:O$449,0))) -> Buildings | G32: =IF( $D32 > MAX( 'Asset Possibilitites'!P$9:P$449), 0, INDEX('Asset Possibilitites'!D$9:D$449,MATCH($D32,'Asset Possibilitites'!P$9:P$449,0))) -> AC submarine cable | H32: =IF( $D32 > MAX( 'Asset Possibilitites'!Q$9:Q$449), 0, INDEX('Asset Possibilitites'!E$9:E$449,MATCH($D32,'Asset Possibilitites'!Q$9:Q$449,0))) -> 33kV | I32: =IF( $D32 > MAX( 'Asset Possibilitites'!R$9:R$449), 0, INDEX('Asset Possibilitites'!F$9:F$449,MATCH($D32,'Asset Possibilitites'!R$9:R$449,0))) -> 0 | O32: Site Access - clearance (km) | T32: PCD2 | AA32: B15
A33: Spare | D33: 23 | E33: =IF( $D33 > MAX( 'Asset Possibilitites'!N$9:N$449), 0, INDEX('Asset Possibilitites'!B$9:B$449,MATCH($D33,'Asset Possibilitites'!N$9:N$449,0))) -> 0 | F33: =IF( $D33 > MAX( 'Asset Possibilitites'!O$9:O$449), 0, INDEX('Asset Possibilitites'!C$9:C$449,MATCH($D33,'Asset Possibilitites'!O$9:O$449,0))) -> Physical site security | G33: =IF( $D33 > MAX( 'Asset Possibilitites'!P$9:P$449), 0, INDEX('Asset Possibilitites'!D$9:D$449,MATCH($D33,'Asset Possibilitites'!P$9:P$449,0))) -> Disconnector (AIB) | H33: =IF( $D33 > MAX( 'Asset Possibilitites'!Q$9:Q$449), 0, INDEX('Asset Possibilitites'!E$9:E$449,MATCH($D33,'Asset Possibilitites'!Q$9:Q$449,0))) -> HVDC | I33: =IF( $D33 > MAX( 'Asset Possibilitites'!R$9:R$449), 0, INDEX('Asset Possibilitites'!F$9:F$449,MATCH($D33,'Asset Possibilitites'!R$9:R$449,0))) -> 0 | O33: Plinths & groundworks (#) | T33: PCD3 | AA33: B16
A34: Spare | D34: 24 | E34: =IF( $D34 > MAX( 'Asset Possibilitites'!N$9:N$449), 0, INDEX('Asset Possibilitites'!B$9:B$449,MATCH($D34,'Asset Possibilitites'!N$9:N$449,0))) -> 0 | F34: =IF( $D34 > MAX( 'Asset Possibilitites'!O$9:O$449), 0, INDEX('Asset Possibilitites'!C$9:C$449,MATCH($D34,'Asset Possibilitites'!O$9:O$449,0))) -> Power electronic control equipment | G34: =IF( $D34 > MAX( 'Asset Possibilitites'!P$9:P$449), 0, INDEX('Asset Possibilitites'!D$9:D$449,MATCH($D34,'Asset Possibilitites'!P$9:P$449,0))) -> Earth Switch (AIB) | H34: =IF( $D34 > MAX( 'Asset Possibilitites'!Q$9:Q$449), 0, INDEX('Asset Possibilitites'!E$9:E$449,MATCH($D34,'Asset Possibilitites'!Q$9:Q$449,0))) -> n/a | I34: =IF( $D34 > MAX( 'Asset Possibilitites'!R$9:R$449), 0, INDEX('Asset Possibilitites'!F$9:F$449,MATCH($D34,'Asset Possibilitites'!R$9:R$449,0))) -> 0 | O34: Substation platform (#) | T34: PCD4 | AA34: B17
A35: Spare | D35: 25 | E35: =IF( $D35 > MAX( 'Asset Possibilitites'!N$9:N$449), 0, INDEX('Asset Possibilitites'!B$9:B$449,MATCH($D35,'Asset Possibilitites'!N$9:N$449,0))) -> 0 | F35: =IF( $D35 > MAX( 'Asset Possibilitites'!O$9:O$449), 0, INDEX('Asset Possibilitites'!C$9:C$449,MATCH($D35,'Asset Possibilitites'!O$9:O$449,0))) -> Preconstruction | G35: =IF( $D35 > MAX( 'Asset Possibilitites'!P$9:P$449), 0, INDEX('Asset Possibilitites'!D$9:D$449,MATCH($D35,'Asset Possibilitites'!P$9:P$449,0))) -> Busbar (AIB) | H35: =IF( $D35 > MAX( 'Asset Possibilitites'!Q$9:Q$449), 0, INDEX('Asset Possibilitites'!E$9:E$449,MATCH($D35,'Asset Possibilitites'!Q$9:Q$449,0))) -> 66kV | I35: =IF( $D35 > MAX( 'Asset Possibilitites'!R$9:R$449), 0, INDEX('Asset Possibilitites'!F$9:F$449,MATCH($D35,'Asset Possibilitites'!R$9:R$449,0))) -> 0 | O35: Other Civils works | T35: PCD5 | AA35: EC1
A36: Spare | D36: 26 | E36: =IF( $D36 > MAX( 'Asset Possibilitites'!N$9:N$449), 0, INDEX('Asset Possibilitites'!B$9:B$449,MATCH($D36,'Asset Possibilitites'!N$9:N$449,0))) -> 0 | F36: =IF( $D36 > MAX( 'Asset Possibilitites'!O$9:O$449), 0, INDEX('Asset Possibilitites'!C$9:C$449,MATCH($D36,'Asset Possibilitites'!O$9:O$449,0))) -> 0 | G36: =IF( $D36 > MAX( 'Asset Possibilitites'!P$9:P$449), 0, INDEX('Asset Possibilitites'!D$9:D$449,MATCH($D36,'Asset Possibilitites'!P$9:P$449,0))) -> Busbar GIB (ID) | H36: =IF( $D36 > MAX( 'Asset Possibilitites'!Q$9:Q$449), 0, INDEX('Asset Possibilitites'!E$9:E$449,MATCH($D36,'Asset Possibilitites'!Q$9:Q$449,0))) -> 220kV | I36: =IF( $D36 > MAX( 'Asset Possibilitites'!R$9:R$449), 0, INDEX('Asset Possibilitites'!F$9:F$449,MATCH($D36,'Asset Possibilitites'!R$9:R$449,0))) -> 0 | T36: PCD6 | AA36: EC3
A37: Spare | D37: 27 | E37: =IF( $D37 > MAX( 'Asset Possibilitites'!N$9:N$449), 0, INDEX('Asset Possibilitites'!B$9:B$449,MATCH($D37,'Asset Possibilitites'!N$9:N$449,0))) -> 0 | F37: =IF( $D37 > MAX( 'Asset Possibilitites'!O$9:O$449), 0, INDEX('Asset Possibilitites'!C$9:C$449,MATCH($D37,'Asset Possibilitites'!O$9:O$449,0))) -> 0 | G37: =IF( $D37 > MAX( 'Asset Possibilitites'!P$9:P$449), 0, INDEX('Asset Possibilitites'!D$9:D$449,MATCH($D37,'Asset Possibilitites'!P$9:P$449,0))) -> Busbar GIB (OD) | H37: =IF( $D37 > MAX( 'Asset Possibilitites'!Q$9:Q$449), 0, INDEX('Asset Possibilitites'!E$9:E$449,MATCH($D37,'Asset Possibilitites'!Q$9:Q$449,0))) -> <132kV | I37: =IF( $D37 > MAX( 'Asset Possibilitites'!R$9:R$449), 0, INDEX('Asset Possibilitites'!F$9:F$449,MATCH($D37,'Asset Possibilitites'!R$9:R$449,0))) -> 0 | T37: PCD7 | AA37: EC5
A38: Spare | D38: 28 | E38: =IF( $D38 > MAX( 'Asset Possibilitites'!N$9:N$449), 0, INDEX('Asset Possibilitites'!B$9:B$449,MATCH($D38,'Asset Possibilitites'!N$9:N$449,0))) -> 0 | F38: =IF( $D38 > MAX( 'Asset Possibilitites'!O$9:O$449), 0, INDEX('Asset Possibilitites'!C$9:C$449,MATCH($D38,'Asset Possibilitites'!O$9:O$449,0))) -> 0 | G38: =IF( $D38 > MAX( 'Asset Possibilitites'!P$9:P$449), 0, INDEX('Asset Possibilitites'!D$9:D$449,MATCH($D38,'Asset Possibilitites'!P$9:P$449,0))) -> Tower | H38: =IF( $D38 > MAX( 'Asset Possibilitites'!Q$9:Q$449), 0, INDEX('Asset Possibilitites'!E$9:E$449,MATCH($D38,'Asset Possibilitites'!Q$9:Q$449,0))) -> Bridge | I38: =IF( $D38 > MAX( 'Asset Possibilitites'!R$9:R$449), 0, INDEX('Asset Possibilitites'!F$9:F$449,MATCH($D38,'Asset Possibilitites'!R$9:R$449,0))) -> 0 | T38: PCD8 | AA38: EC6
A39: Spare | D39: 29 | E39: =IF( $D39 > MAX( 'Asset Possibilitites'!N$9:N$449), 0, INDEX('Asset Possibilitites'!B$9:B$449,MATCH($D39,'Asset Possibilitites'!N$9:N$449,0))) -> 0 | F39: =IF( $D39 > MAX( 'Asset Possibilitites'!O$9:O$449), 0, INDEX('Asset Possibilitites'!C$9:C$449,MATCH($D39,'Asset Possibilitites'!O$9:O$449,0))) -> 0 | G39: =IF( $D39 > MAX( 'Asset Possibilitites'!P$9:P$449), 0, INDEX('Asset Possibilitites'!D$9:D$449,MATCH($D39,'Asset Possibilitites'!P$9:P$449,0))) -> Transformer | H39: =IF( $D39 > MAX( 'Asset Possibilitites'!Q$9:Q$449), 0, INDEX('Asset Possibilitites'!E$9:E$449,MATCH($D39,'Asset Possibilitites'!Q$9:Q$449,0))) -> Tunnel | I39: =IF( $D39 > MAX( 'Asset Possibilitites'!R$9:R$449), 0, INDEX('Asset Possibilitites'!F$9:F$449,MATCH($D39,'Asset Possibilitites'!R$9:R$449,0))) -> 0 | T39: PCD9 | AA39: LE1
A40: Spare | D40: 30 | E40: =IF( $D40 > MAX( 'Asset Possibilitites'!N$9:N$449), 0, INDEX('Asset Possibilitites'!B$9:B$449,MATCH($D40,'Asset Possibilitites'!N$9:N$449,0))) -> 0 | F40: =IF( $D40 > MAX( 'Asset Possibilitites'!O$9:O$449), 0, INDEX('Asset Possibilitites'!C$9:C$449,MATCH($D40,'Asset Possibilitites'!O$9:O$449,0))) -> 0 | G40: =IF( $D40 > MAX( 'Asset Possibilitites'!P$9:P$449), 0, INDEX('Asset Possibilitites'!D$9:D$449,MATCH($D40,'Asset Possibilitites'!P$9:P$449,0))) -> Shunt Reactor | H40: =IF( $D40 > MAX( 'Asset Possibilitites'!Q$9:Q$449), 0, INDEX('Asset Possibilitites'!E$9:E$449,MATCH($D40,'Asset Possibilitites'!Q$9:Q$449,0))) -> <60MVa | I40: =IF( $D40 > MAX( 'Asset Possibilitites'!R$9:R$449), 0, INDEX('Asset Possibilitites'!F$9:F$449,MATCH($D40,'Asset Possibilitites'!R$9:R$449,0))) -> 0 | T40: PCD10 | AA40: NW1
A41: Spare | D41: 31 | E41: =IF( $D41 > MAX( 'Asset Possibilitites'!N$9:N$449), 0, INDEX('Asset Possibilitites'!B$9:B$449,MATCH($D41,'Asset Possibilitites'!N$9:N$449,0))) -> 0 | F41: =IF( $D41 > MAX( 'Asset Possibilitites'!O$9:O$449), 0, INDEX('Asset Possibilitites'!C$9:C$449,MATCH($D41,'Asset Possibilitites'!O$9:O$449,0))) -> 0 | G41: =IF( $D41 > MAX( 'Asset Possibilitites'!P$9:P$449), 0, INDEX('Asset Possibilitites'!D$9:D$449,MATCH($D41,'Asset Possibilitites'!P$9:P$449,0))) -> Series Reactor | H41: =IF( $D41 > MAX( 'Asset Possibilitites'!Q$9:Q$449), 0, INDEX('Asset Possibilitites'!E$9:E$449,MATCH($D41,'Asset Possibilitites'!Q$9:Q$449,0))) -> >=60MVa | I41: =IF( $D41 > MAX( 'Asset Possibilitites'!R$9:R$449), 0, INDEX('Asset Possibilitites'!F$9:F$449,MATCH($D41,'Asset Possibilitites'!R$9:R$449,0))) -> 0 | T41: PCD11 | AA41: NW2
A42: Spare | D42: 32 | E42: =IF( $D42 > MAX( 'Asset Possibilitites'!N$9:N$449), 0, INDEX('Asset Possibilitites'!B$9:B$449,MATCH($D42,'Asset Possibilitites'!N$9:N$449,0))) -> 0 | F42: =IF( $D42 > MAX( 'Asset Possibilitites'!O$9:O$449), 0, INDEX('Asset Possibilitites'!C$9:C$449,MATCH($D42,'Asset Possibilitites'!O$9:O$449,0))) -> 0 | G42: =IF( $D42 > MAX( 'Asset Possibilitites'!P$9:P$449), 0, INDEX('Asset Possibilitites'!D$9:D$449,MATCH($D42,'Asset Possibilitites'!P$9:P$449,0))) -> Tertiary connected reactor | H42: =IF( $D42 > MAX( 'Asset Possibilitites'!Q$9:Q$449), 0, INDEX('Asset Possibilitites'!E$9:E$449,MATCH($D42,'Asset Possibilitites'!Q$9:Q$449,0))) -> 0 | I42: =IF( $D42 > MAX( 'Asset Possibilitites'!R$9:R$449), 0, INDEX('Asset Possibilitites'!F$9:F$449,MATCH($D42,'Asset Possibilitites'!R$9:R$449,0))) -> 0 | T42: PCD12 | AA42: NW3
A43: Spare | D43: 33 | E43: =IF( $D43 > MAX( 'Asset Possibilitites'!N$9:N$449), 0, INDEX('Asset Possibilitites'!B$9:B$449,MATCH($D43,'Asset Possibilitites'!N$9:N$449,0))) -> 0 | F43: =IF( $D43 > MAX( 'Asset Possibilitites'!O$9:O$449), 0, INDEX('Asset Possibilitites'!C$9:C$449,MATCH($D43,'Asset Possibilitites'!O$9:O$449,0))) -> 0 | G43: =IF( $D43 > MAX( 'Asset Possibilitites'!P$9:P$449), 0, INDEX('Asset Possibilitites'!D$9:D$449,MATCH($D43,'Asset Possibilitites'!P$9:P$449,0))) -> FACTS Equipment | H43: =IF( $D43 > MAX( 'Asset Possibilitites'!Q$9:Q$449), 0, INDEX('Asset Possibilitites'!E$9:E$449,MATCH($D43,'Asset Possibilitites'!Q$9:Q$449,0))) -> 0 | I43: =IF( $D43 > MAX( 'Asset Possibilitites'!R$9:R$449), 0, INDEX('Asset Possibilitites'!F$9:F$449,MATCH($D43,'Asset Possibilitites'!R$9:R$449,0))) -> 0 | T43: PCD13 | AA43: NW4
A44: Spare | D44: 34 | E44: =IF( $D44 > MAX( 'Asset Possibilitites'!N$9:N$449), 0, INDEX('Asset Possibilitites'!B$9:B$449,MATCH($D44,'Asset Possibilitites'!N$9:N$449,0))) -> 0 | F44: =IF( $D44 > MAX( 'Asset Possibilitites'!O$9:O$449), 0, INDEX('Asset Possibilitites'!C$9:C$449,MATCH($D44,'Asset Possibilitites'!O$9:O$449,0))) -> 0 | G44: =IF( $D44 > MAX( 'Asset Possibilitites'!P$9:P$449), 0, INDEX('Asset Possibilitites'!D$9:D$449,MATCH($D44,'Asset Possibilitites'!P$9:P$449,0))) -> Voltage Transformer (VT) | H44: =IF( $D44 > MAX( 'Asset Possibilitites'!Q$9:Q$449), 0, INDEX('Asset Possibilitites'!E$9:E$449,MATCH($D44,'Asset Possibilitites'!Q$9:Q$449,0))) -> 0 | I44: =IF( $D44 > MAX( 'Asset Possibilitites'!R$9:R$449), 0, INDEX('Asset Possibilitites'!F$9:F$449,MATCH($D44,'Asset Possibilitites'!R$9:R$449,0))) -> 0 | T44: PCD14 | AA44: SC1
A45: Spare | D45: 35 | E45: =IF( $D45 > MAX( 'Asset Possibilitites'!N$9:N$449), 0, INDEX('Asset Possibilitites'!B$9:B$449,MATCH($D45,'Asset Possibilitites'!N$9:N$449,0))) -> 0 | F45: =IF( $D45 > MAX( 'Asset Possibilitites'!O$9:O$449), 0, INDEX('Asset Possibilitites'!C$9:C$449,MATCH($D45,'Asset Possibilitites'!O$9:O$449,0))) -> 0 | G45: =IF( $D45 > MAX( 'Asset Possibilitites'!P$9:P$449), 0, INDEX('Asset Possibilitites'!D$9:D$449,MATCH($D45,'Asset Possibilitites'!P$9:P$449,0))) -> Current Transformer (CT) | H45: =IF( $D45 > MAX( 'Asset Possibilitites'!Q$9:Q$449), 0, INDEX('Asset Possibilitites'!E$9:E$449,MATCH($D45,'Asset Possibilitites'!Q$9:Q$449,0))) -> 0 | I45: =IF( $D45 > MAX( 'Asset Possibilitites'!R$9:R$449), 0, INDEX('Asset Possibilitites'!F$9:F$449,MATCH($D45,'Asset Possibilitites'!R$9:R$449,0))) -> 0 | T45: PCD15 | AA45: SC1Rev
A46: Spare | D46: 36 | E46: =IF( $D46 > MAX( 'Asset Possibilitites'!N$9:N$449), 0, INDEX('Asset Possibilitites'!B$9:B$449,MATCH($D46,'Asset Possibilitites'!N$9:N$449,0))) -> 0 | F46: =IF( $D46 > MAX( 'Asset Possibilitites'!O$9:O$449), 0, INDEX('Asset Possibilitites'!C$9:C$449,MATCH($D46,'Asset Possibilitites'!O$9:O$449,0))) -> 0 | G46: =IF( $D46 > MAX( 'Asset Possibilitites'!P$9:P$449), 0, INDEX('Asset Possibilitites'!D$9:D$449,MATCH($D46,'Asset Possibilitites'!P$9:P$449,0))) -> High Accuracy Metering Combined (CT/VT) | H46: =IF( $D46 > MAX( 'Asset Possibilitites'!Q$9:Q$449), 0, INDEX('Asset Possibilitites'!E$9:E$449,MATCH($D46,'Asset Possibilitites'!Q$9:Q$449,0))) -> 0 | I46: =IF( $D46 > MAX( 'Asset Possibilitites'!R$9:R$449), 0, INDEX('Asset Possibilitites'!F$9:F$449,MATCH($D46,'Asset Possibilitites'!R$9:R$449,0))) -> 0 | T46: PCD16 | AA46: SC2
A47: Spare | D47: 37 | E47: =IF( $D47 > MAX( 'Asset Possibilitites'!N$9:N$449), 0, INDEX('Asset Possibilitites'!B$9:B$449,MATCH($D47,'Asset Possibilitites'!N$9:N$449,0))) -> 0 | F47: =IF( $D47 > MAX( 'Asset Possibilitites'!O$9:O$449), 0, INDEX('Asset Possibilitites'!C$9:C$449,MATCH($D47,'Asset Possibilitites'!O$9:O$449,0))) -> 0 | G47: =IF( $D47 > MAX( 'Asset Possibilitites'!P$9:P$449), 0, INDEX('Asset Possibilitites'!D$9:D$449,MATCH($D47,'Asset Possibilitites'!P$9:P$449,0))) -> Substation Cable - 1 core per phase | H47: =IF( $D47 > MAX( 'Asset Possibilitites'!Q$9:Q$449), 0, INDEX('Asset Possibilitites'!E$9:E$449,MATCH($D47,'Asset Possibilitites'!Q$9:Q$449,0))) -> 0 | I47: =IF( $D47 > MAX( 'Asset Possibilitites'!R$9:R$449), 0, INDEX('Asset Possibilitites'!F$9:F$449,MATCH($D47,'Asset Possibilitites'!R$9:R$449,0))) -> 0 | T47: PCD17 | AA47: SC2Rev
A48: Spare | D48: 38 | E48: =IF( $D48 > MAX( 'Asset Possibilitites'!N$9:N$449), 0, INDEX('Asset Possibilitites'!B$9:B$449,MATCH($D48,'Asset Possibilitites'!N$9:N$449,0))) -> 0 | F48: =IF( $D48 > MAX( 'Asset Possibilitites'!O$9:O$449), 0, INDEX('Asset Possibilitites'!C$9:C$449,MATCH($D48,'Asset Possibilitites'!O$9:O$449,0))) -> 0 | G48: =IF( $D48 > MAX( 'Asset Possibilitites'!P$9:P$449), 0, INDEX('Asset Possibilitites'!D$9:D$449,MATCH($D48,'Asset Possibilitites'!P$9:P$449,0))) -> Substation Cable - 2 core per phase | H48: =IF( $D48 > MAX( 'Asset Possibilitites'!Q$9:Q$449), 0, INDEX('Asset Possibilitites'!E$9:E$449,MATCH($D48,'Asset Possibilitites'!Q$9:Q$449,0))) -> 0 | I48: =IF( $D48 > MAX( 'Asset Possibilitites'!R$9:R$449), 0, INDEX('Asset Possibilitites'!F$9:F$449,MATCH($D48,'Asset Possibilitites'!R$9:R$449,0))) -> 0 | T48: PCD18 | AA48: SC3
A49: Spare | D49: 39 | E49: =IF( $D49 > MAX( 'Asset Possibilitites'!N$9:N$449), 0, INDEX('Asset Possibilitites'!B$9:B$449,MATCH($D49,'Asset Possibilitites'!N$9:N$449,0))) -> 0 | F49: =IF( $D49 > MAX( 'Asset Possibilitites'!O$9:O$449), 0, INDEX('Asset Possibilitites'!C$9:C$449,MATCH($D49,'Asset Possibilitites'!O$9:O$449,0))) -> 0 | G49: =IF( $D49 > MAX( 'Asset Possibilitites'!P$9:P$449), 0, INDEX('Asset Possibilitites'!D$9:D$449,MATCH($D49,'Asset Possibilitites'!P$9:P$449,0))) -> Substation Cable - >=3 core per phase | H49: =IF( $D49 > MAX( 'Asset Possibilitites'!Q$9:Q$449), 0, INDEX('Asset Possibilitites'!E$9:E$449,MATCH($D49,'Asset Possibilitites'!Q$9:Q$449,0))) -> 0 | I49: =IF( $D49 > MAX( 'Asset Possibilitites'!R$9:R$449), 0, INDEX('Asset Possibilitites'!F$9:F$449,MATCH($D49,'Asset Possibilitites'!R$9:R$449,0))) -> 0 | T49: PCD19 | AA49: SW1
A50: Spare | D50: 40 | E50: =IF( $D50 > MAX( 'Asset Possibilitites'!N$9:N$449), 0, INDEX('Asset Possibilitites'!B$9:B$449,MATCH($D50,'Asset Possibilitites'!N$9:N$449,0))) -> 0 | F50: =IF( $D50 > MAX( 'Asset Possibilitites'!O$9:O$449), 0, INDEX('Asset Possibilitites'!C$9:C$449,MATCH($D50,'Asset Possibilitites'!O$9:O$449,0))) -> 0 | G50: =IF( $D50 > MAX( 'Asset Possibilitites'!P$9:P$449), 0, INDEX('Asset Possibilitites'!D$9:D$449,MATCH($D50,'Asset Possibilitites'!P$9:P$449,0))) -> Circuit Cable - 1 core per phase | H50: =IF( $D50 > MAX( 'Asset Possibilitites'!Q$9:Q$449), 0, INDEX('Asset Possibilitites'!E$9:E$449,MATCH($D50,'Asset Possibilitites'!Q$9:Q$449,0))) -> 0 | I50: =IF( $D50 > MAX( 'Asset Possibilitites'!R$9:R$449), 0, INDEX('Asset Possibilitites'!F$9:F$449,MATCH($D50,'Asset Possibilitites'!R$9:R$449,0))) -> 0 | T50: PCD20
A51: Spare | D51: 41 | E51: =IF( $D51 > MAX( 'Asset Possibilitites'!N$9:N$449), 0, INDEX('Asset Possibilitites'!B$9:B$449,MATCH($D51,'Asset Possibilitites'!N$9:N$449,0))) -> 0 | F51: =IF( $D51 > MAX( 'Asset Possibilitites'!O$9:O$449), 0, INDEX('Asset Possibilitites'!C$9:C$449,MATCH($D51,'Asset Possibilitites'!O$9:O$449,0))) -> 0 | G51: =IF( $D51 > MAX( 'Asset Possibilitites'!P$9:P$449), 0, INDEX('Asset Possibilitites'!D$9:D$449,MATCH($D51,'Asset Possibilitites'!P$9:P$449,0))) -> Circuit Cable - 2 core per phase | H51: =IF( $D51 > MAX( 'Asset Possibilitites'!Q$9:Q$449), 0, INDEX('Asset Possibilitites'!E$9:E$449,MATCH($D51,'Asset Possibilitites'!Q$9:Q$449,0))) -> 0 | I51: =IF( $D51 > MAX( 'Asset Possibilitites'!R$9:R$449), 0, INDEX('Asset Possibilitites'!F$9:F$449,MATCH($D51,'Asset Possibilitites'!R$9:R$449,0))) -> 0 | T51: PCD21
A52: Spare | D52: 42 | E52: =IF( $D52 > MAX( 'Asset Possibilitites'!N$9:N$449), 0, INDEX('Asset Possibilitites'!B$9:B$449,MATCH($D52,'Asset Possibilitites'!N$9:N$449,0))) -> 0 | F52: =IF( $D52 > MAX( 'Asset Possibilitites'!O$9:O$449), 0, INDEX('Asset Possibilitites'!C$9:C$449,MATCH($D52,'Asset Possibilitites'!O$9:O$449,0))) -> 0 | G52: =IF( $D52 > MAX( 'Asset Possibilitites'!P$9:P$449), 0, INDEX('Asset Possibilitites'!D$9:D$449,MATCH($D52,'Asset Possibilitites'!P$9:P$449,0))) -> Substation Circuit Cable - >=3 core per phase | H52: =IF( $D52 > MAX( 'Asset Possibilitites'!Q$9:Q$449), 0, INDEX('Asset Possibilitites'!E$9:E$449,MATCH($D52,'Asset Possibilitites'!Q$9:Q$449,0))) -> 0 | I52: =IF( $D52 > MAX( 'Asset Possibilitites'!R$9:R$449), 0, INDEX('Asset Possibilitites'!F$9:F$449,MATCH($D52,'Asset Possibilitites'!R$9:R$449,0))) -> 0 | T52: PCD22
A53: Spare | D53: 43 | E53: =IF( $D53 > MAX( 'Asset Possibilitites'!N$9:N$449), 0, INDEX('Asset Possibilitites'!B$9:B$449,MATCH($D53,'Asset Possibilitites'!N$9:N$449,0))) -> 0 | F53: =IF( $D53 > MAX( 'Asset Possibilitites'!O$9:O$449), 0, INDEX('Asset Possibilitites'!C$9:C$449,MATCH($D53,'Asset Possibilitites'!O$9:O$449,0))) -> 0 | G53: =IF( $D53 > MAX( 'Asset Possibilitites'!P$9:P$449), 0, INDEX('Asset Possibilitites'!D$9:D$449,MATCH($D53,'Asset Possibilitites'!P$9:P$449,0))) -> Batteries at 132kV Substations | H53: =IF( $D53 > MAX( 'Asset Possibilitites'!Q$9:Q$449), 0, INDEX('Asset Possibilitites'!E$9:E$449,MATCH($D53,'Asset Possibilitites'!Q$9:Q$449,0))) -> 0 | I53: =IF( $D53 > MAX( 'Asset Possibilitites'!R$9:R$449), 0, INDEX('Asset Possibilitites'!F$9:F$449,MATCH($D53,'Asset Possibilitites'!R$9:R$449,0))) -> 0 | T53: OCD1
A54: Spare | D54: 44 | E54: =IF( $D54 > MAX( 'Asset Possibilitites'!N$9:N$449), 0, INDEX('Asset Possibilitites'!B$9:B$449,MATCH($D54,'Asset Possibilitites'!N$9:N$449,0))) -> 0 | F54: =IF( $D54 > MAX( 'Asset Possibilitites'!O$9:O$449), 0, INDEX('Asset Possibilitites'!C$9:C$449,MATCH($D54,'Asset Possibilitites'!O$9:O$449,0))) -> 0 | G54: =IF( $D54 > MAX( 'Asset Possibilitites'!P$9:P$449), 0, INDEX('Asset Possibilitites'!D$9:D$449,MATCH($D54,'Asset Possibilitites'!P$9:P$449,0))) -> Batteries at 275kV Substations | H54: =IF( $D54 > MAX( 'Asset Possibilitites'!Q$9:Q$449), 0, INDEX('Asset Possibilitites'!E$9:E$449,MATCH($D54,'Asset Possibilitites'!Q$9:Q$449,0))) -> 0 | I54: =IF( $D54 > MAX( 'Asset Possibilitites'!R$9:R$449), 0, INDEX('Asset Possibilitites'!F$9:F$449,MATCH($D54,'Asset Possibilitites'!R$9:R$449,0))) -> 0 | T54: OCD2
A55: Spare | D55: 45 | E55: =IF( $D55 > MAX( 'Asset Possibilitites'!N$9:N$449), 0, INDEX('Asset Possibilitites'!B$9:B$449,MATCH($D55,'Asset Possibilitites'!N$9:N$449,0))) -> 0 | F55: =IF( $D55 > MAX( 'Asset Possibilitites'!O$9:O$449), 0, INDEX('Asset Possibilitites'!C$9:C$449,MATCH($D55,'Asset Possibilitites'!O$9:O$449,0))) -> 0 | G55: =IF( $D55 > MAX( 'Asset Possibilitites'!P$9:P$449), 0, INDEX('Asset Possibilitites'!D$9:D$449,MATCH($D55,'Asset Possibilitites'!P$9:P$449,0))) -> Batteries at 400kV Substations | H55: =IF( $D55 > MAX( 'Asset Possibilitites'!Q$9:Q$449), 0, INDEX('Asset Possibilitites'!E$9:E$449,MATCH($D55,'Asset Possibilitites'!Q$9:Q$449,0))) -> 0 | I55: =IF( $D55 > MAX( 'Asset Possibilitites'!R$9:R$449), 0, INDEX('Asset Possibilitites'!F$9:F$449,MATCH($D55,'Asset Possibilitites'!R$9:R$449,0))) -> 0 | T55: CROTRAt
A56: Spare | D56: 46 | E56: =IF( $D56 > MAX( 'Asset Possibilitites'!N$9:N$449), 0, INDEX('Asset Possibilitites'!B$9:B$449,MATCH($D56,'Asset Possibilitites'!N$9:N$449,0))) -> 0 | F56: =IF( $D56 > MAX( 'Asset Possibilitites'!O$9:O$449), 0, INDEX('Asset Possibilitites'!C$9:C$449,MATCH($D56,'Asset Possibilitites'!O$9:O$449,0))) -> 0 | G56: =IF( $D56 > MAX( 'Asset Possibilitites'!P$9:P$449), 0, INDEX('Asset Possibilitites'!D$9:D$449,MATCH($D56,'Asset Possibilitites'!P$9:P$449,0))) -> Convertor Transformer | H56: =IF( $D56 > MAX( 'Asset Possibilitites'!Q$9:Q$449), 0, INDEX('Asset Possibilitites'!E$9:E$449,MATCH($D56,'Asset Possibilitites'!Q$9:Q$449,0))) -> 0 | I56: =IF( $D56 > MAX( 'Asset Possibilitites'!R$9:R$449), 0, INDEX('Asset Possibilitites'!F$9:F$449,MATCH($D56,'Asset Possibilitites'!R$9:R$449,0))) -> 0 | T56: CRITRAt
A57: Spare | D57: 47 | E57: =IF( $D57 > MAX( 'Asset Possibilitites'!N$9:N$449), 0, INDEX('Asset Possibilitites'!B$9:B$449,MATCH($D57,'Asset Possibilitites'!N$9:N$449,0))) -> 0 | F57: =IF( $D57 > MAX( 'Asset Possibilitites'!O$9:O$449), 0, INDEX('Asset Possibilitites'!C$9:C$449,MATCH($D57,'Asset Possibilitites'!O$9:O$449,0))) -> 0 | G57: =IF( $D57 > MAX( 'Asset Possibilitites'!P$9:P$449), 0, INDEX('Asset Possibilitites'!D$9:D$449,MATCH($D57,'Asset Possibilitites'!P$9:P$449,0))) -> HVDC offshore cable | H57: =IF( $D57 > MAX( 'Asset Possibilitites'!Q$9:Q$449), 0, INDEX('Asset Possibilitites'!E$9:E$449,MATCH($D57,'Asset Possibilitites'!Q$9:Q$449,0))) -> 0 | I57: =IF( $D57 > MAX( 'Asset Possibilitites'!R$9:R$449), 0, INDEX('Asset Possibilitites'!F$9:F$449,MATCH($D57,'Asset Possibilitites'!R$9:R$449,0))) -> 0 | T57: PSUPRAt
A58: Spare | D58: 48 | E58: =IF( $D58 > MAX( 'Asset Possibilitites'!N$9:N$449), 0, INDEX('Asset Possibilitites'!B$9:B$449,MATCH($D58,'Asset Possibilitites'!N$9:N$449,0))) -> 0 | F58: =IF( $D58 > MAX( 'Asset Possibilitites'!O$9:O$449), 0, INDEX('Asset Possibilitites'!C$9:C$449,MATCH($D58,'Asset Possibilitites'!O$9:O$449,0))) -> 0 | G58: =IF( $D58 > MAX( 'Asset Possibilitites'!P$9:P$449), 0, INDEX('Asset Possibilitites'!D$9:D$449,MATCH($D58,'Asset Possibilitites'!P$9:P$449,0))) -> HVDC onshore cable | H58: =IF( $D58 > MAX( 'Asset Possibilitites'!Q$9:Q$449), 0, INDEX('Asset Possibilitites'!E$9:E$449,MATCH($D58,'Asset Possibilitites'!Q$9:Q$449,0))) -> 0 | I58: =IF( $D58 > MAX( 'Asset Possibilitites'!R$9:R$449), 0, INDEX('Asset Possibilitites'!F$9:F$449,MATCH($D58,'Asset Possibilitites'!R$9:R$449,0))) -> 0 | T58: RDFRt
A59: Spare | D59: 49 | E59: =IF( $D59 > MAX( 'Asset Possibilitites'!N$9:N$449), 0, INDEX('Asset Possibilitites'!B$9:B$449,MATCH($D59,'Asset Possibilitites'!N$9:N$449,0))) -> 0 | F59: =IF( $D59 > MAX( 'Asset Possibilitites'!O$9:O$449), 0, INDEX('Asset Possibilitites'!C$9:C$449,MATCH($D59,'Asset Possibilitites'!O$9:O$449,0))) -> 0 | G59: =IF( $D59 > MAX( 'Asset Possibilitites'!P$9:P$449), 0, INDEX('Asset Possibilitites'!D$9:D$449,MATCH($D59,'Asset Possibilitites'!P$9:P$449,0))) -> HVDC Convertor | H59: =IF( $D59 > MAX( 'Asset Possibilitites'!Q$9:Q$449), 0, INDEX('Asset Possibilitites'!E$9:E$449,MATCH($D59,'Asset Possibilitites'!Q$9:Q$449,0))) -> 0 | I59: =IF( $D59 > MAX( 'Asset Possibilitites'!R$9:R$449), 0, INDEX('Asset Possibilitites'!F$9:F$449,MATCH($D59,'Asset Possibilitites'!R$9:R$449,0))) -> 0 | T59: WWRt
A60: Spare | D60: 50 | E60: =IF( $D60 > MAX( 'Asset Possibilitites'!N$9:N$449), 0, INDEX('Asset Possibilitites'!B$9:B$449,MATCH($D60,'Asset Possibilitites'!N$9:N$449,0))) -> 0 | F60: =IF( $D60 > MAX( 'Asset Possibilitites'!O$9:O$449), 0, INDEX('Asset Possibilitites'!C$9:C$449,MATCH($D60,'Asset Possibilitites'!O$9:O$449,0))) -> 0 | G60: =IF( $D60 > MAX( 'Asset Possibilitites'!P$9:P$449), 0, INDEX('Asset Possibilitites'!D$9:D$449,MATCH($D60,'Asset Possibilitites'!P$9:P$449,0))) -> HVDC Overhead Conductor | H60: =IF( $D60 > MAX( 'Asset Possibilitites'!Q$9:Q$449), 0, INDEX('Asset Possibilitites'!E$9:E$449,MATCH($D60,'Asset Possibilitites'!Q$9:Q$449,0))) -> 0 | I60: =IF( $D60 > MAX( 'Asset Possibilitites'!R$9:R$449), 0, INDEX('Asset Possibilitites'!F$9:F$449,MATCH($D60,'Asset Possibilitites'!R$9:R$449,0))) -> 0 | T60: PCFRAt
A61: Spare | D61: 51 | E61: =IF( $D61 > MAX( 'Asset Possibilitites'!N$9:N$449), 0, INDEX('Asset Possibilitites'!B$9:B$449,MATCH($D61,'Asset Possibilitites'!N$9:N$449,0))) -> 0 | F61: =IF( $D61 > MAX( 'Asset Possibilitites'!O$9:O$449), 0, INDEX('Asset Possibilitites'!C$9:C$449,MATCH($D61,'Asset Possibilitites'!O$9:O$449,0))) -> 0 | G61: =IF( $D61 > MAX( 'Asset Possibilitites'!P$9:P$449), 0, INDEX('Asset Possibilitites'!D$9:D$449,MATCH($D61,'Asset Possibilitites'!P$9:P$449,0))) -> Substation Auxiliary Supplies at substations | H61: =IF( $D61 > MAX( 'Asset Possibilitites'!Q$9:Q$449), 0, INDEX('Asset Possibilitites'!E$9:E$449,MATCH($D61,'Asset Possibilitites'!Q$9:Q$449,0))) -> 0 | I61: =IF( $D61 > MAX( 'Asset Possibilitites'!R$9:R$449), 0, INDEX('Asset Possibilitites'!F$9:F$449,MATCH($D61,'Asset Possibilitites'!R$9:R$449,0))) -> 0 | T61: SSRt
A62: Spare | D62: 52 | E62: =IF( $D62 > MAX( 'Asset Possibilitites'!N$9:N$449), 0, INDEX('Asset Possibilitites'!B$9:B$449,MATCH($D62,'Asset Possibilitites'!N$9:N$449,0))) -> 0 | F62: =IF( $D62 > MAX( 'Asset Possibilitites'!O$9:O$449), 0, INDEX('Asset Possibilitites'!C$9:C$449,MATCH($D62,'Asset Possibilitites'!O$9:O$449,0))) -> 0 | G62: =IF( $D62 > MAX( 'Asset Possibilitites'!P$9:P$449), 0, INDEX('Asset Possibilitites'!D$9:D$449,MATCH($D62,'Asset Possibilitites'!P$9:P$449,0))) -> Diesel Generators & LVAC Boards | H62: =IF( $D62 > MAX( 'Asset Possibilitites'!Q$9:Q$449), 0, INDEX('Asset Possibilitites'!E$9:E$449,MATCH($D62,'Asset Possibilitites'!Q$9:Q$449,0))) -> 0 | I62: =IF( $D62 > MAX( 'Asset Possibilitites'!R$9:R$449), 0, INDEX('Asset Possibilitites'!F$9:F$449,MATCH($D62,'Asset Possibilitites'!R$9:R$449,0))) -> 0 | T62: RORt
... 77 more rows

Sheet Checks Sheet
A1: Checks Sheet
A2: Sheet Description:
B3: Links to all the relevant checks calculated elsewhere in the model and checks to see if they are all passing or not
A7: Checks
B8: Project_Meta_Data - Project reference matches | C8: =Project_Meta_Data!W9 -> TRUE
B9: Scheme_Meta_Data - Scheme reference matches | C9: =Scheme_Meta_Data!W9 -> TRUE
B10: Scheme_Meta_Data - Project reference matches | C10: =Scheme_Meta_Data!X9 -> TRUE
B11: Scheme_Meta_Data - Scheme category matches | C11: =Scheme_Meta_Data!Y9 -> TRUE | Z11: Customer Contributions (baseline)
B12: Scheme_Volume_Mock_Up - Scheme reference matches | C12: =Scheme_Volume_Mock_Up!W9 -> TRUE | Z12: Customer Contributions (other)
B13: Scheme_Volume_Mock_Up - Asset input matches | C13: =Scheme_Volume_Mock_Up!X9 -> TRUE | Z13: One-off contribution
B14: Scheme_Volume_Mock_Up_Allowances - Scheme reference matches | C14: =Scheme_Volume_Mock_Up_Allowance!U9 -> TRUE
B15: Scheme_Volume_Mock_Up_Allowances - Asset input matches | C15: =Scheme_Volume_Mock_Up_Allowance!V9 -> TRUE
B16: Scheme_Output_Mock_Up - Scheme reference matches | C16: =Scheme_Output_Mock_Up!W9 -> TRUE
B17: Scheme_Output_Mock_Up - Mechanism type matches | C17: =Scheme_Output_Mock_Up!X9 -> TRUE
B18: Scheme_Output_Mock_Up - Mechanism matches | C18: =Scheme_Output_Mock_Up!Y9 -> TRUE
B19: Scheme_Output_Mock_Up - Output measure matches | C19: =Scheme_Output_Mock_Up!Z9 -> TRUE
B20: Scheme_Output_Mock_Up - Units matches | C20: =Scheme_Output_Mock_Up!AA9 -> TRUE
B21: Scheme_Cost_Calc - totals match | C21: =MAX(Scheme_Cost_Calc!W11:AG11)=0 -> TRUE
B22: Scheme_Volume_Calc - totals match | C22: =MAX( Scheme_Volume_Calc!S11 )=0 -> TRUE
B23: Company classifications all assigned to Ofgem categories | C23: =AND('D4.10_Asset_Mapping'!G8 = 0, 'D4.10_Asset_Mapping'!J8 = 0) -> TRUE
B24: A1.1 Totex - annual totals match cost matrix sheets | C24: =MAX( 'A1.1_Totex_AP'!D28:N28)=0 -> TRUE
B25: Other_T2_Capital_Cost_From_T1 - Scheme reference matches | C25: ='Other_T2_Capital_Cost_From_T1 '!$AC$9 -> TRUE
B26: =A8_Allowances_2022!$A$30 -> Check - Allowances 2022 matches | C26: =A8_Allowances_2022!$B$30 -> TRUE
B27: =A8_Allowances_2023!$A$30 -> Check - Allowances 2023 matches | C27: =A8_Allowances_2023!$B$30 -> TRUE
B28: =A8_Allowances_2024!$A$30 -> Check - Allowances 2024 matches | C28: =A8_Allowances_2024!$B$30 -> TRUE
B29: =A8_Allowances_2025!$A$30 -> Check - Allowances 2025 matches | C29: =A8_Allowances_2025!$B$30 -> TRUE
B30: =A8_Allowances_2026!$A$30 -> Check - Allowances 2026 matches | C30: =A8_Allowances_2026!$B$30 -> TRUE
B31: =A8_Allowances_2027!$A$30 -> Check - Allowances 2027 matches | C31: =A8_Allowances_2027!$B$30 -> TRUE
B32: =A8_Allowances_2028!$A$30 -> Check - Allowances 2028 matches | C32: =A8_Allowances_2028!$B$30 -> TRUE
B33: =A8_Allowances_2029!$A$30 -> Check - Allowances 2029 matches | C33: =A8_Allowances_2029!$B$30 -> TRUE
B34: =A8_Allowances_2030!$A$30 -> Check - Allowances 2030 matches | C34: =A8_Allowances_2030!$B$30 -> TRUE
B35: =A8_Allowances_2031!$A$30 -> Check - Allowances 2031 matches | C35: =A8_Allowances_2031!$B$30 -> TRUE
B47: All checks passing | C47: =AND(C8:C46) -> TRUE
B48: Checks failing | C48: =COUNTA(C8:C45) - COUNTIF(C8:C45,"TRUE") -> 0
B49: Test passing message | C49: =IF(C47, "All checks passing", C48 &" check(s) failing") -> All checks passing

Sheet Universal Data
A1: =#REF! -> 
A2: Universal Data
A3: Price Conversions
B6: Company Name: | C6: ='Cover Sheet'!C3 -> NGET
B8: Reporting Year: (enter 2022 for 2021/22) | C8: 2022
B9: Version (Number) | C9: 1
B10: Submitted Date: | C10: 2022-07-31
Z11: Customer Contributions (baseline)
B12: Reporting Year - 5 | C12: =$C$8-6&"/"&RIGHT($C$8-5,2) -> 2016/17 | Z12: Customer Contributions (other)
B13: Reporting Year - 4 | C13: =$C$8-5&"/"&RIGHT($C$8-4,2) -> 2017/18 | Z13: One-off contribution
B14: Reporting Year - 3 | C14: =$C$8-4&"/"&RIGHT($C$8-3,2) -> 2018/19
B15: Reporting Year - 2 | C15: =$C$8-3&"/"&RIGHT($C$8-2,2) -> 2019/20
B16: Reporting Year - 1 | C16: =$C$8-2&"/"&RIGHT($C$8-1,2) -> 2020/21
B17: Reporting Year: | C17: =$C$8-1&"/"&RIGHT($C$8,2) -> 2021/22
B18: Reporting Year + 1 | C18: =$C$8&"/"&RIGHT($C$8+1,2) -> 2022/23
B19: Reporting Year + 2 | C19: =$C$8+1&"/"&RIGHT($C$8+2,2) -> 2023/24
B20: Reporting Year + 3 | C20: =$C$8+2&"/"&RIGHT($C$8+3,2) -> 2024/25
B21: Reporting Year + 4 | C21: =$C$8+3&"/"&RIGHT($C$8+4,2) -> 2025/26
B22: Reporting Year + 5 | C22: =$C$8+4&"/"&RIGHT($C$8+5,2) -> 2026/27
B25: Error Limit lower than (Rounding) | C25: 0.1
B28: RPI-CPIH Index | C28: Reporting Year | D28: Financial Year Average (RPI-CPIH) | E28: Combined RPI-CPIH real to nominal prices conversion factor | F28: Combined RPI-CPIH nominal to real prices conversion factor (2018/19 price base)
C29: 2016/17 | D29: 264.9916667
C30: 2017/18 | D30: 274.9083333
C31: 2018/19 | D31: 283.3083333 | E31: =D31/$D$31 -> 1 | F31: =$E$31/E31 -> 1
C32: 2019/20 | D32: 290.6416667 | E32: =D32/$D$31 -> 1.025884637 | F32: =$E$31/E32 -> 0.9747684721
C33: 2020/21 | D33: 294.1750927 | E33: 1.038356653 | F33: 0.9630602331
C34: 2021/22 | D34: 298.2137327 | E34: 1.052611934 | F34: 0.95001773
C35: 2022/23 | D35: 302.9785377 | E35: 1.069430377 | F35: 0.9350772352
C36: 2023/24 | D36: 308.3742269 | E36: 1.088475666 | F36: 0.9187159904
C37: 2024/25 | D37: 314.3354649 | E37: 1.109517187 | F37: 0.9012929337
C38: 2025/26 | D38: 320.611315 | E38: 1.1316692 | F38: 0.8836504516
C39: 2026/27
B41: Reporting Year's Financial Year Average RPI: | D41: =INDEX($D$29:$D$39,MATCH($C$17,C29:C39,0)) -> 298.2137327
C44: 2021/22 | D44: 298.2137327 | E44: =D44/$D$31 -> 1.052611934 | F44: =$E$31/E44 -> 0.95001773
C45: 2022/23 | D45: 302.9785377 | E45: =D45/$D$31 -> 1.069430377 | F45: =$E$31/E45 -> 0.9350772352
C46: 2023/24 | D46: 308.3742269 | E46: =D46/$D$31 -> 1.088475666 | F46: =$E$31/E46 -> 0.9187159904
C47: 2024/25 | D47: 314.3354649 | E47: =D47/$D$31 -> 1.109517187 | F47: =$E$31/E47 -> 0.9012929337
C48: 2025/26 | D48: 320.611315 | E48: =D48/$D$31 -> 1.1316692 | F48: =$E$31/E48 -> 0.8836504516
C49: 2026/27
B51: Reporting Year's Financial Year Average RPI: | D51: =INDEX($D$29:$D$39,MATCH($C$17,C39:C49,0)) -> 298.2137327

Sheet Company Inputs>>
Z11: Customer Contributions (baseline)
Z12: Customer Contributions (other)
Z13: One-off contribution

Sheet Project_Meta_Data
A1: Sheet: | B1: Project Meta Data | D1: Data Type: | E1: Meta Data | G1: Checks: | H1: ='Checks Sheet'!$C$49 -> All checks passing
A3: Sheet Description:
A4: Project Meta Data company input sheet.
A6: Key
A7: Select from dropdown | B7: Free Entry | C7: Auto Populated | D7: Check Cell | E7: Lookup Data
W9: =AND(W14:W155) -> TRUE
A11: descriptor_1 | B11: descriptor_2 | C11: descriptor_3 | D11: descriptor_4 | E11: descriptor_5 | F11: descriptor_6 | G11: descriptor_7 | H11: descriptor_8 | I11: descriptor_9 | J11: descriptor_10 | L11: value_1 | M11: value_2 | N11: value_3 | O11: value_4 | P11: value_5 | Q11: value_6 | R11: value_7 | S11: value_8 | T11: value_9 | U11: value_10 | W11: Checks | Z11: Customer Contributions (baseline)
Z12: Customer Contributions (other)
A13: Project Reference | B13: Spare | C13: Spare | D13: Spare | E13: Spare | F13: Spare | G13: Spare | H13: Spare | I13: Spare | J13: Spare | L13: Project Name | M13: Start year | N13: Close year | O13: Stage | P13: Spare | Q13: Spare | R13: Spare | S13: Spare | T13: Spare | U13: Narrative / Associated Doc Reference | W13: Project reference matches | X13: Spare | Y13: Spare | Z13: One-off contribution
W14: =IF(ISBLANK(A14),TRUE,NOT(ISERROR(MATCH(A14,'Look Up Tables'!$B$11:$B$510,0)))) -> TRUE
W15: =IF(ISBLANK(A15),TRUE,NOT(ISERROR(MATCH(A15,'Look Up Tables'!$B$11:$B$510,0)))) -> TRUE
W16: =IF(ISBLANK(A16),TRUE,NOT(ISERROR(MATCH(A16,'Look Up Tables'!$B$11:$B$510,0)))) -> TRUE
W17: =IF(ISBLANK(A17),TRUE,NOT(ISERROR(MATCH(A17,'Look Up Tables'!$B$11:$B$510,0)))) -> TRUE
W18: =IF(ISBLANK(A18),TRUE,NOT(ISERROR(MATCH(A18,'Look Up Tables'!$B$11:$B$510,0)))) -> TRUE
W19: =IF(ISBLANK(A19),TRUE,NOT(ISERROR(MATCH(A19,'Look Up Tables'!$B$11:$B$510,0)))) -> TRUE
W20: =IF(ISBLANK(A20),TRUE,NOT(ISERROR(MATCH(A20,'Look Up Tables'!$B$11:$B$510,0)))) -> TRUE
W21: =IF(ISBLANK(A21),TRUE,NOT(ISERROR(MATCH(A21,'Look Up Tables'!$B$11:$B$510,0)))) -> TRUE
W22: =IF(ISBLANK(A22),TRUE,NOT(ISERROR(MATCH(A22,'Look Up Tables'!$B$11:$B$510,0)))) -> TRUE
W23: =IF(ISBLANK(A23),TRUE,NOT(ISERROR(MATCH(A23,'Look Up Tables'!$B$11:$B$510,0)))) -> TRUE
W24: =IF(ISBLANK(A24),TRUE,NOT(ISERROR(MATCH(A24,'Look Up Tables'!$B$11:$B$510,0)))) -> TRUE
W25: =IF(ISBLANK(A25),TRUE,NOT(ISERROR(MATCH(A25,'Look Up Tables'!$B$11:$B$510,0)))) -> TRUE
W26: =IF(ISBLANK(A26),TRUE,NOT(ISERROR(MATCH(A26,'Look Up Tables'!$B$11:$B$510,0)))) -> TRUE
W27: =IF(ISBLANK(A27),TRUE,NOT(ISERROR(MATCH(A27,'Look Up Tables'!$B$11:$B$510,0)))) -> TRUE
W28: =IF(ISBLANK(A28),TRUE,NOT(ISERROR(MATCH(A28,'Look Up Tables'!$B$11:$B$510,0)))) -> TRUE
W29: =IF(ISBLANK(A29),TRUE,NOT(ISERROR(MATCH(A29,'Look Up Tables'!$B$11:$B$510,0)))) -> TRUE
W30: =IF(ISBLANK(A30),TRUE,NOT(ISERROR(MATCH(A30,'Look Up Tables'!$B$11:$B$510,0)))) -> TRUE
W31: =IF(ISBLANK(A31),TRUE,NOT(ISERROR(MATCH(A31,'Look Up Tables'!$B$11:$B$510,0)))) -> TRUE
W32: =IF(ISBLANK(A32),TRUE,NOT(ISERROR(MATCH(A32,'Look Up Tables'!$B$11:$B$510,0)))) -> TRUE
W33: =IF(ISBLANK(A33),TRUE,NOT(ISERROR(MATCH(A33,'Look Up Tables'!$B$11:$B$510,0)))) -> TRUE
W34: =IF(ISBLANK(A34),TRUE,NOT(ISERROR(MATCH(A34,'Look Up Tables'!$B$11:$B$510,0)))) -> TRUE
W35: =IF(ISBLANK(A35),TRUE,NOT(ISERROR(MATCH(A35,'Look Up Tables'!$B$11:$B$510,0)))) -> TRUE
W36: =IF(ISBLANK(A36),TRUE,NOT(ISERROR(MATCH(A36,'Look Up Tables'!$B$11:$B$510,0)))) -> TRUE
W37: =IF(ISBLANK(A37),TRUE,NOT(ISERROR(MATCH(A37,'Look Up Tables'!$B$11:$B$510,0)))) -> TRUE
W38: =IF(ISBLANK(A38),TRUE,NOT(ISERROR(MATCH(A38,'Look Up Tables'!$B$11:$B$510,0)))) -> TRUE
W39: =IF(ISBLANK(A39),TRUE,NOT(ISERROR(MATCH(A39,'Look Up Tables'!$B$11:$B$510,0)))) -> TRUE
W40: =IF(ISBLANK(A40),TRUE,NOT(ISERROR(MATCH(A40,'Look Up Tables'!$B$11:$B$510,0)))) -> TRUE
W41: =IF(ISBLANK(A41),TRUE,NOT(ISERROR(MATCH(A41,'Look Up Tables'!$B$11:$B$510,0)))) -> TRUE
W42: =IF(ISBLANK(A42),TRUE,NOT(ISERROR(MATCH(A42,'Look Up Tables'!$B$11:$B$510,0)))) -> TRUE
W43: =IF(ISBLANK(A43),TRUE,NOT(ISERROR(MATCH(A43,'Look Up Tables'!$B$11:$B$510,0)))) -> TRUE
W44: =IF(ISBLANK(A44),TRUE,NOT(ISERROR(MATCH(A44,'Look Up Tables'!$B$11:$B$510,0)))) -> TRUE
W45: =IF(ISBLANK(A45),TRUE,NOT(ISERROR(MATCH(A45,'Look Up Tables'!$B$11:$B$510,0)))) -> TRUE
W46: =IF(ISBLANK(A46),TRUE,NOT(ISERROR(MATCH(A46,'Look Up Tables'!$B$11:$B$510,0)))) -> TRUE
W47: =IF(ISBLANK(A47),TRUE,NOT(ISERROR(MATCH(A47,'Look Up Tables'!$B$11:$B$510,0)))) -> TRUE
W48: =IF(ISBLANK(A48),TRUE,NOT(ISERROR(MATCH(A48,'Look Up Tables'!$B$11:$B$510,0)))) -> TRUE
W49: =IF(ISBLANK(A49),TRUE,NOT(ISERROR(MATCH(A49,'Look Up Tables'!$B$11:$B$510,0)))) -> TRUE
W50: =IF(ISBLANK(A50),TRUE,NOT(ISERROR(MATCH(A50,'Look Up Tables'!$B$11:$B$510,0)))) -> TRUE
W51: =IF(ISBLANK(A51),TRUE,NOT(ISERROR(MATCH(A51,'Look Up Tables'!$B$11:$B$510,0)))) -> TRUE
W52: =IF(ISBLANK(A52),TRUE,NOT(ISERROR(MATCH(A52,'Look Up Tables'!$B$11:$B$510,0)))) -> TRUE
W53: =IF(ISBLANK(A53),TRUE,NOT(ISERROR(MATCH(A53,'Look Up Tables'!$B$11:$B$510,0)))) -> TRUE
W54: =IF(ISBLANK(A54),TRUE,NOT(ISERROR(MATCH(A54,'Look Up Tables'!$B$11:$B$510,0)))) -> TRUE
W55: =IF(ISBLANK(A55),TRUE,NOT(ISERROR(MATCH(A55,'Look Up Tables'!$B$11:$B$510,0)))) -> TRUE
W56: =IF(ISBLANK(A56),TRUE,NOT(ISERROR(MATCH(A56,'Look Up Tables'!$B$11:$B$510,0)))) -> TRUE
W57: =IF(ISBLANK(A57),TRUE,NOT(ISERROR(MATCH(A57,'Look Up Tables'!$B$11:$B$510,0)))) -> TRUE
W58: =IF(ISBLANK(A58),TRUE,NOT(ISERROR(MATCH(A58,'Look Up Tables'!$B$11:$B$510,0)))) -> TRUE
W59: =IF(ISBLANK(A59),TRUE,NOT(ISERROR(MATCH(A59,'Look Up Tables'!$B$11:$B$510,0)))) -> TRUE
W60: =IF(ISBLANK(A60),TRUE,NOT(ISERROR(MATCH(A60,'Look Up Tables'!$B$11:$B$510,0)))) -> TRUE
W61: =IF(ISBLANK(A61),TRUE,NOT(ISERROR(MATCH(A61,'Look Up Tables'!$B$11:$B$510,0)))) -> TRUE
W62: =IF(ISBLANK(A62),TRUE,NOT(ISERROR(MATCH(A62,'Look Up Tables'!$B$11:$B$510,0)))) -> TRUE
... 77 more rows

Sheet Scheme_Meta_Data
A1: Sheet: | B1: Scheme Meta Data | D1: Data Type: | E1: Meta Data | G1: Checks: | H1: ='Checks Sheet'!$C$49 -> All checks passing
A3: Sheet Description:
A4: Scheme Meta Data company inputs sheet.
A6: Key
A7: Select from dropdown | B7: Free Entry | C7: Auto Populated | D7: Check Cell | E7: Lookup Data
W9: =AND(W14:W155) -> TRUE | X9: =AND(X14:X155) -> TRUE | Y9: =AND(Y14:Y155) -> TRUE
A11: descriptor_1 | B11: descriptor_2 | C11: descriptor_3 | D11: descriptor_4 | E11: descriptor_5 | F11: descriptor_6 | G11: descriptor_7 | H11: descriptor_8 | I11: descriptor_9 | J11: descriptor_10 | L11: value_1 | M11: value_2 | N11: value_3 | O11: value_4 | P11: value_5 | Q11: value_6 | R11: value_7 | S11: value_8 | T11: value_9 | U11: value_10 | W11: Checks | Z11: Customer Contributions (baseline)
Z12: Customer Contributions (other)
A13: Scheme Reference | B13: Project Reference | C13: Scheme Category | D13: Scheme Sub Category | E13: Mechanism Category | F13: Geographical | G13: Consents & Planning | H13: Ground condition | I13: Environmental Mitigation | J13: Proximity to existing electricla infrastructure | L13: Scheme Name | M13: Start year | N13: Close year | O13: Active | P13: Spare | Q13: Spare | R13: Spare | S13: Spare | T13: Spare | U13: Narative / Associated Doc Reference | W13: Scheme Reference | X13: Project Reference | Y13: Scheme Category | Z13: One-off contribution
O14: =AND(YEAR(NOW())<=N14, YEAR(NOW())>=M14) -> FALSE | W14: =IF(ISBLANK(A14),TRUE,NOT(ISERROR(MATCH(A14,'Look Up Tables'!$A$11:$A$510,0)))) -> TRUE | X14: =IF(ISBLANK(A14),TRUE,NOT(ISERROR(MATCH(B14,'Look Up Tables'!$B$11:$B$510,0)))) -> TRUE | Y14: =IF(ISBLANK(A14),TRUE,NOT(ISERROR(MATCH(C14,'Look Up Tables'!$L$11:$L$510,0)))) -> TRUE
O15: FALSE | W15: =IF(ISBLANK(A15),TRUE,NOT(ISERROR(MATCH(A15,'Look Up Tables'!$A$11:$A$510,0)))) -> TRUE | X15: =IF(ISBLANK(A15),TRUE,NOT(ISERROR(MATCH(B15,'Look Up Tables'!$B$11:$B$510,0)))) -> TRUE | Y15: =IF(ISBLANK(A15),TRUE,NOT(ISERROR(MATCH(C15,'Look Up Tables'!$L$11:$L$510,0)))) -> TRUE
O16: FALSE | W16: =IF(ISBLANK(A16),TRUE,NOT(ISERROR(MATCH(A16,'Look Up Tables'!$A$11:$A$510,0)))) -> TRUE | X16: =IF(ISBLANK(A16),TRUE,NOT(ISERROR(MATCH(B16,'Look Up Tables'!$B$11:$B$510,0)))) -> TRUE | Y16: =IF(ISBLANK(A16),TRUE,NOT(ISERROR(MATCH(C16,'Look Up Tables'!$L$11:$L$510,0)))) -> TRUE
O17: FALSE | W17: =IF(ISBLANK(A17),TRUE,NOT(ISERROR(MATCH(A17,'Look Up Tables'!$A$11:$A$510,0)))) -> TRUE | X17: =IF(ISBLANK(A17),TRUE,NOT(ISERROR(MATCH(B17,'Look Up Tables'!$B$11:$B$510,0)))) -> TRUE | Y17: =IF(ISBLANK(A17),TRUE,NOT(ISERROR(MATCH(C17,'Look Up Tables'!$L$11:$L$510,0)))) -> TRUE
O18: FALSE | W18: =IF(ISBLANK(A18),TRUE,NOT(ISERROR(MATCH(A18,'Look Up Tables'!$A$11:$A$510,0)))) -> TRUE | X18: =IF(ISBLANK(A18),TRUE,NOT(ISERROR(MATCH(B18,'Look Up Tables'!$B$11:$B$510,0)))) -> TRUE | Y18: =IF(ISBLANK(A18),TRUE,NOT(ISERROR(MATCH(C18,'Look Up Tables'!$L$11:$L$510,0)))) -> TRUE
O19: FALSE | W19: =IF(ISBLANK(A19),TRUE,NOT(ISERROR(MATCH(A19,'Look Up Tables'!$A$11:$A$510,0)))) -> TRUE | X19: =IF(ISBLANK(A19),TRUE,NOT(ISERROR(MATCH(B19,'Look Up Tables'!$B$11:$B$510,0)))) -> TRUE | Y19: =IF(ISBLANK(A19),TRUE,NOT(ISERROR(MATCH(C19,'Look Up Tables'!$L$11:$L$510,0)))) -> TRUE
O20: FALSE | W20: =IF(ISBLANK(A20),TRUE,NOT(ISERROR(MATCH(A20,'Look Up Tables'!$A$11:$A$510,0)))) -> TRUE | X20: =IF(ISBLANK(A20),TRUE,NOT(ISERROR(MATCH(B20,'Look Up Tables'!$B$11:$B$510,0)))) -> TRUE | Y20: =IF(ISBLANK(A20),TRUE,NOT(ISERROR(MATCH(C20,'Look Up Tables'!$L$11:$L$510,0)))) -> TRUE
O21: FALSE | W21: =IF(ISBLANK(A21),TRUE,NOT(ISERROR(MATCH(A21,'Look Up Tables'!$A$11:$A$510,0)))) -> TRUE | X21: =IF(ISBLANK(A21),TRUE,NOT(ISERROR(MATCH(B21,'Look Up Tables'!$B$11:$B$510,0)))) -> TRUE | Y21: =IF(ISBLANK(A21),TRUE,NOT(ISERROR(MATCH(C21,'Look Up Tables'!$L$11:$L$510,0)))) -> TRUE
O22: FALSE | W22: =IF(ISBLANK(A22),TRUE,NOT(ISERROR(MATCH(A22,'Look Up Tables'!$A$11:$A$510,0)))) -> TRUE | X22: =IF(ISBLANK(A22),TRUE,NOT(ISERROR(MATCH(B22,'Look Up Tables'!$B$11:$B$510,0)))) -> TRUE | Y22: =IF(ISBLANK(A22),TRUE,NOT(ISERROR(MATCH(C22,'Look Up Tables'!$L$11:$L$510,0)))) -> TRUE
O23: FALSE | W23: =IF(ISBLANK(A23),TRUE,NOT(ISERROR(MATCH(A23,'Look Up Tables'!$A$11:$A$510,0)))) -> TRUE | X23: =IF(ISBLANK(A23),TRUE,NOT(ISERROR(MATCH(B23,'Look Up Tables'!$B$11:$B$510,0)))) -> TRUE | Y23: =IF(ISBLANK(A23),TRUE,NOT(ISERROR(MATCH(C23,'Look Up Tables'!$L$11:$L$510,0)))) -> TRUE
O24: FALSE | W24: =IF(ISBLANK(A24),TRUE,NOT(ISERROR(MATCH(A24,'Look Up Tables'!$A$11:$A$510,0)))) -> TRUE | X24: =IF(ISBLANK(A24),TRUE,NOT(ISERROR(MATCH(B24,'Look Up Tables'!$B$11:$B$510,0)))) -> TRUE | Y24: =IF(ISBLANK(A24),TRUE,NOT(ISERROR(MATCH(C24,'Look Up Tables'!$L$11:$L$510,0)))) -> TRUE
O25: FALSE | W25: =IF(ISBLANK(A25),TRUE,NOT(ISERROR(MATCH(A25,'Look Up Tables'!$A$11:$A$510,0)))) -> TRUE | X25: =IF(ISBLANK(A25),TRUE,NOT(ISERROR(MATCH(B25,'Look Up Tables'!$B$11:$B$510,0)))) -> TRUE | Y25: =IF(ISBLANK(A25),TRUE,NOT(ISERROR(MATCH(C25,'Look Up Tables'!$L$11:$L$510,0)))) -> TRUE
O26: FALSE | W26: =IF(ISBLANK(A26),TRUE,NOT(ISERROR(MATCH(A26,'Look Up Tables'!$A$11:$A$510,0)))) -> TRUE | X26: =IF(ISBLANK(A26),TRUE,NOT(ISERROR(MATCH(B26,'Look Up Tables'!$B$11:$B$510,0)))) -> TRUE | Y26: =IF(ISBLANK(A26),TRUE,NOT(ISERROR(MATCH(C26,'Look Up Tables'!$L$11:$L$510,0)))) -> TRUE
O27: FALSE | W27: =IF(ISBLANK(A27),TRUE,NOT(ISERROR(MATCH(A27,'Look Up Tables'!$A$11:$A$510,0)))) -> TRUE | X27: =IF(ISBLANK(A27),TRUE,NOT(ISERROR(MATCH(B27,'Look Up Tables'!$B$11:$B$510,0)))) -> TRUE | Y27: =IF(ISBLANK(A27),TRUE,NOT(ISERROR(MATCH(C27,'Look Up Tables'!$L$11:$L$510,0)))) -> TRUE
O28: FALSE | W28: =IF(ISBLANK(A28),TRUE,NOT(ISERROR(MATCH(A28,'Look Up Tables'!$A$11:$A$510,0)))) -> TRUE | X28: =IF(ISBLANK(A28),TRUE,NOT(ISERROR(MATCH(B28,'Look Up Tables'!$B$11:$B$510,0)))) -> TRUE | Y28: =IF(ISBLANK(A28),TRUE,NOT(ISERROR(MATCH(C28,'Look Up Tables'!$L$11:$L$510,0)))) -> TRUE
O29: FALSE | W29: =IF(ISBLANK(A29),TRUE,NOT(ISERROR(MATCH(A29,'Look Up Tables'!$A$11:$A$510,0)))) -> TRUE | X29: =IF(ISBLANK(A29),TRUE,NOT(ISERROR(MATCH(B29,'Look Up Tables'!$B$11:$B$510,0)))) -> TRUE | Y29: =IF(ISBLANK(A29),TRUE,NOT(ISERROR(MATCH(C29,'Look Up Tables'!$L$11:$L$510,0)))) -> TRUE
O30: FALSE | W30: =IF(ISBLANK(A30),TRUE,NOT(ISERROR(MATCH(A30,'Look Up Tables'!$A$11:$A$510,0)))) -> TRUE | X30: =IF(ISBLANK(A30),TRUE,NOT(ISERROR(MATCH(B30,'Look Up Tables'!$B$11:$B$510,0)))) -> TRUE | Y30: =IF(ISBLANK(A30),TRUE,NOT(ISERROR(MATCH(C30,'Look Up Tables'!$L$11:$L$510,0)))) -> TRUE
O31: FALSE | W31: =IF(ISBLANK(A31),TRUE,NOT(ISERROR(MATCH(A31,'Look Up Tables'!$A$11:$A$510,0)))) -> TRUE | X31: =IF(ISBLANK(A31),TRUE,NOT(ISERROR(MATCH(B31,'Look Up Tables'!$B$11:$B$510,0)))) -> TRUE | Y31: =IF(ISBLANK(A31),TRUE,NOT(ISERROR(MATCH(C31,'Look Up Tables'!$L$11:$L$510,0)))) -> TRUE
O32: FALSE | W32: =IF(ISBLANK(A32),TRUE,NOT(ISERROR(MATCH(A32,'Look Up Tables'!$A$11:$A$510,0)))) -> TRUE | X32: =IF(ISBLANK(A32),TRUE,NOT(ISERROR(MATCH(B32,'Look Up Tables'!$B$11:$B$510,0)))) -> TRUE | Y32: =IF(ISBLANK(A32),TRUE,NOT(ISERROR(MATCH(C32,'Look Up Tables'!$L$11:$L$510,0)))) -> TRUE
O33: FALSE | W33: =IF(ISBLANK(A33),TRUE,NOT(ISERROR(MATCH(A33,'Look Up Tables'!$A$11:$A$510,0)))) -> TRUE | X33: =IF(ISBLANK(A33),TRUE,NOT(ISERROR(MATCH(B33,'Look Up Tables'!$B$11:$B$510,0)))) -> TRUE | Y33: =IF(ISBLANK(A33),TRUE,NOT(ISERROR(MATCH(C33,'Look Up Tables'!$L$11:$L$510,0)))) -> TRUE
O34: FALSE | W34: =IF(ISBLANK(A34),TRUE,NOT(ISERROR(MATCH(A34,'Look Up Tables'!$A$11:$A$510,0)))) -> TRUE | X34: =IF(ISBLANK(A34),TRUE,NOT(ISERROR(MATCH(B34,'Look Up Tables'!$B$11:$B$510,0)))) -> TRUE | Y34: =IF(ISBLANK(A34),TRUE,NOT(ISERROR(MATCH(C34,'Look Up Tables'!$L$11:$L$510,0)))) -> TRUE
O35: FALSE | W35: =IF(ISBLANK(A35),TRUE,NOT(ISERROR(MATCH(A35,'Look Up Tables'!$A$11:$A$510,0)))) -> TRUE | X35: =IF(ISBLANK(A35),TRUE,NOT(ISERROR(MATCH(B35,'Look Up Tables'!$B$11:$B$510,0)))) -> TRUE | Y35: =IF(ISBLANK(A35),TRUE,NOT(ISERROR(MATCH(C35,'Look Up Tables'!$L$11:$L$510,0)))) -> TRUE
O36: FALSE | W36: =IF(ISBLANK(A36),TRUE,NOT(ISERROR(MATCH(A36,'Look Up Tables'!$A$11:$A$510,0)))) -> TRUE | X36: =IF(ISBLANK(A36),TRUE,NOT(ISERROR(MATCH(B36,'Look Up Tables'!$B$11:$B$510,0)))) -> TRUE | Y36: =IF(ISBLANK(A36),TRUE,NOT(ISERROR(MATCH(C36,'Look Up Tables'!$L$11:$L$510,0)))) -> TRUE
O37: FALSE | W37: =IF(ISBLANK(A37),TRUE,NOT(ISERROR(MATCH(A37,'Look Up Tables'!$A$11:$A$510,0)))) -> TRUE | X37: =IF(ISBLANK(A37),TRUE,NOT(ISERROR(MATCH(B37,'Look Up Tables'!$B$11:$B$510,0)))) -> TRUE | Y37: =IF(ISBLANK(A37),TRUE,NOT(ISERROR(MATCH(C37,'Look Up Tables'!$L$11:$L$510,0)))) -> TRUE
O38: FALSE | W38: =IF(ISBLANK(A38),TRUE,NOT(ISERROR(MATCH(A38,'Look Up Tables'!$A$11:$A$510,0)))) -> TRUE | X38: =IF(ISBLANK(A38),TRUE,NOT(ISERROR(MATCH(B38,'Look Up Tables'!$B$11:$B$510,0)))) -> TRUE | Y38: =IF(ISBLANK(A38),TRUE,NOT(ISERROR(MATCH(C38,'Look Up Tables'!$L$11:$L$510,0)))) -> TRUE
O39: FALSE | W39: =IF(ISBLANK(A39),TRUE,NOT(ISERROR(MATCH(A39,'Look Up Tables'!$A$11:$A$510,0)))) -> TRUE | X39: =IF(ISBLANK(A39),TRUE,NOT(ISERROR(MATCH(B39,'Look Up Tables'!$B$11:$B$510,0)))) -> TRUE | Y39: =IF(ISBLANK(A39),TRUE,NOT(ISERROR(MATCH(C39,'Look Up Tables'!$L$11:$L$510,0)))) -> TRUE
O40: FALSE | W40: =IF(ISBLANK(A40),TRUE,NOT(ISERROR(MATCH(A40,'Look Up Tables'!$A$11:$A$510,0)))) -> TRUE | X40: =IF(ISBLANK(A40),TRUE,NOT(ISERROR(MATCH(B40,'Look Up Tables'!$B$11:$B$510,0)))) -> TRUE | Y40: =IF(ISBLANK(A40),TRUE,NOT(ISERROR(MATCH(C40,'Look Up Tables'!$L$11:$L$510,0)))) -> TRUE
O41: FALSE | W41: =IF(ISBLANK(A41),TRUE,NOT(ISERROR(MATCH(A41,'Look Up Tables'!$A$11:$A$510,0)))) -> TRUE | X41: =IF(ISBLANK(A41),TRUE,NOT(ISERROR(MATCH(B41,'Look Up Tables'!$B$11:$B$510,0)))) -> TRUE | Y41: =IF(ISBLANK(A41),TRUE,NOT(ISERROR(MATCH(C41,'Look Up Tables'!$L$11:$L$510,0)))) -> TRUE
O42: FALSE | W42: =IF(ISBLANK(A42),TRUE,NOT(ISERROR(MATCH(A42,'Look Up Tables'!$A$11:$A$510,0)))) -> TRUE | X42: =IF(ISBLANK(A42),TRUE,NOT(ISERROR(MATCH(B42,'Look Up Tables'!$B$11:$B$510,0)))) -> TRUE | Y42: =IF(ISBLANK(A42),TRUE,NOT(ISERROR(MATCH(C42,'Look Up Tables'!$L$11:$L$510,0)))) -> TRUE
O43: FALSE | W43: =IF(ISBLANK(A43),TRUE,NOT(ISERROR(MATCH(A43,'Look Up Tables'!$A$11:$A$510,0)))) -> TRUE | X43: =IF(ISBLANK(A43),TRUE,NOT(ISERROR(MATCH(B43,'Look Up Tables'!$B$11:$B$510,0)))) -> TRUE | Y43: =IF(ISBLANK(A43),TRUE,NOT(ISERROR(MATCH(C43,'Look Up Tables'!$L$11:$L$510,0)))) -> TRUE
O44: FALSE | W44: =IF(ISBLANK(A44),TRUE,NOT(ISERROR(MATCH(A44,'Look Up Tables'!$A$11:$A$510,0)))) -> TRUE | X44: =IF(ISBLANK(A44),TRUE,NOT(ISERROR(MATCH(B44,'Look Up Tables'!$B$11:$B$510,0)))) -> TRUE | Y44: =IF(ISBLANK(A44),TRUE,NOT(ISERROR(MATCH(C44,'Look Up Tables'!$L$11:$L$510,0)))) -> TRUE
O45: FALSE | W45: =IF(ISBLANK(A45),TRUE,NOT(ISERROR(MATCH(A45,'Look Up Tables'!$A$11:$A$510,0)))) -> TRUE | X45: =IF(ISBLANK(A45),TRUE,NOT(ISERROR(MATCH(B45,'Look Up Tables'!$B$11:$B$510,0)))) -> TRUE | Y45: =IF(ISBLANK(A45),TRUE,NOT(ISERROR(MATCH(C45,'Look Up Tables'!$L$11:$L$510,0)))) -> TRUE
O46: FALSE | W46: =IF(ISBLANK(A46),TRUE,NOT(ISERROR(MATCH(A46,'Look Up Tables'!$A$11:$A$510,0)))) -> TRUE | X46: =IF(ISBLANK(A46),TRUE,NOT(ISERROR(MATCH(B46,'Look Up Tables'!$B$11:$B$510,0)))) -> TRUE | Y46: =IF(ISBLANK(A46),TRUE,NOT(ISERROR(MATCH(C46,'Look Up Tables'!$L$11:$L$510,0)))) -> TRUE
O47: FALSE | W47: =IF(ISBLANK(A47),TRUE,NOT(ISERROR(MATCH(A47,'Look Up Tables'!$A$11:$A$510,0)))) -> TRUE | X47: =IF(ISBLANK(A47),TRUE,NOT(ISERROR(MATCH(B47,'Look Up Tables'!$B$11:$B$510,0)))) -> TRUE | Y47: =IF(ISBLANK(A47),TRUE,NOT(ISERROR(MATCH(C47,'Look Up Tables'!$L$11:$L$510,0)))) -> TRUE
O48: FALSE | W48: =IF(ISBLANK(A48),TRUE,NOT(ISERROR(MATCH(A48,'Look Up Tables'!$A$11:$A$510,0)))) -> TRUE | X48: =IF(ISBLANK(A48),TRUE,NOT(ISERROR(MATCH(B48,'Look Up Tables'!$B$11:$B$510,0)))) -> TRUE | Y48: =IF(ISBLANK(A48),TRUE,NOT(ISERROR(MATCH(C48,'Look Up Tables'!$L$11:$L$510,0)))) -> TRUE
O49: FALSE | W49: =IF(ISBLANK(A49),TRUE,NOT(ISERROR(MATCH(A49,'Look Up Tables'!$A$11:$A$510,0)))) -> TRUE | X49: =IF(ISBLANK(A49),TRUE,NOT(ISERROR(MATCH(B49,'Look Up Tables'!$B$11:$B$510,0)))) -> TRUE | Y49: =IF(ISBLANK(A49),TRUE,NOT(ISERROR(MATCH(C49,'Look Up Tables'!$L$11:$L$510,0)))) -> TRUE
O50: FALSE | W50: =IF(ISBLANK(A50),TRUE,NOT(ISERROR(MATCH(A50,'Look Up Tables'!$A$11:$A$510,0)))) -> TRUE | X50: =IF(ISBLANK(A50),TRUE,NOT(ISERROR(MATCH(B50,'Look Up Tables'!$B$11:$B$510,0)))) -> TRUE | Y50: =IF(ISBLANK(A50),TRUE,NOT(ISERROR(MATCH(C50,'Look Up Tables'!$L$11:$L$510,0)))) -> TRUE
O51: FALSE | W51: =IF(ISBLANK(A51),TRUE,NOT(ISERROR(MATCH(A51,'Look Up Tables'!$A$11:$A$510,0)))) -> TRUE | X51: =IF(ISBLANK(A51),TRUE,NOT(ISERROR(MATCH(B51,'Look Up Tables'!$B$11:$B$510,0)))) -> TRUE | Y51: =IF(ISBLANK(A51),TRUE,NOT(ISERROR(MATCH(C51,'Look Up Tables'!$L$11:$L$510,0)))) -> TRUE
O52: FALSE | W52: =IF(ISBLANK(A52),TRUE,NOT(ISERROR(MATCH(A52,'Look Up Tables'!$A$11:$A$510,0)))) -> TRUE | X52: =IF(ISBLANK(A52),TRUE,NOT(ISERROR(MATCH(B52,'Look Up Tables'!$B$11:$B$510,0)))) -> TRUE | Y52: =IF(ISBLANK(A52),TRUE,NOT(ISERROR(MATCH(C52,'Look Up Tables'!$L$11:$L$510,0)))) -> TRUE
O53: FALSE | W53: =IF(ISBLANK(A53),TRUE,NOT(ISERROR(MATCH(A53,'Look Up Tables'!$A$11:$A$510,0)))) -> TRUE | X53: =IF(ISBLANK(A53),TRUE,NOT(ISERROR(MATCH(B53,'Look Up Tables'!$B$11:$B$510,0)))) -> TRUE | Y53: =IF(ISBLANK(A53),TRUE,NOT(ISERROR(MATCH(C53,'Look Up Tables'!$L$11:$L$510,0)))) -> TRUE
O54: FALSE | W54: =IF(ISBLANK(A54),TRUE,NOT(ISERROR(MATCH(A54,'Look Up Tables'!$A$11:$A$510,0)))) -> TRUE | X54: =IF(ISBLANK(A54),TRUE,NOT(ISERROR(MATCH(B54,'Look Up Tables'!$B$11:$B$510,0)))) -> TRUE | Y54: =IF(ISBLANK(A54),TRUE,NOT(ISERROR(MATCH(C54,'Look Up Tables'!$L$11:$L$510,0)))) -> TRUE
O55: FALSE | W55: =IF(ISBLANK(A55),TRUE,NOT(ISERROR(MATCH(A55,'Look Up Tables'!$A$11:$A$510,0)))) -> TRUE | X55: =IF(ISBLANK(A55),TRUE,NOT(ISERROR(MATCH(B55,'Look Up Tables'!$B$11:$B$510,0)))) -> TRUE | Y55: =IF(ISBLANK(A55),TRUE,NOT(ISERROR(MATCH(C55,'Look Up Tables'!$L$11:$L$510,0)))) -> TRUE
O56: FALSE | W56: =IF(ISBLANK(A56),TRUE,NOT(ISERROR(MATCH(A56,'Look Up Tables'!$A$11:$A$510,0)))) -> TRUE | X56: =IF(ISBLANK(A56),TRUE,NOT(ISERROR(MATCH(B56,'Look Up Tables'!$B$11:$B$510,0)))) -> TRUE | Y56: =IF(ISBLANK(A56),TRUE,NOT(ISERROR(MATCH(C56,'Look Up Tables'!$L$11:$L$510,0)))) -> TRUE
O57: FALSE | W57: =IF(ISBLANK(A57),TRUE,NOT(ISERROR(MATCH(A57,'Look Up Tables'!$A$11:$A$510,0)))) -> TRUE | X57: =IF(ISBLANK(A57),TRUE,NOT(ISERROR(MATCH(B57,'Look Up Tables'!$B$11:$B$510,0)))) -> TRUE | Y57: =IF(ISBLANK(A57),TRUE,NOT(ISERROR(MATCH(C57,'Look Up Tables'!$L$11:$L$510,0)))) -> TRUE
O58: FALSE | W58: =IF(ISBLANK(A58),TRUE,NOT(ISERROR(MATCH(A58,'Look Up Tables'!$A$11:$A$510,0)))) -> TRUE | X58: =IF(ISBLANK(A58),TRUE,NOT(ISERROR(MATCH(B58,'Look Up Tables'!$B$11:$B$510,0)))) -> TRUE | Y58: =IF(ISBLANK(A58),TRUE,NOT(ISERROR(MATCH(C58,'Look Up Tables'!$L$11:$L$510,0)))) -> TRUE
O59: FALSE | W59: =IF(ISBLANK(A59),TRUE,NOT(ISERROR(MATCH(A59,'Look Up Tables'!$A$11:$A$510,0)))) -> TRUE | X59: =IF(ISBLANK(A59),TRUE,NOT(ISERROR(MATCH(B59,'Look Up Tables'!$B$11:$B$510,0)))) -> TRUE | Y59: =IF(ISBLANK(A59),TRUE,NOT(ISERROR(MATCH(C59,'Look Up Tables'!$L$11:$L$510,0)))) -> TRUE
O60: FALSE | W60: =IF(ISBLANK(A60),TRUE,NOT(ISERROR(MATCH(A60,'Look Up Tables'!$A$11:$A$510,0)))) -> TRUE | X60: =IF(ISBLANK(A60),TRUE,NOT(ISERROR(MATCH(B60,'Look Up Tables'!$B$11:$B$510,0)))) -> TRUE | Y60: =IF(ISBLANK(A60),TRUE,NOT(ISERROR(MATCH(C60,'Look Up Tables'!$L$11:$L$510,0)))) -> TRUE
O61: FALSE | W61: =IF(ISBLANK(A61),TRUE,NOT(ISERROR(MATCH(A61,'Look Up Tables'!$A$11:$A$510,0)))) -> TRUE | X61: =IF(ISBLANK(A61),TRUE,NOT(ISERROR(MATCH(B61,'Look Up Tables'!$B$11:$B$510,0)))) -> TRUE | Y61: =IF(ISBLANK(A61),TRUE,NOT(ISERROR(MATCH(C61,'Look Up Tables'!$L$11:$L$510,0)))) -> TRUE
O62: FALSE | W62: =IF(ISBLANK(A62),TRUE,NOT(ISERROR(MATCH(A62,'Look Up Tables'!$A$11:$A$510,0)))) -> TRUE | X62: =IF(ISBLANK(A62),TRUE,NOT(ISERROR(MATCH(B62,'Look Up Tables'!$B$11:$B$510,0)))) -> TRUE | Y62: =IF(ISBLANK(A62),TRUE,NOT(ISERROR(MATCH(C62,'Look Up Tables'!$L$11:$L$510,0)))) -> TRUE
... 77 more rows

Sheet Scheme_Volume_Mock_Up
A1: Sheet: | B1: Scheme Volumes | D1: Data Type: | E1: Volumes | G1: Checks: | H1: ='Checks Sheet'!$C$49 -> All checks passing
A3: Sheet Description:
A4: Scheme Volume Data company inputs sheet.
A6: Key
A7: Select from dropdown | B7: Free Entry | C7: Auto Populated | D7: Check Cell | E7: Lookup Data
A9: Actuals | W9: =AND(W17:W10016) -> TRUE | X9: =AND(X17:X10016) -> TRUE
A11: descriptor_1 | B11: descriptor_2 | C11: descriptor_3 | D11: descriptor_4 | E11: descriptor_5 | F11: descriptor_6 | G11: descriptor_7 | H11: descriptor_8 | I11: descriptor_9 | J11: descriptor_10 | L11: value_1 | M11: value_2 | N11: value_3 | O11: value_4 | P11: value_4 | Q11: value_6 | R11: value_7 | S11: value_8 | T11: value_9 | U11: value_10 | W11: Checks | Z11: Customer Contributions (baseline)
Z12: Customer Contributions (other)
Z13: One-off contribution
A16: Scheme Reference | B16: Asset heading | C16: Asset Category | D16: Asset Sub-Category Primary | E16: Asset Sub-Category Secondary | F16: Voltage / rating | G16: Intervention | H16: Volume Measure | I16: License Term | J16: Units | L16: Volume | M16: Delivery Year | N16: Delivery Period | O16: Forecast energisation year | P16: Actual energisation year | Q16: Spare4 | R16: Spare5 | S16: Spare6 | T16: Spare7 | U16: Narative / Associated Doc Reference | W16: Scheme Reference | X16: Asset inputs | Y16: Spare | AA16: Descriptor for checks
N17: =IF(M17="","",IF(M17<2022,"RIIO-1",IF(M17>2026,"RIIO-3","RIIO-2"))) ->  | W17: =IF(ISBLANK(A17),TRUE,NOT(ISERROR(MATCH(A17,'Look Up Tables'!$A$11:$A$510,0)))) -> TRUE | X17: =IF(ISBLANK(A17),TRUE,NOT(ISERROR(MATCH(AA17,'Asset Possibilitites'!$I$9:$I$449,0)))) -> TRUE | AA17: =Scheme_Volume[[#This Row],[Asset heading]]&Scheme_Volume[[#This Row],[Asset Category]]&Scheme_Volume[[#This Row],[Asset Sub-Category Primary]]&Scheme_Volume[[#This Row],[Voltage / rating]]&Scheme_Volume[[#This Row],[Units]] -> 
W18: =IF(ISBLANK(A18),TRUE,NOT(ISERROR(MATCH(A18,'Look Up Tables'!$A$11:$A$510,0)))) -> TRUE | X18: =IF(ISBLANK(A18),TRUE,NOT(ISERROR(MATCH(AA18,'Asset Possibilitites'!$I$9:$I$449,0)))) -> TRUE | AA18: =Scheme_Volume[[#This Row],[Asset heading]]&Scheme_Volume[[#This Row],[Asset Category]]&Scheme_Volume[[#This Row],[Asset Sub-Category Primary]]&Scheme_Volume[[#This Row],[Voltage / rating]]&Scheme_Volume[[#This Row],[Units]] -> 
W19: =IF(ISBLANK(A19),TRUE,NOT(ISERROR(MATCH(A19,'Look Up Tables'!$A$11:$A$510,0)))) -> TRUE | X19: =IF(ISBLANK(A19),TRUE,NOT(ISERROR(MATCH(AA19,'Asset Possibilitites'!$I$9:$I$449,0)))) -> TRUE | AA19: =Scheme_Volume[[#This Row],[Asset heading]]&Scheme_Volume[[#This Row],[Asset Category]]&Scheme_Volume[[#This Row],[Asset Sub-Category Primary]]&Scheme_Volume[[#This Row],[Voltage / rating]]&Scheme_Volume[[#This Row],[Units]] -> 
W20: =IF(ISBLANK(A20),TRUE,NOT(ISERROR(MATCH(A20,'Look Up Tables'!$A$11:$A$510,0)))) -> TRUE | X20: =IF(ISBLANK(A20),TRUE,NOT(ISERROR(MATCH(AA20,'Asset Possibilitites'!$I$9:$I$449,0)))) -> TRUE | AA20: =Scheme_Volume[[#This Row],[Asset heading]]&Scheme_Volume[[#This Row],[Asset Category]]&Scheme_Volume[[#This Row],[Asset Sub-Category Primary]]&Scheme_Volume[[#This Row],[Voltage / rating]]&Scheme_Volume[[#This Row],[Units]] -> 
W21: =IF(ISBLANK(A21),TRUE,NOT(ISERROR(MATCH(A21,'Look Up Tables'!$A$11:$A$510,0)))) -> TRUE | X21: =IF(ISBLANK(A21),TRUE,NOT(ISERROR(MATCH(AA21,'Asset Possibilitites'!$I$9:$I$449,0)))) -> TRUE | AA21: =Scheme_Volume[[#This Row],[Asset heading]]&Scheme_Volume[[#This Row],[Asset Category]]&Scheme_Volume[[#This Row],[Asset Sub-Category Primary]]&Scheme_Volume[[#This Row],[Voltage / rating]]&Scheme_Volume[[#This Row],[Units]] -> 
W22: =IF(ISBLANK(A22),TRUE,NOT(ISERROR(MATCH(A22,'Look Up Tables'!$A$11:$A$510,0)))) -> TRUE | X22: =IF(ISBLANK(A22),TRUE,NOT(ISERROR(MATCH(AA22,'Asset Possibilitites'!$I$9:$I$449,0)))) -> TRUE | AA22: =Scheme_Volume[[#This Row],[Asset heading]]&Scheme_Volume[[#This Row],[Asset Category]]&Scheme_Volume[[#This Row],[Asset Sub-Category Primary]]&Scheme_Volume[[#This Row],[Voltage / rating]]&Scheme_Volume[[#This Row],[Units]] -> 
W23: =IF(ISBLANK(A23),TRUE,NOT(ISERROR(MATCH(A23,'Look Up Tables'!$A$11:$A$510,0)))) -> TRUE | X23: =IF(ISBLANK(A23),TRUE,NOT(ISERROR(MATCH(AA23,'Asset Possibilitites'!$I$9:$I$449,0)))) -> TRUE | AA23: =Scheme_Volume[[#This Row],[Asset heading]]&Scheme_Volume[[#This Row],[Asset Category]]&Scheme_Volume[[#This Row],[Asset Sub-Category Primary]]&Scheme_Volume[[#This Row],[Voltage / rating]]&Scheme_Volume[[#This Row],[Units]] -> 
W24: =IF(ISBLANK(A24),TRUE,NOT(ISERROR(MATCH(A24,'Look Up Tables'!$A$11:$A$510,0)))) -> TRUE | X24: =IF(ISBLANK(A24),TRUE,NOT(ISERROR(MATCH(AA24,'Asset Possibilitites'!$I$9:$I$449,0)))) -> TRUE | AA24: =Scheme_Volume[[#This Row],[Asset heading]]&Scheme_Volume[[#This Row],[Asset Category]]&Scheme_Volume[[#This Row],[Asset Sub-Category Primary]]&Scheme_Volume[[#This Row],[Voltage / rating]]&Scheme_Volume[[#This Row],[Units]] -> 
W25: =IF(ISBLANK(A25),TRUE,NOT(ISERROR(MATCH(A25,'Look Up Tables'!$A$11:$A$510,0)))) -> TRUE | X25: =IF(ISBLANK(A25),TRUE,NOT(ISERROR(MATCH(AA25,'Asset Possibilitites'!$I$9:$I$449,0)))) -> TRUE | AA25: =Scheme_Volume[[#This Row],[Asset heading]]&Scheme_Volume[[#This Row],[Asset Category]]&Scheme_Volume[[#This Row],[Asset Sub-Category Primary]]&Scheme_Volume[[#This Row],[Voltage / rating]]&Scheme_Volume[[#This Row],[Units]] -> 
W26: =IF(ISBLANK(A26),TRUE,NOT(ISERROR(MATCH(A26,'Look Up Tables'!$A$11:$A$510,0)))) -> TRUE | X26: =IF(ISBLANK(A26),TRUE,NOT(ISERROR(MATCH(AA26,'Asset Possibilitites'!$I$9:$I$449,0)))) -> TRUE | AA26: =Scheme_Volume[[#This Row],[Asset heading]]&Scheme_Volume[[#This Row],[Asset Category]]&Scheme_Volume[[#This Row],[Asset Sub-Category Primary]]&Scheme_Volume[[#This Row],[Voltage / rating]]&Scheme_Volume[[#This Row],[Units]] -> 
W27: =IF(ISBLANK(A27),TRUE,NOT(ISERROR(MATCH(A27,'Look Up Tables'!$A$11:$A$510,0)))) -> TRUE | X27: =IF(ISBLANK(A27),TRUE,NOT(ISERROR(MATCH(AA27,'Asset Possibilitites'!$I$9:$I$449,0)))) -> TRUE | AA27: =Scheme_Volume[[#This Row],[Asset heading]]&Scheme_Volume[[#This Row],[Asset Category]]&Scheme_Volume[[#This Row],[Asset Sub-Category Primary]]&Scheme_Volume[[#This Row],[Voltage / rating]]&Scheme_Volume[[#This Row],[Units]] -> 
W28: =IF(ISBLANK(A28),TRUE,NOT(ISERROR(MATCH(A28,'Look Up Tables'!$A$11:$A$510,0)))) -> TRUE | X28: =IF(ISBLANK(A28),TRUE,NOT(ISERROR(MATCH(AA28,'Asset Possibilitites'!$I$9:$I$449,0)))) -> TRUE | AA28: =Scheme_Volume[[#This Row],[Asset heading]]&Scheme_Volume[[#This Row],[Asset Category]]&Scheme_Volume[[#This Row],[Asset Sub-Category Primary]]&Scheme_Volume[[#This Row],[Voltage / rating]]&Scheme_Volume[[#This Row],[Units]] -> 
W29: =IF(ISBLANK(A29),TRUE,NOT(ISERROR(MATCH(A29,'Look Up Tables'!$A$11:$A$510,0)))) -> TRUE | X29: =IF(ISBLANK(A29),TRUE,NOT(ISERROR(MATCH(AA29,'Asset Possibilitites'!$I$9:$I$449,0)))) -> TRUE | AA29: =Scheme_Volume[[#This Row],[Asset heading]]&Scheme_Volume[[#This Row],[Asset Category]]&Scheme_Volume[[#This Row],[Asset Sub-Category Primary]]&Scheme_Volume[[#This Row],[Voltage / rating]]&Scheme_Volume[[#This Row],[Units]] -> 
W30: =IF(ISBLANK(A30),TRUE,NOT(ISERROR(MATCH(A30,'Look Up Tables'!$A$11:$A$510,0)))) -> TRUE | X30: =IF(ISBLANK(A30),TRUE,NOT(ISERROR(MATCH(AA30,'Asset Possibilitites'!$I$9:$I$449,0)))) -> TRUE | AA30: =Scheme_Volume[[#This Row],[Asset heading]]&Scheme_Volume[[#This Row],[Asset Category]]&Scheme_Volume[[#This Row],[Asset Sub-Category Primary]]&Scheme_Volume[[#This Row],[Voltage / rating]]&Scheme_Volume[[#This Row],[Units]] -> 
W31: =IF(ISBLANK(A31),TRUE,NOT(ISERROR(MATCH(A31,'Look Up Tables'!$A$11:$A$510,0)))) -> TRUE | X31: =IF(ISBLANK(A31),TRUE,NOT(ISERROR(MATCH(AA31,'Asset Possibilitites'!$I$9:$I$449,0)))) -> TRUE | AA31: =Scheme_Volume[[#This Row],[Asset heading]]&Scheme_Volume[[#This Row],[Asset Category]]&Scheme_Volume[[#This Row],[Asset Sub-Category Primary]]&Scheme_Volume[[#This Row],[Voltage / rating]]&Scheme_Volume[[#This Row],[Units]] -> 
W32: =IF(ISBLANK(A32),TRUE,NOT(ISERROR(MATCH(A32,'Look Up Tables'!$A$11:$A$510,0)))) -> TRUE | X32: =IF(ISBLANK(A32),TRUE,NOT(ISERROR(MATCH(AA32,'Asset Possibilitites'!$I$9:$I$449,0)))) -> TRUE | AA32: =Scheme_Volume[[#This Row],[Asset heading]]&Scheme_Volume[[#This Row],[Asset Category]]&Scheme_Volume[[#This Row],[Asset Sub-Category Primary]]&Scheme_Volume[[#This Row],[Voltage / rating]]&Scheme_Volume[[#This Row],[Units]] -> 
W33: =IF(ISBLANK(A33),TRUE,NOT(ISERROR(MATCH(A33,'Look Up Tables'!$A$11:$A$510,0)))) -> TRUE | X33: =IF(ISBLANK(A33),TRUE,NOT(ISERROR(MATCH(AA33,'Asset Possibilitites'!$I$9:$I$449,0)))) -> TRUE | AA33: =Scheme_Volume[[#This Row],[Asset heading]]&Scheme_Volume[[#This Row],[Asset Category]]&Scheme_Volume[[#This Row],[Asset Sub-Category Primary]]&Scheme_Volume[[#This Row],[Voltage / rating]]&Scheme_Volume[[#This Row],[Units]] -> 
W34: =IF(ISBLANK(A34),TRUE,NOT(ISERROR(MATCH(A34,'Look Up Tables'!$A$11:$A$510,0)))) -> TRUE | X34: =IF(ISBLANK(A34),TRUE,NOT(ISERROR(MATCH(AA34,'Asset Possibilitites'!$I$9:$I$449,0)))) -> TRUE | AA34: =Scheme_Volume[[#This Row],[Asset heading]]&Scheme_Volume[[#This Row],[Asset Category]]&Scheme_Volume[[#This Row],[Asset Sub-Category Primary]]&Scheme_Volume[[#This Row],[Voltage / rating]]&Scheme_Volume[[#This Row],[Units]] -> 
W35: =IF(ISBLANK(A35),TRUE,NOT(ISERROR(MATCH(A35,'Look Up Tables'!$A$11:$A$510,0)))) -> TRUE | X35: =IF(ISBLANK(A35),TRUE,NOT(ISERROR(MATCH(AA35,'Asset Possibilitites'!$I$9:$I$449,0)))) -> TRUE | AA35: =Scheme_Volume[[#This Row],[Asset heading]]&Scheme_Volume[[#This Row],[Asset Category]]&Scheme_Volume[[#This Row],[Asset Sub-Category Primary]]&Scheme_Volume[[#This Row],[Voltage / rating]]&Scheme_Volume[[#This Row],[Units]] -> 
W36: =IF(ISBLANK(A36),TRUE,NOT(ISERROR(MATCH(A36,'Look Up Tables'!$A$11:$A$510,0)))) -> TRUE | X36: =IF(ISBLANK(A36),TRUE,NOT(ISERROR(MATCH(AA36,'Asset Possibilitites'!$I$9:$I$449,0)))) -> TRUE | AA36: =Scheme_Volume[[#This Row],[Asset heading]]&Scheme_Volume[[#This Row],[Asset Category]]&Scheme_Volume[[#This Row],[Asset Sub-Category Primary]]&Scheme_Volume[[#This Row],[Voltage / rating]]&Scheme_Volume[[#This Row],[Units]] -> 
W37: =IF(ISBLANK(A37),TRUE,NOT(ISERROR(MATCH(A37,'Look Up Tables'!$A$11:$A$510,0)))) -> TRUE | X37: =IF(ISBLANK(A37),TRUE,NOT(ISERROR(MATCH(AA37,'Asset Possibilitites'!$I$9:$I$449,0)))) -> TRUE | AA37: =Scheme_Volume[[#This Row],[Asset heading]]&Scheme_Volume[[#This Row],[Asset Category]]&Scheme_Volume[[#This Row],[Asset Sub-Category Primary]]&Scheme_Volume[[#This Row],[Voltage / rating]]&Scheme_Volume[[#This Row],[Units]] -> 
W38: =IF(ISBLANK(A38),TRUE,NOT(ISERROR(MATCH(A38,'Look Up Tables'!$A$11:$A$510,0)))) -> TRUE | X38: =IF(ISBLANK(A38),TRUE,NOT(ISERROR(MATCH(AA38,'Asset Possibilitites'!$I$9:$I$449,0)))) -> TRUE | AA38: =Scheme_Volume[[#This Row],[Asset heading]]&Scheme_Volume[[#This Row],[Asset Category]]&Scheme_Volume[[#This Row],[Asset Sub-Category Primary]]&Scheme_Volume[[#This Row],[Voltage / rating]]&Scheme_Volume[[#This Row],[Units]] -> 
W39: =IF(ISBLANK(A39),TRUE,NOT(ISERROR(MATCH(A39,'Look Up Tables'!$A$11:$A$510,0)))) -> TRUE | X39: =IF(ISBLANK(A39),TRUE,NOT(ISERROR(MATCH(AA39,'Asset Possibilitites'!$I$9:$I$449,0)))) -> TRUE | AA39: =Scheme_Volume[[#This Row],[Asset heading]]&Scheme_Volume[[#This Row],[Asset Category]]&Scheme_Volume[[#This Row],[Asset Sub-Category Primary]]&Scheme_Volume[[#This Row],[Voltage / rating]]&Scheme_Volume[[#This Row],[Units]] -> 
W40: =IF(ISBLANK(A40),TRUE,NOT(ISERROR(MATCH(A40,'Look Up Tables'!$A$11:$A$510,0)))) -> TRUE | X40: =IF(ISBLANK(A40),TRUE,NOT(ISERROR(MATCH(AA40,'Asset Possibilitites'!$I$9:$I$449,0)))) -> TRUE | AA40: =Scheme_Volume[[#This Row],[Asset heading]]&Scheme_Volume[[#This Row],[Asset Category]]&Scheme_Volume[[#This Row],[Asset Sub-Category Primary]]&Scheme_Volume[[#This Row],[Voltage / rating]]&Scheme_Volume[[#This Row],[Units]] -> 
W41: =IF(ISBLANK(A41),TRUE,NOT(ISERROR(MATCH(A41,'Look Up Tables'!$A$11:$A$510,0)))) -> TRUE | X41: =IF(ISBLANK(A41),TRUE,NOT(ISERROR(MATCH(AA41,'Asset Possibilitites'!$I$9:$I$449,0)))) -> TRUE | AA41: =Scheme_Volume[[#This Row],[Asset heading]]&Scheme_Volume[[#This Row],[Asset Category]]&Scheme_Volume[[#This Row],[Asset Sub-Category Primary]]&Scheme_Volume[[#This Row],[Voltage / rating]]&Scheme_Volume[[#This Row],[Units]] -> 
W42: =IF(ISBLANK(A42),TRUE,NOT(ISERROR(MATCH(A42,'Look Up Tables'!$A$11:$A$510,0)))) -> TRUE | X42: =IF(ISBLANK(A42),TRUE,NOT(ISERROR(MATCH(AA42,'Asset Possibilitites'!$I$9:$I$449,0)))) -> TRUE | AA42: =Scheme_Volume[[#This Row],[Asset heading]]&Scheme_Volume[[#This Row],[Asset Category]]&Scheme_Volume[[#This Row],[Asset Sub-Category Primary]]&Scheme_Volume[[#This Row],[Voltage / rating]]&Scheme_Volume[[#This Row],[Units]] -> 
W43: =IF(ISBLANK(A43),TRUE,NOT(ISERROR(MATCH(A43,'Look Up Tables'!$A$11:$A$510,0)))) -> TRUE | X43: =IF(ISBLANK(A43),TRUE,NOT(ISERROR(MATCH(AA43,'Asset Possibilitites'!$I$9:$I$449,0)))) -> TRUE | AA43: =Scheme_Volume[[#This Row],[Asset heading]]&Scheme_Volume[[#This Row],[Asset Category]]&Scheme_Volume[[#This Row],[Asset Sub-Category Primary]]&Scheme_Volume[[#This Row],[Voltage / rating]]&Scheme_Volume[[#This Row],[Units]] -> 
W44: =IF(ISBLANK(A44),TRUE,NOT(ISERROR(MATCH(A44,'Look Up Tables'!$A$11:$A$510,0)))) -> TRUE | X44: =IF(ISBLANK(A44),TRUE,NOT(ISERROR(MATCH(AA44,'Asset Possibilitites'!$I$9:$I$449,0)))) -> TRUE | AA44: =Scheme_Volume[[#This Row],[Asset heading]]&Scheme_Volume[[#This Row],[Asset Category]]&Scheme_Volume[[#This Row],[Asset Sub-Category Primary]]&Scheme_Volume[[#This Row],[Voltage / rating]]&Scheme_Volume[[#This Row],[Units]] -> 
W45: =IF(ISBLANK(A45),TRUE,NOT(ISERROR(MATCH(A45,'Look Up Tables'!$A$11:$A$510,0)))) -> TRUE | X45: =IF(ISBLANK(A45),TRUE,NOT(ISERROR(MATCH(AA45,'Asset Possibilitites'!$I$9:$I$449,0)))) -> TRUE | AA45: =Scheme_Volume[[#This Row],[Asset heading]]&Scheme_Volume[[#This Row],[Asset Category]]&Scheme_Volume[[#This Row],[Asset Sub-Category Primary]]&Scheme_Volume[[#This Row],[Voltage / rating]]&Scheme_Volume[[#This Row],[Units]] -> 
W46: =IF(ISBLANK(A46),TRUE,NOT(ISERROR(MATCH(A46,'Look Up Tables'!$A$11:$A$510,0)))) -> TRUE | X46: =IF(ISBLANK(A46),TRUE,NOT(ISERROR(MATCH(AA46,'Asset Possibilitites'!$I$9:$I$449,0)))) -> TRUE | AA46: =Scheme_Volume[[#This Row],[Asset heading]]&Scheme_Volume[[#This Row],[Asset Category]]&Scheme_Volume[[#This Row],[Asset Sub-Category Primary]]&Scheme_Volume[[#This Row],[Voltage / rating]]&Scheme_Volume[[#This Row],[Units]] -> 
W47: =IF(ISBLANK(A47),TRUE,NOT(ISERROR(MATCH(A47,'Look Up Tables'!$A$11:$A$510,0)))) -> TRUE | X47: =IF(ISBLANK(A47),TRUE,NOT(ISERROR(MATCH(AA47,'Asset Possibilitites'!$I$9:$I$449,0)))) -> TRUE | AA47: =Scheme_Volume[[#This Row],[Asset heading]]&Scheme_Volume[[#This Row],[Asset Category]]&Scheme_Volume[[#This Row],[Asset Sub-Category Primary]]&Scheme_Volume[[#This Row],[Voltage / rating]]&Scheme_Volume[[#This Row],[Units]] -> 
W48: =IF(ISBLANK(A48),TRUE,NOT(ISERROR(MATCH(A48,'Look Up Tables'!$A$11:$A$510,0)))) -> TRUE | X48: =IF(ISBLANK(A48),TRUE,NOT(ISERROR(MATCH(AA48,'Asset Possibilitites'!$I$9:$I$449,0)))) -> TRUE | AA48: =Scheme_Volume[[#This Row],[Asset heading]]&Scheme_Volume[[#This Row],[Asset Category]]&Scheme_Volume[[#This Row],[Asset Sub-Category Primary]]&Scheme_Volume[[#This Row],[Voltage / rating]]&Scheme_Volume[[#This Row],[Units]] -> 
W49: =IF(ISBLANK(A49),TRUE,NOT(ISERROR(MATCH(A49,'Look Up Tables'!$A$11:$A$510,0)))) -> TRUE | X49: =IF(ISBLANK(A49),TRUE,NOT(ISERROR(MATCH(AA49,'Asset Possibilitites'!$I$9:$I$449,0)))) -> TRUE | AA49: =Scheme_Volume[[#This Row],[Asset heading]]&Scheme_Volume[[#This Row],[Asset Category]]&Scheme_Volume[[#This Row],[Asset Sub-Category Primary]]&Scheme_Volume[[#This Row],[Voltage / rating]]&Scheme_Volume[[#This Row],[Units]] -> 
W50: =IF(ISBLANK(A50),TRUE,NOT(ISERROR(MATCH(A50,'Look Up Tables'!$A$11:$A$510,0)))) -> TRUE | X50: =IF(ISBLANK(A50),TRUE,NOT(ISERROR(MATCH(AA50,'Asset Possibilitites'!$I$9:$I$449,0)))) -> TRUE | AA50: =Scheme_Volume[[#This Row],[Asset heading]]&Scheme_Volume[[#This Row],[Asset Category]]&Scheme_Volume[[#This Row],[Asset Sub-Category Primary]]&Scheme_Volume[[#This Row],[Voltage / rating]]&Scheme_Volume[[#This Row],[Units]] -> 
W51: =IF(ISBLANK(A51),TRUE,NOT(ISERROR(MATCH(A51,'Look Up Tables'!$A$11:$A$510,0)))) -> TRUE | X51: =IF(ISBLANK(A51),TRUE,NOT(ISERROR(MATCH(AA51,'Asset Possibilitites'!$I$9:$I$449,0)))) -> TRUE | AA51: =Scheme_Volume[[#This Row],[Asset heading]]&Scheme_Volume[[#This Row],[Asset Category]]&Scheme_Volume[[#This Row],[Asset Sub-Category Primary]]&Scheme_Volume[[#This Row],[Voltage / rating]]&Scheme_Volume[[#This Row],[Units]] -> 
W52: =IF(ISBLANK(A52),TRUE,NOT(ISERROR(MATCH(A52,'Look Up Tables'!$A$11:$A$510,0)))) -> TRUE | X52: =IF(ISBLANK(A52),TRUE,NOT(ISERROR(MATCH(AA52,'Asset Possibilitites'!$I$9:$I$449,0)))) -> TRUE | AA52: =Scheme_Volume[[#This Row],[Asset heading]]&Scheme_Volume[[#This Row],[Asset Category]]&Scheme_Volume[[#This Row],[Asset Sub-Category Primary]]&Scheme_Volume[[#This Row],[Voltage / rating]]&Scheme_Volume[[#This Row],[Units]] -> 
W53: =IF(ISBLANK(A53),TRUE,NOT(ISERROR(MATCH(A53,'Look Up Tables'!$A$11:$A$510,0)))) -> TRUE | X53: =IF(ISBLANK(A53),TRUE,NOT(ISERROR(MATCH(AA53,'Asset Possibilitites'!$I$9:$I$449,0)))) -> TRUE | AA53: =Scheme_Volume[[#This Row],[Asset heading]]&Scheme_Volume[[#This Row],[Asset Category]]&Scheme_Volume[[#This Row],[Asset Sub-Category Primary]]&Scheme_Volume[[#This Row],[Voltage / rating]]&Scheme_Volume[[#This Row],[Units]] -> 
W54: =IF(ISBLANK(A54),TRUE,NOT(ISERROR(MATCH(A54,'Look Up Tables'!$A$11:$A$510,0)))) -> TRUE | X54: =IF(ISBLANK(A54),TRUE,NOT(ISERROR(MATCH(AA54,'Asset Possibilitites'!$I$9:$I$449,0)))) -> TRUE | AA54: =Scheme_Volume[[#This Row],[Asset heading]]&Scheme_Volume[[#This Row],[Asset Category]]&Scheme_Volume[[#This Row],[Asset Sub-Category Primary]]&Scheme_Volume[[#This Row],[Voltage / rating]]&Scheme_Volume[[#This Row],[Units]] -> 
W55: =IF(ISBLANK(A55),TRUE,NOT(ISERROR(MATCH(A55,'Look Up Tables'!$A$11:$A$510,0)))) -> TRUE | X55: =IF(ISBLANK(A55),TRUE,NOT(ISERROR(MATCH(AA55,'Asset Possibilitites'!$I$9:$I$449,0)))) -> TRUE | AA55: =Scheme_Volume[[#This Row],[Asset heading]]&Scheme_Volume[[#This Row],[Asset Category]]&Scheme_Volume[[#This Row],[Asset Sub-Category Primary]]&Scheme_Volume[[#This Row],[Voltage / rating]]&Scheme_Volume[[#This Row],[Units]] -> 
W56: =IF(ISBLANK(A56),TRUE,NOT(ISERROR(MATCH(A56,'Look Up Tables'!$A$11:$A$510,0)))) -> TRUE | X56: =IF(ISBLANK(A56),TRUE,NOT(ISERROR(MATCH(AA56,'Asset Possibilitites'!$I$9:$I$449,0)))) -> TRUE | AA56: =Scheme_Volume[[#This Row],[Asset heading]]&Scheme_Volume[[#This Row],[Asset Category]]&Scheme_Volume[[#This Row],[Asset Sub-Category Primary]]&Scheme_Volume[[#This Row],[Voltage / rating]]&Scheme_Volume[[#This Row],[Units]] -> 
W57: =IF(ISBLANK(A57),TRUE,NOT(ISERROR(MATCH(A57,'Look Up Tables'!$A$11:$A$510,0)))) -> TRUE | X57: =IF(ISBLANK(A57),TRUE,NOT(ISERROR(MATCH(AA57,'Asset Possibilitites'!$I$9:$I$449,0)))) -> TRUE | AA57: =Scheme_Volume[[#This Row],[Asset heading]]&Scheme_Volume[[#This Row],[Asset Category]]&Scheme_Volume[[#This Row],[Asset Sub-Category Primary]]&Scheme_Volume[[#This Row],[Voltage / rating]]&Scheme_Volume[[#This Row],[Units]] -> 
W58: =IF(ISBLANK(A58),TRUE,NOT(ISERROR(MATCH(A58,'Look Up Tables'!$A$11:$A$510,0)))) -> TRUE | X58: =IF(ISBLANK(A58),TRUE,NOT(ISERROR(MATCH(AA58,'Asset Possibilitites'!$I$9:$I$449,0)))) -> TRUE | AA58: =Scheme_Volume[[#This Row],[Asset heading]]&Scheme_Volume[[#This Row],[Asset Category]]&Scheme_Volume[[#This Row],[Asset Sub-Category Primary]]&Scheme_Volume[[#This Row],[Voltage / rating]]&Scheme_Volume[[#This Row],[Units]] -> 
W59: =IF(ISBLANK(A59),TRUE,NOT(ISERROR(MATCH(A59,'Look Up Tables'!$A$11:$A$510,0)))) -> TRUE | X59: =IF(ISBLANK(A59),TRUE,NOT(ISERROR(MATCH(AA59,'Asset Possibilitites'!$I$9:$I$449,0)))) -> TRUE | AA59: =Scheme_Volume[[#This Row],[Asset heading]]&Scheme_Volume[[#This Row],[Asset Category]]&Scheme_Volume[[#This Row],[Asset Sub-Category Primary]]&Scheme_Volume[[#This Row],[Voltage / rating]]&Scheme_Volume[[#This Row],[Units]] -> 
W60: =IF(ISBLANK(A60),TRUE,NOT(ISERROR(MATCH(A60,'Look Up Tables'!$A$11:$A$510,0)))) -> TRUE | X60: =IF(ISBLANK(A60),TRUE,NOT(ISERROR(MATCH(AA60,'Asset Possibilitites'!$I$9:$I$449,0)))) -> TRUE | AA60: =Scheme_Volume[[#This Row],[Asset heading]]&Scheme_Volume[[#This Row],[Asset Category]]&Scheme_Volume[[#This Row],[Asset Sub-Category Primary]]&Scheme_Volume[[#This Row],[Voltage / rating]]&Scheme_Volume[[#This Row],[Units]] -> 
W61: =IF(ISBLANK(A61),TRUE,NOT(ISERROR(MATCH(A61,'Look Up Tables'!$A$11:$A$510,0)))) -> TRUE | X61: =IF(ISBLANK(A61),TRUE,NOT(ISERROR(MATCH(AA61,'Asset Possibilitites'!$I$9:$I$449,0)))) -> TRUE | AA61: =Scheme_Volume[[#This Row],[Asset heading]]&Scheme_Volume[[#This Row],[Asset Category]]&Scheme_Volume[[#This Row],[Asset Sub-Category Primary]]&Scheme_Volume[[#This Row],[Voltage / rating]]&Scheme_Volume[[#This Row],[Units]] -> 
W62: =IF(ISBLANK(A62),TRUE,NOT(ISERROR(MATCH(A62,'Look Up Tables'!$A$11:$A$510,0)))) -> TRUE | X62: =IF(ISBLANK(A62),TRUE,NOT(ISERROR(MATCH(AA62,'Asset Possibilitites'!$I$9:$I$449,0)))) -> TRUE | AA62: =Scheme_Volume[[#This Row],[Asset heading]]&Scheme_Volume[[#This Row],[Asset Category]]&Scheme_Volume[[#This Row],[Asset Sub-Category Primary]]&Scheme_Volume[[#This Row],[Voltage / rating]]&Scheme_Volume[[#This Row],[Units]] -> 
... 77 more rows

Sheet Scheme_Cost_Mock_Up
A1: Sheet: | B1: Scheme Costs | D1: Data Type: | E1: Costs | G1: Checks: | H1: ='Checks Sheet'!$C$49 -> All checks passing
A2: Prices Base: 2018/19
A3: Sheet Description:
A4: Scheme Cost Data company inputs sheet. Direct cost inputs only
A6: Key
A7: Select from dropdown | B7: Free Entry | C7: Auto Populated | D7: Check Cell | E7: Lookup Data
A9: Actuals
A11: descriptor_1 | B11: descriptor_2 | C11: descriptor_3 | D11: descriptor_4 | E11: descriptor_5 | F11: descriptor_6 | G11: descriptor_7 | H11: descriptor_8 | I11: descriptor_9 | J11: descriptor_10 | L11: value_1 | M11: value_2 | N11: value_3 | O11: value_3 | P11: value_5 | Q11: value_6 | R11: value_7 | S11: value_8 | T11: value_9 | U11: value_9 | V11: value_9 | W11: value_9 | X11: value_9 | Y11: value_9 | Z11: Customer Contributions (baseline) | AA11: value_10
Z12: Customer Contributions (other)
L13: Total | M13: Total | N13: Total | O13: Total | P13: Total | Q13: Total | R13: Total | S13: Total | T13: Total | U13: Total | V13: Total | W13: Total | X13: Total | Y13: Total | Z13: One-off contribution
A14: Scheme Reference | B14: Asset heading | C14: Asset Category | D14: Asset Sub-Category Primary | E14: Asset Sub-Category Secondary | F14: Voltage | G14: Intervention | H14: Volume Measure | I14: License Term | J14: Units | L14: =SUM( L17:L10016) -> 0 | M14: 0 | N14: 0 | O14: 0 | P14: 0 | Q14: 0 | R14: 0 | S14: 0 | T14: 0 | U14: 0 | V14: 0 | W14: 0 | X14: 0 | Y14: 0 | Z14: 0
A16: Scheme Reference | B16: Asset heading | C16: Asset Category | D16: Asset Sub-Category Primary | E16: Asset Sub-Category Secondary | F16: Voltage | G16: Volume Measure | H16: Licence Term | I16: Intervention | J16: Units | L16: Total | M16: Sub-total RIIO-1 | N16: Sub-total RIIO-2 | O16: Sub-total RIIO-3 | P16: 2021/22 18/19 Prices | Q16: 2022/23 18/19 Prices | R16: 2023/24 18/19 Prices | S16: 2024/25 18/19 Prices | T16: 2025/26 18/19 Prices | U16: 2026/27 18/19 Prices | V16: 2027/28 18/19 Prices | W16: 2028/29 18/19 Prices | X16: 2029/30 18/19 Prices | Y16: 2030/31 18/19 Prices | Z16: 2031/32+ 18/19 Prices | AA16: Narative / Associated Doc Reference
A17: =Scheme_Volume[[#This Row],[Scheme Reference]] -> 0 | B17: =Scheme_Volume[[#This Row],[Asset heading]] -> 0 | C17: =Scheme_Volume[[#This Row],[Asset Category]] -> 0 | D17: =Scheme_Volume[[#This Row],[Asset Sub-Category Primary]] -> 0 | E17: =Scheme_Volume[[#This Row],[Asset Sub-Category Secondary]] -> 0 | F17: =Scheme_Volume[[#This Row],[Voltage / rating]] -> 0 | G17: =Scheme_Volume[[#This Row],[Volume Measure]] -> 0 | H17: =Scheme_Volume[[#This Row],[License Term]] -> 0 | I17: =Scheme_Volume[[#This Row],[Intervention]] -> 0 | J17: =Scheme_Volume[[#This Row],[Units]] -> 0 | L17: =SUM(M17, P17:Z17) -> 0 | N17: =SUM(P17:T17) -> 0 | O17: =SUM(U17:Z17) -> 0
A18: =Scheme_Volume[[#This Row],[Scheme Reference]] -> 0 | B18: =Scheme_Volume[[#This Row],[Asset heading]] -> 0 | C18: =Scheme_Volume[[#This Row],[Asset Category]] -> 0 | D18: =Scheme_Volume[[#This Row],[Asset Sub-Category Primary]] -> 0 | E18: =Scheme_Volume[[#This Row],[Asset Sub-Category Secondary]] -> 0 | F18: =Scheme_Volume[[#This Row],[Voltage / rating]] -> 0 | G18: =Scheme_Volume[[#This Row],[Volume Measure]] -> 0 | H18: =Scheme_Volume[[#This Row],[License Term]] -> 0 | I18: =Scheme_Volume[[#This Row],[Intervention]] -> 0 | J18: =Scheme_Volume[[#This Row],[Units]] -> 0 | L18: 0 | N18: 0 | O18: 0
A19: =Scheme_Volume[[#This Row],[Scheme Reference]] -> 0 | B19: =Scheme_Volume[[#This Row],[Asset heading]] -> 0 | C19: =Scheme_Volume[[#This Row],[Asset Category]] -> 0 | D19: =Scheme_Volume[[#This Row],[Asset Sub-Category Primary]] -> 0 | E19: =Scheme_Volume[[#This Row],[Asset Sub-Category Secondary]] -> 0 | F19: =Scheme_Volume[[#This Row],[Voltage / rating]] -> 0 | G19: =Scheme_Volume[[#This Row],[Volume Measure]] -> 0 | H19: =Scheme_Volume[[#This Row],[License Term]] -> 0 | I19: =Scheme_Volume[[#This Row],[Intervention]] -> 0 | J19: =Scheme_Volume[[#This Row],[Units]] -> 0 | L19: 0 | N19: 0 | O19: 0
A20: =Scheme_Volume[[#This Row],[Scheme Reference]] -> 0 | B20: =Scheme_Volume[[#This Row],[Asset heading]] -> 0 | C20: =Scheme_Volume[[#This Row],[Asset Category]] -> 0 | D20: =Scheme_Volume[[#This Row],[Asset Sub-Category Primary]] -> 0 | E20: =Scheme_Volume[[#This Row],[Asset Sub-Category Secondary]] -> 0 | F20: =Scheme_Volume[[#This Row],[Voltage / rating]] -> 0 | G20: =Scheme_Volume[[#This Row],[Volume Measure]] -> 0 | H20: =Scheme_Volume[[#This Row],[License Term]] -> 0 | I20: =Scheme_Volume[[#This Row],[Intervention]] -> 0 | J20: =Scheme_Volume[[#This Row],[Units]] -> 0 | L20: 0 | N20: 0 | O20: 0
A21: =Scheme_Volume[[#This Row],[Scheme Reference]] -> 0 | B21: =Scheme_Volume[[#This Row],[Asset heading]] -> 0 | C21: =Scheme_Volume[[#This Row],[Asset Category]] -> 0 | D21: =Scheme_Volume[[#This Row],[Asset Sub-Category Primary]] -> 0 | E21: =Scheme_Volume[[#This Row],[Asset Sub-Category Secondary]] -> 0 | F21: =Scheme_Volume[[#This Row],[Voltage / rating]] -> 0 | G21: =Scheme_Volume[[#This Row],[Volume Measure]] -> 0 | H21: =Scheme_Volume[[#This Row],[License Term]] -> 0 | I21: =Scheme_Volume[[#This Row],[Intervention]] -> 0 | J21: =Scheme_Volume[[#This Row],[Units]] -> 0 | L21: 0 | N21: 0 | O21: 0
A22: =Scheme_Volume[[#This Row],[Scheme Reference]] -> 0 | B22: =Scheme_Volume[[#This Row],[Asset heading]] -> 0 | C22: =Scheme_Volume[[#This Row],[Asset Category]] -> 0 | D22: =Scheme_Volume[[#This Row],[Asset Sub-Category Primary]] -> 0 | E22: =Scheme_Volume[[#This Row],[Asset Sub-Category Secondary]] -> 0 | F22: =Scheme_Volume[[#This Row],[Voltage / rating]] -> 0 | G22: =Scheme_Volume[[#This Row],[Volume Measure]] -> 0 | H22: =Scheme_Volume[[#This Row],[License Term]] -> 0 | I22: =Scheme_Volume[[#This Row],[Intervention]] -> 0 | J22: =Scheme_Volume[[#This Row],[Units]] -> 0 | L22: 0 | N22: 0 | O22: 0
A23: =Scheme_Volume[[#This Row],[Scheme Reference]] -> 0 | B23: =Scheme_Volume[[#This Row],[Asset heading]] -> 0 | C23: =Scheme_Volume[[#This Row],[Asset Category]] -> 0 | D23: =Scheme_Volume[[#This Row],[Asset Sub-Category Primary]] -> 0 | E23: =Scheme_Volume[[#This Row],[Asset Sub-Category Secondary]] -> 0 | F23: =Scheme_Volume[[#This Row],[Voltage / rating]] -> 0 | G23: =Scheme_Volume[[#This Row],[Volume Measure]] -> 0 | H23: =Scheme_Volume[[#This Row],[License Term]] -> 0 | I23: =Scheme_Volume[[#This Row],[Intervention]] -> 0 | J23: =Scheme_Volume[[#This Row],[Units]] -> 0 | L23: 0 | N23: 0 | O23: 0
A24: =Scheme_Volume[[#This Row],[Scheme Reference]] -> 0 | B24: =Scheme_Volume[[#This Row],[Asset heading]] -> 0 | C24: =Scheme_Volume[[#This Row],[Asset Category]] -> 0 | D24: =Scheme_Volume[[#This Row],[Asset Sub-Category Primary]] -> 0 | E24: =Scheme_Volume[[#This Row],[Asset Sub-Category Secondary]] -> 0 | F24: =Scheme_Volume[[#This Row],[Voltage / rating]] -> 0 | G24: =Scheme_Volume[[#This Row],[Volume Measure]] -> 0 | H24: =Scheme_Volume[[#This Row],[License Term]] -> 0 | I24: =Scheme_Volume[[#This Row],[Intervention]] -> 0 | J24: =Scheme_Volume[[#This Row],[Units]] -> 0 | L24: 0 | N24: 0 | O24: 0
A25: =Scheme_Volume[[#This Row],[Scheme Reference]] -> 0 | B25: =Scheme_Volume[[#This Row],[Asset heading]] -> 0 | C25: =Scheme_Volume[[#This Row],[Asset Category]] -> 0 | D25: =Scheme_Volume[[#This Row],[Asset Sub-Category Primary]] -> 0 | E25: =Scheme_Volume[[#This Row],[Asset Sub-Category Secondary]] -> 0 | F25: =Scheme_Volume[[#This Row],[Voltage / rating]] -> 0 | G25: =Scheme_Volume[[#This Row],[Volume Measure]] -> 0 | H25: =Scheme_Volume[[#This Row],[License Term]] -> 0 | I25: =Scheme_Volume[[#This Row],[Intervention]] -> 0 | J25: =Scheme_Volume[[#This Row],[Units]] -> 0 | L25: 0 | N25: 0 | O25: 0
A26: =Scheme_Volume[[#This Row],[Scheme Reference]] -> 0 | B26: =Scheme_Volume[[#This Row],[Asset heading]] -> 0 | C26: =Scheme_Volume[[#This Row],[Asset Category]] -> 0 | D26: =Scheme_Volume[[#This Row],[Asset Sub-Category Primary]] -> 0 | E26: =Scheme_Volume[[#This Row],[Asset Sub-Category Secondary]] -> 0 | F26: =Scheme_Volume[[#This Row],[Voltage / rating]] -> 0 | G26: =Scheme_Volume[[#This Row],[Volume Measure]] -> 0 | H26: =Scheme_Volume[[#This Row],[License Term]] -> 0 | I26: =Scheme_Volume[[#This Row],[Intervention]] -> 0 | J26: =Scheme_Volume[[#This Row],[Units]] -> 0 | L26: 0 | N26: 0 | O26: 0
A27: =Scheme_Volume[[#This Row],[Scheme Reference]] -> 0 | B27: =Scheme_Volume[[#This Row],[Asset heading]] -> 0 | C27: =Scheme_Volume[[#This Row],[Asset Category]] -> 0 | D27: =Scheme_Volume[[#This Row],[Asset Sub-Category Primary]] -> 0 | E27: =Scheme_Volume[[#This Row],[Asset Sub-Category Secondary]] -> 0 | F27: =Scheme_Volume[[#This Row],[Voltage / rating]] -> 0 | G27: =Scheme_Volume[[#This Row],[Volume Measure]] -> 0 | H27: =Scheme_Volume[[#This Row],[License Term]] -> 0 | I27: =Scheme_Volume[[#This Row],[Intervention]] -> 0 | J27: =Scheme_Volume[[#This Row],[Units]] -> 0 | L27: 0 | N27: 0 | O27: 0
A28: =Scheme_Volume[[#This Row],[Scheme Reference]] -> 0 | B28: =Scheme_Volume[[#This Row],[Asset heading]] -> 0 | C28: =Scheme_Volume[[#This Row],[Asset Category]] -> 0 | D28: =Scheme_Volume[[#This Row],[Asset Sub-Category Primary]] -> 0 | E28: =Scheme_Volume[[#This Row],[Asset Sub-Category Secondary]] -> 0 | F28: =Scheme_Volume[[#This Row],[Voltage / rating]] -> 0 | G28: =Scheme_Volume[[#This Row],[Volume Measure]] -> 0 | H28: =Scheme_Volume[[#This Row],[License Term]] -> 0 | I28: =Scheme_Volume[[#This Row],[Intervention]] -> 0 | J28: =Scheme_Volume[[#This Row],[Units]] -> 0 | L28: 0 | N28: 0 | O28: 0
A29: =Scheme_Volume[[#This Row],[Scheme Reference]] -> 0 | B29: =Scheme_Volume[[#This Row],[Asset heading]] -> 0 | C29: =Scheme_Volume[[#This Row],[Asset Category]] -> 0 | D29: =Scheme_Volume[[#This Row],[Asset Sub-Category Primary]] -> 0 | E29: =Scheme_Volume[[#This Row],[Asset Sub-Category Secondary]] -> 0 | F29: =Scheme_Volume[[#This Row],[Voltage / rating]] -> 0 | G29: =Scheme_Volume[[#This Row],[Volume Measure]] -> 0 | H29: =Scheme_Volume[[#This Row],[License Term]] -> 0 | I29: =Scheme_Volume[[#This Row],[Intervention]] -> 0 | J29: =Scheme_Volume[[#This Row],[Units]] -> 0 | L29: 0 | N29: 0 | O29: 0
A30: =Scheme_Volume[[#This Row],[Scheme Reference]] -> 0 | B30: =Scheme_Volume[[#This Row],[Asset heading]] -> 0 | C30: =Scheme_Volume[[#This Row],[Asset Category]] -> 0 | D30: =Scheme_Volume[[#This Row],[Asset Sub-Category Primary]] -> 0 | E30: =Scheme_Volume[[#This Row],[Asset Sub-Category Secondary]] -> 0 | F30: =Scheme_Volume[[#This Row],[Voltage / rating]] -> 0 | G30: =Scheme_Volume[[#This Row],[Volume Measure]] -> 0 | H30: =Scheme_Volume[[#This Row],[License Term]] -> 0 | I30: =Scheme_Volume[[#This Row],[Intervention]] -> 0 | J30: =Scheme_Volume[[#This Row],[Units]] -> 0 | L30: 0 | N30: 0 | O30: 0
A31: =Scheme_Volume[[#This Row],[Scheme Reference]] -> 0 | B31: =Scheme_Volume[[#This Row],[Asset heading]] -> 0 | C31: =Scheme_Volume[[#This Row],[Asset Category]] -> 0 | D31: =Scheme_Volume[[#This Row],[Asset Sub-Category Primary]] -> 0 | E31: =Scheme_Volume[[#This Row],[Asset Sub-Category Secondary]] -> 0 | F31: =Scheme_Volume[[#This Row],[Voltage / rating]] -> 0 | G31: =Scheme_Volume[[#This Row],[Volume Measure]] -> 0 | H31: =Scheme_Volume[[#This Row],[License Term]] -> 0 | I31: =Scheme_Volume[[#This Row],[Intervention]] -> 0 | J31: =Scheme_Volume[[#This Row],[Units]] -> 0 | L31: 0 | N31: 0 | O31: 0
A32: =Scheme_Volume[[#This Row],[Scheme Reference]] -> 0 | B32: =Scheme_Volume[[#This Row],[Asset heading]] -> 0 | C32: =Scheme_Volume[[#This Row],[Asset Category]] -> 0 | D32: =Scheme_Volume[[#This Row],[Asset Sub-Category Primary]] -> 0 | E32: =Scheme_Volume[[#This Row],[Asset Sub-Category Secondary]] -> 0 | F32: =Scheme_Volume[[#This Row],[Voltage / rating]] -> 0 | G32: =Scheme_Volume[[#This Row],[Volume Measure]] -> 0 | H32: =Scheme_Volume[[#This Row],[License Term]] -> 0 | I32: =Scheme_Volume[[#This Row],[Intervention]] -> 0 | J32: =Scheme_Volume[[#This Row],[Units]] -> 0 | L32: 0 | N32: 0 | O32: 0
A33: =Scheme_Volume[[#This Row],[Scheme Reference]] -> 0 | B33: =Scheme_Volume[[#This Row],[Asset heading]] -> 0 | C33: =Scheme_Volume[[#This Row],[Asset Category]] -> 0 | D33: =Scheme_Volume[[#This Row],[Asset Sub-Category Primary]] -> 0 | E33: =Scheme_Volume[[#This Row],[Asset Sub-Category Secondary]] -> 0 | F33: =Scheme_Volume[[#This Row],[Voltage / rating]] -> 0 | G33: =Scheme_Volume[[#This Row],[Volume Measure]] -> 0 | H33: =Scheme_Volume[[#This Row],[License Term]] -> 0 | I33: =Scheme_Volume[[#This Row],[Intervention]] -> 0 | J33: =Scheme_Volume[[#This Row],[Units]] -> 0 | L33: 0 | N33: 0 | O33: 0
A34: =Scheme_Volume[[#This Row],[Scheme Reference]] -> 0 | B34: =Scheme_Volume[[#This Row],[Asset heading]] -> 0 | C34: =Scheme_Volume[[#This Row],[Asset Category]] -> 0 | D34: =Scheme_Volume[[#This Row],[Asset Sub-Category Primary]] -> 0 | E34: =Scheme_Volume[[#This Row],[Asset Sub-Category Secondary]] -> 0 | F34: =Scheme_Volume[[#This Row],[Voltage / rating]] -> 0 | G34: =Scheme_Volume[[#This Row],[Volume Measure]] -> 0 | H34: =Scheme_Volume[[#This Row],[License Term]] -> 0 | I34: =Scheme_Volume[[#This Row],[Intervention]] -> 0 | J34: =Scheme_Volume[[#This Row],[Units]] -> 0 | L34: 0 | N34: 0 | O34: 0
A35: =Scheme_Volume[[#This Row],[Scheme Reference]] -> 0 | B35: =Scheme_Volume[[#This Row],[Asset heading]] -> 0 | C35: =Scheme_Volume[[#This Row],[Asset Category]] -> 0 | D35: =Scheme_Volume[[#This Row],[Asset Sub-Category Primary]] -> 0 | E35: =Scheme_Volume[[#This Row],[Asset Sub-Category Secondary]] -> 0 | F35: =Scheme_Volume[[#This Row],[Voltage / rating]] -> 0 | G35: =Scheme_Volume[[#This Row],[Volume Measure]] -> 0 | H35: =Scheme_Volume[[#This Row],[License Term]] -> 0 | I35: =Scheme_Volume[[#This Row],[Intervention]] -> 0 | J35: =Scheme_Volume[[#This Row],[Units]] -> 0 | L35: 0 | N35: 0 | O35: 0
A36: =Scheme_Volume[[#This Row],[Scheme Reference]] -> 0 | B36: =Scheme_Volume[[#This Row],[Asset heading]] -> 0 | C36: =Scheme_Volume[[#This Row],[Asset Category]] -> 0 | D36: =Scheme_Volume[[#This Row],[Asset Sub-Category Primary]] -> 0 | E36: =Scheme_Volume[[#This Row],[Asset Sub-Category Secondary]] -> 0 | F36: =Scheme_Volume[[#This Row],[Voltage / rating]] -> 0 | G36: =Scheme_Volume[[#This Row],[Volume Measure]] -> 0 | H36: =Scheme_Volume[[#This Row],[License Term]] -> 0 | I36: =Scheme_Volume[[#This Row],[Intervention]] -> 0 | J36: =Scheme_Volume[[#This Row],[Units]] -> 0 | L36: 0 | N36: 0 | O36: 0
A37: =Scheme_Volume[[#This Row],[Scheme Reference]] -> 0 | B37: =Scheme_Volume[[#This Row],[Asset heading]] -> 0 | C37: =Scheme_Volume[[#This Row],[Asset Category]] -> 0 | D37: =Scheme_Volume[[#This Row],[Asset Sub-Category Primary]] -> 0 | E37: =Scheme_Volume[[#This Row],[Asset Sub-Category Secondary]] -> 0 | F37: =Scheme_Volume[[#This Row],[Voltage / rating]] -> 0 | G37: =Scheme_Volume[[#This Row],[Volume Measure]] -> 0 | H37: =Scheme_Volume[[#This Row],[License Term]] -> 0 | I37: =Scheme_Volume[[#This Row],[Intervention]] -> 0 | J37: =Scheme_Volume[[#This Row],[Units]] -> 0 | L37: 0 | N37: 0 | O37: 0
A38: =Scheme_Volume[[#This Row],[Scheme Reference]] -> 0 | B38: =Scheme_Volume[[#This Row],[Asset heading]] -> 0 | C38: =Scheme_Volume[[#This Row],[Asset Category]] -> 0 | D38: =Scheme_Volume[[#This Row],[Asset Sub-Category Primary]] -> 0 | E38: =Scheme_Volume[[#This Row],[Asset Sub-Category Secondary]] -> 0 | F38: =Scheme_Volume[[#This Row],[Voltage / rating]] -> 0 | G38: =Scheme_Volume[[#This Row],[Volume Measure]] -> 0 | H38: =Scheme_Volume[[#This Row],[License Term]] -> 0 | I38: =Scheme_Volume[[#This Row],[Intervention]] -> 0 | J38: =Scheme_Volume[[#This Row],[Units]] -> 0 | L38: 0 | N38: 0 | O38: 0
A39: =Scheme_Volume[[#This Row],[Scheme Reference]] -> 0 | B39: =Scheme_Volume[[#This Row],[Asset heading]] -> 0 | C39: =Scheme_Volume[[#This Row],[Asset Category]] -> 0 | D39: =Scheme_Volume[[#This Row],[Asset Sub-Category Primary]] -> 0 | E39: =Scheme_Volume[[#This Row],[Asset Sub-Category Secondary]] -> 0 | F39: =Scheme_Volume[[#This Row],[Voltage / rating]] -> 0 | G39: =Scheme_Volume[[#This Row],[Volume Measure]] -> 0 | H39: =Scheme_Volume[[#This Row],[License Term]] -> 0 | I39: =Scheme_Volume[[#This Row],[Intervention]] -> 0 | J39: =Scheme_Volume[[#This Row],[Units]] -> 0 | L39: 0 | N39: 0 | O39: 0
A40: =Scheme_Volume[[#This Row],[Scheme Reference]] -> 0 | B40: =Scheme_Volume[[#This Row],[Asset heading]] -> 0 | C40: =Scheme_Volume[[#This Row],[Asset Category]] -> 0 | D40: =Scheme_Volume[[#This Row],[Asset Sub-Category Primary]] -> 0 | E40: =Scheme_Volume[[#This Row],[Asset Sub-Category Secondary]] -> 0 | F40: =Scheme_Volume[[#This Row],[Voltage / rating]] -> 0 | G40: =Scheme_Volume[[#This Row],[Volume Measure]] -> 0 | H40: =Scheme_Volume[[#This Row],[License Term]] -> 0 | I40: =Scheme_Volume[[#This Row],[Intervention]] -> 0 | J40: =Scheme_Volume[[#This Row],[Units]] -> 0 | L40: 0 | N40: 0 | O40: 0
A41: =Scheme_Volume[[#This Row],[Scheme Reference]] -> 0 | B41: =Scheme_Volume[[#This Row],[Asset heading]] -> 0 | C41: =Scheme_Volume[[#This Row],[Asset Category]] -> 0 | D41: =Scheme_Volume[[#This Row],[Asset Sub-Category Primary]] -> 0 | E41: =Scheme_Volume[[#This Row],[Asset Sub-Category Secondary]] -> 0 | F41: =Scheme_Volume[[#This Row],[Voltage / rating]] -> 0 | G41: =Scheme_Volume[[#This Row],[Volume Measure]] -> 0 | H41: =Scheme_Volume[[#This Row],[License Term]] -> 0 | I41: =Scheme_Volume[[#This Row],[Intervention]] -> 0 | J41: =Scheme_Volume[[#This Row],[Units]] -> 0 | L41: 0 | N41: 0 | O41: 0
A42: =Scheme_Volume[[#This Row],[Scheme Reference]] -> 0 | B42: =Scheme_Volume[[#This Row],[Asset heading]] -> 0 | C42: =Scheme_Volume[[#This Row],[Asset Category]] -> 0 | D42: =Scheme_Volume[[#This Row],[Asset Sub-Category Primary]] -> 0 | E42: =Scheme_Volume[[#This Row],[Asset Sub-Category Secondary]] -> 0 | F42: =Scheme_Volume[[#This Row],[Voltage / rating]] -> 0 | G42: =Scheme_Volume[[#This Row],[Volume Measure]] -> 0 | H42: =Scheme_Volume[[#This Row],[License Term]] -> 0 | I42: =Scheme_Volume[[#This Row],[Intervention]] -> 0 | J42: =Scheme_Volume[[#This Row],[Units]] -> 0 | L42: 0 | N42: 0 | O42: 0
A43: =Scheme_Volume[[#This Row],[Scheme Reference]] -> 0 | B43: =Scheme_Volume[[#This Row],[Asset heading]] -> 0 | C43: =Scheme_Volume[[#This Row],[Asset Category]] -> 0 | D43: =Scheme_Volume[[#This Row],[Asset Sub-Category Primary]] -> 0 | E43: =Scheme_Volume[[#This Row],[Asset Sub-Category Secondary]] -> 0 | F43: =Scheme_Volume[[#This Row],[Voltage / rating]] -> 0 | G43: =Scheme_Volume[[#This Row],[Volume Measure]] -> 0 | H43: =Scheme_Volume[[#This Row],[License Term]] -> 0 | I43: =Scheme_Volume[[#This Row],[Intervention]] -> 0 | J43: =Scheme_Volume[[#This Row],[Units]] -> 0 | L43: 0 | N43: 0 | O43: 0
A44: =Scheme_Volume[[#This Row],[Scheme Reference]] -> 0 | B44: =Scheme_Volume[[#This Row],[Asset heading]] -> 0 | C44: =Scheme_Volume[[#This Row],[Asset Category]] -> 0 | D44: =Scheme_Volume[[#This Row],[Asset Sub-Category Primary]] -> 0 | E44: =Scheme_Volume[[#This Row],[Asset Sub-Category Secondary]] -> 0 | F44: =Scheme_Volume[[#This Row],[Voltage / rating]] -> 0 | G44: =Scheme_Volume[[#This Row],[Volume Measure]] -> 0 | H44: =Scheme_Volume[[#This Row],[License Term]] -> 0 | I44: =Scheme_Volume[[#This Row],[Intervention]] -> 0 | J44: =Scheme_Volume[[#This Row],[Units]] -> 0 | L44: 0 | N44: 0 | O44: 0
A45: =Scheme_Volume[[#This Row],[Scheme Reference]] -> 0 | B45: =Scheme_Volume[[#This Row],[Asset heading]] -> 0 | C45: =Scheme_Volume[[#This Row],[Asset Category]] -> 0 | D45: =Scheme_Volume[[#This Row],[Asset Sub-Category Primary]] -> 0 | E45: =Scheme_Volume[[#This Row],[Asset Sub-Category Secondary]] -> 0 | F45: =Scheme_Volume[[#This Row],[Voltage / rating]] -> 0 | G45: =Scheme_Volume[[#This Row],[Volume Measure]] -> 0 | H45: =Scheme_Volume[[#This Row],[License Term]] -> 0 | I45: =Scheme_Volume[[#This Row],[Intervention]] -> 0 | J45: =Scheme_Volume[[#This Row],[Units]] -> 0 | L45: 0 | N45: 0 | O45: 0
A46: =Scheme_Volume[[#This Row],[Scheme Reference]] -> 0 | B46: =Scheme_Volume[[#This Row],[Asset heading]] -> 0 | C46: =Scheme_Volume[[#This Row],[Asset Category]] -> 0 | D46: =Scheme_Volume[[#This Row],[Asset Sub-Category Primary]] -> 0 | E46: =Scheme_Volume[[#This Row],[Asset Sub-Category Secondary]] -> 0 | F46: =Scheme_Volume[[#This Row],[Voltage / rating]] -> 0 | G46: =Scheme_Volume[[#This Row],[Volume Measure]] -> 0 | H46: =Scheme_Volume[[#This Row],[License Term]] -> 0 | I46: =Scheme_Volume[[#This Row],[Intervention]] -> 0 | J46: =Scheme_Volume[[#This Row],[Units]] -> 0 | L46: 0 | N46: 0 | O46: 0
A47: =Scheme_Volume[[#This Row],[Scheme Reference]] -> 0 | B47: =Scheme_Volume[[#This Row],[Asset heading]] -> 0 | C47: =Scheme_Volume[[#This Row],[Asset Category]] -> 0 | D47: =Scheme_Volume[[#This Row],[Asset Sub-Category Primary]] -> 0 | E47: =Scheme_Volume[[#This Row],[Asset Sub-Category Secondary]] -> 0 | F47: =Scheme_Volume[[#This Row],[Voltage / rating]] -> 0 | G47: =Scheme_Volume[[#This Row],[Volume Measure]] -> 0 | H47: =Scheme_Volume[[#This Row],[License Term]] -> 0 | I47: =Scheme_Volume[[#This Row],[Intervention]] -> 0 | J47: =Scheme_Volume[[#This Row],[Units]] -> 0 | L47: 0 | N47: 0 | O47: 0
A48: =Scheme_Volume[[#This Row],[Scheme Reference]] -> 0 | B48: =Scheme_Volume[[#This Row],[Asset heading]] -> 0 | C48: =Scheme_Volume[[#This Row],[Asset Category]] -> 0 | D48: =Scheme_Volume[[#This Row],[Asset Sub-Category Primary]] -> 0 | E48: =Scheme_Volume[[#This Row],[Asset Sub-Category Secondary]] -> 0 | F48: =Scheme_Volume[[#This Row],[Voltage / rating]] -> 0 | G48: =Scheme_Volume[[#This Row],[Volume Measure]] -> 0 | H48: =Scheme_Volume[[#This Row],[License Term]] -> 0 | I48: =Scheme_Volume[[#This Row],[Intervention]] -> 0 | J48: =Scheme_Volume[[#This Row],[Units]] -> 0 | L48: 0 | N48: 0 | O48: 0
A49: =Scheme_Volume[[#This Row],[Scheme Reference]] -> 0 | B49: =Scheme_Volume[[#This Row],[Asset heading]] -> 0 | C49: =Scheme_Volume[[#This Row],[Asset Category]] -> 0 | D49: =Scheme_Volume[[#This Row],[Asset Sub-Category Primary]] -> 0 | E49: =Scheme_Volume[[#This Row],[Asset Sub-Category Secondary]] -> 0 | F49: =Scheme_Volume[[#This Row],[Voltage / rating]] -> 0 | G49: =Scheme_Volume[[#This Row],[Volume Measure]] -> 0 | H49: =Scheme_Volume[[#This Row],[License Term]] -> 0 | I49: =Scheme_Volume[[#This Row],[Intervention]] -> 0 | J49: =Scheme_Volume[[#This Row],[Units]] -> 0 | L49: 0 | N49: 0 | O49: 0
A50: =Scheme_Volume[[#This Row],[Scheme Reference]] -> 0 | B50: =Scheme_Volume[[#This Row],[Asset heading]] -> 0 | C50: =Scheme_Volume[[#This Row],[Asset Category]] -> 0 | D50: =Scheme_Volume[[#This Row],[Asset Sub-Category Primary]] -> 0 | E50: =Scheme_Volume[[#This Row],[Asset Sub-Category Secondary]] -> 0 | F50: =Scheme_Volume[[#This Row],[Voltage / rating]] -> 0 | G50: =Scheme_Volume[[#This Row],[Volume Measure]] -> 0 | H50: =Scheme_Volume[[#This Row],[License Term]] -> 0 | I50: =Scheme_Volume[[#This Row],[Intervention]] -> 0 | J50: =Scheme_Volume[[#This Row],[Units]] -> 0 | L50: 0 | N50: 0 | O50: 0
A51: =Scheme_Volume[[#This Row],[Scheme Reference]] -> 0 | B51: =Scheme_Volume[[#This Row],[Asset heading]] -> 0 | C51: =Scheme_Volume[[#This Row],[Asset Category]] -> 0 | D51: =Scheme_Volume[[#This Row],[Asset Sub-Category Primary]] -> 0 | E51: =Scheme_Volume[[#This Row],[Asset Sub-Category Secondary]] -> 0 | F51: =Scheme_Volume[[#This Row],[Voltage / rating]] -> 0 | G51: =Scheme_Volume[[#This Row],[Volume Measure]] -> 0 | H51: =Scheme_Volume[[#This Row],[License Term]] -> 0 | I51: =Scheme_Volume[[#This Row],[Intervention]] -> 0 | J51: =Scheme_Volume[[#This Row],[Units]] -> 0 | L51: 0 | N51: 0 | O51: 0
A52: =Scheme_Volume[[#This Row],[Scheme Reference]] -> 0 | B52: =Scheme_Volume[[#This Row],[Asset heading]] -> 0 | C52: =Scheme_Volume[[#This Row],[Asset Category]] -> 0 | D52: =Scheme_Volume[[#This Row],[Asset Sub-Category Primary]] -> 0 | E52: =Scheme_Volume[[#This Row],[Asset Sub-Category Secondary]] -> 0 | F52: =Scheme_Volume[[#This Row],[Voltage / rating]] -> 0 | G52: =Scheme_Volume[[#This Row],[Volume Measure]] -> 0 | H52: =Scheme_Volume[[#This Row],[License Term]] -> 0 | I52: =Scheme_Volume[[#This Row],[Intervention]] -> 0 | J52: =Scheme_Volume[[#This Row],[Units]] -> 0 | L52: 0 | N52: 0 | O52: 0
A53: =Scheme_Volume[[#This Row],[Scheme Reference]] -> 0 | B53: =Scheme_Volume[[#This Row],[Asset heading]] -> 0 | C53: =Scheme_Volume[[#This Row],[Asset Category]] -> 0 | D53: =Scheme_Volume[[#This Row],[Asset Sub-Category Primary]] -> 0 | E53: =Scheme_Volume[[#This Row],[Asset Sub-Category Secondary]] -> 0 | F53: =Scheme_Volume[[#This Row],[Voltage / rating]] -> 0 | G53: =Scheme_Volume[[#This Row],[Volume Measure]] -> 0 | H53: =Scheme_Volume[[#This Row],[License Term]] -> 0 | I53: =Scheme_Volume[[#This Row],[Intervention]] -> 0 | J53: =Scheme_Volume[[#This Row],[Units]] -> 0 | L53: 0 | N53: 0 | O53: 0
A54: =Scheme_Volume[[#This Row],[Scheme Reference]] -> 0 | B54: =Scheme_Volume[[#This Row],[Asset heading]] -> 0 | C54: =Scheme_Volume[[#This Row],[Asset Category]] -> 0 | D54: =Scheme_Volume[[#This Row],[Asset Sub-Category Primary]] -> 0 | E54: =Scheme_Volume[[#This Row],[Asset Sub-Category Secondary]] -> 0 | F54: =Scheme_Volume[[#This Row],[Voltage / rating]] -> 0 | G54: =Scheme_Volume[[#This Row],[Volume Measure]] -> 0 | H54: =Scheme_Volume[[#This Row],[License Term]] -> 0 | I54: =Scheme_Volume[[#This Row],[Intervention]] -> 0 | J54: =Scheme_Volume[[#This Row],[Units]] -> 0 | L54: 0 | N54: 0 | O54: 0
A55: =Scheme_Volume[[#This Row],[Scheme Reference]] -> 0 | B55: =Scheme_Volume[[#This Row],[Asset heading]] -> 0 | C55: =Scheme_Volume[[#This Row],[Asset Category]] -> 0 | D55: =Scheme_Volume[[#This Row],[Asset Sub-Category Primary]] -> 0 | E55: =Scheme_Volume[[#This Row],[Asset Sub-Category Secondary]] -> 0 | F55: =Scheme_Volume[[#This Row],[Voltage / rating]] -> 0 | G55: =Scheme_Volume[[#This Row],[Volume Measure]] -> 0 | H55: =Scheme_Volume[[#This Row],[License Term]] -> 0 | I55: =Scheme_Volume[[#This Row],[Intervention]] -> 0 | J55: =Scheme_Volume[[#This Row],[Units]] -> 0 | L55: 0 | N55: 0 | O55: 0
A56: =Scheme_Volume[[#This Row],[Scheme Reference]] -> 0 | B56: =Scheme_Volume[[#This Row],[Asset heading]] -> 0 | C56: =Scheme_Volume[[#This Row],[Asset Category]] -> 0 | D56: =Scheme_Volume[[#This Row],[Asset Sub-Category Primary]] -> 0 | E56: =Scheme_Volume[[#This Row],[Asset Sub-Category Secondary]] -> 0 | F56: =Scheme_Volume[[#This Row],[Voltage / rating]] -> 0 | G56: =Scheme_Volume[[#This Row],[Volume Measure]] -> 0 | H56: =Scheme_Volume[[#This Row],[License Term]] -> 0 | I56: =Scheme_Volume[[#This Row],[Intervention]] -> 0 | J56: =Scheme_Volume[[#This Row],[Units]] -> 0 | L56: 0 | N56: 0 | O56: 0
A57: =Scheme_Volume[[#This Row],[Scheme Reference]] -> 0 | B57: =Scheme_Volume[[#This Row],[Asset heading]] -> 0 | C57: =Scheme_Volume[[#This Row],[Asset Category]] -> 0 | D57: =Scheme_Volume[[#This Row],[Asset Sub-Category Primary]] -> 0 | E57: =Scheme_Volume[[#This Row],[Asset Sub-Category Secondary]] -> 0 | F57: =Scheme_Volume[[#This Row],[Voltage / rating]] -> 0 | G57: =Scheme_Volume[[#This Row],[Volume Measure]] -> 0 | H57: =Scheme_Volume[[#This Row],[License Term]] -> 0 | I57: =Scheme_Volume[[#This Row],[Intervention]] -> 0 | J57: =Scheme_Volume[[#This Row],[Units]] -> 0 | L57: 0 | N57: 0 | O57: 0
A58: =Scheme_Volume[[#This Row],[Scheme Reference]] -> 0 | B58: =Scheme_Volume[[#This Row],[Asset heading]] -> 0 | C58: =Scheme_Volume[[#This Row],[Asset Category]] -> 0 | D58: =Scheme_Volume[[#This Row],[Asset Sub-Category Primary]] -> 0 | E58: =Scheme_Volume[[#This Row],[Asset Sub-Category Secondary]] -> 0 | F58: =Scheme_Volume[[#This Row],[Voltage / rating]] -> 0 | G58: =Scheme_Volume[[#This Row],[Volume Measure]] -> 0 | H58: =Scheme_Volume[[#This Row],[License Term]] -> 0 | I58: =Scheme_Volume[[#This Row],[Intervention]] -> 0 | J58: =Scheme_Volume[[#This Row],[Units]] -> 0 | L58: 0 | N58: 0 | O58: 0
A59: =Scheme_Volume[[#This Row],[Scheme Reference]] -> 0 | B59: =Scheme_Volume[[#This Row],[Asset heading]] -> 0 | C59: =Scheme_Volume[[#This Row],[Asset Category]] -> 0 | D59: =Scheme_Volume[[#This Row],[Asset Sub-Category Primary]] -> 0 | E59: =Scheme_Volume[[#This Row],[Asset Sub-Category Secondary]] -> 0 | F59: =Scheme_Volume[[#This Row],[Voltage / rating]] -> 0 | G59: =Scheme_Volume[[#This Row],[Volume Measure]] -> 0 | H59: =Scheme_Volume[[#This Row],[License Term]] -> 0 | I59: =Scheme_Volume[[#This Row],[Intervention]] -> 0 | J59: =Scheme_Volume[[#This Row],[Units]] -> 0 | L59: 0 | N59: 0 | O59: 0
A60: =Scheme_Volume[[#This Row],[Scheme Reference]] -> 0 | B60: =Scheme_Volume[[#This Row],[Asset heading]] -> 0 | C60: =Scheme_Volume[[#This Row],[Asset Category]] -> 0 | D60: =Scheme_Volume[[#This Row],[Asset Sub-Category Primary]] -> 0 | E60: =Scheme_Volume[[#This Row],[Asset Sub-Category Secondary]] -> 0 | F60: =Scheme_Volume[[#This Row],[Voltage / rating]] -> 0 | G60: =Scheme_Volume[[#This Row],[Volume Measure]] -> 0 | H60: =Scheme_Volume[[#This Row],[License Term]] -> 0 | I60: =Scheme_Volume[[#This Row],[Intervention]] -> 0 | J60: =Scheme_Volume[[#This Row],[Units]] -> 0 | L60: 0 | N60: 0 | O60: 0
A61: =Scheme_Volume[[#This Row],[Scheme Reference]] -> 0 | B61: =Scheme_Volume[[#This Row],[Asset heading]] -> 0 | C61: =Scheme_Volume[[#This Row],[Asset Category]] -> 0 | D61: =Scheme_Volume[[#This Row],[Asset Sub-Category Primary]] -> 0 | E61: =Scheme_Volume[[#This Row],[Asset Sub-Category Secondary]] -> 0 | F61: =Scheme_Volume[[#This Row],[Voltage / rating]] -> 0 | G61: =Scheme_Volume[[#This Row],[Volume Measure]] -> 0 | H61: =Scheme_Volume[[#This Row],[License Term]] -> 0 | I61: =Scheme_Volume[[#This Row],[Intervention]] -> 0 | J61: =Scheme_Volume[[#This Row],[Units]] -> 0 | L61: 0 | N61: 0 | O61: 0
A62: =Scheme_Volume[[#This Row],[Scheme Reference]] -> 0 | B62: =Scheme_Volume[[#This Row],[Asset heading]] -> 0 | C62: =Scheme_Volume[[#This Row],[Asset Category]] -> 0 | D62: =Scheme_Volume[[#This Row],[Asset Sub-Category Primary]] -> 0 | E62: =Scheme_Volume[[#This Row],[Asset Sub-Category Secondary]] -> 0 | F62: =Scheme_Volume[[#This Row],[Voltage / rating]] -> 0 | G62: =Scheme_Volume[[#This Row],[Volume Measure]] -> 0 | H62: =Scheme_Volume[[#This Row],[License Term]] -> 0 | I62: =Scheme_Volume[[#This Row],[Intervention]] -> 0 | J62: =Scheme_Volume[[#This Row],[Units]] -> 0 | L62: 0 | N62: 0 | O62: 0
... 74 more rows

Sheet Scheme_NonAssetCost_Mock_Up
A1: Sheet: | B1: Scheme Non Asset Cost | D1: Data Type: | E1: Volumes | G1: Checks: | H1: ='Checks Sheet'!$C$49 -> All checks passing
A2: Prices Base: 2018/19
A3: Sheet Description:
A4: Scheme Volume Data company inputs sheet.
A6: Key
A7: Select from dropdown | B7: Free Entry | C7: Auto Populated | D7: Check Cell | E7: Lookup Data
A9: Actuals
A11: descriptor_1 | B11: descriptor_2 | C11: descriptor_3 | D11: descriptor_4 | E11: descriptor_5 | F11: descriptor_6 | G11: descriptor_7 | H11: descriptor_8 | I11: descriptor_9 | J11: descriptor_10 | L11: value_1 | M11: value_2 | N11: value_3 | O11: value_3 | P11: value_5 | Q11: value_6 | R11: value_7 | S11: value_8 | T11: value_9 | U11: value_9 | V11: value_9 | W11: value_9 | X11: value_9 | Y11: value_9 | Z11: Customer Contributions (baseline) | AA11: value_10
Z12: Customer Contributions (other)
L13: Total | M13: Total | N13: Total | O13: Total | P13: Total | Q13: Total | R13: Total | S13: Total | T13: Total | U13: Total | V13: Total | W13: Total | X13: Total | Y13: Total | Z13: One-off contribution
L14: =SUM( L17:L10016) -> 0 | M14: 0 | N14: 0 | O14: 0 | P14: 0 | Q14: 0 | R14: 0 | S14: 0 | T14: 0 | U14: 0 | V14: 0 | W14: 0 | X14: 0 | Y14: 0 | Z14: 0
A16: Scheme Reference | B16: Non Asset Cost Type | C16: Scheme Category | D16: Scheme Sub Category | E16: Column4 | F16: Column5 | G16: Column6 | H16: Column7 | I16: Column8 | J16: Column9 | L16: Total | M16: Sub-total RIIO-1 | N16: Sub-total RIIO-2 | O16: Sub-total RIIO-3 | P16: 2021/22 18/19 Prices | Q16: 2022/23 18/19 Prices | R16: 2023/24 18/19 Prices | S16: 2024/25 18/19 Prices | T16: 2025/26 18/19 Prices | U16: 2026/27 18/19 Prices | V16: 2027/28 18/19 Prices | W16: 2028/29 18/19 Prices | X16: 2029/30 18/19 Prices | Y16: 2030/31 18/19 Prices | Z16: 2031/32+ 18/19 Prices | AA16: Narative / Associated Doc Reference
C17: =IF(Scheme_Volume11[[#This Row],[Scheme Reference]]=0, 0, INDEX(Scheme_Meta_Data!$C$14:$C$247, MATCH(Scheme_Volume11[[#This Row],[Scheme Reference]], Scheme_Meta_Data!$A$14:$A$247,0))) -> 0 | D17: =IF(Scheme_Volume11[[#This Row],[Scheme Reference]]=0, 0, INDEX(Scheme_Meta_Data!$D$14:$D$247, MATCH(Scheme_Volume11[[#This Row],[Scheme Reference]], Scheme_Meta_Data!$A$14:$A$247,0))) -> 0 | L17: =SUM(M17, P17:Z17) -> 0 | N17: =SUM(P17:T17) -> 0 | O17: =SUM(U17:Z17) -> 0
C18: =IF(Scheme_Volume11[[#This Row],[Scheme Reference]]=0, 0, INDEX(Scheme_Meta_Data!$C$14:$C$247, MATCH(Scheme_Volume11[[#This Row],[Scheme Reference]], Scheme_Meta_Data!$A$14:$A$247,0))) -> 0 | D18: =IF(Scheme_Volume11[[#This Row],[Scheme Reference]]=0, 0, INDEX(Scheme_Meta_Data!$D$14:$D$247, MATCH(Scheme_Volume11[[#This Row],[Scheme Reference]], Scheme_Meta_Data!$A$14:$A$247,0))) -> 0 | L18: 0 | N18: 0 | O18: 0
C19: =IF(Scheme_Volume11[[#This Row],[Scheme Reference]]=0, 0, INDEX(Scheme_Meta_Data!$C$14:$C$247, MATCH(Scheme_Volume11[[#This Row],[Scheme Reference]], Scheme_Meta_Data!$A$14:$A$247,0))) -> 0 | D19: =IF(Scheme_Volume11[[#This Row],[Scheme Reference]]=0, 0, INDEX(Scheme_Meta_Data!$D$14:$D$247, MATCH(Scheme_Volume11[[#This Row],[Scheme Reference]], Scheme_Meta_Data!$A$14:$A$247,0))) -> 0 | L19: 0 | N19: 0 | O19: 0
C20: =IF(Scheme_Volume11[[#This Row],[Scheme Reference]]=0, 0, INDEX(Scheme_Meta_Data!$C$14:$C$247, MATCH(Scheme_Volume11[[#This Row],[Scheme Reference]], Scheme_Meta_Data!$A$14:$A$247,0))) -> 0 | D20: =IF(Scheme_Volume11[[#This Row],[Scheme Reference]]=0, 0, INDEX(Scheme_Meta_Data!$D$14:$D$247, MATCH(Scheme_Volume11[[#This Row],[Scheme Reference]], Scheme_Meta_Data!$A$14:$A$247,0))) -> 0 | L20: =SUM(M20, P20:Z20) -> 0 | N20: =SUM(P20:T20) -> 0 | O20: =SUM(U20:Z20) -> 0
C21: =IF(Scheme_Volume11[[#This Row],[Scheme Reference]]=0, 0, INDEX(Scheme_Meta_Data!$C$14:$C$247, MATCH(Scheme_Volume11[[#This Row],[Scheme Reference]], Scheme_Meta_Data!$A$14:$A$247,0))) -> 0 | D21: =IF(Scheme_Volume11[[#This Row],[Scheme Reference]]=0, 0, INDEX(Scheme_Meta_Data!$D$14:$D$247, MATCH(Scheme_Volume11[[#This Row],[Scheme Reference]], Scheme_Meta_Data!$A$14:$A$247,0))) -> 0 | L21: 0 | N21: 0 | O21: 0
C22: =IF(Scheme_Volume11[[#This Row],[Scheme Reference]]=0, 0, INDEX(Scheme_Meta_Data!$C$14:$C$247, MATCH(Scheme_Volume11[[#This Row],[Scheme Reference]], Scheme_Meta_Data!$A$14:$A$247,0))) -> 0 | D22: =IF(Scheme_Volume11[[#This Row],[Scheme Reference]]=0, 0, INDEX(Scheme_Meta_Data!$D$14:$D$247, MATCH(Scheme_Volume11[[#This Row],[Scheme Reference]], Scheme_Meta_Data!$A$14:$A$247,0))) -> 0 | L22: 0 | N22: 0 | O22: 0
C23: =IF(Scheme_Volume11[[#This Row],[Scheme Reference]]=0, 0, INDEX(Scheme_Meta_Data!$C$14:$C$247, MATCH(Scheme_Volume11[[#This Row],[Scheme Reference]], Scheme_Meta_Data!$A$14:$A$247,0))) -> 0 | D23: =IF(Scheme_Volume11[[#This Row],[Scheme Reference]]=0, 0, INDEX(Scheme_Meta_Data!$D$14:$D$247, MATCH(Scheme_Volume11[[#This Row],[Scheme Reference]], Scheme_Meta_Data!$A$14:$A$247,0))) -> 0 | L23: 0 | N23: 0 | O23: 0
C24: =IF(Scheme_Volume11[[#This Row],[Scheme Reference]]=0, 0, INDEX(Scheme_Meta_Data!$C$14:$C$247, MATCH(Scheme_Volume11[[#This Row],[Scheme Reference]], Scheme_Meta_Data!$A$14:$A$247,0))) -> 0 | D24: =IF(Scheme_Volume11[[#This Row],[Scheme Reference]]=0, 0, INDEX(Scheme_Meta_Data!$D$14:$D$247, MATCH(Scheme_Volume11[[#This Row],[Scheme Reference]], Scheme_Meta_Data!$A$14:$A$247,0))) -> 0 | L24: 0 | N24: 0 | O24: 0
C25: =IF(Scheme_Volume11[[#This Row],[Scheme Reference]]=0, 0, INDEX(Scheme_Meta_Data!$C$14:$C$247, MATCH(Scheme_Volume11[[#This Row],[Scheme Reference]], Scheme_Meta_Data!$A$14:$A$247,0))) -> 0 | D25: =IF(Scheme_Volume11[[#This Row],[Scheme Reference]]=0, 0, INDEX(Scheme_Meta_Data!$D$14:$D$247, MATCH(Scheme_Volume11[[#This Row],[Scheme Reference]], Scheme_Meta_Data!$A$14:$A$247,0))) -> 0 | L25: 0 | N25: 0 | O25: 0
C26: =IF(Scheme_Volume11[[#This Row],[Scheme Reference]]=0, 0, INDEX(Scheme_Meta_Data!$C$14:$C$247, MATCH(Scheme_Volume11[[#This Row],[Scheme Reference]], Scheme_Meta_Data!$A$14:$A$247,0))) -> 0 | D26: =IF(Scheme_Volume11[[#This Row],[Scheme Reference]]=0, 0, INDEX(Scheme_Meta_Data!$D$14:$D$247, MATCH(Scheme_Volume11[[#This Row],[Scheme Reference]], Scheme_Meta_Data!$A$14:$A$247,0))) -> 0 | L26: 0 | N26: 0 | O26: 0
C27: =IF(Scheme_Volume11[[#This Row],[Scheme Reference]]=0, 0, INDEX(Scheme_Meta_Data!$C$14:$C$247, MATCH(Scheme_Volume11[[#This Row],[Scheme Reference]], Scheme_Meta_Data!$A$14:$A$247,0))) -> 0 | D27: =IF(Scheme_Volume11[[#This Row],[Scheme Reference]]=0, 0, INDEX(Scheme_Meta_Data!$D$14:$D$247, MATCH(Scheme_Volume11[[#This Row],[Scheme Reference]], Scheme_Meta_Data!$A$14:$A$247,0))) -> 0 | L27: 0 | N27: 0 | O27: 0
C28: =IF(Scheme_Volume11[[#This Row],[Scheme Reference]]=0, 0, INDEX(Scheme_Meta_Data!$C$14:$C$247, MATCH(Scheme_Volume11[[#This Row],[Scheme Reference]], Scheme_Meta_Data!$A$14:$A$247,0))) -> 0 | D28: =IF(Scheme_Volume11[[#This Row],[Scheme Reference]]=0, 0, INDEX(Scheme_Meta_Data!$D$14:$D$247, MATCH(Scheme_Volume11[[#This Row],[Scheme Reference]], Scheme_Meta_Data!$A$14:$A$247,0))) -> 0 | L28: 0 | N28: 0 | O28: 0
C29: =IF(Scheme_Volume11[[#This Row],[Scheme Reference]]=0, 0, INDEX(Scheme_Meta_Data!$C$14:$C$247, MATCH(Scheme_Volume11[[#This Row],[Scheme Reference]], Scheme_Meta_Data!$A$14:$A$247,0))) -> 0 | D29: =IF(Scheme_Volume11[[#This Row],[Scheme Reference]]=0, 0, INDEX(Scheme_Meta_Data!$D$14:$D$247, MATCH(Scheme_Volume11[[#This Row],[Scheme Reference]], Scheme_Meta_Data!$A$14:$A$247,0))) -> 0 | L29: 0 | N29: 0 | O29: 0
C30: =IF(Scheme_Volume11[[#This Row],[Scheme Reference]]=0, 0, INDEX(Scheme_Meta_Data!$C$14:$C$247, MATCH(Scheme_Volume11[[#This Row],[Scheme Reference]], Scheme_Meta_Data!$A$14:$A$247,0))) -> 0 | D30: =IF(Scheme_Volume11[[#This Row],[Scheme Reference]]=0, 0, INDEX(Scheme_Meta_Data!$D$14:$D$247, MATCH(Scheme_Volume11[[#This Row],[Scheme Reference]], Scheme_Meta_Data!$A$14:$A$247,0))) -> 0 | L30: 0 | N30: 0 | O30: 0
C31: =IF(Scheme_Volume11[[#This Row],[Scheme Reference]]=0, 0, INDEX(Scheme_Meta_Data!$C$14:$C$247, MATCH(Scheme_Volume11[[#This Row],[Scheme Reference]], Scheme_Meta_Data!$A$14:$A$247,0))) -> 0 | D31: =IF(Scheme_Volume11[[#This Row],[Scheme Reference]]=0, 0, INDEX(Scheme_Meta_Data!$D$14:$D$247, MATCH(Scheme_Volume11[[#This Row],[Scheme Reference]], Scheme_Meta_Data!$A$14:$A$247,0))) -> 0 | L31: 0 | N31: 0 | O31: 0
C32: =IF(Scheme_Volume11[[#This Row],[Scheme Reference]]=0, 0, INDEX(Scheme_Meta_Data!$C$14:$C$247, MATCH(Scheme_Volume11[[#This Row],[Scheme Reference]], Scheme_Meta_Data!$A$14:$A$247,0))) -> 0 | D32: =IF(Scheme_Volume11[[#This Row],[Scheme Reference]]=0, 0, INDEX(Scheme_Meta_Data!$D$14:$D$247, MATCH(Scheme_Volume11[[#This Row],[Scheme Reference]], Scheme_Meta_Data!$A$14:$A$247,0))) -> 0 | L32: 0 | N32: 0 | O32: 0
C33: =IF(Scheme_Volume11[[#This Row],[Scheme Reference]]=0, 0, INDEX(Scheme_Meta_Data!$C$14:$C$247, MATCH(Scheme_Volume11[[#This Row],[Scheme Reference]], Scheme_Meta_Data!$A$14:$A$247,0))) -> 0 | D33: =IF(Scheme_Volume11[[#This Row],[Scheme Reference]]=0, 0, INDEX(Scheme_Meta_Data!$D$14:$D$247, MATCH(Scheme_Volume11[[#This Row],[Scheme Reference]], Scheme_Meta_Data!$A$14:$A$247,0))) -> 0 | L33: 0 | N33: 0 | O33: 0
C34: =IF(Scheme_Volume11[[#This Row],[Scheme Reference]]=0, 0, INDEX(Scheme_Meta_Data!$C$14:$C$247, MATCH(Scheme_Volume11[[#This Row],[Scheme Reference]], Scheme_Meta_Data!$A$14:$A$247,0))) -> 0 | D34: =IF(Scheme_Volume11[[#This Row],[Scheme Reference]]=0, 0, INDEX(Scheme_Meta_Data!$D$14:$D$247, MATCH(Scheme_Volume11[[#This Row],[Scheme Reference]], Scheme_Meta_Data!$A$14:$A$247,0))) -> 0 | L34: 0 | N34: 0 | O34: 0
C35: =IF(Scheme_Volume11[[#This Row],[Scheme Reference]]=0, 0, INDEX(Scheme_Meta_Data!$C$14:$C$247, MATCH(Scheme_Volume11[[#This Row],[Scheme Reference]], Scheme_Meta_Data!$A$14:$A$247,0))) -> 0 | D35: =IF(Scheme_Volume11[[#This Row],[Scheme Reference]]=0, 0, INDEX(Scheme_Meta_Data!$D$14:$D$247, MATCH(Scheme_Volume11[[#This Row],[Scheme Reference]], Scheme_Meta_Data!$A$14:$A$247,0))) -> 0 | L35: 0 | N35: 0 | O35: 0
C36: =IF(Scheme_Volume11[[#This Row],[Scheme Reference]]=0, 0, INDEX(Scheme_Meta_Data!$C$14:$C$247, MATCH(Scheme_Volume11[[#This Row],[Scheme Reference]], Scheme_Meta_Data!$A$14:$A$247,0))) -> 0 | D36: =IF(Scheme_Volume11[[#This Row],[Scheme Reference]]=0, 0, INDEX(Scheme_Meta_Data!$D$14:$D$247, MATCH(Scheme_Volume11[[#This Row],[Scheme Reference]], Scheme_Meta_Data!$A$14:$A$247,0))) -> 0 | L36: 0 | N36: 0 | O36: 0
C37: =IF(Scheme_Volume11[[#This Row],[Scheme Reference]]=0, 0, INDEX(Scheme_Meta_Data!$C$14:$C$247, MATCH(Scheme_Volume11[[#This Row],[Scheme Reference]], Scheme_Meta_Data!$A$14:$A$247,0))) -> 0 | D37: =IF(Scheme_Volume11[[#This Row],[Scheme Reference]]=0, 0, INDEX(Scheme_Meta_Data!$D$14:$D$247, MATCH(Scheme_Volume11[[#This Row],[Scheme Reference]], Scheme_Meta_Data!$A$14:$A$247,0))) -> 0 | L37: 0 | N37: 0 | O37: 0
C38: =IF(Scheme_Volume11[[#This Row],[Scheme Reference]]=0, 0, INDEX(Scheme_Meta_Data!$C$14:$C$247, MATCH(Scheme_Volume11[[#This Row],[Scheme Reference]], Scheme_Meta_Data!$A$14:$A$247,0))) -> 0 | D38: =IF(Scheme_Volume11[[#This Row],[Scheme Reference]]=0, 0, INDEX(Scheme_Meta_Data!$D$14:$D$247, MATCH(Scheme_Volume11[[#This Row],[Scheme Reference]], Scheme_Meta_Data!$A$14:$A$247,0))) -> 0 | L38: 0 | N38: 0 | O38: 0
C39: =IF(Scheme_Volume11[[#This Row],[Scheme Reference]]=0, 0, INDEX(Scheme_Meta_Data!$C$14:$C$247, MATCH(Scheme_Volume11[[#This Row],[Scheme Reference]], Scheme_Meta_Data!$A$14:$A$247,0))) -> 0 | D39: =IF(Scheme_Volume11[[#This Row],[Scheme Reference]]=0, 0, INDEX(Scheme_Meta_Data!$D$14:$D$247, MATCH(Scheme_Volume11[[#This Row],[Scheme Reference]], Scheme_Meta_Data!$A$14:$A$247,0))) -> 0 | L39: 0 | N39: 0 | O39: 0
C40: =IF(Scheme_Volume11[[#This Row],[Scheme Reference]]=0, 0, INDEX(Scheme_Meta_Data!$C$14:$C$247, MATCH(Scheme_Volume11[[#This Row],[Scheme Reference]], Scheme_Meta_Data!$A$14:$A$247,0))) -> 0 | D40: =IF(Scheme_Volume11[[#This Row],[Scheme Reference]]=0, 0, INDEX(Scheme_Meta_Data!$D$14:$D$247, MATCH(Scheme_Volume11[[#This Row],[Scheme Reference]], Scheme_Meta_Data!$A$14:$A$247,0))) -> 0 | L40: 0 | N40: 0 | O40: 0
C41: =IF(Scheme_Volume11[[#This Row],[Scheme Reference]]=0, 0, INDEX(Scheme_Meta_Data!$C$14:$C$247, MATCH(Scheme_Volume11[[#This Row],[Scheme Reference]], Scheme_Meta_Data!$A$14:$A$247,0))) -> 0 | D41: =IF(Scheme_Volume11[[#This Row],[Scheme Reference]]=0, 0, INDEX(Scheme_Meta_Data!$D$14:$D$247, MATCH(Scheme_Volume11[[#This Row],[Scheme Reference]], Scheme_Meta_Data!$A$14:$A$247,0))) -> 0 | L41: 0 | N41: 0 | O41: 0
C42: =IF(Scheme_Volume11[[#This Row],[Scheme Reference]]=0, 0, INDEX(Scheme_Meta_Data!$C$14:$C$247, MATCH(Scheme_Volume11[[#This Row],[Scheme Reference]], Scheme_Meta_Data!$A$14:$A$247,0))) -> 0 | D42: =IF(Scheme_Volume11[[#This Row],[Scheme Reference]]=0, 0, INDEX(Scheme_Meta_Data!$D$14:$D$247, MATCH(Scheme_Volume11[[#This Row],[Scheme Reference]], Scheme_Meta_Data!$A$14:$A$247,0))) -> 0 | L42: 0 | N42: 0 | O42: 0
C43: =IF(Scheme_Volume11[[#This Row],[Scheme Reference]]=0, 0, INDEX(Scheme_Meta_Data!$C$14:$C$247, MATCH(Scheme_Volume11[[#This Row],[Scheme Reference]], Scheme_Meta_Data!$A$14:$A$247,0))) -> 0 | D43: =IF(Scheme_Volume11[[#This Row],[Scheme Reference]]=0, 0, INDEX(Scheme_Meta_Data!$D$14:$D$247, MATCH(Scheme_Volume11[[#This Row],[Scheme Reference]], Scheme_Meta_Data!$A$14:$A$247,0))) -> 0 | L43: 0 | N43: 0 | O43: 0
C44: =IF(Scheme_Volume11[[#This Row],[Scheme Reference]]=0, 0, INDEX(Scheme_Meta_Data!$C$14:$C$247, MATCH(Scheme_Volume11[[#This Row],[Scheme Reference]], Scheme_Meta_Data!$A$14:$A$247,0))) -> 0 | D44: =IF(Scheme_Volume11[[#This Row],[Scheme Reference]]=0, 0, INDEX(Scheme_Meta_Data!$D$14:$D$247, MATCH(Scheme_Volume11[[#This Row],[Scheme Reference]], Scheme_Meta_Data!$A$14:$A$247,0))) -> 0 | L44: 0 | N44: 0 | O44: 0
C45: =IF(Scheme_Volume11[[#This Row],[Scheme Reference]]=0, 0, INDEX(Scheme_Meta_Data!$C$14:$C$247, MATCH(Scheme_Volume11[[#This Row],[Scheme Reference]], Scheme_Meta_Data!$A$14:$A$247,0))) -> 0 | D45: =IF(Scheme_Volume11[[#This Row],[Scheme Reference]]=0, 0, INDEX(Scheme_Meta_Data!$D$14:$D$247, MATCH(Scheme_Volume11[[#This Row],[Scheme Reference]], Scheme_Meta_Data!$A$14:$A$247,0))) -> 0 | L45: 0 | N45: 0 | O45: 0
C46: =IF(Scheme_Volume11[[#This Row],[Scheme Reference]]=0, 0, INDEX(Scheme_Meta_Data!$C$14:$C$247, MATCH(Scheme_Volume11[[#This Row],[Scheme Reference]], Scheme_Meta_Data!$A$14:$A$247,0))) -> 0 | D46: =IF(Scheme_Volume11[[#This Row],[Scheme Reference]]=0, 0, INDEX(Scheme_Meta_Data!$D$14:$D$247, MATCH(Scheme_Volume11[[#This Row],[Scheme Reference]], Scheme_Meta_Data!$A$14:$A$247,0))) -> 0 | L46: 0 | N46: 0 | O46: 0
C47: =IF(Scheme_Volume11[[#This Row],[Scheme Reference]]=0, 0, INDEX(Scheme_Meta_Data!$C$14:$C$247, MATCH(Scheme_Volume11[[#This Row],[Scheme Reference]], Scheme_Meta_Data!$A$14:$A$247,0))) -> 0 | D47: =IF(Scheme_Volume11[[#This Row],[Scheme Reference]]=0, 0, INDEX(Scheme_Meta_Data!$D$14:$D$247, MATCH(Scheme_Volume11[[#This Row],[Scheme Reference]], Scheme_Meta_Data!$A$14:$A$247,0))) -> 0 | L47: 0 | N47: 0 | O47: 0
C48: =IF(Scheme_Volume11[[#This Row],[Scheme Reference]]=0, 0, INDEX(Scheme_Meta_Data!$C$14:$C$247, MATCH(Scheme_Volume11[[#This Row],[Scheme Reference]], Scheme_Meta_Data!$A$14:$A$247,0))) -> 0 | D48: =IF(Scheme_Volume11[[#This Row],[Scheme Reference]]=0, 0, INDEX(Scheme_Meta_Data!$D$14:$D$247, MATCH(Scheme_Volume11[[#This Row],[Scheme Reference]], Scheme_Meta_Data!$A$14:$A$247,0))) -> 0 | L48: 0 | N48: 0 | O48: 0
C49: =IF(Scheme_Volume11[[#This Row],[Scheme Reference]]=0, 0, INDEX(Scheme_Meta_Data!$C$14:$C$247, MATCH(Scheme_Volume11[[#This Row],[Scheme Reference]], Scheme_Meta_Data!$A$14:$A$247,0))) -> 0 | D49: =IF(Scheme_Volume11[[#This Row],[Scheme Reference]]=0, 0, INDEX(Scheme_Meta_Data!$D$14:$D$247, MATCH(Scheme_Volume11[[#This Row],[Scheme Reference]], Scheme_Meta_Data!$A$14:$A$247,0))) -> 0 | L49: 0 | N49: 0 | O49: 0
C50: =IF(Scheme_Volume11[[#This Row],[Scheme Reference]]=0, 0, INDEX(Scheme_Meta_Data!$C$14:$C$247, MATCH(Scheme_Volume11[[#This Row],[Scheme Reference]], Scheme_Meta_Data!$A$14:$A$247,0))) -> 0 | D50: =IF(Scheme_Volume11[[#This Row],[Scheme Reference]]=0, 0, INDEX(Scheme_Meta_Data!$D$14:$D$247, MATCH(Scheme_Volume11[[#This Row],[Scheme Reference]], Scheme_Meta_Data!$A$14:$A$247,0))) -> 0 | L50: 0 | N50: 0 | O50: 0
C51: =IF(Scheme_Volume11[[#This Row],[Scheme Reference]]=0, 0, INDEX(Scheme_Meta_Data!$C$14:$C$247, MATCH(Scheme_Volume11[[#This Row],[Scheme Reference]], Scheme_Meta_Data!$A$14:$A$247,0))) -> 0 | D51: =IF(Scheme_Volume11[[#This Row],[Scheme Reference]]=0, 0, INDEX(Scheme_Meta_Data!$D$14:$D$247, MATCH(Scheme_Volume11[[#This Row],[Scheme Reference]], Scheme_Meta_Data!$A$14:$A$247,0))) -> 0 | L51: 0 | N51: 0 | O51: 0
C52: =IF(Scheme_Volume11[[#This Row],[Scheme Reference]]=0, 0, INDEX(Scheme_Meta_Data!$C$14:$C$247, MATCH(Scheme_Volume11[[#This Row],[Scheme Reference]], Scheme_Meta_Data!$A$14:$A$247,0))) -> 0 | D52: =IF(Scheme_Volume11[[#This Row],[Scheme Reference]]=0, 0, INDEX(Scheme_Meta_Data!$D$14:$D$247, MATCH(Scheme_Volume11[[#This Row],[Scheme Reference]], Scheme_Meta_Data!$A$14:$A$247,0))) -> 0 | L52: 0 | N52: 0 | O52: 0
C53: =IF(Scheme_Volume11[[#This Row],[Scheme Reference]]=0, 0, INDEX(Scheme_Meta_Data!$C$14:$C$247, MATCH(Scheme_Volume11[[#This Row],[Scheme Reference]], Scheme_Meta_Data!$A$14:$A$247,0))) -> 0 | D53: =IF(Scheme_Volume11[[#This Row],[Scheme Reference]]=0, 0, INDEX(Scheme_Meta_Data!$D$14:$D$247, MATCH(Scheme_Volume11[[#This Row],[Scheme Reference]], Scheme_Meta_Data!$A$14:$A$247,0))) -> 0 | L53: 0 | N53: 0 | O53: 0
C54: =IF(Scheme_Volume11[[#This Row],[Scheme Reference]]=0, 0, INDEX(Scheme_Meta_Data!$C$14:$C$247, MATCH(Scheme_Volume11[[#This Row],[Scheme Reference]], Scheme_Meta_Data!$A$14:$A$247,0))) -> 0 | D54: =IF(Scheme_Volume11[[#This Row],[Scheme Reference]]=0, 0, INDEX(Scheme_Meta_Data!$D$14:$D$247, MATCH(Scheme_Volume11[[#This Row],[Scheme Reference]], Scheme_Meta_Data!$A$14:$A$247,0))) -> 0 | L54: 0 | N54: 0 | O54: 0
C55: =IF(Scheme_Volume11[[#This Row],[Scheme Reference]]=0, 0, INDEX(Scheme_Meta_Data!$C$14:$C$247, MATCH(Scheme_Volume11[[#This Row],[Scheme Reference]], Scheme_Meta_Data!$A$14:$A$247,0))) -> 0 | D55: =IF(Scheme_Volume11[[#This Row],[Scheme Reference]]=0, 0, INDEX(Scheme_Meta_Data!$D$14:$D$247, MATCH(Scheme_Volume11[[#This Row],[Scheme Reference]], Scheme_Meta_Data!$A$14:$A$247,0))) -> 0 | L55: 0 | N55: 0 | O55: 0
C56: =IF(Scheme_Volume11[[#This Row],[Scheme Reference]]=0, 0, INDEX(Scheme_Meta_Data!$C$14:$C$247, MATCH(Scheme_Volume11[[#This Row],[Scheme Reference]], Scheme_Meta_Data!$A$14:$A$247,0))) -> 0 | D56: =IF(Scheme_Volume11[[#This Row],[Scheme Reference]]=0, 0, INDEX(Scheme_Meta_Data!$D$14:$D$247, MATCH(Scheme_Volume11[[#This Row],[Scheme Reference]], Scheme_Meta_Data!$A$14:$A$247,0))) -> 0 | L56: 0 | N56: 0 | O56: 0
C57: =IF(Scheme_Volume11[[#This Row],[Scheme Reference]]=0, 0, INDEX(Scheme_Meta_Data!$C$14:$C$247, MATCH(Scheme_Volume11[[#This Row],[Scheme Reference]], Scheme_Meta_Data!$A$14:$A$247,0))) -> 0 | D57: =IF(Scheme_Volume11[[#This Row],[Scheme Reference]]=0, 0, INDEX(Scheme_Meta_Data!$D$14:$D$247, MATCH(Scheme_Volume11[[#This Row],[Scheme Reference]], Scheme_Meta_Data!$A$14:$A$247,0))) -> 0 | L57: 0 | N57: 0 | O57: 0
C58: =IF(Scheme_Volume11[[#This Row],[Scheme Reference]]=0, 0, INDEX(Scheme_Meta_Data!$C$14:$C$247, MATCH(Scheme_Volume11[[#This Row],[Scheme Reference]], Scheme_Meta_Data!$A$14:$A$247,0))) -> 0 | D58: =IF(Scheme_Volume11[[#This Row],[Scheme Reference]]=0, 0, INDEX(Scheme_Meta_Data!$D$14:$D$247, MATCH(Scheme_Volume11[[#This Row],[Scheme Reference]], Scheme_Meta_Data!$A$14:$A$247,0))) -> 0 | L58: 0 | N58: 0 | O58: 0
C59: =IF(Scheme_Volume11[[#This Row],[Scheme Reference]]=0, 0, INDEX(Scheme_Meta_Data!$C$14:$C$247, MATCH(Scheme_Volume11[[#This Row],[Scheme Reference]], Scheme_Meta_Data!$A$14:$A$247,0))) -> 0 | D59: =IF(Scheme_Volume11[[#This Row],[Scheme Reference]]=0, 0, INDEX(Scheme_Meta_Data!$D$14:$D$247, MATCH(Scheme_Volume11[[#This Row],[Scheme Reference]], Scheme_Meta_Data!$A$14:$A$247,0))) -> 0 | L59: 0 | N59: 0 | O59: 0
C60: =IF(Scheme_Volume11[[#This Row],[Scheme Reference]]=0, 0, INDEX(Scheme_Meta_Data!$C$14:$C$247, MATCH(Scheme_Volume11[[#This Row],[Scheme Reference]], Scheme_Meta_Data!$A$14:$A$247,0))) -> 0 | D60: =IF(Scheme_Volume11[[#This Row],[Scheme Reference]]=0, 0, INDEX(Scheme_Meta_Data!$D$14:$D$247, MATCH(Scheme_Volume11[[#This Row],[Scheme Reference]], Scheme_Meta_Data!$A$14:$A$247,0))) -> 0 | L60: 0 | N60: 0 | O60: 0
C61: =IF(Scheme_Volume11[[#This Row],[Scheme Reference]]=0, 0, INDEX(Scheme_Meta_Data!$C$14:$C$247, MATCH(Scheme_Volume11[[#This Row],[Scheme Reference]], Scheme_Meta_Data!$A$14:$A$247,0))) -> 0 | D61: =IF(Scheme_Volume11[[#This Row],[Scheme Reference]]=0, 0, INDEX(Scheme_Meta_Data!$D$14:$D$247, MATCH(Scheme_Volume11[[#This Row],[Scheme Reference]], Scheme_Meta_Data!$A$14:$A$247,0))) -> 0 | L61: 0 | N61: 0 | O61: 0
C62: =IF(Scheme_Volume11[[#This Row],[Scheme Reference]]=0, 0, INDEX(Scheme_Meta_Data!$C$14:$C$247, MATCH(Scheme_Volume11[[#This Row],[Scheme Reference]], Scheme_Meta_Data!$A$14:$A$247,0))) -> 0 | D62: =IF(Scheme_Volume11[[#This Row],[Scheme Reference]]=0, 0, INDEX(Scheme_Meta_Data!$D$14:$D$247, MATCH(Scheme_Volume11[[#This Row],[Scheme Reference]], Scheme_Meta_Data!$A$14:$A$247,0))) -> 0 | L62: 0 | N62: 0 | O62: 0
... 74 more rows

Sheet Scheme_Output_Mock_Up
A1: Sheet: | B1: Scheme Outputs | D1: Data Type: | E1: Outputs | G1: Checks: | H1: ='Checks Sheet'!$C$49 -> All checks passing
A3: Sheet Description:
A4: Scheme Output company inputs sheet.
A6: Key
A7: Select from dropdown | B7: Free Entry | C7: Auto Populated | D7: Check Cell | E7: Lookup Data
W9: =AND(W14:W1098) -> TRUE | X9: =AND(X14:X1098) -> TRUE | Y9: =AND(Y14:Y1098) -> TRUE | Z9: =AND(Z14:Z1098) -> TRUE | AA9: =AND(AA14:AA1098) -> TRUE
A11: descriptor_1 | B11: descriptor_2 | C11: descriptor_3 | D11: descriptor_4 | E11: descriptor_5 | F11: descriptor_6 | G11: descriptor_7 | H11: descriptor_8 | I11: descriptor_9 | J11: descriptor_10 | L11: value_1 | M11: value_2 | N11: value_3 | O11: value_4 | P11: value_5 | Q11: value_6 | R11: value_7 | S11: value_8 | T11: value_9 | U11: value_10 | W11: Checks | Z11: Customer Contributions (baseline)
Z12: Customer Contributions (other)
A13: Scheme Reference | B13: Mechanism Type | C13: Mechanism | D13: Licence Term | E13: Boundary Name | F13: Project Reference | G13: Boundary Name 2 | H13: Spare3 | I13: Spare4 | J13: Units | L13: 2021/22 Output Value | M13: 2022/23 Output Value | N13: 2023/24 Output Value | O13: 2024/25 Output Value | P13: 2025/26 Output Value | Q13: 2026/27 Output Value | R13: 2027/28 Output Value | S13: Spare12 | T13: Spare13 | U13: Narative / Associated Doc Reference | W13: Scheme Reference | X13: Mechanism Type | Y13: Mechanism | Z13: One-off contribution | AA13: Units
F14: =IF(ISBLANK(Scheme_Output[[#This Row],[Scheme Reference]]), 0, INDEX(Scheme_Meta_Data!$B$14:$B$247,MATCH(Scheme_Output[[#This Row],[Scheme Reference]],Scheme_Meta_Data!$A$14:$A$247,0))) -> 0 | W14: =IF(ISBLANK(A14),TRUE,NOT(ISERROR(MATCH(A14,'Look Up Tables'!$A$11:$A$510,0)))) -> TRUE | X14: =IF(ISBLANK(A14),TRUE,NOT(ISERROR(MATCH(B14,'Look Up Tables'!$R$11:$R$510,0)))) -> TRUE | Y14: =IF(ISBLANK(A14),TRUE,NOT(ISERROR(MATCH(C14,'Look Up Tables'!$S$11:$S$510,0)))) -> TRUE | Z14: =IF(ISBLANK(A14),TRUE,NOT(ISERROR(MATCH(D14,'Look Up Tables'!$T$11:$T$510,0)))) -> TRUE | AA14: =IF(ISBLANK(A14),TRUE,NOT(ISERROR(MATCH(J14,'Look Up Tables'!$I$11:$I$510,0)))) -> TRUE
F15: =IF(ISBLANK(Scheme_Output[[#This Row],[Scheme Reference]]), 0, INDEX(Scheme_Meta_Data!$B$14:$B$247,MATCH(Scheme_Output[[#This Row],[Scheme Reference]],Scheme_Meta_Data!$A$14:$A$247,0))) -> 0 | W15: =IF(ISBLANK(A15),TRUE,NOT(ISERROR(MATCH(A15,'Look Up Tables'!$A$11:$A$510,0)))) -> TRUE | X15: =IF(ISBLANK(A15),TRUE,NOT(ISERROR(MATCH(B15,'Look Up Tables'!$R$11:$R$510,0)))) -> TRUE | Y15: =IF(ISBLANK(A15),TRUE,NOT(ISERROR(MATCH(C15,'Look Up Tables'!$S$11:$S$510,0)))) -> TRUE | Z15: =IF(ISBLANK(A15),TRUE,NOT(ISERROR(MATCH(D15,'Look Up Tables'!$T$11:$T$510,0)))) -> TRUE | AA15: =IF(ISBLANK(A15),TRUE,NOT(ISERROR(MATCH(J15,'Look Up Tables'!$I$11:$I$510,0)))) -> TRUE
F16: =IF(ISBLANK(Scheme_Output[[#This Row],[Scheme Reference]]), 0, INDEX(Scheme_Meta_Data!$B$14:$B$247,MATCH(Scheme_Output[[#This Row],[Scheme Reference]],Scheme_Meta_Data!$A$14:$A$247,0))) -> 0 | W16: =IF(ISBLANK(A16),TRUE,NOT(ISERROR(MATCH(A16,'Look Up Tables'!$A$11:$A$510,0)))) -> TRUE | X16: =IF(ISBLANK(A16),TRUE,NOT(ISERROR(MATCH(B16,'Look Up Tables'!$R$11:$R$510,0)))) -> TRUE | Y16: =IF(ISBLANK(A16),TRUE,NOT(ISERROR(MATCH(C16,'Look Up Tables'!$S$11:$S$510,0)))) -> TRUE | Z16: =IF(ISBLANK(A16),TRUE,NOT(ISERROR(MATCH(D16,'Look Up Tables'!$T$11:$T$510,0)))) -> TRUE | AA16: =IF(ISBLANK(A16),TRUE,NOT(ISERROR(MATCH(J16,'Look Up Tables'!$I$11:$I$510,0)))) -> TRUE
F17: =IF(ISBLANK(Scheme_Output[[#This Row],[Scheme Reference]]), 0, INDEX(Scheme_Meta_Data!$B$14:$B$247,MATCH(Scheme_Output[[#This Row],[Scheme Reference]],Scheme_Meta_Data!$A$14:$A$247,0))) -> 0 | W17: =IF(ISBLANK(A17),TRUE,NOT(ISERROR(MATCH(A17,'Look Up Tables'!$A$11:$A$510,0)))) -> TRUE | X17: =IF(ISBLANK(A17),TRUE,NOT(ISERROR(MATCH(B17,'Look Up Tables'!$R$11:$R$510,0)))) -> TRUE | Y17: =IF(ISBLANK(A17),TRUE,NOT(ISERROR(MATCH(C17,'Look Up Tables'!$S$11:$S$510,0)))) -> TRUE | Z17: =IF(ISBLANK(A17),TRUE,NOT(ISERROR(MATCH(D17,'Look Up Tables'!$T$11:$T$510,0)))) -> TRUE | AA17: =IF(ISBLANK(A17),TRUE,NOT(ISERROR(MATCH(J17,'Look Up Tables'!$I$11:$I$510,0)))) -> TRUE
F18: =IF(ISBLANK(Scheme_Output[[#This Row],[Scheme Reference]]), 0, INDEX(Scheme_Meta_Data!$B$14:$B$247,MATCH(Scheme_Output[[#This Row],[Scheme Reference]],Scheme_Meta_Data!$A$14:$A$247,0))) -> 0 | W18: =IF(ISBLANK(A18),TRUE,NOT(ISERROR(MATCH(A18,'Look Up Tables'!$A$11:$A$510,0)))) -> TRUE | X18: =IF(ISBLANK(A18),TRUE,NOT(ISERROR(MATCH(B18,'Look Up Tables'!$R$11:$R$510,0)))) -> TRUE | Y18: =IF(ISBLANK(A18),TRUE,NOT(ISERROR(MATCH(C18,'Look Up Tables'!$S$11:$S$510,0)))) -> TRUE | Z18: =IF(ISBLANK(A18),TRUE,NOT(ISERROR(MATCH(D18,'Look Up Tables'!$T$11:$T$510,0)))) -> TRUE | AA18: =IF(ISBLANK(A18),TRUE,NOT(ISERROR(MATCH(J18,'Look Up Tables'!$I$11:$I$510,0)))) -> TRUE
F19: =IF(ISBLANK(Scheme_Output[[#This Row],[Scheme Reference]]), 0, INDEX(Scheme_Meta_Data!$B$14:$B$247,MATCH(Scheme_Output[[#This Row],[Scheme Reference]],Scheme_Meta_Data!$A$14:$A$247,0))) -> 0 | W19: =IF(ISBLANK(A19),TRUE,NOT(ISERROR(MATCH(A19,'Look Up Tables'!$A$11:$A$510,0)))) -> TRUE | X19: =IF(ISBLANK(A19),TRUE,NOT(ISERROR(MATCH(B19,'Look Up Tables'!$R$11:$R$510,0)))) -> TRUE | Y19: =IF(ISBLANK(A19),TRUE,NOT(ISERROR(MATCH(C19,'Look Up Tables'!$S$11:$S$510,0)))) -> TRUE | Z19: =IF(ISBLANK(A19),TRUE,NOT(ISERROR(MATCH(D19,'Look Up Tables'!$T$11:$T$510,0)))) -> TRUE | AA19: =IF(ISBLANK(A19),TRUE,NOT(ISERROR(MATCH(J19,'Look Up Tables'!$I$11:$I$510,0)))) -> TRUE
F20: =IF(ISBLANK(Scheme_Output[[#This Row],[Scheme Reference]]), 0, INDEX(Scheme_Meta_Data!$B$14:$B$247,MATCH(Scheme_Output[[#This Row],[Scheme Reference]],Scheme_Meta_Data!$A$14:$A$247,0))) -> 0 | W20: =IF(ISBLANK(A20),TRUE,NOT(ISERROR(MATCH(A20,'Look Up Tables'!$A$11:$A$510,0)))) -> TRUE | X20: =IF(ISBLANK(A20),TRUE,NOT(ISERROR(MATCH(B20,'Look Up Tables'!$R$11:$R$510,0)))) -> TRUE | Y20: =IF(ISBLANK(A20),TRUE,NOT(ISERROR(MATCH(C20,'Look Up Tables'!$S$11:$S$510,0)))) -> TRUE | Z20: =IF(ISBLANK(A20),TRUE,NOT(ISERROR(MATCH(D20,'Look Up Tables'!$T$11:$T$510,0)))) -> TRUE | AA20: =IF(ISBLANK(A20),TRUE,NOT(ISERROR(MATCH(J20,'Look Up Tables'!$I$11:$I$510,0)))) -> TRUE
F21: =IF(ISBLANK(Scheme_Output[[#This Row],[Scheme Reference]]), 0, INDEX(Scheme_Meta_Data!$B$14:$B$247,MATCH(Scheme_Output[[#This Row],[Scheme Reference]],Scheme_Meta_Data!$A$14:$A$247,0))) -> 0 | W21: =IF(ISBLANK(A21),TRUE,NOT(ISERROR(MATCH(A21,'Look Up Tables'!$A$11:$A$510,0)))) -> TRUE | X21: =IF(ISBLANK(A21),TRUE,NOT(ISERROR(MATCH(B21,'Look Up Tables'!$R$11:$R$510,0)))) -> TRUE | Y21: =IF(ISBLANK(A21),TRUE,NOT(ISERROR(MATCH(C21,'Look Up Tables'!$S$11:$S$510,0)))) -> TRUE | Z21: =IF(ISBLANK(A21),TRUE,NOT(ISERROR(MATCH(D21,'Look Up Tables'!$T$11:$T$510,0)))) -> TRUE | AA21: =IF(ISBLANK(A21),TRUE,NOT(ISERROR(MATCH(J21,'Look Up Tables'!$I$11:$I$510,0)))) -> TRUE
F22: =IF(ISBLANK(Scheme_Output[[#This Row],[Scheme Reference]]), 0, INDEX(Scheme_Meta_Data!$B$14:$B$247,MATCH(Scheme_Output[[#This Row],[Scheme Reference]],Scheme_Meta_Data!$A$14:$A$247,0))) -> 0 | W22: =IF(ISBLANK(A22),TRUE,NOT(ISERROR(MATCH(A22,'Look Up Tables'!$A$11:$A$510,0)))) -> TRUE | X22: =IF(ISBLANK(A22),TRUE,NOT(ISERROR(MATCH(B22,'Look Up Tables'!$R$11:$R$510,0)))) -> TRUE | Y22: =IF(ISBLANK(A22),TRUE,NOT(ISERROR(MATCH(C22,'Look Up Tables'!$S$11:$S$510,0)))) -> TRUE | Z22: =IF(ISBLANK(A22),TRUE,NOT(ISERROR(MATCH(D22,'Look Up Tables'!$T$11:$T$510,0)))) -> TRUE | AA22: =IF(ISBLANK(A22),TRUE,NOT(ISERROR(MATCH(J22,'Look Up Tables'!$I$11:$I$510,0)))) -> TRUE
F23: =IF(ISBLANK(Scheme_Output[[#This Row],[Scheme Reference]]), 0, INDEX(Scheme_Meta_Data!$B$14:$B$247,MATCH(Scheme_Output[[#This Row],[Scheme Reference]],Scheme_Meta_Data!$A$14:$A$247,0))) -> 0 | W23: =IF(ISBLANK(A23),TRUE,NOT(ISERROR(MATCH(A23,'Look Up Tables'!$A$11:$A$510,0)))) -> TRUE | X23: =IF(ISBLANK(A23),TRUE,NOT(ISERROR(MATCH(B23,'Look Up Tables'!$R$11:$R$510,0)))) -> TRUE | Y23: =IF(ISBLANK(A23),TRUE,NOT(ISERROR(MATCH(C23,'Look Up Tables'!$S$11:$S$510,0)))) -> TRUE | Z23: =IF(ISBLANK(A23),TRUE,NOT(ISERROR(MATCH(D23,'Look Up Tables'!$T$11:$T$510,0)))) -> TRUE | AA23: =IF(ISBLANK(A23),TRUE,NOT(ISERROR(MATCH(J23,'Look Up Tables'!$I$11:$I$510,0)))) -> TRUE
F24: =IF(ISBLANK(Scheme_Output[[#This Row],[Scheme Reference]]), 0, INDEX(Scheme_Meta_Data!$B$14:$B$247,MATCH(Scheme_Output[[#This Row],[Scheme Reference]],Scheme_Meta_Data!$A$14:$A$247,0))) -> 0 | W24: =IF(ISBLANK(A24),TRUE,NOT(ISERROR(MATCH(A24,'Look Up Tables'!$A$11:$A$510,0)))) -> TRUE | X24: =IF(ISBLANK(A24),TRUE,NOT(ISERROR(MATCH(B24,'Look Up Tables'!$R$11:$R$510,0)))) -> TRUE | Y24: =IF(ISBLANK(A24),TRUE,NOT(ISERROR(MATCH(C24,'Look Up Tables'!$S$11:$S$510,0)))) -> TRUE | Z24: =IF(ISBLANK(A24),TRUE,NOT(ISERROR(MATCH(D24,'Look Up Tables'!$T$11:$T$510,0)))) -> TRUE | AA24: =IF(ISBLANK(A24),TRUE,NOT(ISERROR(MATCH(J24,'Look Up Tables'!$I$11:$I$510,0)))) -> TRUE
F25: =IF(ISBLANK(Scheme_Output[[#This Row],[Scheme Reference]]), 0, INDEX(Scheme_Meta_Data!$B$14:$B$247,MATCH(Scheme_Output[[#This Row],[Scheme Reference]],Scheme_Meta_Data!$A$14:$A$247,0))) -> 0 | W25: =IF(ISBLANK(A25),TRUE,NOT(ISERROR(MATCH(A25,'Look Up Tables'!$A$11:$A$510,0)))) -> TRUE | X25: =IF(ISBLANK(A25),TRUE,NOT(ISERROR(MATCH(B25,'Look Up Tables'!$R$11:$R$510,0)))) -> TRUE | Y25: =IF(ISBLANK(A25),TRUE,NOT(ISERROR(MATCH(C25,'Look Up Tables'!$S$11:$S$510,0)))) -> TRUE | Z25: =IF(ISBLANK(A25),TRUE,NOT(ISERROR(MATCH(D25,'Look Up Tables'!$T$11:$T$510,0)))) -> TRUE | AA25: =IF(ISBLANK(A25),TRUE,NOT(ISERROR(MATCH(J25,'Look Up Tables'!$I$11:$I$510,0)))) -> TRUE
F26: =IF(ISBLANK(Scheme_Output[[#This Row],[Scheme Reference]]), 0, INDEX(Scheme_Meta_Data!$B$14:$B$247,MATCH(Scheme_Output[[#This Row],[Scheme Reference]],Scheme_Meta_Data!$A$14:$A$247,0))) -> 0 | W26: =IF(ISBLANK(A26),TRUE,NOT(ISERROR(MATCH(A26,'Look Up Tables'!$A$11:$A$510,0)))) -> TRUE | X26: =IF(ISBLANK(A26),TRUE,NOT(ISERROR(MATCH(B26,'Look Up Tables'!$R$11:$R$510,0)))) -> TRUE | Y26: =IF(ISBLANK(A26),TRUE,NOT(ISERROR(MATCH(C26,'Look Up Tables'!$S$11:$S$510,0)))) -> TRUE | Z26: =IF(ISBLANK(A26),TRUE,NOT(ISERROR(MATCH(D26,'Look Up Tables'!$T$11:$T$510,0)))) -> TRUE | AA26: =IF(ISBLANK(A26),TRUE,NOT(ISERROR(MATCH(J26,'Look Up Tables'!$I$11:$I$510,0)))) -> TRUE
F27: =IF(ISBLANK(Scheme_Output[[#This Row],[Scheme Reference]]), 0, INDEX(Scheme_Meta_Data!$B$14:$B$247,MATCH(Scheme_Output[[#This Row],[Scheme Reference]],Scheme_Meta_Data!$A$14:$A$247,0))) -> 0 | W27: =IF(ISBLANK(A27),TRUE,NOT(ISERROR(MATCH(A27,'Look Up Tables'!$A$11:$A$510,0)))) -> TRUE | X27: =IF(ISBLANK(A27),TRUE,NOT(ISERROR(MATCH(B27,'Look Up Tables'!$R$11:$R$510,0)))) -> TRUE | Y27: =IF(ISBLANK(A27),TRUE,NOT(ISERROR(MATCH(C27,'Look Up Tables'!$S$11:$S$510,0)))) -> TRUE | Z27: =IF(ISBLANK(A27),TRUE,NOT(ISERROR(MATCH(D27,'Look Up Tables'!$T$11:$T$510,0)))) -> TRUE | AA27: =IF(ISBLANK(A27),TRUE,NOT(ISERROR(MATCH(J27,'Look Up Tables'!$I$11:$I$510,0)))) -> TRUE
F28: =IF(ISBLANK(Scheme_Output[[#This Row],[Scheme Reference]]), 0, INDEX(Scheme_Meta_Data!$B$14:$B$247,MATCH(Scheme_Output[[#This Row],[Scheme Reference]],Scheme_Meta_Data!$A$14:$A$247,0))) -> 0 | W28: =IF(ISBLANK(A28),TRUE,NOT(ISERROR(MATCH(A28,'Look Up Tables'!$A$11:$A$510,0)))) -> TRUE | X28: =IF(ISBLANK(A28),TRUE,NOT(ISERROR(MATCH(B28,'Look Up Tables'!$R$11:$R$510,0)))) -> TRUE | Y28: =IF(ISBLANK(A28),TRUE,NOT(ISERROR(MATCH(C28,'Look Up Tables'!$S$11:$S$510,0)))) -> TRUE | Z28: =IF(ISBLANK(A28),TRUE,NOT(ISERROR(MATCH(D28,'Look Up Tables'!$T$11:$T$510,0)))) -> TRUE | AA28: =IF(ISBLANK(A28),TRUE,NOT(ISERROR(MATCH(J28,'Look Up Tables'!$I$11:$I$510,0)))) -> TRUE
F29: =IF(ISBLANK(Scheme_Output[[#This Row],[Scheme Reference]]), 0, INDEX(Scheme_Meta_Data!$B$14:$B$247,MATCH(Scheme_Output[[#This Row],[Scheme Reference]],Scheme_Meta_Data!$A$14:$A$247,0))) -> 0 | W29: =IF(ISBLANK(A29),TRUE,NOT(ISERROR(MATCH(A29,'Look Up Tables'!$A$11:$A$510,0)))) -> TRUE | X29: =IF(ISBLANK(A29),TRUE,NOT(ISERROR(MATCH(B29,'Look Up Tables'!$R$11:$R$510,0)))) -> TRUE | Y29: =IF(ISBLANK(A29),TRUE,NOT(ISERROR(MATCH(C29,'Look Up Tables'!$S$11:$S$510,0)))) -> TRUE | Z29: =IF(ISBLANK(A29),TRUE,NOT(ISERROR(MATCH(D29,'Look Up Tables'!$T$11:$T$510,0)))) -> TRUE | AA29: =IF(ISBLANK(A29),TRUE,NOT(ISERROR(MATCH(J29,'Look Up Tables'!$I$11:$I$510,0)))) -> TRUE
F30: =IF(ISBLANK(Scheme_Output[[#This Row],[Scheme Reference]]), 0, INDEX(Scheme_Meta_Data!$B$14:$B$247,MATCH(Scheme_Output[[#This Row],[Scheme Reference]],Scheme_Meta_Data!$A$14:$A$247,0))) -> 0 | W30: =IF(ISBLANK(A30),TRUE,NOT(ISERROR(MATCH(A30,'Look Up Tables'!$A$11:$A$510,0)))) -> TRUE | X30: =IF(ISBLANK(A30),TRUE,NOT(ISERROR(MATCH(B30,'Look Up Tables'!$R$11:$R$510,0)))) -> TRUE | Y30: =IF(ISBLANK(A30),TRUE,NOT(ISERROR(MATCH(C30,'Look Up Tables'!$S$11:$S$510,0)))) -> TRUE | Z30: =IF(ISBLANK(A30),TRUE,NOT(ISERROR(MATCH(D30,'Look Up Tables'!$T$11:$T$510,0)))) -> TRUE | AA30: =IF(ISBLANK(A30),TRUE,NOT(ISERROR(MATCH(J30,'Look Up Tables'!$I$11:$I$510,0)))) -> TRUE
F31: =IF(ISBLANK(Scheme_Output[[#This Row],[Scheme Reference]]), 0, INDEX(Scheme_Meta_Data!$B$14:$B$247,MATCH(Scheme_Output[[#This Row],[Scheme Reference]],Scheme_Meta_Data!$A$14:$A$247,0))) -> 0 | W31: =IF(ISBLANK(A31),TRUE,NOT(ISERROR(MATCH(A31,'Look Up Tables'!$A$11:$A$510,0)))) -> TRUE | X31: =IF(ISBLANK(A31),TRUE,NOT(ISERROR(MATCH(B31,'Look Up Tables'!$R$11:$R$510,0)))) -> TRUE | Y31: =IF(ISBLANK(A31),TRUE,NOT(ISERROR(MATCH(C31,'Look Up Tables'!$S$11:$S$510,0)))) -> TRUE | Z31: =IF(ISBLANK(A31),TRUE,NOT(ISERROR(MATCH(D31,'Look Up Tables'!$T$11:$T$510,0)))) -> TRUE | AA31: =IF(ISBLANK(A31),TRUE,NOT(ISERROR(MATCH(J31,'Look Up Tables'!$I$11:$I$510,0)))) -> TRUE
F32: =IF(ISBLANK(Scheme_Output[[#This Row],[Scheme Reference]]), 0, INDEX(Scheme_Meta_Data!$B$14:$B$247,MATCH(Scheme_Output[[#This Row],[Scheme Reference]],Scheme_Meta_Data!$A$14:$A$247,0))) -> 0 | W32: =IF(ISBLANK(A32),TRUE,NOT(ISERROR(MATCH(A32,'Look Up Tables'!$A$11:$A$510,0)))) -> TRUE | X32: =IF(ISBLANK(A32),TRUE,NOT(ISERROR(MATCH(B32,'Look Up Tables'!$R$11:$R$510,0)))) -> TRUE | Y32: =IF(ISBLANK(A32),TRUE,NOT(ISERROR(MATCH(C32,'Look Up Tables'!$S$11:$S$510,0)))) -> TRUE | Z32: =IF(ISBLANK(A32),TRUE,NOT(ISERROR(MATCH(D32,'Look Up Tables'!$T$11:$T$510,0)))) -> TRUE | AA32: =IF(ISBLANK(A32),TRUE,NOT(ISERROR(MATCH(J32,'Look Up Tables'!$I$11:$I$510,0)))) -> TRUE
F33: =IF(ISBLANK(Scheme_Output[[#This Row],[Scheme Reference]]), 0, INDEX(Scheme_Meta_Data!$B$14:$B$247,MATCH(Scheme_Output[[#This Row],[Scheme Reference]],Scheme_Meta_Data!$A$14:$A$247,0))) -> 0 | W33: =IF(ISBLANK(A33),TRUE,NOT(ISERROR(MATCH(A33,'Look Up Tables'!$A$11:$A$510,0)))) -> TRUE | X33: =IF(ISBLANK(A33),TRUE,NOT(ISERROR(MATCH(B33,'Look Up Tables'!$R$11:$R$510,0)))) -> TRUE | Y33: =IF(ISBLANK(A33),TRUE,NOT(ISERROR(MATCH(C33,'Look Up Tables'!$S$11:$S$510,0)))) -> TRUE | Z33: =IF(ISBLANK(A33),TRUE,NOT(ISERROR(MATCH(D33,'Look Up Tables'!$T$11:$T$510,0)))) -> TRUE | AA33: =IF(ISBLANK(A33),TRUE,NOT(ISERROR(MATCH(J33,'Look Up Tables'!$I$11:$I$510,0)))) -> TRUE
F34: =IF(ISBLANK(Scheme_Output[[#This Row],[Scheme Reference]]), 0, INDEX(Scheme_Meta_Data!$B$14:$B$247,MATCH(Scheme_Output[[#This Row],[Scheme Reference]],Scheme_Meta_Data!$A$14:$A$247,0))) -> 0 | W34: =IF(ISBLANK(A34),TRUE,NOT(ISERROR(MATCH(A34,'Look Up Tables'!$A$11:$A$510,0)))) -> TRUE | X34: =IF(ISBLANK(A34),TRUE,NOT(ISERROR(MATCH(B34,'Look Up Tables'!$R$11:$R$510,0)))) -> TRUE | Y34: =IF(ISBLANK(A34),TRUE,NOT(ISERROR(MATCH(C34,'Look Up Tables'!$S$11:$S$510,0)))) -> TRUE | Z34: =IF(ISBLANK(A34),TRUE,NOT(ISERROR(MATCH(D34,'Look Up Tables'!$T$11:$T$510,0)))) -> TRUE | AA34: =IF(ISBLANK(A34),TRUE,NOT(ISERROR(MATCH(J34,'Look Up Tables'!$I$11:$I$510,0)))) -> TRUE
F35: =IF(ISBLANK(Scheme_Output[[#This Row],[Scheme Reference]]), 0, INDEX(Scheme_Meta_Data!$B$14:$B$247,MATCH(Scheme_Output[[#This Row],[Scheme Reference]],Scheme_Meta_Data!$A$14:$A$247,0))) -> 0 | W35: =IF(ISBLANK(A35),TRUE,NOT(ISERROR(MATCH(A35,'Look Up Tables'!$A$11:$A$510,0)))) -> TRUE | X35: =IF(ISBLANK(A35),TRUE,NOT(ISERROR(MATCH(B35,'Look Up Tables'!$R$11:$R$510,0)))) -> TRUE | Y35: =IF(ISBLANK(A35),TRUE,NOT(ISERROR(MATCH(C35,'Look Up Tables'!$S$11:$S$510,0)))) -> TRUE | Z35: =IF(ISBLANK(A35),TRUE,NOT(ISERROR(MATCH(D35,'Look Up Tables'!$T$11:$T$510,0)))) -> TRUE | AA35: =IF(ISBLANK(A35),TRUE,NOT(ISERROR(MATCH(J35,'Look Up Tables'!$I$11:$I$510,0)))) -> TRUE
F36: =IF(ISBLANK(Scheme_Output[[#This Row],[Scheme Reference]]), 0, INDEX(Scheme_Meta_Data!$B$14:$B$247,MATCH(Scheme_Output[[#This Row],[Scheme Reference]],Scheme_Meta_Data!$A$14:$A$247,0))) -> 0 | W36: =IF(ISBLANK(A36),TRUE,NOT(ISERROR(MATCH(A36,'Look Up Tables'!$A$11:$A$510,0)))) -> TRUE | X36: =IF(ISBLANK(A36),TRUE,NOT(ISERROR(MATCH(B36,'Look Up Tables'!$R$11:$R$510,0)))) -> TRUE | Y36: =IF(ISBLANK(A36),TRUE,NOT(ISERROR(MATCH(C36,'Look Up Tables'!$S$11:$S$510,0)))) -> TRUE | Z36: =IF(ISBLANK(A36),TRUE,NOT(ISERROR(MATCH(D36,'Look Up Tables'!$T$11:$T$510,0)))) -> TRUE | AA36: =IF(ISBLANK(A36),TRUE,NOT(ISERROR(MATCH(J36,'Look Up Tables'!$I$11:$I$510,0)))) -> TRUE
F37: =IF(ISBLANK(Scheme_Output[[#This Row],[Scheme Reference]]), 0, INDEX(Scheme_Meta_Data!$B$14:$B$247,MATCH(Scheme_Output[[#This Row],[Scheme Reference]],Scheme_Meta_Data!$A$14:$A$247,0))) -> 0 | W37: =IF(ISBLANK(A37),TRUE,NOT(ISERROR(MATCH(A37,'Look Up Tables'!$A$11:$A$510,0)))) -> TRUE | X37: =IF(ISBLANK(A37),TRUE,NOT(ISERROR(MATCH(B37,'Look Up Tables'!$R$11:$R$510,0)))) -> TRUE | Y37: =IF(ISBLANK(A37),TRUE,NOT(ISERROR(MATCH(C37,'Look Up Tables'!$S$11:$S$510,0)))) -> TRUE | Z37: =IF(ISBLANK(A37),TRUE,NOT(ISERROR(MATCH(D37,'Look Up Tables'!$T$11:$T$510,0)))) -> TRUE | AA37: =IF(ISBLANK(A37),TRUE,NOT(ISERROR(MATCH(J37,'Look Up Tables'!$I$11:$I$510,0)))) -> TRUE
F38: =IF(ISBLANK(Scheme_Output[[#This Row],[Scheme Reference]]), 0, INDEX(Scheme_Meta_Data!$B$14:$B$247,MATCH(Scheme_Output[[#This Row],[Scheme Reference]],Scheme_Meta_Data!$A$14:$A$247,0))) -> 0 | W38: =IF(ISBLANK(A38),TRUE,NOT(ISERROR(MATCH(A38,'Look Up Tables'!$A$11:$A$510,0)))) -> TRUE | X38: =IF(ISBLANK(A38),TRUE,NOT(ISERROR(MATCH(B38,'Look Up Tables'!$R$11:$R$510,0)))) -> TRUE | Y38: =IF(ISBLANK(A38),TRUE,NOT(ISERROR(MATCH(C38,'Look Up Tables'!$S$11:$S$510,0)))) -> TRUE | Z38: =IF(ISBLANK(A38),TRUE,NOT(ISERROR(MATCH(D38,'Look Up Tables'!$T$11:$T$510,0)))) -> TRUE | AA38: =IF(ISBLANK(A38),TRUE,NOT(ISERROR(MATCH(J38,'Look Up Tables'!$I$11:$I$510,0)))) -> TRUE
F39: =IF(ISBLANK(Scheme_Output[[#This Row],[Scheme Reference]]), 0, INDEX(Scheme_Meta_Data!$B$14:$B$247,MATCH(Scheme_Output[[#This Row],[Scheme Reference]],Scheme_Meta_Data!$A$14:$A$247,0))) -> 0 | W39: =IF(ISBLANK(A39),TRUE,NOT(ISERROR(MATCH(A39,'Look Up Tables'!$A$11:$A$510,0)))) -> TRUE | X39: =IF(ISBLANK(A39),TRUE,NOT(ISERROR(MATCH(B39,'Look Up Tables'!$R$11:$R$510,0)))) -> TRUE | Y39: =IF(ISBLANK(A39),TRUE,NOT(ISERROR(MATCH(C39,'Look Up Tables'!$S$11:$S$510,0)))) -> TRUE | Z39: =IF(ISBLANK(A39),TRUE,NOT(ISERROR(MATCH(D39,'Look Up Tables'!$T$11:$T$510,0)))) -> TRUE | AA39: =IF(ISBLANK(A39),TRUE,NOT(ISERROR(MATCH(J39,'Look Up Tables'!$I$11:$I$510,0)))) -> TRUE
F40: =IF(ISBLANK(Scheme_Output[[#This Row],[Scheme Reference]]), 0, INDEX(Scheme_Meta_Data!$B$14:$B$247,MATCH(Scheme_Output[[#This Row],[Scheme Reference]],Scheme_Meta_Data!$A$14:$A$247,0))) -> 0 | W40: =IF(ISBLANK(A40),TRUE,NOT(ISERROR(MATCH(A40,'Look Up Tables'!$A$11:$A$510,0)))) -> TRUE | X40: =IF(ISBLANK(A40),TRUE,NOT(ISERROR(MATCH(B40,'Look Up Tables'!$R$11:$R$510,0)))) -> TRUE | Y40: =IF(ISBLANK(A40),TRUE,NOT(ISERROR(MATCH(C40,'Look Up Tables'!$S$11:$S$510,0)))) -> TRUE | Z40: =IF(ISBLANK(A40),TRUE,NOT(ISERROR(MATCH(D40,'Look Up Tables'!$T$11:$T$510,0)))) -> TRUE | AA40: =IF(ISBLANK(A40),TRUE,NOT(ISERROR(MATCH(J40,'Look Up Tables'!$I$11:$I$510,0)))) -> TRUE
F41: =IF(ISBLANK(Scheme_Output[[#This Row],[Scheme Reference]]), 0, INDEX(Scheme_Meta_Data!$B$14:$B$247,MATCH(Scheme_Output[[#This Row],[Scheme Reference]],Scheme_Meta_Data!$A$14:$A$247,0))) -> 0 | W41: =IF(ISBLANK(A41),TRUE,NOT(ISERROR(MATCH(A41,'Look Up Tables'!$A$11:$A$510,0)))) -> TRUE | X41: =IF(ISBLANK(A41),TRUE,NOT(ISERROR(MATCH(B41,'Look Up Tables'!$R$11:$R$510,0)))) -> TRUE | Y41: =IF(ISBLANK(A41),TRUE,NOT(ISERROR(MATCH(C41,'Look Up Tables'!$S$11:$S$510,0)))) -> TRUE | Z41: =IF(ISBLANK(A41),TRUE,NOT(ISERROR(MATCH(D41,'Look Up Tables'!$T$11:$T$510,0)))) -> TRUE | AA41: =IF(ISBLANK(A41),TRUE,NOT(ISERROR(MATCH(J41,'Look Up Tables'!$I$11:$I$510,0)))) -> TRUE
F42: =IF(ISBLANK(Scheme_Output[[#This Row],[Scheme Reference]]), 0, INDEX(Scheme_Meta_Data!$B$14:$B$247,MATCH(Scheme_Output[[#This Row],[Scheme Reference]],Scheme_Meta_Data!$A$14:$A$247,0))) -> 0 | W42: =IF(ISBLANK(A42),TRUE,NOT(ISERROR(MATCH(A42,'Look Up Tables'!$A$11:$A$510,0)))) -> TRUE | X42: =IF(ISBLANK(A42),TRUE,NOT(ISERROR(MATCH(B42,'Look Up Tables'!$R$11:$R$510,0)))) -> TRUE | Y42: =IF(ISBLANK(A42),TRUE,NOT(ISERROR(MATCH(C42,'Look Up Tables'!$S$11:$S$510,0)))) -> TRUE | Z42: =IF(ISBLANK(A42),TRUE,NOT(ISERROR(MATCH(D42,'Look Up Tables'!$T$11:$T$510,0)))) -> TRUE | AA42: =IF(ISBLANK(A42),TRUE,NOT(ISERROR(MATCH(J42,'Look Up Tables'!$I$11:$I$510,0)))) -> TRUE
F43: =IF(ISBLANK(Scheme_Output[[#This Row],[Scheme Reference]]), 0, INDEX(Scheme_Meta_Data!$B$14:$B$247,MATCH(Scheme_Output[[#This Row],[Scheme Reference]],Scheme_Meta_Data!$A$14:$A$247,0))) -> 0 | W43: =IF(ISBLANK(A43),TRUE,NOT(ISERROR(MATCH(A43,'Look Up Tables'!$A$11:$A$510,0)))) -> TRUE | X43: =IF(ISBLANK(A43),TRUE,NOT(ISERROR(MATCH(B43,'Look Up Tables'!$R$11:$R$510,0)))) -> TRUE | Y43: =IF(ISBLANK(A43),TRUE,NOT(ISERROR(MATCH(C43,'Look Up Tables'!$S$11:$S$510,0)))) -> TRUE | Z43: =IF(ISBLANK(A43),TRUE,NOT(ISERROR(MATCH(D43,'Look Up Tables'!$T$11:$T$510,0)))) -> TRUE | AA43: =IF(ISBLANK(A43),TRUE,NOT(ISERROR(MATCH(J43,'Look Up Tables'!$I$11:$I$510,0)))) -> TRUE
F44: =IF(ISBLANK(Scheme_Output[[#This Row],[Scheme Reference]]), 0, INDEX(Scheme_Meta_Data!$B$14:$B$247,MATCH(Scheme_Output[[#This Row],[Scheme Reference]],Scheme_Meta_Data!$A$14:$A$247,0))) -> 0 | W44: =IF(ISBLANK(A44),TRUE,NOT(ISERROR(MATCH(A44,'Look Up Tables'!$A$11:$A$510,0)))) -> TRUE | X44: =IF(ISBLANK(A44),TRUE,NOT(ISERROR(MATCH(B44,'Look Up Tables'!$R$11:$R$510,0)))) -> TRUE | Y44: =IF(ISBLANK(A44),TRUE,NOT(ISERROR(MATCH(C44,'Look Up Tables'!$S$11:$S$510,0)))) -> TRUE | Z44: =IF(ISBLANK(A44),TRUE,NOT(ISERROR(MATCH(D44,'Look Up Tables'!$T$11:$T$510,0)))) -> TRUE | AA44: =IF(ISBLANK(A44),TRUE,NOT(ISERROR(MATCH(J44,'Look Up Tables'!$I$11:$I$510,0)))) -> TRUE
F45: =IF(ISBLANK(Scheme_Output[[#This Row],[Scheme Reference]]), 0, INDEX(Scheme_Meta_Data!$B$14:$B$247,MATCH(Scheme_Output[[#This Row],[Scheme Reference]],Scheme_Meta_Data!$A$14:$A$247,0))) -> 0 | W45: =IF(ISBLANK(A45),TRUE,NOT(ISERROR(MATCH(A45,'Look Up Tables'!$A$11:$A$510,0)))) -> TRUE | X45: =IF(ISBLANK(A45),TRUE,NOT(ISERROR(MATCH(B45,'Look Up Tables'!$R$11:$R$510,0)))) -> TRUE | Y45: =IF(ISBLANK(A45),TRUE,NOT(ISERROR(MATCH(C45,'Look Up Tables'!$S$11:$S$510,0)))) -> TRUE | Z45: =IF(ISBLANK(A45),TRUE,NOT(ISERROR(MATCH(D45,'Look Up Tables'!$T$11:$T$510,0)))) -> TRUE | AA45: =IF(ISBLANK(A45),TRUE,NOT(ISERROR(MATCH(J45,'Look Up Tables'!$I$11:$I$510,0)))) -> TRUE
F46: =IF(ISBLANK(Scheme_Output[[#This Row],[Scheme Reference]]), 0, INDEX(Scheme_Meta_Data!$B$14:$B$247,MATCH(Scheme_Output[[#This Row],[Scheme Reference]],Scheme_Meta_Data!$A$14:$A$247,0))) -> 0 | W46: =IF(ISBLANK(A46),TRUE,NOT(ISERROR(MATCH(A46,'Look Up Tables'!$A$11:$A$510,0)))) -> TRUE | X46: =IF(ISBLANK(A46),TRUE,NOT(ISERROR(MATCH(B46,'Look Up Tables'!$R$11:$R$510,0)))) -> TRUE | Y46: =IF(ISBLANK(A46),TRUE,NOT(ISERROR(MATCH(C46,'Look Up Tables'!$S$11:$S$510,0)))) -> TRUE | Z46: =IF(ISBLANK(A46),TRUE,NOT(ISERROR(MATCH(D46,'Look Up Tables'!$T$11:$T$510,0)))) -> TRUE | AA46: =IF(ISBLANK(A46),TRUE,NOT(ISERROR(MATCH(J46,'Look Up Tables'!$I$11:$I$510,0)))) -> TRUE
F47: =IF(ISBLANK(Scheme_Output[[#This Row],[Scheme Reference]]), 0, INDEX(Scheme_Meta_Data!$B$14:$B$247,MATCH(Scheme_Output[[#This Row],[Scheme Reference]],Scheme_Meta_Data!$A$14:$A$247,0))) -> 0 | W47: =IF(ISBLANK(A47),TRUE,NOT(ISERROR(MATCH(A47,'Look Up Tables'!$A$11:$A$510,0)))) -> TRUE | X47: =IF(ISBLANK(A47),TRUE,NOT(ISERROR(MATCH(B47,'Look Up Tables'!$R$11:$R$510,0)))) -> TRUE | Y47: =IF(ISBLANK(A47),TRUE,NOT(ISERROR(MATCH(C47,'Look Up Tables'!$S$11:$S$510,0)))) -> TRUE | Z47: =IF(ISBLANK(A47),TRUE,NOT(ISERROR(MATCH(D47,'Look Up Tables'!$T$11:$T$510,0)))) -> TRUE | AA47: =IF(ISBLANK(A47),TRUE,NOT(ISERROR(MATCH(J47,'Look Up Tables'!$I$11:$I$510,0)))) -> TRUE
F48: =IF(ISBLANK(Scheme_Output[[#This Row],[Scheme Reference]]), 0, INDEX(Scheme_Meta_Data!$B$14:$B$247,MATCH(Scheme_Output[[#This Row],[Scheme Reference]],Scheme_Meta_Data!$A$14:$A$247,0))) -> 0 | W48: =IF(ISBLANK(A48),TRUE,NOT(ISERROR(MATCH(A48,'Look Up Tables'!$A$11:$A$510,0)))) -> TRUE | X48: =IF(ISBLANK(A48),TRUE,NOT(ISERROR(MATCH(B48,'Look Up Tables'!$R$11:$R$510,0)))) -> TRUE | Y48: =IF(ISBLANK(A48),TRUE,NOT(ISERROR(MATCH(C48,'Look Up Tables'!$S$11:$S$510,0)))) -> TRUE | Z48: =IF(ISBLANK(A48),TRUE,NOT(ISERROR(MATCH(D48,'Look Up Tables'!$T$11:$T$510,0)))) -> TRUE | AA48: =IF(ISBLANK(A48),TRUE,NOT(ISERROR(MATCH(J48,'Look Up Tables'!$I$11:$I$510,0)))) -> TRUE
F49: =IF(ISBLANK(Scheme_Output[[#This Row],[Scheme Reference]]), 0, INDEX(Scheme_Meta_Data!$B$14:$B$247,MATCH(Scheme_Output[[#This Row],[Scheme Reference]],Scheme_Meta_Data!$A$14:$A$247,0))) -> 0 | W49: =IF(ISBLANK(A49),TRUE,NOT(ISERROR(MATCH(A49,'Look Up Tables'!$A$11:$A$510,0)))) -> TRUE | X49: =IF(ISBLANK(A49),TRUE,NOT(ISERROR(MATCH(B49,'Look Up Tables'!$R$11:$R$510,0)))) -> TRUE | Y49: =IF(ISBLANK(A49),TRUE,NOT(ISERROR(MATCH(C49,'Look Up Tables'!$S$11:$S$510,0)))) -> TRUE | Z49: =IF(ISBLANK(A49),TRUE,NOT(ISERROR(MATCH(D49,'Look Up Tables'!$T$11:$T$510,0)))) -> TRUE | AA49: =IF(ISBLANK(A49),TRUE,NOT(ISERROR(MATCH(J49,'Look Up Tables'!$I$11:$I$510,0)))) -> TRUE
F50: =IF(ISBLANK(Scheme_Output[[#This Row],[Scheme Reference]]), 0, INDEX(Scheme_Meta_Data!$B$14:$B$247,MATCH(Scheme_Output[[#This Row],[Scheme Reference]],Scheme_Meta_Data!$A$14:$A$247,0))) -> 0 | W50: =IF(ISBLANK(A50),TRUE,NOT(ISERROR(MATCH(A50,'Look Up Tables'!$A$11:$A$510,0)))) -> TRUE | X50: =IF(ISBLANK(A50),TRUE,NOT(ISERROR(MATCH(B50,'Look Up Tables'!$R$11:$R$510,0)))) -> TRUE | Y50: =IF(ISBLANK(A50),TRUE,NOT(ISERROR(MATCH(C50,'Look Up Tables'!$S$11:$S$510,0)))) -> TRUE | Z50: =IF(ISBLANK(A50),TRUE,NOT(ISERROR(MATCH(D50,'Look Up Tables'!$T$11:$T$510,0)))) -> TRUE | AA50: =IF(ISBLANK(A50),TRUE,NOT(ISERROR(MATCH(J50,'Look Up Tables'!$I$11:$I$510,0)))) -> TRUE
F51: =IF(ISBLANK(Scheme_Output[[#This Row],[Scheme Reference]]), 0, INDEX(Scheme_Meta_Data!$B$14:$B$247,MATCH(Scheme_Output[[#This Row],[Scheme Reference]],Scheme_Meta_Data!$A$14:$A$247,0))) -> 0 | W51: =IF(ISBLANK(A51),TRUE,NOT(ISERROR(MATCH(A51,'Look Up Tables'!$A$11:$A$510,0)))) -> TRUE | X51: =IF(ISBLANK(A51),TRUE,NOT(ISERROR(MATCH(B51,'Look Up Tables'!$R$11:$R$510,0)))) -> TRUE | Y51: =IF(ISBLANK(A51),TRUE,NOT(ISERROR(MATCH(C51,'Look Up Tables'!$S$11:$S$510,0)))) -> TRUE | Z51: =IF(ISBLANK(A51),TRUE,NOT(ISERROR(MATCH(D51,'Look Up Tables'!$T$11:$T$510,0)))) -> TRUE | AA51: =IF(ISBLANK(A51),TRUE,NOT(ISERROR(MATCH(J51,'Look Up Tables'!$I$11:$I$510,0)))) -> TRUE
F52: =IF(ISBLANK(Scheme_Output[[#This Row],[Scheme Reference]]), 0, INDEX(Scheme_Meta_Data!$B$14:$B$247,MATCH(Scheme_Output[[#This Row],[Scheme Reference]],Scheme_Meta_Data!$A$14:$A$247,0))) -> 0 | W52: =IF(ISBLANK(A52),TRUE,NOT(ISERROR(MATCH(A52,'Look Up Tables'!$A$11:$A$510,0)))) -> TRUE | X52: =IF(ISBLANK(A52),TRUE,NOT(ISERROR(MATCH(B52,'Look Up Tables'!$R$11:$R$510,0)))) -> TRUE | Y52: =IF(ISBLANK(A52),TRUE,NOT(ISERROR(MATCH(C52,'Look Up Tables'!$S$11:$S$510,0)))) -> TRUE | Z52: =IF(ISBLANK(A52),TRUE,NOT(ISERROR(MATCH(D52,'Look Up Tables'!$T$11:$T$510,0)))) -> TRUE | AA52: =IF(ISBLANK(A52),TRUE,NOT(ISERROR(MATCH(J52,'Look Up Tables'!$I$11:$I$510,0)))) -> TRUE
F53: =IF(ISBLANK(Scheme_Output[[#This Row],[Scheme Reference]]), 0, INDEX(Scheme_Meta_Data!$B$14:$B$247,MATCH(Scheme_Output[[#This Row],[Scheme Reference]],Scheme_Meta_Data!$A$14:$A$247,0))) -> 0 | W53: =IF(ISBLANK(A53),TRUE,NOT(ISERROR(MATCH(A53,'Look Up Tables'!$A$11:$A$510,0)))) -> TRUE | X53: =IF(ISBLANK(A53),TRUE,NOT(ISERROR(MATCH(B53,'Look Up Tables'!$R$11:$R$510,0)))) -> TRUE | Y53: =IF(ISBLANK(A53),TRUE,NOT(ISERROR(MATCH(C53,'Look Up Tables'!$S$11:$S$510,0)))) -> TRUE | Z53: =IF(ISBLANK(A53),TRUE,NOT(ISERROR(MATCH(D53,'Look Up Tables'!$T$11:$T$510,0)))) -> TRUE | AA53: =IF(ISBLANK(A53),TRUE,NOT(ISERROR(MATCH(J53,'Look Up Tables'!$I$11:$I$510,0)))) -> TRUE
F54: =IF(ISBLANK(Scheme_Output[[#This Row],[Scheme Reference]]), 0, INDEX(Scheme_Meta_Data!$B$14:$B$247,MATCH(Scheme_Output[[#This Row],[Scheme Reference]],Scheme_Meta_Data!$A$14:$A$247,0))) -> 0 | W54: =IF(ISBLANK(A54),TRUE,NOT(ISERROR(MATCH(A54,'Look Up Tables'!$A$11:$A$510,0)))) -> TRUE | X54: =IF(ISBLANK(A54),TRUE,NOT(ISERROR(MATCH(B54,'Look Up Tables'!$R$11:$R$510,0)))) -> TRUE | Y54: =IF(ISBLANK(A54),TRUE,NOT(ISERROR(MATCH(C54,'Look Up Tables'!$S$11:$S$510,0)))) -> TRUE | Z54: =IF(ISBLANK(A54),TRUE,NOT(ISERROR(MATCH(D54,'Look Up Tables'!$T$11:$T$510,0)))) -> TRUE | AA54: =IF(ISBLANK(A54),TRUE,NOT(ISERROR(MATCH(J54,'Look Up Tables'!$I$11:$I$510,0)))) -> TRUE
F55: =IF(ISBLANK(Scheme_Output[[#This Row],[Scheme Reference]]), 0, INDEX(Scheme_Meta_Data!$B$14:$B$247,MATCH(Scheme_Output[[#This Row],[Scheme Reference]],Scheme_Meta_Data!$A$14:$A$247,0))) -> 0 | W55: =IF(ISBLANK(A55),TRUE,NOT(ISERROR(MATCH(A55,'Look Up Tables'!$A$11:$A$510,0)))) -> TRUE | X55: =IF(ISBLANK(A55),TRUE,NOT(ISERROR(MATCH(B55,'Look Up Tables'!$R$11:$R$510,0)))) -> TRUE | Y55: =IF(ISBLANK(A55),TRUE,NOT(ISERROR(MATCH(C55,'Look Up Tables'!$S$11:$S$510,0)))) -> TRUE | Z55: =IF(ISBLANK(A55),TRUE,NOT(ISERROR(MATCH(D55,'Look Up Tables'!$T$11:$T$510,0)))) -> TRUE | AA55: =IF(ISBLANK(A55),TRUE,NOT(ISERROR(MATCH(J55,'Look Up Tables'!$I$11:$I$510,0)))) -> TRUE
F56: =IF(ISBLANK(Scheme_Output[[#This Row],[Scheme Reference]]), 0, INDEX(Scheme_Meta_Data!$B$14:$B$247,MATCH(Scheme_Output[[#This Row],[Scheme Reference]],Scheme_Meta_Data!$A$14:$A$247,0))) -> 0 | W56: =IF(ISBLANK(A56),TRUE,NOT(ISERROR(MATCH(A56,'Look Up Tables'!$A$11:$A$510,0)))) -> TRUE | X56: =IF(ISBLANK(A56),TRUE,NOT(ISERROR(MATCH(B56,'Look Up Tables'!$R$11:$R$510,0)))) -> TRUE | Y56: =IF(ISBLANK(A56),TRUE,NOT(ISERROR(MATCH(C56,'Look Up Tables'!$S$11:$S$510,0)))) -> TRUE | Z56: =IF(ISBLANK(A56),TRUE,NOT(ISERROR(MATCH(D56,'Look Up Tables'!$T$11:$T$510,0)))) -> TRUE | AA56: =IF(ISBLANK(A56),TRUE,NOT(ISERROR(MATCH(J56,'Look Up Tables'!$I$11:$I$510,0)))) -> TRUE
F57: =IF(ISBLANK(Scheme_Output[[#This Row],[Scheme Reference]]), 0, INDEX(Scheme_Meta_Data!$B$14:$B$247,MATCH(Scheme_Output[[#This Row],[Scheme Reference]],Scheme_Meta_Data!$A$14:$A$247,0))) -> 0 | W57: =IF(ISBLANK(A57),TRUE,NOT(ISERROR(MATCH(A57,'Look Up Tables'!$A$11:$A$510,0)))) -> TRUE | X57: =IF(ISBLANK(A57),TRUE,NOT(ISERROR(MATCH(B57,'Look Up Tables'!$R$11:$R$510,0)))) -> TRUE | Y57: =IF(ISBLANK(A57),TRUE,NOT(ISERROR(MATCH(C57,'Look Up Tables'!$S$11:$S$510,0)))) -> TRUE | Z57: =IF(ISBLANK(A57),TRUE,NOT(ISERROR(MATCH(D57,'Look Up Tables'!$T$11:$T$510,0)))) -> TRUE | AA57: =IF(ISBLANK(A57),TRUE,NOT(ISERROR(MATCH(J57,'Look Up Tables'!$I$11:$I$510,0)))) -> TRUE
F58: =IF(ISBLANK(Scheme_Output[[#This Row],[Scheme Reference]]), 0, INDEX(Scheme_Meta_Data!$B$14:$B$247,MATCH(Scheme_Output[[#This Row],[Scheme Reference]],Scheme_Meta_Data!$A$14:$A$247,0))) -> 0 | W58: =IF(ISBLANK(A58),TRUE,NOT(ISERROR(MATCH(A58,'Look Up Tables'!$A$11:$A$510,0)))) -> TRUE | X58: =IF(ISBLANK(A58),TRUE,NOT(ISERROR(MATCH(B58,'Look Up Tables'!$R$11:$R$510,0)))) -> TRUE | Y58: =IF(ISBLANK(A58),TRUE,NOT(ISERROR(MATCH(C58,'Look Up Tables'!$S$11:$S$510,0)))) -> TRUE | Z58: =IF(ISBLANK(A58),TRUE,NOT(ISERROR(MATCH(D58,'Look Up Tables'!$T$11:$T$510,0)))) -> TRUE | AA58: =IF(ISBLANK(A58),TRUE,NOT(ISERROR(MATCH(J58,'Look Up Tables'!$I$11:$I$510,0)))) -> TRUE
F59: =IF(ISBLANK(Scheme_Output[[#This Row],[Scheme Reference]]), 0, INDEX(Scheme_Meta_Data!$B$14:$B$247,MATCH(Scheme_Output[[#This Row],[Scheme Reference]],Scheme_Meta_Data!$A$14:$A$247,0))) -> 0 | W59: =IF(ISBLANK(A59),TRUE,NOT(ISERROR(MATCH(A59,'Look Up Tables'!$A$11:$A$510,0)))) -> TRUE | X59: =IF(ISBLANK(A59),TRUE,NOT(ISERROR(MATCH(B59,'Look Up Tables'!$R$11:$R$510,0)))) -> TRUE | Y59: =IF(ISBLANK(A59),TRUE,NOT(ISERROR(MATCH(C59,'Look Up Tables'!$S$11:$S$510,0)))) -> TRUE | Z59: =IF(ISBLANK(A59),TRUE,NOT(ISERROR(MATCH(D59,'Look Up Tables'!$T$11:$T$510,0)))) -> TRUE | AA59: =IF(ISBLANK(A59),TRUE,NOT(ISERROR(MATCH(J59,'Look Up Tables'!$I$11:$I$510,0)))) -> TRUE
F60: =IF(ISBLANK(Scheme_Output[[#This Row],[Scheme Reference]]), 0, INDEX(Scheme_Meta_Data!$B$14:$B$247,MATCH(Scheme_Output[[#This Row],[Scheme Reference]],Scheme_Meta_Data!$A$14:$A$247,0))) -> 0 | W60: =IF(ISBLANK(A60),TRUE,NOT(ISERROR(MATCH(A60,'Look Up Tables'!$A$11:$A$510,0)))) -> TRUE | X60: =IF(ISBLANK(A60),TRUE,NOT(ISERROR(MATCH(B60,'Look Up Tables'!$R$11:$R$510,0)))) -> TRUE | Y60: =IF(ISBLANK(A60),TRUE,NOT(ISERROR(MATCH(C60,'Look Up Tables'!$S$11:$S$510,0)))) -> TRUE | Z60: =IF(ISBLANK(A60),TRUE,NOT(ISERROR(MATCH(D60,'Look Up Tables'!$T$11:$T$510,0)))) -> TRUE | AA60: =IF(ISBLANK(A60),TRUE,NOT(ISERROR(MATCH(J60,'Look Up Tables'!$I$11:$I$510,0)))) -> TRUE
F61: =IF(ISBLANK(Scheme_Output[[#This Row],[Scheme Reference]]), 0, INDEX(Scheme_Meta_Data!$B$14:$B$247,MATCH(Scheme_Output[[#This Row],[Scheme Reference]],Scheme_Meta_Data!$A$14:$A$247,0))) -> 0 | W61: =IF(ISBLANK(A61),TRUE,NOT(ISERROR(MATCH(A61,'Look Up Tables'!$A$11:$A$510,0)))) -> TRUE | X61: =IF(ISBLANK(A61),TRUE,NOT(ISERROR(MATCH(B61,'Look Up Tables'!$R$11:$R$510,0)))) -> TRUE | Y61: =IF(ISBLANK(A61),TRUE,NOT(ISERROR(MATCH(C61,'Look Up Tables'!$S$11:$S$510,0)))) -> TRUE | Z61: =IF(ISBLANK(A61),TRUE,NOT(ISERROR(MATCH(D61,'Look Up Tables'!$T$11:$T$510,0)))) -> TRUE | AA61: =IF(ISBLANK(A61),TRUE,NOT(ISERROR(MATCH(J61,'Look Up Tables'!$I$11:$I$510,0)))) -> TRUE
F62: =IF(ISBLANK(Scheme_Output[[#This Row],[Scheme Reference]]), 0, INDEX(Scheme_Meta_Data!$B$14:$B$247,MATCH(Scheme_Output[[#This Row],[Scheme Reference]],Scheme_Meta_Data!$A$14:$A$247,0))) -> 0 | W62: =IF(ISBLANK(A62),TRUE,NOT(ISERROR(MATCH(A62,'Look Up Tables'!$A$11:$A$510,0)))) -> TRUE | X62: =IF(ISBLANK(A62),TRUE,NOT(ISERROR(MATCH(B62,'Look Up Tables'!$R$11:$R$510,0)))) -> TRUE | Y62: =IF(ISBLANK(A62),TRUE,NOT(ISERROR(MATCH(C62,'Look Up Tables'!$S$11:$S$510,0)))) -> TRUE | Z62: =IF(ISBLANK(A62),TRUE,NOT(ISERROR(MATCH(D62,'Look Up Tables'!$T$11:$T$510,0)))) -> TRUE | AA62: =IF(ISBLANK(A62),TRUE,NOT(ISERROR(MATCH(J62,'Look Up Tables'!$I$11:$I$510,0)))) -> TRUE
... 77 more rows

Sheet Other_T2_Capital_Cost_From_T1
A1: Sheet: | B1: Other_T2_Capital_Cost_From_T1 | D1: Data Type: | E1: Costs | G1: Checks: | H1: ='Checks Sheet'!$C$49 -> All checks passing
A2: Prices Base: 2018/19
A3: Sheet Description:
A4: Scheme Cost Data company inputs sheet. Direct cost inputs only
A6: Key
A7: Select from dropdown | B7: Free Entry | C7: Auto Populated | D7: Check Cell | E7: Lookup Data
A9: Actuals | AC9: =AND(AC17:AC2000) -> TRUE
A11: descriptor_1 | B11: descriptor_2 | C11: descriptor_3 | D11: descriptor_4 | E11: descriptor_5 | F11: descriptor_6 | G11: descriptor_7 | H11: descriptor_8 | I11: descriptor_9 | J11: descriptor_10 | L11: value_1 | M11: value_2 | N11: value_3 | O11: value_3 | P11: value_5 | Q11: value_6 | R11: value_7 | S11: value_8 | T11: value_9 | U11: value_9 | V11: value_9 | W11: value_9 | X11: value_9 | Y11: value_9 | Z11: value_9 | AA11: value_10 | AC11: Checks
L13: Total | M13: Total | N13: Total | O13: Total | P13: Total | Q13: Total | R13: Total | S13: Total | T13: Total | U13: Total | V13: Total | W13: Total | X13: Total | Y13: Total | Z13: Total
L14: =SUM( L17:L2000) -> 0 | M14: 0 | N14: 0 | O14: 0 | P14: 0 | Q14: 0 | R14: 0 | S14: 0 | T14: 0 | U14: 0 | V14: 0 | W14: 0 | X14: 0 | Y14: 0 | Z14: 0
A16: Scheme Reference | B16: Project Reference | C16: Scheme Category | D16: Scheme Sub Category | E16: Spare | F16: Spare2 | G16: Spare3 | H16: Spare4 | I16: Spare5 | J16: Spare6 | L16: Total | M16: Sub-total RIIO-1 | N16: Sub-total RIIO-2 | O16: Sub-total RIIO-3 | P16: 2021/22 18/19 Prices | Q16: 2022/23 18/19 Prices | R16: 2023/24 18/19 Prices | S16: 2024/25 18/19 Prices | T16: 2025/26 18/19 Prices | U16: 2026/27 18/19 Prices | V16: 2027/28 18/19 Prices | W16: 2028/29 18/19 Prices | X16: 2029/30 18/19 Prices | Y16: 2030/31 18/19 Prices | Z16: 2031/32+ 18/19 Prices | AA16: Narative / Associated Doc Reference | AC16: Scheme Reference
L17: =SUM(M17, P17:Z17) -> 0 | N17: =SUM(P17:T17) -> 0 | O17: =SUM(U17:Z17) -> 0 | AC17: =IF(ISBLANK(A17),TRUE,NOT(ISERROR(MATCH(A17,'Look Up Tables'!$A$11:$A$510,0)))) -> TRUE
L18: 0 | N18: 0 | O18: 0 | AC18: =IF(ISBLANK(A18),TRUE,NOT(ISERROR(MATCH(A18,'Look Up Tables'!$A$11:$A$510,0)))) -> TRUE
L19: 0 | N19: 0 | O19: 0 | AC19: =IF(ISBLANK(A19),TRUE,NOT(ISERROR(MATCH(A19,'Look Up Tables'!$A$11:$A$510,0)))) -> TRUE
L20: 0 | N20: 0 | O20: 0 | AC20: =IF(ISBLANK(A20),TRUE,NOT(ISERROR(MATCH(A20,'Look Up Tables'!$A$11:$A$510,0)))) -> TRUE
L21: 0 | N21: 0 | O21: 0 | AC21: =IF(ISBLANK(A21),TRUE,NOT(ISERROR(MATCH(A21,'Look Up Tables'!$A$11:$A$510,0)))) -> TRUE
L22: 0 | N22: 0 | O22: 0 | AC22: =IF(ISBLANK(A22),TRUE,NOT(ISERROR(MATCH(A22,'Look Up Tables'!$A$11:$A$510,0)))) -> TRUE
L23: 0 | N23: 0 | O23: 0 | AC23: =IF(ISBLANK(A23),TRUE,NOT(ISERROR(MATCH(A23,'Look Up Tables'!$A$11:$A$510,0)))) -> TRUE
L24: 0 | N24: 0 | O24: 0 | AC24: =IF(ISBLANK(A24),TRUE,NOT(ISERROR(MATCH(A24,'Look Up Tables'!$A$11:$A$510,0)))) -> TRUE
L25: 0 | N25: 0 | O25: 0 | AC25: =IF(ISBLANK(A25),TRUE,NOT(ISERROR(MATCH(A25,'Look Up Tables'!$A$11:$A$510,0)))) -> TRUE
L26: 0 | N26: 0 | O26: 0 | AC26: =IF(ISBLANK(A26),TRUE,NOT(ISERROR(MATCH(A26,'Look Up Tables'!$A$11:$A$510,0)))) -> TRUE
L27: 0 | N27: 0 | O27: 0 | AC27: =IF(ISBLANK(A27),TRUE,NOT(ISERROR(MATCH(A27,'Look Up Tables'!$A$11:$A$510,0)))) -> TRUE
L28: 0 | N28: 0 | O28: 0 | AC28: =IF(ISBLANK(A28),TRUE,NOT(ISERROR(MATCH(A28,'Look Up Tables'!$A$11:$A$510,0)))) -> TRUE
L29: 0 | N29: 0 | O29: 0 | AC29: =IF(ISBLANK(A29),TRUE,NOT(ISERROR(MATCH(A29,'Look Up Tables'!$A$11:$A$510,0)))) -> TRUE
L30: 0 | N30: 0 | O30: 0 | AC30: =IF(ISBLANK(A30),TRUE,NOT(ISERROR(MATCH(A30,'Look Up Tables'!$A$11:$A$510,0)))) -> TRUE
L31: 0 | N31: 0 | O31: 0 | AC31: =IF(ISBLANK(A31),TRUE,NOT(ISERROR(MATCH(A31,'Look Up Tables'!$A$11:$A$510,0)))) -> TRUE
L32: 0 | N32: 0 | O32: 0 | AC32: =IF(ISBLANK(A32),TRUE,NOT(ISERROR(MATCH(A32,'Look Up Tables'!$A$11:$A$510,0)))) -> TRUE
L33: 0 | N33: 0 | O33: 0 | AC33: =IF(ISBLANK(A33),TRUE,NOT(ISERROR(MATCH(A33,'Look Up Tables'!$A$11:$A$510,0)))) -> TRUE
L34: 0 | N34: 0 | O34: 0 | AC34: =IF(ISBLANK(A34),TRUE,NOT(ISERROR(MATCH(A34,'Look Up Tables'!$A$11:$A$510,0)))) -> TRUE
L35: 0 | N35: 0 | O35: 0 | AC35: =IF(ISBLANK(A35),TRUE,NOT(ISERROR(MATCH(A35,'Look Up Tables'!$A$11:$A$510,0)))) -> TRUE
L36: 0 | N36: 0 | O36: 0 | AC36: =IF(ISBLANK(A36),TRUE,NOT(ISERROR(MATCH(A36,'Look Up Tables'!$A$11:$A$510,0)))) -> TRUE
L37: 0 | N37: 0 | O37: 0 | AC37: =IF(ISBLANK(A37),TRUE,NOT(ISERROR(MATCH(A37,'Look Up Tables'!$A$11:$A$510,0)))) -> TRUE
L38: 0 | N38: 0 | O38: 0 | AC38: =IF(ISBLANK(A38),TRUE,NOT(ISERROR(MATCH(A38,'Look Up Tables'!$A$11:$A$510,0)))) -> TRUE
L39: 0 | N39: 0 | O39: 0 | AC39: =IF(ISBLANK(A39),TRUE,NOT(ISERROR(MATCH(A39,'Look Up Tables'!$A$11:$A$510,0)))) -> TRUE
L40: 0 | N40: 0 | O40: 0 | AC40: =IF(ISBLANK(A40),TRUE,NOT(ISERROR(MATCH(A40,'Look Up Tables'!$A$11:$A$510,0)))) -> TRUE
L41: 0 | N41: 0 | O41: 0 | AC41: =IF(ISBLANK(A41),TRUE,NOT(ISERROR(MATCH(A41,'Look Up Tables'!$A$11:$A$510,0)))) -> TRUE
L42: 0 | N42: 0 | O42: 0 | AC42: =IF(ISBLANK(A42),TRUE,NOT(ISERROR(MATCH(A42,'Look Up Tables'!$A$11:$A$510,0)))) -> TRUE
L43: 0 | N43: 0 | O43: 0 | AC43: =IF(ISBLANK(A43),TRUE,NOT(ISERROR(MATCH(A43,'Look Up Tables'!$A$11:$A$510,0)))) -> TRUE
L44: 0 | N44: 0 | O44: 0 | AC44: =IF(ISBLANK(A44),TRUE,NOT(ISERROR(MATCH(A44,'Look Up Tables'!$A$11:$A$510,0)))) -> TRUE
L45: 0 | N45: 0 | O45: 0 | AC45: =IF(ISBLANK(A45),TRUE,NOT(ISERROR(MATCH(A45,'Look Up Tables'!$A$11:$A$510,0)))) -> TRUE
L46: 0 | N46: 0 | O46: 0 | AC46: =IF(ISBLANK(A46),TRUE,NOT(ISERROR(MATCH(A46,'Look Up Tables'!$A$11:$A$510,0)))) -> TRUE
L47: 0 | N47: 0 | O47: 0 | AC47: =IF(ISBLANK(A47),TRUE,NOT(ISERROR(MATCH(A47,'Look Up Tables'!$A$11:$A$510,0)))) -> TRUE
L48: 0 | N48: 0 | O48: 0 | AC48: =IF(ISBLANK(A48),TRUE,NOT(ISERROR(MATCH(A48,'Look Up Tables'!$A$11:$A$510,0)))) -> TRUE
L49: 0 | N49: 0 | O49: 0 | AC49: =IF(ISBLANK(A49),TRUE,NOT(ISERROR(MATCH(A49,'Look Up Tables'!$A$11:$A$510,0)))) -> TRUE
L50: 0 | N50: 0 | O50: 0 | AC50: =IF(ISBLANK(A50),TRUE,NOT(ISERROR(MATCH(A50,'Look Up Tables'!$A$11:$A$510,0)))) -> TRUE
L51: 0 | N51: 0 | O51: 0 | AC51: =IF(ISBLANK(A51),TRUE,NOT(ISERROR(MATCH(A51,'Look Up Tables'!$A$11:$A$510,0)))) -> TRUE
L52: 0 | N52: 0 | O52: 0 | AC52: =IF(ISBLANK(A52),TRUE,NOT(ISERROR(MATCH(A52,'Look Up Tables'!$A$11:$A$510,0)))) -> TRUE
L53: 0 | N53: 0 | O53: 0 | AC53: =IF(ISBLANK(A53),TRUE,NOT(ISERROR(MATCH(A53,'Look Up Tables'!$A$11:$A$510,0)))) -> TRUE
L54: 0 | N54: 0 | O54: 0 | AC54: =IF(ISBLANK(A54),TRUE,NOT(ISERROR(MATCH(A54,'Look Up Tables'!$A$11:$A$510,0)))) -> TRUE
L55: 0 | N55: 0 | O55: 0 | AC55: =IF(ISBLANK(A55),TRUE,NOT(ISERROR(MATCH(A55,'Look Up Tables'!$A$11:$A$510,0)))) -> TRUE
L56: 0 | N56: 0 | O56: 0 | AC56: =IF(ISBLANK(A56),TRUE,NOT(ISERROR(MATCH(A56,'Look Up Tables'!$A$11:$A$510,0)))) -> TRUE
L57: 0 | N57: 0 | O57: 0 | AC57: =IF(ISBLANK(A57),TRUE,NOT(ISERROR(MATCH(A57,'Look Up Tables'!$A$11:$A$510,0)))) -> TRUE
L58: 0 | N58: 0 | O58: 0 | AC58: =IF(ISBLANK(A58),TRUE,NOT(ISERROR(MATCH(A58,'Look Up Tables'!$A$11:$A$510,0)))) -> TRUE
L59: 0 | N59: 0 | O59: 0 | AC59: =IF(ISBLANK(A59),TRUE,NOT(ISERROR(MATCH(A59,'Look Up Tables'!$A$11:$A$510,0)))) -> TRUE
L60: 0 | N60: 0 | O60: 0 | AC60: =IF(ISBLANK(A60),TRUE,NOT(ISERROR(MATCH(A60,'Look Up Tables'!$A$11:$A$510,0)))) -> TRUE
L61: 0 | N61: 0 | O61: 0 | AC61: =IF(ISBLANK(A61),TRUE,NOT(ISERROR(MATCH(A61,'Look Up Tables'!$A$11:$A$510,0)))) -> TRUE
L62: 0 | N62: 0 | O62: 0 | AC62: =IF(ISBLANK(A62),TRUE,NOT(ISERROR(MATCH(A62,'Look Up Tables'!$A$11:$A$510,0)))) -> TRUE
... 65 more rows

Sheet Company Inputs Allowances >>

Sheet Scheme_Meta_Data_Allowances
A1: Sheet: | B1: Scheme Meta Data Baseline | D1: Data Type: | E1: Meta Data | G1: Checks: | H1: ='Checks Sheet'!$C$49 -> All checks passing
A2: Prices Base: 2018/19
A3: Sheet Description:
A4: Scheme Meta Data company inputs sheet.
A6: Key
A7: Select from dropdown | B7: Free Entry | C7: Auto Populated | D7: Check Cell | E7: Lookup Data
W9: =AND(W14:W155) -> TRUE | X9: =AND(X14:X155) -> TRUE | Y9: =AND(Y14:Y155) -> TRUE
A11: descriptor_1 | B11: descriptor_2 | C11: descriptor_3 | D11: descriptor_4 | E11: descriptor_5 | F11: descriptor_6 | G11: descriptor_7 | H11: descriptor_8 | I11: descriptor_9 | J11: descriptor_10 | L11: value_1 | M11: value_2 | N11: value_3 | O11: value_4 | P11: value_5 | Q11: value_6 | R11: value_7 | S11: value_8 | T11: value_9 | U11: value_10 | W11: Checks
A13: Scheme Reference | B13: Project Reference | C13: Scheme Category | D13: Scheme Sub Category | E13: Mechanism Category | F13: Geographical | G13: Consents & Planning | H13: Ground condition | I13: Environmental Mitigation | J13: Proximity to existing electricla infrastructure | L13: Scheme Name | M13: Start year | N13: Close year | O13: Active | P13: Spare | Q13: Spare | R13: Spare | S13: Spare | T13: Spare | U13: Narative / Associated Doc Reference | W13: Scheme Reference | X13: Project Reference | Y13: Scheme Category
O14: =AND(YEAR(NOW())<=N14, YEAR(NOW())>=M14) -> FALSE | W14: =IF(ISBLANK(A14),TRUE,NOT(ISERROR(MATCH(A14,'Look Up Tables'!$A$11:$A$510,0)))) -> TRUE | X14: =IF(ISBLANK(A14),TRUE,NOT(ISERROR(MATCH(B14,'Look Up Tables'!$B$11:$B$510,0)))) -> TRUE | Y14: =IF(ISBLANK(A14),TRUE,NOT(ISERROR(MATCH(C14,'Look Up Tables'!$L$11:$L$510,0)))) -> TRUE
O15: =AND(YEAR(NOW())<=N15, YEAR(NOW())>=M15) -> FALSE | W15: =IF(ISBLANK(A15),TRUE,NOT(ISERROR(MATCH(A15,'Look Up Tables'!$A$11:$A$510,0)))) -> TRUE | X15: =IF(ISBLANK(A15),TRUE,NOT(ISERROR(MATCH(B15,'Look Up Tables'!$B$11:$B$510,0)))) -> TRUE | Y15: =IF(ISBLANK(A15),TRUE,NOT(ISERROR(MATCH(C15,'Look Up Tables'!$L$11:$L$510,0)))) -> TRUE
O16: FALSE | W16: =IF(ISBLANK(A16),TRUE,NOT(ISERROR(MATCH(A16,'Look Up Tables'!$A$11:$A$510,0)))) -> TRUE | X16: =IF(ISBLANK(A16),TRUE,NOT(ISERROR(MATCH(B16,'Look Up Tables'!$B$11:$B$510,0)))) -> TRUE | Y16: =IF(ISBLANK(A16),TRUE,NOT(ISERROR(MATCH(C16,'Look Up Tables'!$L$11:$L$510,0)))) -> TRUE
O17: FALSE | W17: =IF(ISBLANK(A17),TRUE,NOT(ISERROR(MATCH(A17,'Look Up Tables'!$A$11:$A$510,0)))) -> TRUE | X17: =IF(ISBLANK(A17),TRUE,NOT(ISERROR(MATCH(B17,'Look Up Tables'!$B$11:$B$510,0)))) -> TRUE | Y17: =IF(ISBLANK(A17),TRUE,NOT(ISERROR(MATCH(C17,'Look Up Tables'!$L$11:$L$510,0)))) -> TRUE
O18: FALSE | W18: =IF(ISBLANK(A18),TRUE,NOT(ISERROR(MATCH(A18,'Look Up Tables'!$A$11:$A$510,0)))) -> TRUE | X18: =IF(ISBLANK(A18),TRUE,NOT(ISERROR(MATCH(B18,'Look Up Tables'!$B$11:$B$510,0)))) -> TRUE | Y18: =IF(ISBLANK(A18),TRUE,NOT(ISERROR(MATCH(C18,'Look Up Tables'!$L$11:$L$510,0)))) -> TRUE
O19: FALSE | W19: =IF(ISBLANK(A19),TRUE,NOT(ISERROR(MATCH(A19,'Look Up Tables'!$A$11:$A$510,0)))) -> TRUE | X19: =IF(ISBLANK(A19),TRUE,NOT(ISERROR(MATCH(B19,'Look Up Tables'!$B$11:$B$510,0)))) -> TRUE | Y19: =IF(ISBLANK(A19),TRUE,NOT(ISERROR(MATCH(C19,'Look Up Tables'!$L$11:$L$510,0)))) -> TRUE
O20: FALSE | W20: =IF(ISBLANK(A20),TRUE,NOT(ISERROR(MATCH(A20,'Look Up Tables'!$A$11:$A$510,0)))) -> TRUE | X20: =IF(ISBLANK(A20),TRUE,NOT(ISERROR(MATCH(B20,'Look Up Tables'!$B$11:$B$510,0)))) -> TRUE | Y20: =IF(ISBLANK(A20),TRUE,NOT(ISERROR(MATCH(C20,'Look Up Tables'!$L$11:$L$510,0)))) -> TRUE
O21: FALSE | W21: =IF(ISBLANK(A21),TRUE,NOT(ISERROR(MATCH(A21,'Look Up Tables'!$A$11:$A$510,0)))) -> TRUE | X21: =IF(ISBLANK(A21),TRUE,NOT(ISERROR(MATCH(B21,'Look Up Tables'!$B$11:$B$510,0)))) -> TRUE | Y21: =IF(ISBLANK(A21),TRUE,NOT(ISERROR(MATCH(C21,'Look Up Tables'!$L$11:$L$510,0)))) -> TRUE
O22: FALSE | W22: =IF(ISBLANK(A22),TRUE,NOT(ISERROR(MATCH(A22,'Look Up Tables'!$A$11:$A$510,0)))) -> TRUE | X22: =IF(ISBLANK(A22),TRUE,NOT(ISERROR(MATCH(B22,'Look Up Tables'!$B$11:$B$510,0)))) -> TRUE | Y22: =IF(ISBLANK(A22),TRUE,NOT(ISERROR(MATCH(C22,'Look Up Tables'!$L$11:$L$510,0)))) -> TRUE
O23: FALSE | W23: =IF(ISBLANK(A23),TRUE,NOT(ISERROR(MATCH(A23,'Look Up Tables'!$A$11:$A$510,0)))) -> TRUE | X23: =IF(ISBLANK(A23),TRUE,NOT(ISERROR(MATCH(B23,'Look Up Tables'!$B$11:$B$510,0)))) -> TRUE | Y23: =IF(ISBLANK(A23),TRUE,NOT(ISERROR(MATCH(C23,'Look Up Tables'!$L$11:$L$510,0)))) -> TRUE
O24: FALSE | W24: =IF(ISBLANK(A24),TRUE,NOT(ISERROR(MATCH(A24,'Look Up Tables'!$A$11:$A$510,0)))) -> TRUE | X24: =IF(ISBLANK(A24),TRUE,NOT(ISERROR(MATCH(B24,'Look Up Tables'!$B$11:$B$510,0)))) -> TRUE | Y24: =IF(ISBLANK(A24),TRUE,NOT(ISERROR(MATCH(C24,'Look Up Tables'!$L$11:$L$510,0)))) -> TRUE
O25: FALSE | W25: =IF(ISBLANK(A25),TRUE,NOT(ISERROR(MATCH(A25,'Look Up Tables'!$A$11:$A$510,0)))) -> TRUE | X25: =IF(ISBLANK(A25),TRUE,NOT(ISERROR(MATCH(B25,'Look Up Tables'!$B$11:$B$510,0)))) -> TRUE | Y25: =IF(ISBLANK(A25),TRUE,NOT(ISERROR(MATCH(C25,'Look Up Tables'!$L$11:$L$510,0)))) -> TRUE
O26: FALSE | W26: =IF(ISBLANK(A26),TRUE,NOT(ISERROR(MATCH(A26,'Look Up Tables'!$A$11:$A$510,0)))) -> TRUE | X26: =IF(ISBLANK(A26),TRUE,NOT(ISERROR(MATCH(B26,'Look Up Tables'!$B$11:$B$510,0)))) -> TRUE | Y26: =IF(ISBLANK(A26),TRUE,NOT(ISERROR(MATCH(C26,'Look Up Tables'!$L$11:$L$510,0)))) -> TRUE
O27: FALSE | W27: =IF(ISBLANK(A27),TRUE,NOT(ISERROR(MATCH(A27,'Look Up Tables'!$A$11:$A$510,0)))) -> TRUE | X27: =IF(ISBLANK(A27),TRUE,NOT(ISERROR(MATCH(B27,'Look Up Tables'!$B$11:$B$510,0)))) -> TRUE | Y27: =IF(ISBLANK(A27),TRUE,NOT(ISERROR(MATCH(C27,'Look Up Tables'!$L$11:$L$510,0)))) -> TRUE
O28: FALSE | W28: =IF(ISBLANK(A28),TRUE,NOT(ISERROR(MATCH(A28,'Look Up Tables'!$A$11:$A$510,0)))) -> TRUE | X28: =IF(ISBLANK(A28),TRUE,NOT(ISERROR(MATCH(B28,'Look Up Tables'!$B$11:$B$510,0)))) -> TRUE | Y28: =IF(ISBLANK(A28),TRUE,NOT(ISERROR(MATCH(C28,'Look Up Tables'!$L$11:$L$510,0)))) -> TRUE
O29: FALSE | W29: =IF(ISBLANK(A29),TRUE,NOT(ISERROR(MATCH(A29,'Look Up Tables'!$A$11:$A$510,0)))) -> TRUE | X29: =IF(ISBLANK(A29),TRUE,NOT(ISERROR(MATCH(B29,'Look Up Tables'!$B$11:$B$510,0)))) -> TRUE | Y29: =IF(ISBLANK(A29),TRUE,NOT(ISERROR(MATCH(C29,'Look Up Tables'!$L$11:$L$510,0)))) -> TRUE
O30: FALSE | W30: =IF(ISBLANK(A30),TRUE,NOT(ISERROR(MATCH(A30,'Look Up Tables'!$A$11:$A$510,0)))) -> TRUE | X30: =IF(ISBLANK(A30),TRUE,NOT(ISERROR(MATCH(B30,'Look Up Tables'!$B$11:$B$510,0)))) -> TRUE | Y30: =IF(ISBLANK(A30),TRUE,NOT(ISERROR(MATCH(C30,'Look Up Tables'!$L$11:$L$510,0)))) -> TRUE
O31: FALSE | W31: =IF(ISBLANK(A31),TRUE,NOT(ISERROR(MATCH(A31,'Look Up Tables'!$A$11:$A$510,0)))) -> TRUE | X31: =IF(ISBLANK(A31),TRUE,NOT(ISERROR(MATCH(B31,'Look Up Tables'!$B$11:$B$510,0)))) -> TRUE | Y31: =IF(ISBLANK(A31),TRUE,NOT(ISERROR(MATCH(C31,'Look Up Tables'!$L$11:$L$510,0)))) -> TRUE
O32: FALSE | W32: =IF(ISBLANK(A32),TRUE,NOT(ISERROR(MATCH(A32,'Look Up Tables'!$A$11:$A$510,0)))) -> TRUE | X32: =IF(ISBLANK(A32),TRUE,NOT(ISERROR(MATCH(B32,'Look Up Tables'!$B$11:$B$510,0)))) -> TRUE | Y32: =IF(ISBLANK(A32),TRUE,NOT(ISERROR(MATCH(C32,'Look Up Tables'!$L$11:$L$510,0)))) -> TRUE
O33: FALSE | W33: =IF(ISBLANK(A33),TRUE,NOT(ISERROR(MATCH(A33,'Look Up Tables'!$A$11:$A$510,0)))) -> TRUE | X33: =IF(ISBLANK(A33),TRUE,NOT(ISERROR(MATCH(B33,'Look Up Tables'!$B$11:$B$510,0)))) -> TRUE | Y33: =IF(ISBLANK(A33),TRUE,NOT(ISERROR(MATCH(C33,'Look Up Tables'!$L$11:$L$510,0)))) -> TRUE
O34: FALSE | W34: =IF(ISBLANK(A34),TRUE,NOT(ISERROR(MATCH(A34,'Look Up Tables'!$A$11:$A$510,0)))) -> TRUE | X34: =IF(ISBLANK(A34),TRUE,NOT(ISERROR(MATCH(B34,'Look Up Tables'!$B$11:$B$510,0)))) -> TRUE | Y34: =IF(ISBLANK(A34),TRUE,NOT(ISERROR(MATCH(C34,'Look Up Tables'!$L$11:$L$510,0)))) -> TRUE
O35: FALSE | W35: =IF(ISBLANK(A35),TRUE,NOT(ISERROR(MATCH(A35,'Look Up Tables'!$A$11:$A$510,0)))) -> TRUE | X35: =IF(ISBLANK(A35),TRUE,NOT(ISERROR(MATCH(B35,'Look Up Tables'!$B$11:$B$510,0)))) -> TRUE | Y35: =IF(ISBLANK(A35),TRUE,NOT(ISERROR(MATCH(C35,'Look Up Tables'!$L$11:$L$510,0)))) -> TRUE
O36: FALSE | W36: =IF(ISBLANK(A36),TRUE,NOT(ISERROR(MATCH(A36,'Look Up Tables'!$A$11:$A$510,0)))) -> TRUE | X36: =IF(ISBLANK(A36),TRUE,NOT(ISERROR(MATCH(B36,'Look Up Tables'!$B$11:$B$510,0)))) -> TRUE | Y36: =IF(ISBLANK(A36),TRUE,NOT(ISERROR(MATCH(C36,'Look Up Tables'!$L$11:$L$510,0)))) -> TRUE
O37: FALSE | W37: =IF(ISBLANK(A37),TRUE,NOT(ISERROR(MATCH(A37,'Look Up Tables'!$A$11:$A$510,0)))) -> TRUE | X37: =IF(ISBLANK(A37),TRUE,NOT(ISERROR(MATCH(B37,'Look Up Tables'!$B$11:$B$510,0)))) -> TRUE | Y37: =IF(ISBLANK(A37),TRUE,NOT(ISERROR(MATCH(C37,'Look Up Tables'!$L$11:$L$510,0)))) -> TRUE
O38: FALSE | W38: =IF(ISBLANK(A38),TRUE,NOT(ISERROR(MATCH(A38,'Look Up Tables'!$A$11:$A$510,0)))) -> TRUE | X38: =IF(ISBLANK(A38),TRUE,NOT(ISERROR(MATCH(B38,'Look Up Tables'!$B$11:$B$510,0)))) -> TRUE | Y38: =IF(ISBLANK(A38),TRUE,NOT(ISERROR(MATCH(C38,'Look Up Tables'!$L$11:$L$510,0)))) -> TRUE
O39: FALSE | W39: =IF(ISBLANK(A39),TRUE,NOT(ISERROR(MATCH(A39,'Look Up Tables'!$A$11:$A$510,0)))) -> TRUE | X39: =IF(ISBLANK(A39),TRUE,NOT(ISERROR(MATCH(B39,'Look Up Tables'!$B$11:$B$510,0)))) -> TRUE | Y39: =IF(ISBLANK(A39),TRUE,NOT(ISERROR(MATCH(C39,'Look Up Tables'!$L$11:$L$510,0)))) -> TRUE
O40: FALSE | W40: =IF(ISBLANK(A40),TRUE,NOT(ISERROR(MATCH(A40,'Look Up Tables'!$A$11:$A$510,0)))) -> TRUE | X40: =IF(ISBLANK(A40),TRUE,NOT(ISERROR(MATCH(B40,'Look Up Tables'!$B$11:$B$510,0)))) -> TRUE | Y40: =IF(ISBLANK(A40),TRUE,NOT(ISERROR(MATCH(C40,'Look Up Tables'!$L$11:$L$510,0)))) -> TRUE
O41: FALSE | W41: =IF(ISBLANK(A41),TRUE,NOT(ISERROR(MATCH(A41,'Look Up Tables'!$A$11:$A$510,0)))) -> TRUE | X41: =IF(ISBLANK(A41),TRUE,NOT(ISERROR(MATCH(B41,'Look Up Tables'!$B$11:$B$510,0)))) -> TRUE | Y41: =IF(ISBLANK(A41),TRUE,NOT(ISERROR(MATCH(C41,'Look Up Tables'!$L$11:$L$510,0)))) -> TRUE
O42: FALSE | W42: =IF(ISBLANK(A42),TRUE,NOT(ISERROR(MATCH(A42,'Look Up Tables'!$A$11:$A$510,0)))) -> TRUE | X42: =IF(ISBLANK(A42),TRUE,NOT(ISERROR(MATCH(B42,'Look Up Tables'!$B$11:$B$510,0)))) -> TRUE | Y42: =IF(ISBLANK(A42),TRUE,NOT(ISERROR(MATCH(C42,'Look Up Tables'!$L$11:$L$510,0)))) -> TRUE
O43: FALSE | W43: =IF(ISBLANK(A43),TRUE,NOT(ISERROR(MATCH(A43,'Look Up Tables'!$A$11:$A$510,0)))) -> TRUE | X43: =IF(ISBLANK(A43),TRUE,NOT(ISERROR(MATCH(B43,'Look Up Tables'!$B$11:$B$510,0)))) -> TRUE | Y43: =IF(ISBLANK(A43),TRUE,NOT(ISERROR(MATCH(C43,'Look Up Tables'!$L$11:$L$510,0)))) -> TRUE
O44: FALSE | W44: =IF(ISBLANK(A44),TRUE,NOT(ISERROR(MATCH(A44,'Look Up Tables'!$A$11:$A$510,0)))) -> TRUE | X44: =IF(ISBLANK(A44),TRUE,NOT(ISERROR(MATCH(B44,'Look Up Tables'!$B$11:$B$510,0)))) -> TRUE | Y44: =IF(ISBLANK(A44),TRUE,NOT(ISERROR(MATCH(C44,'Look Up Tables'!$L$11:$L$510,0)))) -> TRUE
O45: FALSE | W45: =IF(ISBLANK(A45),TRUE,NOT(ISERROR(MATCH(A45,'Look Up Tables'!$A$11:$A$510,0)))) -> TRUE | X45: =IF(ISBLANK(A45),TRUE,NOT(ISERROR(MATCH(B45,'Look Up Tables'!$B$11:$B$510,0)))) -> TRUE | Y45: =IF(ISBLANK(A45),TRUE,NOT(ISERROR(MATCH(C45,'Look Up Tables'!$L$11:$L$510,0)))) -> TRUE
O46: FALSE | W46: =IF(ISBLANK(A46),TRUE,NOT(ISERROR(MATCH(A46,'Look Up Tables'!$A$11:$A$510,0)))) -> TRUE | X46: =IF(ISBLANK(A46),TRUE,NOT(ISERROR(MATCH(B46,'Look Up Tables'!$B$11:$B$510,0)))) -> TRUE | Y46: =IF(ISBLANK(A46),TRUE,NOT(ISERROR(MATCH(C46,'Look Up Tables'!$L$11:$L$510,0)))) -> TRUE
O47: FALSE | W47: =IF(ISBLANK(A47),TRUE,NOT(ISERROR(MATCH(A47,'Look Up Tables'!$A$11:$A$510,0)))) -> TRUE | X47: =IF(ISBLANK(A47),TRUE,NOT(ISERROR(MATCH(B47,'Look Up Tables'!$B$11:$B$510,0)))) -> TRUE | Y47: =IF(ISBLANK(A47),TRUE,NOT(ISERROR(MATCH(C47,'Look Up Tables'!$L$11:$L$510,0)))) -> TRUE
O48: FALSE | W48: =IF(ISBLANK(A48),TRUE,NOT(ISERROR(MATCH(A48,'Look Up Tables'!$A$11:$A$510,0)))) -> TRUE | X48: =IF(ISBLANK(A48),TRUE,NOT(ISERROR(MATCH(B48,'Look Up Tables'!$B$11:$B$510,0)))) -> TRUE | Y48: =IF(ISBLANK(A48),TRUE,NOT(ISERROR(MATCH(C48,'Look Up Tables'!$L$11:$L$510,0)))) -> TRUE
O49: FALSE | W49: =IF(ISBLANK(A49),TRUE,NOT(ISERROR(MATCH(A49,'Look Up Tables'!$A$11:$A$510,0)))) -> TRUE | X49: =IF(ISBLANK(A49),TRUE,NOT(ISERROR(MATCH(B49,'Look Up Tables'!$B$11:$B$510,0)))) -> TRUE | Y49: =IF(ISBLANK(A49),TRUE,NOT(ISERROR(MATCH(C49,'Look Up Tables'!$L$11:$L$510,0)))) -> TRUE
O50: FALSE | W50: =IF(ISBLANK(A50),TRUE,NOT(ISERROR(MATCH(A50,'Look Up Tables'!$A$11:$A$510,0)))) -> TRUE | X50: =IF(ISBLANK(A50),TRUE,NOT(ISERROR(MATCH(B50,'Look Up Tables'!$B$11:$B$510,0)))) -> TRUE | Y50: =IF(ISBLANK(A50),TRUE,NOT(ISERROR(MATCH(C50,'Look Up Tables'!$L$11:$L$510,0)))) -> TRUE
O51: FALSE | W51: =IF(ISBLANK(A51),TRUE,NOT(ISERROR(MATCH(A51,'Look Up Tables'!$A$11:$A$510,0)))) -> TRUE | X51: =IF(ISBLANK(A51),TRUE,NOT(ISERROR(MATCH(B51,'Look Up Tables'!$B$11:$B$510,0)))) -> TRUE | Y51: =IF(ISBLANK(A51),TRUE,NOT(ISERROR(MATCH(C51,'Look Up Tables'!$L$11:$L$510,0)))) -> TRUE
O52: FALSE | W52: =IF(ISBLANK(A52),TRUE,NOT(ISERROR(MATCH(A52,'Look Up Tables'!$A$11:$A$510,0)))) -> TRUE | X52: =IF(ISBLANK(A52),TRUE,NOT(ISERROR(MATCH(B52,'Look Up Tables'!$B$11:$B$510,0)))) -> TRUE | Y52: =IF(ISBLANK(A52),TRUE,NOT(ISERROR(MATCH(C52,'Look Up Tables'!$L$11:$L$510,0)))) -> TRUE
O53: FALSE | W53: =IF(ISBLANK(A53),TRUE,NOT(ISERROR(MATCH(A53,'Look Up Tables'!$A$11:$A$510,0)))) -> TRUE | X53: =IF(ISBLANK(A53),TRUE,NOT(ISERROR(MATCH(B53,'Look Up Tables'!$B$11:$B$510,0)))) -> TRUE | Y53: =IF(ISBLANK(A53),TRUE,NOT(ISERROR(MATCH(C53,'Look Up Tables'!$L$11:$L$510,0)))) -> TRUE
O54: FALSE | W54: =IF(ISBLANK(A54),TRUE,NOT(ISERROR(MATCH(A54,'Look Up Tables'!$A$11:$A$510,0)))) -> TRUE | X54: =IF(ISBLANK(A54),TRUE,NOT(ISERROR(MATCH(B54,'Look Up Tables'!$B$11:$B$510,0)))) -> TRUE | Y54: =IF(ISBLANK(A54),TRUE,NOT(ISERROR(MATCH(C54,'Look Up Tables'!$L$11:$L$510,0)))) -> TRUE
O55: FALSE | W55: =IF(ISBLANK(A55),TRUE,NOT(ISERROR(MATCH(A55,'Look Up Tables'!$A$11:$A$510,0)))) -> TRUE | X55: =IF(ISBLANK(A55),TRUE,NOT(ISERROR(MATCH(B55,'Look Up Tables'!$B$11:$B$510,0)))) -> TRUE | Y55: =IF(ISBLANK(A55),TRUE,NOT(ISERROR(MATCH(C55,'Look Up Tables'!$L$11:$L$510,0)))) -> TRUE
O56: FALSE | W56: =IF(ISBLANK(A56),TRUE,NOT(ISERROR(MATCH(A56,'Look Up Tables'!$A$11:$A$510,0)))) -> TRUE | X56: =IF(ISBLANK(A56),TRUE,NOT(ISERROR(MATCH(B56,'Look Up Tables'!$B$11:$B$510,0)))) -> TRUE | Y56: =IF(ISBLANK(A56),TRUE,NOT(ISERROR(MATCH(C56,'Look Up Tables'!$L$11:$L$510,0)))) -> TRUE
O57: FALSE | W57: =IF(ISBLANK(A57),TRUE,NOT(ISERROR(MATCH(A57,'Look Up Tables'!$A$11:$A$510,0)))) -> TRUE | X57: =IF(ISBLANK(A57),TRUE,NOT(ISERROR(MATCH(B57,'Look Up Tables'!$B$11:$B$510,0)))) -> TRUE | Y57: =IF(ISBLANK(A57),TRUE,NOT(ISERROR(MATCH(C57,'Look Up Tables'!$L$11:$L$510,0)))) -> TRUE
O58: FALSE | W58: =IF(ISBLANK(A58),TRUE,NOT(ISERROR(MATCH(A58,'Look Up Tables'!$A$11:$A$510,0)))) -> TRUE | X58: =IF(ISBLANK(A58),TRUE,NOT(ISERROR(MATCH(B58,'Look Up Tables'!$B$11:$B$510,0)))) -> TRUE | Y58: =IF(ISBLANK(A58),TRUE,NOT(ISERROR(MATCH(C58,'Look Up Tables'!$L$11:$L$510,0)))) -> TRUE
O59: FALSE | W59: =IF(ISBLANK(A59),TRUE,NOT(ISERROR(MATCH(A59,'Look Up Tables'!$A$11:$A$510,0)))) -> TRUE | X59: =IF(ISBLANK(A59),TRUE,NOT(ISERROR(MATCH(B59,'Look Up Tables'!$B$11:$B$510,0)))) -> TRUE | Y59: =IF(ISBLANK(A59),TRUE,NOT(ISERROR(MATCH(C59,'Look Up Tables'!$L$11:$L$510,0)))) -> TRUE
O60: FALSE | W60: =IF(ISBLANK(A60),TRUE,NOT(ISERROR(MATCH(A60,'Look Up Tables'!$A$11:$A$510,0)))) -> TRUE | X60: =IF(ISBLANK(A60),TRUE,NOT(ISERROR(MATCH(B60,'Look Up Tables'!$B$11:$B$510,0)))) -> TRUE | Y60: =IF(ISBLANK(A60),TRUE,NOT(ISERROR(MATCH(C60,'Look Up Tables'!$L$11:$L$510,0)))) -> TRUE
O61: FALSE | W61: =IF(ISBLANK(A61),TRUE,NOT(ISERROR(MATCH(A61,'Look Up Tables'!$A$11:$A$510,0)))) -> TRUE | X61: =IF(ISBLANK(A61),TRUE,NOT(ISERROR(MATCH(B61,'Look Up Tables'!$B$11:$B$510,0)))) -> TRUE | Y61: =IF(ISBLANK(A61),TRUE,NOT(ISERROR(MATCH(C61,'Look Up Tables'!$L$11:$L$510,0)))) -> TRUE
O62: FALSE | W62: =IF(ISBLANK(A62),TRUE,NOT(ISERROR(MATCH(A62,'Look Up Tables'!$A$11:$A$510,0)))) -> TRUE | X62: =IF(ISBLANK(A62),TRUE,NOT(ISERROR(MATCH(B62,'Look Up Tables'!$B$11:$B$510,0)))) -> TRUE | Y62: =IF(ISBLANK(A62),TRUE,NOT(ISERROR(MATCH(C62,'Look Up Tables'!$L$11:$L$510,0)))) -> TRUE
... 77 more rows

Sheet Scheme_Volume_Mock_Up_Allowance
A1: Sheet: | B1: Scheme Volumes Baseline | D1: Data Type: | E1: Volumes | G1: Checks: | H1: ='Checks Sheet'!$C$49 -> All checks passing
A3: Sheet Description:
A4: Scheme Volume Baseline Data company inputs.
A6: Key
A7: Select from dropdown | B7: Free Entry | C7: Auto Populated | D7: Check Cell | E7: Lookup Data
A9: Baseline | U9: =AND(U17:U10016) -> TRUE | V9: =AND(V17:V10016) -> TRUE
A11: descriptor_1 | B11: descriptor_2 | C11: descriptor_3 | D11: descriptor_4 | E11: descriptor_5 | F11: descriptor_6 | G11: descriptor_7 | H11: descriptor_8 | I11: descriptor_9 | J11: descriptor_10 | L11: value_1 | M11: value_2 | N11: value_3 | O11: value_4 | P11: value_5 | Q11: value_6 | R11: value_7 | S11: value_8 | U11: Checks
A16: Scheme Reference | B16: Asset heading | C16: Asset Category | D16: Asset Sub-Category Primary | E16: Asset Sub-Category Secondary | F16: Voltage | G16: Intervention | H16: Volume Measure | I16: License Term | J16: Units | L16: Volume | M16: Delivery Year | N16: Delivery Period | O16: Spare1 | P16: Spare2 | Q16: Spare3 | R16: Spare4 | S16: Note | U16: Scheme Reference | V16: Asset inputs | W16: Spare | Y16: Descriptor for checks
N17: =IF(M17="","",IF(M17<2022,"RIIO-1",IF(M17>2026,"RIIO-3","RIIO-2"))) ->  | U17: =IF(ISBLANK(A17),TRUE,NOT(ISERROR(MATCH(A17,'Look Up Tables'!$A$11:$A$510,0)))) -> TRUE | V17: =IF(ISBLANK(A17),TRUE,NOT(ISERROR(MATCH(Y17,'Asset Possibilitites'!$I$9:$I$449,0)))) -> TRUE | Y17: =Scheme_Volume7[[#This Row],[Asset heading]]&Scheme_Volume7[[#This Row],[Asset Category]]&Scheme_Volume7[[#This Row],[Asset Sub-Category Primary]]&Scheme_Volume7[[#This Row],[Voltage]]&Scheme_Volume7[[#This Row],[Units]] -> 
N18: =IF(M18="","",IF(M18<2022,"RIIO-1",IF(M18>2026,"RIIO-3","RIIO-2"))) ->  | U18: =IF(ISBLANK(A18),TRUE,NOT(ISERROR(MATCH(A18,'Look Up Tables'!$A$11:$A$510,0)))) -> TRUE | V18: =IF(ISBLANK(A18),TRUE,NOT(ISERROR(MATCH(Y18,'Asset Possibilitites'!$I$9:$I$449,0)))) -> TRUE | Y18: =Scheme_Volume7[[#This Row],[Asset heading]]&Scheme_Volume7[[#This Row],[Asset Category]]&Scheme_Volume7[[#This Row],[Asset Sub-Category Primary]]&Scheme_Volume7[[#This Row],[Voltage]]&Scheme_Volume7[[#This Row],[Units]] -> 
U19: =IF(ISBLANK(A19),TRUE,NOT(ISERROR(MATCH(A19,'Look Up Tables'!$A$11:$A$510,0)))) -> TRUE | V19: =IF(ISBLANK(A19),TRUE,NOT(ISERROR(MATCH(Y19,'Asset Possibilitites'!$I$9:$I$449,0)))) -> TRUE | Y19: =Scheme_Volume7[[#This Row],[Asset heading]]&Scheme_Volume7[[#This Row],[Asset Category]]&Scheme_Volume7[[#This Row],[Asset Sub-Category Primary]]&Scheme_Volume7[[#This Row],[Voltage]]&Scheme_Volume7[[#This Row],[Units]] -> 
U20: =IF(ISBLANK(A20),TRUE,NOT(ISERROR(MATCH(A20,'Look Up Tables'!$A$11:$A$510,0)))) -> TRUE | V20: =IF(ISBLANK(A20),TRUE,NOT(ISERROR(MATCH(Y20,'Asset Possibilitites'!$I$9:$I$449,0)))) -> TRUE | Y20: =Scheme_Volume7[[#This Row],[Asset heading]]&Scheme_Volume7[[#This Row],[Asset Category]]&Scheme_Volume7[[#This Row],[Asset Sub-Category Primary]]&Scheme_Volume7[[#This Row],[Voltage]]&Scheme_Volume7[[#This Row],[Units]] -> 
U21: =IF(ISBLANK(A21),TRUE,NOT(ISERROR(MATCH(A21,'Look Up Tables'!$A$11:$A$510,0)))) -> TRUE | V21: =IF(ISBLANK(A21),TRUE,NOT(ISERROR(MATCH(Y21,'Asset Possibilitites'!$I$9:$I$449,0)))) -> TRUE | Y21: =Scheme_Volume7[[#This Row],[Asset heading]]&Scheme_Volume7[[#This Row],[Asset Category]]&Scheme_Volume7[[#This Row],[Asset Sub-Category Primary]]&Scheme_Volume7[[#This Row],[Voltage]]&Scheme_Volume7[[#This Row],[Units]] -> 
U22: =IF(ISBLANK(A22),TRUE,NOT(ISERROR(MATCH(A22,'Look Up Tables'!$A$11:$A$510,0)))) -> TRUE | V22: =IF(ISBLANK(A22),TRUE,NOT(ISERROR(MATCH(Y22,'Asset Possibilitites'!$I$9:$I$449,0)))) -> TRUE | Y22: =Scheme_Volume7[[#This Row],[Asset heading]]&Scheme_Volume7[[#This Row],[Asset Category]]&Scheme_Volume7[[#This Row],[Asset Sub-Category Primary]]&Scheme_Volume7[[#This Row],[Voltage]]&Scheme_Volume7[[#This Row],[Units]] -> 
U23: =IF(ISBLANK(A23),TRUE,NOT(ISERROR(MATCH(A23,'Look Up Tables'!$A$11:$A$510,0)))) -> TRUE | V23: =IF(ISBLANK(A23),TRUE,NOT(ISERROR(MATCH(Y23,'Asset Possibilitites'!$I$9:$I$449,0)))) -> TRUE | Y23: =Scheme_Volume7[[#This Row],[Asset heading]]&Scheme_Volume7[[#This Row],[Asset Category]]&Scheme_Volume7[[#This Row],[Asset Sub-Category Primary]]&Scheme_Volume7[[#This Row],[Voltage]]&Scheme_Volume7[[#This Row],[Units]] -> 
U24: =IF(ISBLANK(A24),TRUE,NOT(ISERROR(MATCH(A24,'Look Up Tables'!$A$11:$A$510,0)))) -> TRUE | V24: =IF(ISBLANK(A24),TRUE,NOT(ISERROR(MATCH(Y24,'Asset Possibilitites'!$I$9:$I$449,0)))) -> TRUE | Y24: =Scheme_Volume7[[#This Row],[Asset heading]]&Scheme_Volume7[[#This Row],[Asset Category]]&Scheme_Volume7[[#This Row],[Asset Sub-Category Primary]]&Scheme_Volume7[[#This Row],[Voltage]]&Scheme_Volume7[[#This Row],[Units]] -> 
U25: =IF(ISBLANK(A25),TRUE,NOT(ISERROR(MATCH(A25,'Look Up Tables'!$A$11:$A$510,0)))) -> TRUE | V25: =IF(ISBLANK(A25),TRUE,NOT(ISERROR(MATCH(Y25,'Asset Possibilitites'!$I$9:$I$449,0)))) -> TRUE | Y25: =Scheme_Volume7[[#This Row],[Asset heading]]&Scheme_Volume7[[#This Row],[Asset Category]]&Scheme_Volume7[[#This Row],[Asset Sub-Category Primary]]&Scheme_Volume7[[#This Row],[Voltage]]&Scheme_Volume7[[#This Row],[Units]] -> 
U26: =IF(ISBLANK(A26),TRUE,NOT(ISERROR(MATCH(A26,'Look Up Tables'!$A$11:$A$510,0)))) -> TRUE | V26: =IF(ISBLANK(A26),TRUE,NOT(ISERROR(MATCH(Y26,'Asset Possibilitites'!$I$9:$I$449,0)))) -> TRUE | Y26: =Scheme_Volume7[[#This Row],[Asset heading]]&Scheme_Volume7[[#This Row],[Asset Category]]&Scheme_Volume7[[#This Row],[Asset Sub-Category Primary]]&Scheme_Volume7[[#This Row],[Voltage]]&Scheme_Volume7[[#This Row],[Units]] -> 
U27: =IF(ISBLANK(A27),TRUE,NOT(ISERROR(MATCH(A27,'Look Up Tables'!$A$11:$A$510,0)))) -> TRUE | V27: =IF(ISBLANK(A27),TRUE,NOT(ISERROR(MATCH(Y27,'Asset Possibilitites'!$I$9:$I$449,0)))) -> TRUE | Y27: =Scheme_Volume7[[#This Row],[Asset heading]]&Scheme_Volume7[[#This Row],[Asset Category]]&Scheme_Volume7[[#This Row],[Asset Sub-Category Primary]]&Scheme_Volume7[[#This Row],[Voltage]]&Scheme_Volume7[[#This Row],[Units]] -> 
U28: =IF(ISBLANK(A28),TRUE,NOT(ISERROR(MATCH(A28,'Look Up Tables'!$A$11:$A$510,0)))) -> TRUE | V28: =IF(ISBLANK(A28),TRUE,NOT(ISERROR(MATCH(Y28,'Asset Possibilitites'!$I$9:$I$449,0)))) -> TRUE | Y28: =Scheme_Volume7[[#This Row],[Asset heading]]&Scheme_Volume7[[#This Row],[Asset Category]]&Scheme_Volume7[[#This Row],[Asset Sub-Category Primary]]&Scheme_Volume7[[#This Row],[Voltage]]&Scheme_Volume7[[#This Row],[Units]] -> 
U29: =IF(ISBLANK(A29),TRUE,NOT(ISERROR(MATCH(A29,'Look Up Tables'!$A$11:$A$510,0)))) -> TRUE | V29: =IF(ISBLANK(A29),TRUE,NOT(ISERROR(MATCH(Y29,'Asset Possibilitites'!$I$9:$I$449,0)))) -> TRUE | Y29: =Scheme_Volume7[[#This Row],[Asset heading]]&Scheme_Volume7[[#This Row],[Asset Category]]&Scheme_Volume7[[#This Row],[Asset Sub-Category Primary]]&Scheme_Volume7[[#This Row],[Voltage]]&Scheme_Volume7[[#This Row],[Units]] -> 
U30: =IF(ISBLANK(A30),TRUE,NOT(ISERROR(MATCH(A30,'Look Up Tables'!$A$11:$A$510,0)))) -> TRUE | V30: =IF(ISBLANK(A30),TRUE,NOT(ISERROR(MATCH(Y30,'Asset Possibilitites'!$I$9:$I$449,0)))) -> TRUE | Y30: =Scheme_Volume7[[#This Row],[Asset heading]]&Scheme_Volume7[[#This Row],[Asset Category]]&Scheme_Volume7[[#This Row],[Asset Sub-Category Primary]]&Scheme_Volume7[[#This Row],[Voltage]]&Scheme_Volume7[[#This Row],[Units]] -> 
U31: =IF(ISBLANK(A31),TRUE,NOT(ISERROR(MATCH(A31,'Look Up Tables'!$A$11:$A$510,0)))) -> TRUE | V31: =IF(ISBLANK(A31),TRUE,NOT(ISERROR(MATCH(Y31,'Asset Possibilitites'!$I$9:$I$449,0)))) -> TRUE | Y31: =Scheme_Volume7[[#This Row],[Asset heading]]&Scheme_Volume7[[#This Row],[Asset Category]]&Scheme_Volume7[[#This Row],[Asset Sub-Category Primary]]&Scheme_Volume7[[#This Row],[Voltage]]&Scheme_Volume7[[#This Row],[Units]] -> 
U32: =IF(ISBLANK(A32),TRUE,NOT(ISERROR(MATCH(A32,'Look Up Tables'!$A$11:$A$510,0)))) -> TRUE | V32: =IF(ISBLANK(A32),TRUE,NOT(ISERROR(MATCH(Y32,'Asset Possibilitites'!$I$9:$I$449,0)))) -> TRUE | Y32: =Scheme_Volume7[[#This Row],[Asset heading]]&Scheme_Volume7[[#This Row],[Asset Category]]&Scheme_Volume7[[#This Row],[Asset Sub-Category Primary]]&Scheme_Volume7[[#This Row],[Voltage]]&Scheme_Volume7[[#This Row],[Units]] -> 
U33: =IF(ISBLANK(A33),TRUE,NOT(ISERROR(MATCH(A33,'Look Up Tables'!$A$11:$A$510,0)))) -> TRUE | V33: =IF(ISBLANK(A33),TRUE,NOT(ISERROR(MATCH(Y33,'Asset Possibilitites'!$I$9:$I$449,0)))) -> TRUE | Y33: =Scheme_Volume7[[#This Row],[Asset heading]]&Scheme_Volume7[[#This Row],[Asset Category]]&Scheme_Volume7[[#This Row],[Asset Sub-Category Primary]]&Scheme_Volume7[[#This Row],[Voltage]]&Scheme_Volume7[[#This Row],[Units]] -> 
U34: =IF(ISBLANK(A34),TRUE,NOT(ISERROR(MATCH(A34,'Look Up Tables'!$A$11:$A$510,0)))) -> TRUE | V34: =IF(ISBLANK(A34),TRUE,NOT(ISERROR(MATCH(Y34,'Asset Possibilitites'!$I$9:$I$449,0)))) -> TRUE | Y34: =Scheme_Volume7[[#This Row],[Asset heading]]&Scheme_Volume7[[#This Row],[Asset Category]]&Scheme_Volume7[[#This Row],[Asset Sub-Category Primary]]&Scheme_Volume7[[#This Row],[Voltage]]&Scheme_Volume7[[#This Row],[Units]] -> 
U35: =IF(ISBLANK(A35),TRUE,NOT(ISERROR(MATCH(A35,'Look Up Tables'!$A$11:$A$510,0)))) -> TRUE | V35: =IF(ISBLANK(A35),TRUE,NOT(ISERROR(MATCH(Y35,'Asset Possibilitites'!$I$9:$I$449,0)))) -> TRUE | Y35: =Scheme_Volume7[[#This Row],[Asset heading]]&Scheme_Volume7[[#This Row],[Asset Category]]&Scheme_Volume7[[#This Row],[Asset Sub-Category Primary]]&Scheme_Volume7[[#This Row],[Voltage]]&Scheme_Volume7[[#This Row],[Units]] -> 
U36: =IF(ISBLANK(A36),TRUE,NOT(ISERROR(MATCH(A36,'Look Up Tables'!$A$11:$A$510,0)))) -> TRUE | V36: =IF(ISBLANK(A36),TRUE,NOT(ISERROR(MATCH(Y36,'Asset Possibilitites'!$I$9:$I$449,0)))) -> TRUE | Y36: =Scheme_Volume7[[#This Row],[Asset heading]]&Scheme_Volume7[[#This Row],[Asset Category]]&Scheme_Volume7[[#This Row],[Asset Sub-Category Primary]]&Scheme_Volume7[[#This Row],[Voltage]]&Scheme_Volume7[[#This Row],[Units]] -> 
U37: =IF(ISBLANK(A37),TRUE,NOT(ISERROR(MATCH(A37,'Look Up Tables'!$A$11:$A$510,0)))) -> TRUE | V37: =IF(ISBLANK(A37),TRUE,NOT(ISERROR(MATCH(Y37,'Asset Possibilitites'!$I$9:$I$449,0)))) -> TRUE | Y37: =Scheme_Volume7[[#This Row],[Asset heading]]&Scheme_Volume7[[#This Row],[Asset Category]]&Scheme_Volume7[[#This Row],[Asset Sub-Category Primary]]&Scheme_Volume7[[#This Row],[Voltage]]&Scheme_Volume7[[#This Row],[Units]] -> 
U38: =IF(ISBLANK(A38),TRUE,NOT(ISERROR(MATCH(A38,'Look Up Tables'!$A$11:$A$510,0)))) -> TRUE | V38: =IF(ISBLANK(A38),TRUE,NOT(ISERROR(MATCH(Y38,'Asset Possibilitites'!$I$9:$I$449,0)))) -> TRUE | Y38: =Scheme_Volume7[[#This Row],[Asset heading]]&Scheme_Volume7[[#This Row],[Asset Category]]&Scheme_Volume7[[#This Row],[Asset Sub-Category Primary]]&Scheme_Volume7[[#This Row],[Voltage]]&Scheme_Volume7[[#This Row],[Units]] -> 
U39: =IF(ISBLANK(A39),TRUE,NOT(ISERROR(MATCH(A39,'Look Up Tables'!$A$11:$A$510,0)))) -> TRUE | V39: =IF(ISBLANK(A39),TRUE,NOT(ISERROR(MATCH(Y39,'Asset Possibilitites'!$I$9:$I$449,0)))) -> TRUE | Y39: =Scheme_Volume7[[#This Row],[Asset heading]]&Scheme_Volume7[[#This Row],[Asset Category]]&Scheme_Volume7[[#This Row],[Asset Sub-Category Primary]]&Scheme_Volume7[[#This Row],[Voltage]]&Scheme_Volume7[[#This Row],[Units]] -> 
U40: =IF(ISBLANK(A40),TRUE,NOT(ISERROR(MATCH(A40,'Look Up Tables'!$A$11:$A$510,0)))) -> TRUE | V40: =IF(ISBLANK(A40),TRUE,NOT(ISERROR(MATCH(Y40,'Asset Possibilitites'!$I$9:$I$449,0)))) -> TRUE | Y40: =Scheme_Volume7[[#This Row],[Asset heading]]&Scheme_Volume7[[#This Row],[Asset Category]]&Scheme_Volume7[[#This Row],[Asset Sub-Category Primary]]&Scheme_Volume7[[#This Row],[Voltage]]&Scheme_Volume7[[#This Row],[Units]] -> 
U41: =IF(ISBLANK(A41),TRUE,NOT(ISERROR(MATCH(A41,'Look Up Tables'!$A$11:$A$510,0)))) -> TRUE | V41: =IF(ISBLANK(A41),TRUE,NOT(ISERROR(MATCH(Y41,'Asset Possibilitites'!$I$9:$I$449,0)))) -> TRUE | Y41: =Scheme_Volume7[[#This Row],[Asset heading]]&Scheme_Volume7[[#This Row],[Asset Category]]&Scheme_Volume7[[#This Row],[Asset Sub-Category Primary]]&Scheme_Volume7[[#This Row],[Voltage]]&Scheme_Volume7[[#This Row],[Units]] -> 
U42: =IF(ISBLANK(A42),TRUE,NOT(ISERROR(MATCH(A42,'Look Up Tables'!$A$11:$A$510,0)))) -> TRUE | V42: =IF(ISBLANK(A42),TRUE,NOT(ISERROR(MATCH(Y42,'Asset Possibilitites'!$I$9:$I$449,0)))) -> TRUE | Y42: =Scheme_Volume7[[#This Row],[Asset heading]]&Scheme_Volume7[[#This Row],[Asset Category]]&Scheme_Volume7[[#This Row],[Asset Sub-Category Primary]]&Scheme_Volume7[[#This Row],[Voltage]]&Scheme_Volume7[[#This Row],[Units]] -> 
U43: =IF(ISBLANK(A43),TRUE,NOT(ISERROR(MATCH(A43,'Look Up Tables'!$A$11:$A$510,0)))) -> TRUE | V43: =IF(ISBLANK(A43),TRUE,NOT(ISERROR(MATCH(Y43,'Asset Possibilitites'!$I$9:$I$449,0)))) -> TRUE | Y43: =Scheme_Volume7[[#This Row],[Asset heading]]&Scheme_Volume7[[#This Row],[Asset Category]]&Scheme_Volume7[[#This Row],[Asset Sub-Category Primary]]&Scheme_Volume7[[#This Row],[Voltage]]&Scheme_Volume7[[#This Row],[Units]] -> 
U44: =IF(ISBLANK(A44),TRUE,NOT(ISERROR(MATCH(A44,'Look Up Tables'!$A$11:$A$510,0)))) -> TRUE | V44: =IF(ISBLANK(A44),TRUE,NOT(ISERROR(MATCH(Y44,'Asset Possibilitites'!$I$9:$I$449,0)))) -> TRUE | Y44: =Scheme_Volume7[[#This Row],[Asset heading]]&Scheme_Volume7[[#This Row],[Asset Category]]&Scheme_Volume7[[#This Row],[Asset Sub-Category Primary]]&Scheme_Volume7[[#This Row],[Voltage]]&Scheme_Volume7[[#This Row],[Units]] -> 
U45: =IF(ISBLANK(A45),TRUE,NOT(ISERROR(MATCH(A45,'Look Up Tables'!$A$11:$A$510,0)))) -> TRUE | V45: =IF(ISBLANK(A45),TRUE,NOT(ISERROR(MATCH(Y45,'Asset Possibilitites'!$I$9:$I$449,0)))) -> TRUE | Y45: =Scheme_Volume7[[#This Row],[Asset heading]]&Scheme_Volume7[[#This Row],[Asset Category]]&Scheme_Volume7[[#This Row],[Asset Sub-Category Primary]]&Scheme_Volume7[[#This Row],[Voltage]]&Scheme_Volume7[[#This Row],[Units]] -> 
U46: =IF(ISBLANK(A46),TRUE,NOT(ISERROR(MATCH(A46,'Look Up Tables'!$A$11:$A$510,0)))) -> TRUE | V46: =IF(ISBLANK(A46),TRUE,NOT(ISERROR(MATCH(Y46,'Asset Possibilitites'!$I$9:$I$449,0)))) -> TRUE | Y46: =Scheme_Volume7[[#This Row],[Asset heading]]&Scheme_Volume7[[#This Row],[Asset Category]]&Scheme_Volume7[[#This Row],[Asset Sub-Category Primary]]&Scheme_Volume7[[#This Row],[Voltage]]&Scheme_Volume7[[#This Row],[Units]] -> 
U47: =IF(ISBLANK(A47),TRUE,NOT(ISERROR(MATCH(A47,'Look Up Tables'!$A$11:$A$510,0)))) -> TRUE | V47: =IF(ISBLANK(A47),TRUE,NOT(ISERROR(MATCH(Y47,'Asset Possibilitites'!$I$9:$I$449,0)))) -> TRUE | Y47: =Scheme_Volume7[[#This Row],[Asset heading]]&Scheme_Volume7[[#This Row],[Asset Category]]&Scheme_Volume7[[#This Row],[Asset Sub-Category Primary]]&Scheme_Volume7[[#This Row],[Voltage]]&Scheme_Volume7[[#This Row],[Units]] -> 
U48: =IF(ISBLANK(A48),TRUE,NOT(ISERROR(MATCH(A48,'Look Up Tables'!$A$11:$A$510,0)))) -> TRUE | V48: =IF(ISBLANK(A48),TRUE,NOT(ISERROR(MATCH(Y48,'Asset Possibilitites'!$I$9:$I$449,0)))) -> TRUE | Y48: =Scheme_Volume7[[#This Row],[Asset heading]]&Scheme_Volume7[[#This Row],[Asset Category]]&Scheme_Volume7[[#This Row],[Asset Sub-Category Primary]]&Scheme_Volume7[[#This Row],[Voltage]]&Scheme_Volume7[[#This Row],[Units]] -> 
U49: =IF(ISBLANK(A49),TRUE,NOT(ISERROR(MATCH(A49,'Look Up Tables'!$A$11:$A$510,0)))) -> TRUE | V49: =IF(ISBLANK(A49),TRUE,NOT(ISERROR(MATCH(Y49,'Asset Possibilitites'!$I$9:$I$449,0)))) -> TRUE | Y49: =Scheme_Volume7[[#This Row],[Asset heading]]&Scheme_Volume7[[#This Row],[Asset Category]]&Scheme_Volume7[[#This Row],[Asset Sub-Category Primary]]&Scheme_Volume7[[#This Row],[Voltage]]&Scheme_Volume7[[#This Row],[Units]] -> 
U50: =IF(ISBLANK(A50),TRUE,NOT(ISERROR(MATCH(A50,'Look Up Tables'!$A$11:$A$510,0)))) -> TRUE | V50: =IF(ISBLANK(A50),TRUE,NOT(ISERROR(MATCH(Y50,'Asset Possibilitites'!$I$9:$I$449,0)))) -> TRUE | Y50: =Scheme_Volume7[[#This Row],[Asset heading]]&Scheme_Volume7[[#This Row],[Asset Category]]&Scheme_Volume7[[#This Row],[Asset Sub-Category Primary]]&Scheme_Volume7[[#This Row],[Voltage]]&Scheme_Volume7[[#This Row],[Units]] -> 
U51: =IF(ISBLANK(A51),TRUE,NOT(ISERROR(MATCH(A51,'Look Up Tables'!$A$11:$A$510,0)))) -> TRUE | V51: =IF(ISBLANK(A51),TRUE,NOT(ISERROR(MATCH(Y51,'Asset Possibilitites'!$I$9:$I$449,0)))) -> TRUE | Y51: =Scheme_Volume7[[#This Row],[Asset heading]]&Scheme_Volume7[[#This Row],[Asset Category]]&Scheme_Volume7[[#This Row],[Asset Sub-Category Primary]]&Scheme_Volume7[[#This Row],[Voltage]]&Scheme_Volume7[[#This Row],[Units]] -> 
U52: =IF(ISBLANK(A52),TRUE,NOT(ISERROR(MATCH(A52,'Look Up Tables'!$A$11:$A$510,0)))) -> TRUE | V52: =IF(ISBLANK(A52),TRUE,NOT(ISERROR(MATCH(Y52,'Asset Possibilitites'!$I$9:$I$449,0)))) -> TRUE | Y52: =Scheme_Volume7[[#This Row],[Asset heading]]&Scheme_Volume7[[#This Row],[Asset Category]]&Scheme_Volume7[[#This Row],[Asset Sub-Category Primary]]&Scheme_Volume7[[#This Row],[Voltage]]&Scheme_Volume7[[#This Row],[Units]] -> 
U53: =IF(ISBLANK(A53),TRUE,NOT(ISERROR(MATCH(A53,'Look Up Tables'!$A$11:$A$510,0)))) -> TRUE | V53: =IF(ISBLANK(A53),TRUE,NOT(ISERROR(MATCH(Y53,'Asset Possibilitites'!$I$9:$I$449,0)))) -> TRUE | Y53: =Scheme_Volume7[[#This Row],[Asset heading]]&Scheme_Volume7[[#This Row],[Asset Category]]&Scheme_Volume7[[#This Row],[Asset Sub-Category Primary]]&Scheme_Volume7[[#This Row],[Voltage]]&Scheme_Volume7[[#This Row],[Units]] -> 
U54: =IF(ISBLANK(A54),TRUE,NOT(ISERROR(MATCH(A54,'Look Up Tables'!$A$11:$A$510,0)))) -> TRUE | V54: =IF(ISBLANK(A54),TRUE,NOT(ISERROR(MATCH(Y54,'Asset Possibilitites'!$I$9:$I$449,0)))) -> TRUE | Y54: =Scheme_Volume7[[#This Row],[Asset heading]]&Scheme_Volume7[[#This Row],[Asset Category]]&Scheme_Volume7[[#This Row],[Asset Sub-Category Primary]]&Scheme_Volume7[[#This Row],[Voltage]]&Scheme_Volume7[[#This Row],[Units]] -> 
U55: =IF(ISBLANK(A55),TRUE,NOT(ISERROR(MATCH(A55,'Look Up Tables'!$A$11:$A$510,0)))) -> TRUE | V55: =IF(ISBLANK(A55),TRUE,NOT(ISERROR(MATCH(Y55,'Asset Possibilitites'!$I$9:$I$449,0)))) -> TRUE | Y55: =Scheme_Volume7[[#This Row],[Asset heading]]&Scheme_Volume7[[#This Row],[Asset Category]]&Scheme_Volume7[[#This Row],[Asset Sub-Category Primary]]&Scheme_Volume7[[#This Row],[Voltage]]&Scheme_Volume7[[#This Row],[Units]] -> 
U56: =IF(ISBLANK(A56),TRUE,NOT(ISERROR(MATCH(A56,'Look Up Tables'!$A$11:$A$510,0)))) -> TRUE | V56: =IF(ISBLANK(A56),TRUE,NOT(ISERROR(MATCH(Y56,'Asset Possibilitites'!$I$9:$I$449,0)))) -> TRUE | Y56: =Scheme_Volume7[[#This Row],[Asset heading]]&Scheme_Volume7[[#This Row],[Asset Category]]&Scheme_Volume7[[#This Row],[Asset Sub-Category Primary]]&Scheme_Volume7[[#This Row],[Voltage]]&Scheme_Volume7[[#This Row],[Units]] -> 
U57: =IF(ISBLANK(A57),TRUE,NOT(ISERROR(MATCH(A57,'Look Up Tables'!$A$11:$A$510,0)))) -> TRUE | V57: =IF(ISBLANK(A57),TRUE,NOT(ISERROR(MATCH(Y57,'Asset Possibilitites'!$I$9:$I$449,0)))) -> TRUE | Y57: =Scheme_Volume7[[#This Row],[Asset heading]]&Scheme_Volume7[[#This Row],[Asset Category]]&Scheme_Volume7[[#This Row],[Asset Sub-Category Primary]]&Scheme_Volume7[[#This Row],[Voltage]]&Scheme_Volume7[[#This Row],[Units]] -> 
U58: =IF(ISBLANK(A58),TRUE,NOT(ISERROR(MATCH(A58,'Look Up Tables'!$A$11:$A$510,0)))) -> TRUE | V58: =IF(ISBLANK(A58),TRUE,NOT(ISERROR(MATCH(Y58,'Asset Possibilitites'!$I$9:$I$449,0)))) -> TRUE | Y58: =Scheme_Volume7[[#This Row],[Asset heading]]&Scheme_Volume7[[#This Row],[Asset Category]]&Scheme_Volume7[[#This Row],[Asset Sub-Category Primary]]&Scheme_Volume7[[#This Row],[Voltage]]&Scheme_Volume7[[#This Row],[Units]] -> 
U59: =IF(ISBLANK(A59),TRUE,NOT(ISERROR(MATCH(A59,'Look Up Tables'!$A$11:$A$510,0)))) -> TRUE | V59: =IF(ISBLANK(A59),TRUE,NOT(ISERROR(MATCH(Y59,'Asset Possibilitites'!$I$9:$I$449,0)))) -> TRUE | Y59: =Scheme_Volume7[[#This Row],[Asset heading]]&Scheme_Volume7[[#This Row],[Asset Category]]&Scheme_Volume7[[#This Row],[Asset Sub-Category Primary]]&Scheme_Volume7[[#This Row],[Voltage]]&Scheme_Volume7[[#This Row],[Units]] -> 
U60: =IF(ISBLANK(A60),TRUE,NOT(ISERROR(MATCH(A60,'Look Up Tables'!$A$11:$A$510,0)))) -> TRUE | V60: =IF(ISBLANK(A60),TRUE,NOT(ISERROR(MATCH(Y60,'Asset Possibilitites'!$I$9:$I$449,0)))) -> TRUE | Y60: =Scheme_Volume7[[#This Row],[Asset heading]]&Scheme_Volume7[[#This Row],[Asset Category]]&Scheme_Volume7[[#This Row],[Asset Sub-Category Primary]]&Scheme_Volume7[[#This Row],[Voltage]]&Scheme_Volume7[[#This Row],[Units]] -> 
U61: =IF(ISBLANK(A61),TRUE,NOT(ISERROR(MATCH(A61,'Look Up Tables'!$A$11:$A$510,0)))) -> TRUE | V61: =IF(ISBLANK(A61),TRUE,NOT(ISERROR(MATCH(Y61,'Asset Possibilitites'!$I$9:$I$449,0)))) -> TRUE | Y61: =Scheme_Volume7[[#This Row],[Asset heading]]&Scheme_Volume7[[#This Row],[Asset Category]]&Scheme_Volume7[[#This Row],[Asset Sub-Category Primary]]&Scheme_Volume7[[#This Row],[Voltage]]&Scheme_Volume7[[#This Row],[Units]] -> 
U62: =IF(ISBLANK(A62),TRUE,NOT(ISERROR(MATCH(A62,'Look Up Tables'!$A$11:$A$510,0)))) -> TRUE | V62: =IF(ISBLANK(A62),TRUE,NOT(ISERROR(MATCH(Y62,'Asset Possibilitites'!$I$9:$I$449,0)))) -> TRUE | Y62: =Scheme_Volume7[[#This Row],[Asset heading]]&Scheme_Volume7[[#This Row],[Asset Category]]&Scheme_Volume7[[#This Row],[Asset Sub-Category Primary]]&Scheme_Volume7[[#This Row],[Voltage]]&Scheme_Volume7[[#This Row],[Units]] -> 
... 77 more rows

Sheet Scheme_Cost_Mock_Up_Allowances
A1: Sheet: | B1: Scheme Costs Baseline | D1: Data Type: | E1: Costs | G1: Checks: | H1: ='Checks Sheet'!$C$49 -> All checks passing
A2: Prices Base: 2018/19
A3: Sheet Description:
A4: Scheme Cost Baseline Data Inputs sheet.
A6: Key
A7: Select from dropdown | B7: Free Entry | C7: Auto Populated | D7: Check Cell | E7: Lookup Data
A9: Baseline
A11: descriptor_1 | B11: descriptor_2 | C11: descriptor_3 | D11: descriptor_4 | E11: descriptor_5 | F11: descriptor_6 | G11: descriptor_7 | H11: descriptor_8 | I11: descriptor_9 | J11: descriptor_10 | L11: value_1 | M11: value_2 | N11: value_3 | O11: value_3 | P11: value_5 | Q11: value_6 | R11: value_7 | S11: value_8 | T11: value_9 | U11: value_9 | V11: value_9 | W11: value_9 | X11: value_9 | Y11: value_9 | Z11: value_9 | AA11: value_10
L13: Total | M13: Total | N13: Total | O13: Total | P13: Total | Q13: Total | R13: Total | S13: Total | T13: Total | U13: Total | V13: Total | W13: Total | X13: Total | Y13: Total | Z13: Total
L14: =SUM( L17:L10016) -> 0 | M14: 0 | N14: 0 | O14: 0 | P14: 0 | Q14: 0 | R14: 0 | S14: 0 | T14: 0 | U14: 0 | V14: 0 | W14: 0 | X14: 0 | Y14: 0 | Z14: 0
A16: Scheme Reference | B16: Asset heading | C16: Asset Category | D16: Asset Sub-Category Primary | E16: Asset Sub-Category Secondary | F16: Voltage | G16: Volume Measure | H16: Licence Term | I16: Intervention | J16: Units | L16: Total | M16: Sub-total RIIO-1 | N16: Sub-total RIIO-2 | O16: Sub-total RIIO-3 | P16: 2022 | Q16: 2023 | R16: 2024 | S16: 2025 | T16: 2026 | U16: 2027 | V16: 2028 | W16: 2029 | X16: 2030 | Y16: 2031 | Z16: 2032+ | AA16: Note | AD16: Descriptor for checks
A17: =Scheme_Volume7[[#This Row],[Scheme Reference]] -> 0 | B17: =Scheme_Volume7[[#This Row],[Asset heading]] -> 0 | C17: =Scheme_Volume7[[#This Row],[Asset Category]] -> 0 | D17: =Scheme_Volume7[[#This Row],[Asset Sub-Category Primary]] -> 0 | E17: =Scheme_Volume7[[#This Row],[Asset Sub-Category Secondary]] -> 0 | F17: =Scheme_Volume7[[#This Row],[Voltage]] -> 0 | G17: =Scheme_Volume7[[#This Row],[Volume Measure]] -> 0 | H17: =Scheme_Volume7[[#This Row],[License Term]] -> 0 | I17: =Scheme_Volume7[[#This Row],[Intervention]] -> 0 | J17: =Scheme_Volume7[[#This Row],[Units]] -> 0 | L17: =SUM(M17, P17:Z17) -> 0 | N17: =SUM(P17:T17) -> 0 | O17: =SUM(U17:Z17) -> 0 | AD17: =Scheme_Volume539[[#This Row],[Asset heading]]&Scheme_Volume539[[#This Row],[Asset Category]]&Scheme_Volume539[[#This Row],[Asset Sub-Category Primary]]&Scheme_Volume539[[#This Row],[Voltage]]&Scheme_Volume539[[#This Row],[Units]] -> 00000
A18: =Scheme_Volume7[[#This Row],[Scheme Reference]] -> 0 | B18: =Scheme_Volume7[[#This Row],[Asset heading]] -> 0 | C18: =Scheme_Volume7[[#This Row],[Asset Category]] -> 0 | D18: =Scheme_Volume7[[#This Row],[Asset Sub-Category Primary]] -> 0 | E18: =Scheme_Volume7[[#This Row],[Asset Sub-Category Secondary]] -> 0 | F18: =Scheme_Volume7[[#This Row],[Voltage]] -> 0 | G18: =Scheme_Volume7[[#This Row],[Volume Measure]] -> 0 | H18: =Scheme_Volume7[[#This Row],[License Term]] -> 0 | I18: =Scheme_Volume7[[#This Row],[Intervention]] -> 0 | J18: =Scheme_Volume7[[#This Row],[Units]] -> 0 | L18: 0 | N18: 0 | O18: 0 | AD18: =Scheme_Volume539[[#This Row],[Asset heading]]&Scheme_Volume539[[#This Row],[Asset Category]]&Scheme_Volume539[[#This Row],[Asset Sub-Category Primary]]&Scheme_Volume539[[#This Row],[Voltage]]&Scheme_Volume539[[#This Row],[Units]] -> 00000
A19: =Scheme_Volume7[[#This Row],[Scheme Reference]] -> 0 | B19: =Scheme_Volume7[[#This Row],[Asset heading]] -> 0 | C19: =Scheme_Volume7[[#This Row],[Asset Category]] -> 0 | D19: =Scheme_Volume7[[#This Row],[Asset Sub-Category Primary]] -> 0 | E19: =Scheme_Volume7[[#This Row],[Asset Sub-Category Secondary]] -> 0 | F19: =Scheme_Volume7[[#This Row],[Voltage]] -> 0 | G19: =Scheme_Volume7[[#This Row],[Volume Measure]] -> 0 | H19: =Scheme_Volume7[[#This Row],[License Term]] -> 0 | I19: =Scheme_Volume7[[#This Row],[Intervention]] -> 0 | J19: =Scheme_Volume7[[#This Row],[Units]] -> 0 | L19: 0 | N19: 0 | O19: 0 | AD19: =Scheme_Volume539[[#This Row],[Asset heading]]&Scheme_Volume539[[#This Row],[Asset Category]]&Scheme_Volume539[[#This Row],[Asset Sub-Category Primary]]&Scheme_Volume539[[#This Row],[Voltage]]&Scheme_Volume539[[#This Row],[Units]] -> 00000
A20: =Scheme_Volume7[[#This Row],[Scheme Reference]] -> 0 | B20: =Scheme_Volume7[[#This Row],[Asset heading]] -> 0 | C20: =Scheme_Volume7[[#This Row],[Asset Category]] -> 0 | D20: =Scheme_Volume7[[#This Row],[Asset Sub-Category Primary]] -> 0 | E20: =Scheme_Volume7[[#This Row],[Asset Sub-Category Secondary]] -> 0 | F20: =Scheme_Volume7[[#This Row],[Voltage]] -> 0 | G20: =Scheme_Volume7[[#This Row],[Volume Measure]] -> 0 | H20: =Scheme_Volume7[[#This Row],[License Term]] -> 0 | I20: =Scheme_Volume7[[#This Row],[Intervention]] -> 0 | J20: =Scheme_Volume7[[#This Row],[Units]] -> 0 | L20: 0 | N20: 0 | O20: 0 | AD20: =Scheme_Volume539[[#This Row],[Asset heading]]&Scheme_Volume539[[#This Row],[Asset Category]]&Scheme_Volume539[[#This Row],[Asset Sub-Category Primary]]&Scheme_Volume539[[#This Row],[Voltage]]&Scheme_Volume539[[#This Row],[Units]] -> 00000
A21: =Scheme_Volume7[[#This Row],[Scheme Reference]] -> 0 | B21: =Scheme_Volume7[[#This Row],[Asset heading]] -> 0 | C21: =Scheme_Volume7[[#This Row],[Asset Category]] -> 0 | D21: =Scheme_Volume7[[#This Row],[Asset Sub-Category Primary]] -> 0 | E21: =Scheme_Volume7[[#This Row],[Asset Sub-Category Secondary]] -> 0 | F21: =Scheme_Volume7[[#This Row],[Voltage]] -> 0 | G21: =Scheme_Volume7[[#This Row],[Volume Measure]] -> 0 | H21: =Scheme_Volume7[[#This Row],[License Term]] -> 0 | I21: =Scheme_Volume7[[#This Row],[Intervention]] -> 0 | J21: =Scheme_Volume7[[#This Row],[Units]] -> 0 | L21: 0 | N21: 0 | O21: 0 | AD21: =Scheme_Volume539[[#This Row],[Asset heading]]&Scheme_Volume539[[#This Row],[Asset Category]]&Scheme_Volume539[[#This Row],[Asset Sub-Category Primary]]&Scheme_Volume539[[#This Row],[Voltage]]&Scheme_Volume539[[#This Row],[Units]] -> 00000
A22: =Scheme_Volume7[[#This Row],[Scheme Reference]] -> 0 | B22: =Scheme_Volume7[[#This Row],[Asset heading]] -> 0 | C22: =Scheme_Volume7[[#This Row],[Asset Category]] -> 0 | D22: =Scheme_Volume7[[#This Row],[Asset Sub-Category Primary]] -> 0 | E22: =Scheme_Volume7[[#This Row],[Asset Sub-Category Secondary]] -> 0 | F22: =Scheme_Volume7[[#This Row],[Voltage]] -> 0 | G22: =Scheme_Volume7[[#This Row],[Volume Measure]] -> 0 | H22: =Scheme_Volume7[[#This Row],[License Term]] -> 0 | I22: =Scheme_Volume7[[#This Row],[Intervention]] -> 0 | J22: =Scheme_Volume7[[#This Row],[Units]] -> 0 | L22: 0 | N22: 0 | O22: 0 | AD22: =Scheme_Volume539[[#This Row],[Asset heading]]&Scheme_Volume539[[#This Row],[Asset Category]]&Scheme_Volume539[[#This Row],[Asset Sub-Category Primary]]&Scheme_Volume539[[#This Row],[Voltage]]&Scheme_Volume539[[#This Row],[Units]] -> 00000
A23: =Scheme_Volume7[[#This Row],[Scheme Reference]] -> 0 | B23: =Scheme_Volume7[[#This Row],[Asset heading]] -> 0 | C23: =Scheme_Volume7[[#This Row],[Asset Category]] -> 0 | D23: =Scheme_Volume7[[#This Row],[Asset Sub-Category Primary]] -> 0 | E23: =Scheme_Volume7[[#This Row],[Asset Sub-Category Secondary]] -> 0 | F23: =Scheme_Volume7[[#This Row],[Voltage]] -> 0 | G23: =Scheme_Volume7[[#This Row],[Volume Measure]] -> 0 | H23: =Scheme_Volume7[[#This Row],[License Term]] -> 0 | I23: =Scheme_Volume7[[#This Row],[Intervention]] -> 0 | J23: =Scheme_Volume7[[#This Row],[Units]] -> 0 | L23: 0 | N23: 0 | O23: 0 | AD23: =Scheme_Volume539[[#This Row],[Asset heading]]&Scheme_Volume539[[#This Row],[Asset Category]]&Scheme_Volume539[[#This Row],[Asset Sub-Category Primary]]&Scheme_Volume539[[#This Row],[Voltage]]&Scheme_Volume539[[#This Row],[Units]] -> 00000
A24: =Scheme_Volume7[[#This Row],[Scheme Reference]] -> 0 | B24: =Scheme_Volume7[[#This Row],[Asset heading]] -> 0 | C24: =Scheme_Volume7[[#This Row],[Asset Category]] -> 0 | D24: =Scheme_Volume7[[#This Row],[Asset Sub-Category Primary]] -> 0 | E24: =Scheme_Volume7[[#This Row],[Asset Sub-Category Secondary]] -> 0 | F24: =Scheme_Volume7[[#This Row],[Voltage]] -> 0 | G24: =Scheme_Volume7[[#This Row],[Volume Measure]] -> 0 | H24: =Scheme_Volume7[[#This Row],[License Term]] -> 0 | I24: =Scheme_Volume7[[#This Row],[Intervention]] -> 0 | J24: =Scheme_Volume7[[#This Row],[Units]] -> 0 | L24: 0 | N24: 0 | O24: 0 | AD24: =Scheme_Volume539[[#This Row],[Asset heading]]&Scheme_Volume539[[#This Row],[Asset Category]]&Scheme_Volume539[[#This Row],[Asset Sub-Category Primary]]&Scheme_Volume539[[#This Row],[Voltage]]&Scheme_Volume539[[#This Row],[Units]] -> 00000
A25: =Scheme_Volume7[[#This Row],[Scheme Reference]] -> 0 | B25: =Scheme_Volume7[[#This Row],[Asset heading]] -> 0 | C25: =Scheme_Volume7[[#This Row],[Asset Category]] -> 0 | D25: =Scheme_Volume7[[#This Row],[Asset Sub-Category Primary]] -> 0 | E25: =Scheme_Volume7[[#This Row],[Asset Sub-Category Secondary]] -> 0 | F25: =Scheme_Volume7[[#This Row],[Voltage]] -> 0 | G25: =Scheme_Volume7[[#This Row],[Volume Measure]] -> 0 | H25: =Scheme_Volume7[[#This Row],[License Term]] -> 0 | I25: =Scheme_Volume7[[#This Row],[Intervention]] -> 0 | J25: =Scheme_Volume7[[#This Row],[Units]] -> 0 | L25: 0 | N25: 0 | O25: 0 | AD25: =Scheme_Volume539[[#This Row],[Asset heading]]&Scheme_Volume539[[#This Row],[Asset Category]]&Scheme_Volume539[[#This Row],[Asset Sub-Category Primary]]&Scheme_Volume539[[#This Row],[Voltage]]&Scheme_Volume539[[#This Row],[Units]] -> 00000
A26: =Scheme_Volume7[[#This Row],[Scheme Reference]] -> 0 | B26: =Scheme_Volume7[[#This Row],[Asset heading]] -> 0 | C26: =Scheme_Volume7[[#This Row],[Asset Category]] -> 0 | D26: =Scheme_Volume7[[#This Row],[Asset Sub-Category Primary]] -> 0 | E26: =Scheme_Volume7[[#This Row],[Asset Sub-Category Secondary]] -> 0 | F26: =Scheme_Volume7[[#This Row],[Voltage]] -> 0 | G26: =Scheme_Volume7[[#This Row],[Volume Measure]] -> 0 | H26: =Scheme_Volume7[[#This Row],[License Term]] -> 0 | I26: =Scheme_Volume7[[#This Row],[Intervention]] -> 0 | J26: =Scheme_Volume7[[#This Row],[Units]] -> 0 | L26: 0 | N26: 0 | O26: 0 | AD26: =Scheme_Volume539[[#This Row],[Asset heading]]&Scheme_Volume539[[#This Row],[Asset Category]]&Scheme_Volume539[[#This Row],[Asset Sub-Category Primary]]&Scheme_Volume539[[#This Row],[Voltage]]&Scheme_Volume539[[#This Row],[Units]] -> 00000
A27: =Scheme_Volume7[[#This Row],[Scheme Reference]] -> 0 | B27: =Scheme_Volume7[[#This Row],[Asset heading]] -> 0 | C27: =Scheme_Volume7[[#This Row],[Asset Category]] -> 0 | D27: =Scheme_Volume7[[#This Row],[Asset Sub-Category Primary]] -> 0 | E27: =Scheme_Volume7[[#This Row],[Asset Sub-Category Secondary]] -> 0 | F27: =Scheme_Volume7[[#This Row],[Voltage]] -> 0 | G27: =Scheme_Volume7[[#This Row],[Volume Measure]] -> 0 | H27: =Scheme_Volume7[[#This Row],[License Term]] -> 0 | I27: =Scheme_Volume7[[#This Row],[Intervention]] -> 0 | J27: =Scheme_Volume7[[#This Row],[Units]] -> 0 | L27: 0 | N27: 0 | O27: 0 | AD27: =Scheme_Volume539[[#This Row],[Asset heading]]&Scheme_Volume539[[#This Row],[Asset Category]]&Scheme_Volume539[[#This Row],[Asset Sub-Category Primary]]&Scheme_Volume539[[#This Row],[Voltage]]&Scheme_Volume539[[#This Row],[Units]] -> 00000
A28: =Scheme_Volume7[[#This Row],[Scheme Reference]] -> 0 | B28: =Scheme_Volume7[[#This Row],[Asset heading]] -> 0 | C28: =Scheme_Volume7[[#This Row],[Asset Category]] -> 0 | D28: =Scheme_Volume7[[#This Row],[Asset Sub-Category Primary]] -> 0 | E28: =Scheme_Volume7[[#This Row],[Asset Sub-Category Secondary]] -> 0 | F28: =Scheme_Volume7[[#This Row],[Voltage]] -> 0 | G28: =Scheme_Volume7[[#This Row],[Volume Measure]] -> 0 | H28: =Scheme_Volume7[[#This Row],[License Term]] -> 0 | I28: =Scheme_Volume7[[#This Row],[Intervention]] -> 0 | J28: =Scheme_Volume7[[#This Row],[Units]] -> 0 | L28: 0 | N28: 0 | O28: 0 | AD28: =Scheme_Volume539[[#This Row],[Asset heading]]&Scheme_Volume539[[#This Row],[Asset Category]]&Scheme_Volume539[[#This Row],[Asset Sub-Category Primary]]&Scheme_Volume539[[#This Row],[Voltage]]&Scheme_Volume539[[#This Row],[Units]] -> 00000
A29: =Scheme_Volume7[[#This Row],[Scheme Reference]] -> 0 | B29: =Scheme_Volume7[[#This Row],[Asset heading]] -> 0 | C29: =Scheme_Volume7[[#This Row],[Asset Category]] -> 0 | D29: =Scheme_Volume7[[#This Row],[Asset Sub-Category Primary]] -> 0 | E29: =Scheme_Volume7[[#This Row],[Asset Sub-Category Secondary]] -> 0 | F29: =Scheme_Volume7[[#This Row],[Voltage]] -> 0 | G29: =Scheme_Volume7[[#This Row],[Volume Measure]] -> 0 | H29: =Scheme_Volume7[[#This Row],[License Term]] -> 0 | I29: =Scheme_Volume7[[#This Row],[Intervention]] -> 0 | J29: =Scheme_Volume7[[#This Row],[Units]] -> 0 | L29: 0 | N29: 0 | O29: 0 | AD29: =Scheme_Volume539[[#This Row],[Asset heading]]&Scheme_Volume539[[#This Row],[Asset Category]]&Scheme_Volume539[[#This Row],[Asset Sub-Category Primary]]&Scheme_Volume539[[#This Row],[Voltage]]&Scheme_Volume539[[#This Row],[Units]] -> 00000
A30: =Scheme_Volume7[[#This Row],[Scheme Reference]] -> 0 | B30: =Scheme_Volume7[[#This Row],[Asset heading]] -> 0 | C30: =Scheme_Volume7[[#This Row],[Asset Category]] -> 0 | D30: =Scheme_Volume7[[#This Row],[Asset Sub-Category Primary]] -> 0 | E30: =Scheme_Volume7[[#This Row],[Asset Sub-Category Secondary]] -> 0 | F30: =Scheme_Volume7[[#This Row],[Voltage]] -> 0 | G30: =Scheme_Volume7[[#This Row],[Volume Measure]] -> 0 | H30: =Scheme_Volume7[[#This Row],[License Term]] -> 0 | I30: =Scheme_Volume7[[#This Row],[Intervention]] -> 0 | J30: =Scheme_Volume7[[#This Row],[Units]] -> 0 | L30: 0 | N30: 0 | O30: 0 | AD30: =Scheme_Volume539[[#This Row],[Asset heading]]&Scheme_Volume539[[#This Row],[Asset Category]]&Scheme_Volume539[[#This Row],[Asset Sub-Category Primary]]&Scheme_Volume539[[#This Row],[Voltage]]&Scheme_Volume539[[#This Row],[Units]] -> 00000
A31: =Scheme_Volume7[[#This Row],[Scheme Reference]] -> 0 | B31: =Scheme_Volume7[[#This Row],[Asset heading]] -> 0 | C31: =Scheme_Volume7[[#This Row],[Asset Category]] -> 0 | D31: =Scheme_Volume7[[#This Row],[Asset Sub-Category Primary]] -> 0 | E31: =Scheme_Volume7[[#This Row],[Asset Sub-Category Secondary]] -> 0 | F31: =Scheme_Volume7[[#This Row],[Voltage]] -> 0 | G31: =Scheme_Volume7[[#This Row],[Volume Measure]] -> 0 | H31: =Scheme_Volume7[[#This Row],[License Term]] -> 0 | I31: =Scheme_Volume7[[#This Row],[Intervention]] -> 0 | J31: =Scheme_Volume7[[#This Row],[Units]] -> 0 | L31: 0 | N31: 0 | O31: 0 | AD31: =Scheme_Volume539[[#This Row],[Asset heading]]&Scheme_Volume539[[#This Row],[Asset Category]]&Scheme_Volume539[[#This Row],[Asset Sub-Category Primary]]&Scheme_Volume539[[#This Row],[Voltage]]&Scheme_Volume539[[#This Row],[Units]] -> 00000
A32: =Scheme_Volume7[[#This Row],[Scheme Reference]] -> 0 | B32: =Scheme_Volume7[[#This Row],[Asset heading]] -> 0 | C32: =Scheme_Volume7[[#This Row],[Asset Category]] -> 0 | D32: =Scheme_Volume7[[#This Row],[Asset Sub-Category Primary]] -> 0 | E32: =Scheme_Volume7[[#This Row],[Asset Sub-Category Secondary]] -> 0 | F32: =Scheme_Volume7[[#This Row],[Voltage]] -> 0 | G32: =Scheme_Volume7[[#This Row],[Volume Measure]] -> 0 | H32: =Scheme_Volume7[[#This Row],[License Term]] -> 0 | I32: =Scheme_Volume7[[#This Row],[Intervention]] -> 0 | J32: =Scheme_Volume7[[#This Row],[Units]] -> 0 | L32: 0 | N32: 0 | O32: 0 | AD32: =Scheme_Volume539[[#This Row],[Asset heading]]&Scheme_Volume539[[#This Row],[Asset Category]]&Scheme_Volume539[[#This Row],[Asset Sub-Category Primary]]&Scheme_Volume539[[#This Row],[Voltage]]&Scheme_Volume539[[#This Row],[Units]] -> 00000
